Workbook

Sheet Intro
G2: Electricity Distribution Network Service Provider
I3: RFM - Depreciation tracking module
L4: Version: | M4: 1
L5: Date: | M5: April 2020
B8: Introduction | J8: Electricity distribution module
C14: This attachment to the RFM is used by the AER to determine the forecast regulatory asset base (RAB) and tax asset base (TAB) depreciation for a distribution network service provider.
C15: It also calculates the actual tax depreciation for use in the RFM.
C17: INSTRUCTIONS FOR USE
C18: The RFM handbook, which contains information on this depreciation tracking module, is available on the AER website at http://www.aer.gov.au
C20: a. Fill out input cells on the 'RAB input' and 'TAB input' sheets. These input cells are highlighted blue.
C21: This provides the data for the depreciation tracking calculations.
C22: In general, input expenditure data should be valued in nominal dollar terms of the year indicated.
C23: Units and basis for entry are specified where required for each data table.
C24: Not all input cells require an input - be sure to read and follow the instructions contained within the comments for each section heading.
C25: All relevant inputs are to be filled on an ongoing basis, with the details of past expenditure and asset lives to be preserved.
C27: b. The values in the 'Tracking output' sheet
C28: This sheet summarises the key outputs of the year-by-year tracking approach, which includes forecast RAB and TAB depreciation to be input into the PTRM
C29: as well as actual tax depreciation for the current regulatory period to be input into the RFM.
C31: VERSION RECORD
C33: Version | D33: Date | F33: Description
C34: 1 | D34: April 2020 | F34: Initial module

Sheet AER amendments
A1: # | B1: Sheet | C1: Reference | D1: Notes
A2: 1 | B2: RAB input | C2: U14 | D2: updated CPI with actual value
A3: 2 | B3: RAB input | C3: V14 | D3: 2024-25 CPI to reflect RBA forecast (August Statement of Monetary Policy)
A4: 3 | B4: RAB input | C4: U17, V17, V19 | D4: updated WACC to be consistent with the draft decision RFM
A5: 4 | B5: RAB input | C5: R25:S74, S79:S128, T93, S133:S182 | D5: amended capex inputs to be consistent with annual RINs (minor revisions)
A6: 5 | B6: RAB input | C6: V456:V505 | D6: set consistent with draft decision RFM outputs
A7: 6 | B7: TAB input | C7: U72:U121 | D7: amended immediately expensed capex to be consistent with annual RIN
A8: 7 | B8: TAB input | C8: N196:N198 | D8: set N/A for the tax standard life of asset classes which did not come into use until 2020-25 period
A9: 8 | B9: TAB input | C9: S190 | D9: amended tax life to be consistent with the RFM
A11: The AER's draft decision amendments are highlighted in green
A13: 1 | B13: RAB input | C13: U25:U74, U79:U128, U133:U182 | D13: updated actual capex for 2023-24
A14: 2 | B14: RAB input | C14: V25:V74, V79:V128, V133:V182 | D14: updated forecast capex for 2024-25
A15: 3 | B15: RAB input | C15: V456:V505 | D15: set consistent with RFM outputs
A16: 4 | B16: TAB input | C16: U72:U121 | D16: amended immediately expensed capex to be consistent with annual RIN
A18: SAPN Revised Proposal amendments are highlighted in purple
A20: 1 | B20: RAB input | C20: V14 | D20: updated 2024-25 CPI to reflect ABS series
A21: 2 | B21: RAB input | C21: V17 | D21: updated WACC reflecting the CPI update in the RFM
A22: 3 | B22: RAB input | C22: V456:V505 | D22: set consistent with final decision RFM outputs
A23: 4 | B23: TAB input | C23: R116 | D23: removed erroneous input
A25: The AER's final decision amendments are highlighted in blue

Sheet RAB input
E2: =IF($F$8='TAB input'!$F$8, $F$8, 'TAB input'!$F$8) & " - RAB input - Elec DNSP "&Intro!$I$3&" - version "& Intro!$M$4 -> SAPN - RAB input - Elec DNSP RFM - Depreciation tracking module - version 1 | J2: Input cells in blue | R2: AER draft decision | T2: SAPN revised proposal | V2: AER final decision
E4: Year | F4: =IF(LEN($H$9)>4, CONCATENATE(LEFT($H$9, 4)-2 & "-" & IF(AND(RIGHT($H$9, 2)<"12", RIGHT($H$9, 2)>"01"), "0", "") & IF(RIGHT($H$9, 2)="00", "98", IF(RIGHT($H$9, 2)="01", "99", RIGHT($H$9, 2)-2))), $H$9-2) -> 2008-09 | G4: =IF(LEN(F4)>4,CONCATENATE(LEFT(F4,4)+1&"-"&IF(RIGHT(F4, 2)<"09", "0","")&IF(RIGHT(F4, 2)="99", "00", RIGHT(F4,2)+1)),F4+1) -> 2009-10 | H4: =IF(LEN(G4)>4,CONCATENATE(LEFT(G4,4)+1&"-"&IF(RIGHT(G4, 2)<"09", "0","")&IF(RIGHT(G4, 2)="99", "00", RIGHT(G4,2)+1)),G4+1) -> 2010-11 | I4: 2011-12 | J4: 2012-13 | K4: 2013-14 | L4: 2014-15 | M4: 2015-16 | N4: 2016-17 | O4: 2017-18 | P4: 2018-19 | Q4: 2019-20 | R4: 2020-21 | S4: 2021-22 | T4: 2022-23 | U4: 2023-24 | V4: 2024-25 | W4: 2025-26 | X4: 2026-27 | Y4: 2027-28 | Z4: 2028-29 | AA4: 2029-30 | AB4: 2030-31 | AC4: 2031-32 | AD4: 2032-33 | AE4: 2033-34 | AF4: 2034-35 | AG4: 2035-36 | AH4: 2036-37 | AI4: 2037-38 | AJ4: 2038-39 | AK4: 2039-40 | AL4: 2040-41 | AM4: 2041-42 | AN4: 2042-43 | AO4: 2043-44 | AP4: 2044-45 | AQ4: 2045-46 | AR4: 2046-47 | AS4: 2047-48 | AT4: 2048-49 | AU4: 2049-50 | AV4: 2050-51 | AW4: 2051-52 | AX4: 2052-53 | AY4: 2053-54 | AZ4: 2054-55 | BA4: 2055-56 | BB4: 2056-57 | BC4: 2057-58 | BD4: 2058-59 | BE4: 2059-60 | BF4: 2060-61 | BG4: 2061-62 | BH4: 2062-63 | BI4: 2063-64 | BJ4: 2064-65 | BK4: 2065-66 | BL4: 2066-67 | BM4: 2067-68 | BN4: 2068-69 | BO4: 2069-70 | BP4: 2070-71 | BQ4: 2071-72 | BR4: 2072-73 | BS4: 2073-74 | BT4: =IF(LEN(BS4)>4,CONCATENATE(LEFT(BS4,4)+1&"-"&IF(RIGHT(BS4, 2)<"09", "0","")&IF(RIGHT(BS4, 2)="99", "00", RIGHT(BS4,2)+1)),BS4+1) -> 2074-75 | BU4: 2075-76 | BV4: 2076-77 | BW4: 2077-78 | BX4: 2078-79 | BY4: 2079-80 | BZ4: 2080-81 | CA4: 2081-82 | CB4: 2082-83 | CC4: 2083-84 | CD4: 2084-85 | CE4: 2085-86
D6: General information
E8: Business name | F8: SAPN
E9: First regulatory year for tracking | H9: 2010-11 | I9: =IF(SUM($11:$11)=COUNTA($H$9:H$9), "Input for next period", "") ->  | J9: =IF(SUM($11:$11)=COUNTA($H$9:I$9), "Input for next period", "") ->  | K9: =IF(SUM($11:$11)=COUNTA($H$9:J$9), "Input for next period", "") ->  | L9: =IF(SUM($11:$11)=COUNTA($H$9:K$9), "Input for next period", "") ->  | M9: =IF(SUM($11:$11)=COUNTA($H$9:L$9), "Input for next period", "") ->  | N9: =IF(SUM($11:$11)=COUNTA($H$9:M$9), "Input for next period", "") ->  | O9: =IF(SUM($11:$11)=COUNTA($H$9:N$9), "Input for next period", "") ->  | P9: =IF(SUM($11:$11)=COUNTA($H$9:O$9), "Input for next period", "") ->  | Q9: =IF(SUM($11:$11)=COUNTA($H$9:P$9), "Input for next period", "") ->  | R9: =IF(SUM($11:$11)=COUNTA($H$9:Q$9), "Input for next period", "") ->  | S9: =IF(SUM($11:$11)=COUNTA($H$9:R$9), "Input for next period", "") ->  | U9: =IF(SUM($11:$11)=COUNTA($H$9:T$9), "Input for next period", "") ->  | V9: =IF(SUM($11:$11)=COUNTA($H$9:U$9), "Input for next period", "") ->  | W9: =IF(SUM($11:$11)=COUNTA($H$9:V$9), "Input for next period", "") ->  | X9: =IF(SUM($11:$11)=COUNTA($H$9:W$9), "Input for next period", "") -> Input for next period | Y9: =IF(SUM($11:$11)=COUNTA($H$9:X$9), "Input for next period", "") ->  | Z9: =IF(SUM($11:$11)=COUNTA($H$9:Y$9), "Input for next period", "") ->  | AA9: =IF(SUM($11:$11)=COUNTA($H$9:Z$9), "Input for next period", "") ->  | AB9: =IF(SUM($11:$11)=COUNTA($H$9:AA$9), "Input for next period", "") ->  | AC9: =IF(SUM($11:$11)=COUNTA($H$9:AB$9), "Input for next period", "") ->  | AD9: =IF(SUM($11:$11)=COUNTA($H$9:AC$9), "Input for next period", "") ->  | AE9: =IF(SUM($11:$11)=COUNTA($H$9:AD$9), "Input for next period", "") ->  | AF9: =IF(SUM($11:$11)=COUNTA($H$9:AE$9), "Input for next period", "") ->  | AG9: =IF(SUM($11:$11)=COUNTA($H$9:AF$9), "Input for next period", "") ->  | AH9: =IF(SUM($11:$11)=COUNTA($H$9:AG$9), "Input for next period", "") ->  | AI9: =IF(SUM($11:$11)=COUNTA($H$9:AH$9), "Input for next period", "") ->  | AJ9: =IF(SUM($11:$11)=COUNTA($H$9:AI$9), "Input for next period", "") ->  | AK9: =IF(SUM($11:$11)=COUNTA($H$9:AJ$9), "Input for next period", "") ->  | AL9: =IF(SUM($11:$11)=COUNTA($H$9:AK$9), "Input for next period", "") ->  | AM9: =IF(SUM($11:$11)=COUNTA($H$9:AL$9), "Input for next period", "") ->  | AN9: =IF(SUM($11:$11)=COUNTA($H$9:AM$9), "Input for next period", "") ->  | AO9: =IF(SUM($11:$11)=COUNTA($H$9:AN$9), "Input for next period", "") ->  | AP9: =IF(SUM($11:$11)=COUNTA($H$9:AO$9), "Input for next period", "") ->  | AQ9: =IF(SUM($11:$11)=COUNTA($H$9:AP$9), "Input for next period", "") ->  | AR9: =IF(SUM($11:$11)=COUNTA($H$9:AQ$9), "Input for next period", "") ->  | AS9: =IF(SUM($11:$11)=COUNTA($H$9:AR$9), "Input for next period", "") ->  | AT9: =IF(SUM($11:$11)=COUNTA($H$9:AS$9), "Input for next period", "") ->  | AU9: =IF(SUM($11:$11)=COUNTA($H$9:AT$9), "Input for next period", "") ->  | AV9: =IF(SUM($11:$11)=COUNTA($H$9:AU$9), "Input for next period", "") ->  | AW9: =IF(SUM($11:$11)=COUNTA($H$9:AV$9), "Input for next period", "") ->  | AX9: =IF(SUM($11:$11)=COUNTA($H$9:AW$9), "Input for next period", "") ->  | AY9: =IF(SUM($11:$11)=COUNTA($H$9:AX$9), "Input for next period", "") ->  | AZ9: =IF(SUM($11:$11)=COUNTA($H$9:AY$9), "Input for next period", "") ->  | BA9: =IF(SUM($11:$11)=COUNTA($H$9:AZ$9), "Input for next period", "") ->  | BB9: =IF(SUM($11:$11)=COUNTA($H$9:BA$9), "Input for next period", "") ->  | BC9: =IF(SUM($11:$11)=COUNTA($H$9:BB$9), "Input for next period", "") ->  | BD9: =IF(SUM($11:$11)=COUNTA($H$9:BC$9), "Input for next period", "") ->  | BE9: =IF(SUM($11:$11)=COUNTA($H$9:BD$9), "Input for next period", "") ->  | BF9: =IF(SUM($11:$11)=COUNTA($H$9:BE$9), "Input for next period", "") ->  | BG9: =IF(SUM($11:$11)=COUNTA($H$9:BF$9), "Input for next period", "") ->  | BH9: =IF(SUM($11:$11)=COUNTA($H$9:BG$9), "Input for next period", "") ->  | BI9: =IF(SUM($11:$11)=COUNTA($H$9:BH$9), "Input for next period", "") ->  | BJ9: =IF(SUM($11:$11)=COUNTA($H$9:BI$9), "Input for next period", "") ->  | BK9: =IF(SUM($11:$11)=COUNTA($H$9:BJ$9), "Input for next period", "") ->  | BL9: =IF(SUM($11:$11)=COUNTA($H$9:BK$9), "Input for next period", "") ->  | BM9: =IF(SUM($11:$11)=COUNTA($H$9:BL$9), "Input for next period", "") ->  | BN9: =IF(SUM($11:$11)=COUNTA($H$9:BM$9), "Input for next period", "") ->  | BO9: =IF(SUM($11:$11)=COUNTA($H$9:BN$9), "Input for next period", "") ->  | BP9: =IF(SUM($11:$11)=COUNTA($H$9:BO$9), "Input for next period", "") ->  | BQ9: =IF(SUM($11:$11)=COUNTA($H$9:BP$9), "Input for next period", "") ->  | BR9: =IF(SUM($11:$11)=COUNTA($H$9:BQ$9), "Input for next period", "") ->  | BS9: =IF(SUM($11:$11)=COUNTA($H$9:BR$9), "Input for next period", "") ->  | BT9: =IF(SUM($11:$11)=COUNTA($H$9:BS$9), "Input for next period", "") ->  | BU9: =IF(SUM($11:$11)=COUNTA($H$9:BT$9), "Input for next period", "") ->  | BV9: =IF(SUM($11:$11)=COUNTA($H$9:BU$9), "Input for next period", "") ->  | BW9: =IF(SUM($11:$11)=COUNTA($H$9:BV$9), "Input for next period", "") ->  | BX9: =IF(SUM($11:$11)=COUNTA($H$9:BW$9), "Input for next period", "") ->  | BY9: =IF(SUM($11:$11)=COUNTA($H$9:BX$9), "Input for next period", "") ->  | BZ9: =IF(SUM($11:$11)=COUNTA($H$9:BY$9), "Input for next period", "") ->  | CA9: =IF(SUM($11:$11)=COUNTA($H$9:BZ$9), "Input for next period", "") ->  | CB9: =IF(SUM($11:$11)=COUNTA($H$9:CA$9), "Input for next period", "") ->  | CC9: =IF(SUM($11:$11)=COUNTA($H$9:CB$9), "Input for next period", "") ->  | CD9: =IF(SUM($11:$11)=COUNTA($H$9:CC$9), "Input for next period", "") ->  | CE9: =IF(SUM($11:$11)=COUNTA($H$9:CD$9), "Input for next period", "") -> 
E10: Regulatory period | H10: 2010-15 | M10: 2015-20 | R10: 2020-25
E11: Years in regulatory period | H11: 5 | M11: 5 | R11: 5
E13: Lagged inflation approach | F13: Partially-lagged
E14: =IF($F$13="All-lagged", "Lagged actual", "Actual")& " CPI inflation rate" -> Actual CPI inflation rate | F14: 0.0247 | G14: 0.0289 | H14: 0.0333 | I14: 0.0158 | J14: 0.025 | K14: 0.0293 | L14: 0.01328273245 | M14: 0.01688555347 | N14: 0.0147601476 | O14: 0.01909090909 | P14: 0.0178412132 | Q14: 0.01840490798 | R14: 0.008605851979 | S14: 0.03498293515 | T14: 0.07831821929 | U14: 0.04051987768 | V14: 0.0242468773
E15: Actual CPI (one year lagged) | F15: =G15/IF($F$13="Partially-lagged", (1+F14), (1+G14)) -> 0.975895384 | G15: 1 | H15: =G15*(1+IF($F$13="Partially-lagged",G14,H14)) -> 1.0289 | I15: 1.06316237 | J15: 1.079960335 | K15: 1.106959344 | L15: 1.139393253 | M15: 1.154527508 | N15: 1.174022344 | O15: 1.191351087 | P15: =O15*(1+IF($F$13="Partially-lagged",O14,P14)) -> 1.214095063 | Q15: 1.235755992 | R15: 1.258499967 | S15: 1.269330431 | T15: 1.313735335 | U15: 1.416624748 | V15: 1.474026209 | W15: 1.509766742 | X15: 1.509766742 | Y15: 1.509766742 | Z15: 1.509766742 | AA15: 1.509766742 | AB15: 1.509766742 | AC15: 1.509766742 | AD15: 1.509766742 | AE15: 1.509766742 | AF15: 1.509766742 | AG15: 1.509766742 | AH15: 1.509766742 | AI15: 1.509766742 | AJ15: 1.509766742 | AK15: 1.509766742 | AL15: 1.509766742 | AM15: 1.509766742 | AN15: =AM15*(1+IF($F$13="Partially-lagged",AM14,AN14)) -> 1.509766742 | AO15: 1.509766742 | AP15: 1.509766742 | AQ15: 1.509766742 | AR15: 1.509766742 | AS15: 1.509766742 | AT15: 1.509766742 | AU15: 1.509766742 | AV15: 1.509766742 | AW15: 1.509766742 | AX15: 1.509766742 | AY15: 1.509766742 | AZ15: 1.509766742 | BA15: 1.509766742 | BB15: 1.509766742 | BC15: 1.509766742 | BD15: 1.509766742 | BE15: 1.509766742 | BF15: 1.509766742 | BG15: 1.509766742 | BH15: 1.509766742 | BI15: 1.509766742 | BJ15: 1.509766742 | BK15: 1.509766742 | BL15: 1.509766742 | BM15: 1.509766742 | BN15: 1.509766742 | BO15: 1.509766742 | BP15: 1.509766742 | BQ15: 1.509766742 | BR15: 1.509766742 | BS15: 1.509766742 | BT15: =BS15*(1+IF($F$13="Partially-lagged",BS14,BT14)) -> 1.509766742 | BU15: 1.509766742 | BV15: 1.509766742 | BW15: 1.509766742 | BX15: 1.509766742 | BY15: 1.509766742 | BZ15: 1.509766742 | CA15: 1.509766742 | CB15: 1.509766742 | CC15: 1.509766742 | CD15: 1.509766742 | CE15: 1.509766742
E17: Nominal vanilla WACC (fixed real time varying) | G17: 0.1022206755 | H17: 0.106251867 | I17: 0.08751635193 | J17: 0.09736587983 | K17: 0.1019694635 | L17: 0.08482136313 | M17: 0.05327517503 | N17: 0.05124835022 | O17: 0.05563300421 | P17: 0.05387798372 | Q17: 0.05403097973 | R17: 0.03297994576 | S17: 0.05817188242 | T17: 0.1016341297 | U17: 0.06364055577 | V17: 0.04734057949
E18: Nominal vanilla WACC index | F18: =G18/(1+G17) -> 0.9072593376 | G18: 1 | H18: =G18*(1+H17) -> 1.106251867 | I18: 1.203066995 | J18: 1.320204671 | K18: 1.454825233 | L18: 1.578225493 | M18: 1.662305732 | N18: 1.747496158 | O18: 1.844714619 | P18: 1.944104124 | Q18: 2.049145974
E19: Real vanilla WACC | G19: 0.07126122608 | H19: 0.07060085837 | I19: 0.07060085837 | J19: 0.07060085837 | K19: 0.07060085837 | L19: 0.07060085837 | M19: 0.03578536585 | N19: 0.03595746513 | O19: 0.03585754204 | P19: 0.03540510057 | Q19: 0.03498222709 | R19: 0.02416612369 | S19: 0.02240514938 | T19: 0.02162247656 | U19: 0.0222203137 | V19: 0.02254700766
E20: Real vanilla WACC index | F20: =G20/(1+G19) -> 0.9334791325 | G20: 1 | H20: =G20*(1+H19) -> 1.070600858 | I20: 1.146186198 | J20: 1.227107927 | K20: 1.3137428 | L20: 1.40649417 | M20: 1.456826078 | N20: 1.509209851 | O20: 1.563326407 | P20: 1.618676135 | Q20: 1.675301032 | R20: 1.715786564 | S20: 1.754229018 | T20: 1.792159794 | U20: 1.831982146 | V20: 1.873287862 | W20: 1.873287862 | X20: 1.873287862 | Y20: 1.873287862 | Z20: 1.873287862 | AA20: 1.873287862 | AB20: 1.873287862 | AC20: 1.873287862 | AD20: 1.873287862 | AE20: 1.873287862 | AF20: 1.873287862 | AG20: 1.873287862 | AH20: 1.873287862 | AI20: 1.873287862 | AJ20: 1.873287862 | AK20: 1.873287862 | AL20: 1.873287862 | AM20: 1.873287862 | AN20: 1.873287862 | AO20: 1.873287862 | AP20: 1.873287862 | AQ20: 1.873287862 | AR20: 1.873287862 | AS20: 1.873287862 | AT20: 1.873287862 | AU20: 1.873287862 | AV20: 1.873287862 | AW20: 1.873287862 | AX20: 1.873287862 | AY20: 1.873287862 | AZ20: 1.873287862 | BA20: 1.873287862 | BB20: 1.873287862 | BC20: 1.873287862 | BD20: 1.873287862 | BE20: 1.873287862 | BF20: 1.873287862 | BG20: 1.873287862 | BH20: 1.873287862 | BI20: 1.873287862 | BJ20: 1.873287862 | BK20: 1.873287862 | BL20: 1.873287862 | BM20: 1.873287862 | BN20: 1.873287862 | BO20: 1.873287862 | BP20: 1.873287862 | BQ20: 1.873287862 | BR20: 1.873287862 | BS20: 1.873287862 | BT20: =BS20*(1+BT19) -> 1.873287862 | BU20: 1.873287862 | BV20: 1.873287862 | BW20: 1.873287862 | BX20: 1.873287862 | BY20: 1.873287862 | BZ20: 1.873287862 | CA20: 1.873287862 | CB20: 1.873287862 | CC20: 1.873287862 | CD20: 1.873287862 | CE20: 1.873287862
D22: Starting RAB and actual gross capex - As incurred ($m, nominal)
E23: Asset class | G23: ="RAB (closing as at "&$G$4&")" -> RAB (closing as at 2009-10) | H23: ="Actual gross capex ("&H4&")" -> Actual gross capex (2010-11) | I23: =IF(COUNTA($H$23:H$23)<SUM($11:$11), "Actual gross capex ("&I4&")", "") -> Actual gross capex (2011-12) | J23: =IF(COUNTA($H$23:I$23)<SUM($11:$11), "Actual gross capex ("&J4&")", "") -> Actual gross capex (2012-13) | K23: =IF(COUNTA($H$23:J$23)<SUM($11:$11), "Actual gross capex ("&K4&")", "") -> Actual gross capex (2013-14) | L23: =IF(COUNTA($H$23:K$23)<SUM($11:$11), "Actual gross capex ("&L4&")", "") -> Actual gross capex (2014-15) | M23: =IF(COUNTA($H$23:L$23)<SUM($11:$11), "Actual gross capex ("&M4&")", "") -> Actual gross capex (2015-16) | N23: =IF(COUNTA($H$23:M$23)<SUM($11:$11), "Actual gross capex ("&N4&")", "") -> Actual gross capex (2016-17) | O23: =IF(COUNTA($H$23:N$23)<SUM($11:$11), "Actual gross capex ("&O4&")", "") -> Actual gross capex (2017-18) | P23: =IF(COUNTA($H$23:O$23)<SUM($11:$11), "Actual gross capex ("&P4&")", "") -> Actual gross capex (2018-19) | Q23: =IF(COUNTA($H$23:P$23)<SUM($11:$11), "Actual gross capex ("&Q4&")", "") -> Actual gross capex (2019-20) | R23: =IF(COUNTA($H$23:Q$23)<SUM($11:$11), "Actual gross capex ("&R4&")", "") -> Actual gross capex (2020-21) | S23: =IF(COUNTA($H$23:R$23)<SUM($11:$11), "Actual gross capex ("&S4&")", "") -> Actual gross capex (2021-22) | T23: =IF(COUNTA($H$23:S$23)<SUM($11:$11), "Actual gross capex ("&T4&")", "") -> Actual gross capex (2022-23) | U23: =IF(COUNTA($H$23:T$23)<SUM($11:$11), "Actual gross capex ("&U4&")", "") -> Actual gross capex (2023-24) | V23: =IF(COUNTA($H$23:U$23)<SUM($11:$11), "Actual gross capex ("&V4&")", "") -> Actual gross capex (2024-25) | W23: =IF(COUNTA($H$23:V$23)<SUM($11:$11), "Actual gross capex ("&W4&")", "") ->  | X23: =IF(COUNTA($H$23:W$23)<SUM($11:$11), "Actual gross capex ("&X4&")", "") ->  | Y23: =IF(COUNTA($H$23:X$23)<SUM($11:$11), "Actual gross capex ("&Y4&")", "") ->  | Z23: =IF(COUNTA($H$23:Y$23)<SUM($11:$11), "Actual gross capex ("&Z4&")", "") ->  | AA23: =IF(COUNTA($H$23:Z$23)<SUM($11:$11), "Actual gross capex ("&AA4&")", "") ->  | AB23: =IF(COUNTA($H$23:AA$23)<SUM($11:$11), "Actual gross capex ("&AB4&")", "") ->  | AC23: =IF(COUNTA($H$23:AB$23)<SUM($11:$11), "Actual gross capex ("&AC4&")", "") ->  | AD23: =IF(COUNTA($H$23:AC$23)<SUM($11:$11), "Actual gross capex ("&AD4&")", "") ->  | AE23: =IF(COUNTA($H$23:AD$23)<SUM($11:$11), "Actual gross capex ("&AE4&")", "") ->  | AF23: =IF(COUNTA($H$23:AE$23)<SUM($11:$11), "Actual gross capex ("&AF4&")", "") ->  | AG23: =IF(COUNTA($H$23:AF$23)<SUM($11:$11), "Actual gross capex ("&AG4&")", "") ->  | AH23: =IF(COUNTA($H$23:AG$23)<SUM($11:$11), "Actual gross capex ("&AH4&")", "") ->  | AI23: =IF(COUNTA($H$23:AH$23)<SUM($11:$11), "Actual gross capex ("&AI4&")", "") ->  | AJ23: =IF(COUNTA($H$23:AI$23)<SUM($11:$11), "Actual gross capex ("&AJ4&")", "") ->  | AK23: =IF(COUNTA($H$23:AJ$23)<SUM($11:$11), "Actual gross capex ("&AK4&")", "") ->  | AL23: =IF(COUNTA($H$23:AK$23)<SUM($11:$11), "Actual gross capex ("&AL4&")", "") ->  | AM23: =IF(COUNTA($H$23:AL$23)<SUM($11:$11), "Actual gross capex ("&AM4&")", "") ->  | AN23: =IF(COUNTA($H$23:AM$23)<SUM($11:$11), "Actual gross capex ("&AN4&")", "") ->  | AO23: =IF(COUNTA($H$23:AN$23)<SUM($11:$11), "Actual gross capex ("&AO4&")", "") ->  | AP23: =IF(COUNTA($H$23:AO$23)<SUM($11:$11), "Actual gross capex ("&AP4&")", "") ->  | AQ23: =IF(COUNTA($H$23:AP$23)<SUM($11:$11), "Actual gross capex ("&AQ4&")", "") ->  | AR23: =IF(COUNTA($H$23:AQ$23)<SUM($11:$11), "Actual gross capex ("&AR4&")", "") ->  | AS23: =IF(COUNTA($H$23:AR$23)<SUM($11:$11), "Actual gross capex ("&AS4&")", "") ->  | AT23: =IF(COUNTA($H$23:AS$23)<SUM($11:$11), "Actual gross capex ("&AT4&")", "") ->  | AU23: =IF(COUNTA($H$23:AT$23)<SUM($11:$11), "Actual gross capex ("&AU4&")", "") ->  | AV23: =IF(COUNTA($H$23:AU$23)<SUM($11:$11), "Actual gross capex ("&AV4&")", "") ->  | AW23: =IF(COUNTA($H$23:AV$23)<SUM($11:$11), "Actual gross capex ("&AW4&")", "") ->  | AX23: =IF(COUNTA($H$23:AW$23)<SUM($11:$11), "Actual gross capex ("&AX4&")", "") ->  | AY23: =IF(COUNTA($H$23:AX$23)<SUM($11:$11), "Actual gross capex ("&AY4&")", "") ->  | AZ23: =IF(COUNTA($H$23:AY$23)<SUM($11:$11), "Actual gross capex ("&AZ4&")", "") ->  | BA23: =IF(COUNTA($H$23:AZ$23)<SUM($11:$11), "Actual gross capex ("&BA4&")", "") ->  | BB23: =IF(COUNTA($H$23:BA$23)<SUM($11:$11), "Actual gross capex ("&BB4&")", "") ->  | BC23: =IF(COUNTA($H$23:BB$23)<SUM($11:$11), "Actual gross capex ("&BC4&")", "") ->  | BD23: =IF(COUNTA($H$23:BC$23)<SUM($11:$11), "Actual gross capex ("&BD4&")", "") ->  | BE23: =IF(COUNTA($H$23:BD$23)<SUM($11:$11), "Actual gross capex ("&BE4&")", "") ->  | BF23: =IF(COUNTA($H$23:BE$23)<SUM($11:$11), "Actual gross capex ("&BF4&")", "") ->  | BG23: =IF(COUNTA($H$23:BF$23)<SUM($11:$11), "Actual gross capex ("&BG4&")", "") ->  | BH23: =IF(COUNTA($H$23:BG$23)<SUM($11:$11), "Actual gross capex ("&BH4&")", "") ->  | BI23: =IF(COUNTA($H$23:BH$23)<SUM($11:$11), "Actual gross capex ("&BI4&")", "") ->  | BJ23: =IF(COUNTA($H$23:BI$23)<SUM($11:$11), "Actual gross capex ("&BJ4&")", "") ->  | BK23: =IF(COUNTA($H$23:BJ$23)<SUM($11:$11), "Actual gross capex ("&BK4&")", "") ->  | BL23: =IF(COUNTA($H$23:BK$23)<SUM($11:$11), "Actual gross capex ("&BL4&")", "") ->  | BM23: =IF(COUNTA($H$23:BL$23)<SUM($11:$11), "Actual gross capex ("&BM4&")", "") ->  | BN23: =IF(COUNTA($H$23:BM$23)<SUM($11:$11), "Actual gross capex ("&BN4&")", "") ->  | BO23: =IF(COUNTA($H$23:BN$23)<SUM($11:$11), "Actual gross capex ("&BO4&")", "") ->  | BP23: =IF(COUNTA($H$23:BO$23)<SUM($11:$11), "Actual gross capex ("&BP4&")", "") ->  | BQ23: =IF(COUNTA($H$23:BP$23)<SUM($11:$11), "Actual gross capex ("&BQ4&")", "") ->  | BR23: =IF(COUNTA($H$23:BQ$23)<SUM($11:$11), "Actual gross capex ("&BR4&")", "") ->  | BS23: =IF(COUNTA($H$23:BR$23)<SUM($11:$11), "Actual gross capex ("&BS4&")", "") ->  | BT23: =IF(COUNTA($H$23:BS$23)<SUM($11:$11), "Actual gross capex ("&BT4&")", "") ->  | BU23: =IF(COUNTA($H$23:BT$23)<SUM($11:$11), "Actual gross capex ("&BU4&")", "") ->  | BV23: =IF(COUNTA($H$23:BU$23)<SUM($11:$11), "Actual gross capex ("&BV4&")", "") ->  | BW23: =IF(COUNTA($H$23:BV$23)<SUM($11:$11), "Actual gross capex ("&BW4&")", "") ->  | BX23: =IF(COUNTA($H$23:BW$23)<SUM($11:$11), "Actual gross capex ("&BX4&")", "") ->  | BY23: =IF(COUNTA($H$23:BX$23)<SUM($11:$11), "Actual gross capex ("&BY4&")", "") ->  | BZ23: =IF(COUNTA($H$23:BY$23)<SUM($11:$11), "Actual gross capex ("&BZ4&")", "") ->  | CA23: =IF(COUNTA($H$23:BZ$23)<SUM($11:$11), "Actual gross capex ("&CA4&")", "") ->  | CB23: =IF(COUNTA($H$23:CA$23)<SUM($11:$11), "Actual gross capex ("&CB4&")", "") ->  | CC23: =IF(COUNTA($H$23:CB$23)<SUM($11:$11), "Actual gross capex ("&CC4&")", "") ->  | CD23: =IF(COUNTA($H$23:CC$23)<SUM($11:$11), "Actual gross capex ("&CD4&")", "") ->  | CE23: =IF(COUNTA($H$23:CD$23)<SUM($11:$11), "Actual gross capex ("&CE4&")", "") -> 
D25: 1 | E25: Sub-transmission lines | G25: 45.27844253 | H25: 22.937 | I25: 39.522 | J25: 6.413 | K25: 6.939 | L25: 17.89254028 | M25: 3.476546835 | N25: 1.618500422 | O25: 1.360541962 | P25: 24.89773088 | Q25: 5.031961994 | R25: 1.192069939 | S25: 1.882979808 | T25: 0.1889527319 | U25: 0 | V25: 0
D26: 2 | E26: Distribution Lines | G26: 1717.359339 | H26: 77.063 | I26: 128.23 | J26: 89.537 | K26: 68.101 | L26: 77.92136758 | M26: -138.379592 | N26: 115.8239572 | O26: 76.94959299 | P26: 103.4723241 | Q26: 92.14820644 | R26: 100.7841204 | S26: 73.9143488 | T26: 103.2088005 | U26: 138.6358269 | V26: 155.7636405
D27: 3 | E27: Substations | G27: 456.7136416 | H27: 60.027 | I27: 161.892 | J27: 83.007 | K27: 94.369 | L27: 88.32059198 | M27: 209.4162354 | N27: 33.86253721 | O27: 64.10925501 | P27: 66.33667766 | Q27: 75.23545652 | R27: 40.38750236 | S27: 54.41718436 | T27: 55.81142046 | U27: 49.4605331 | V27: 47.5497559
D28: 4 | E28: Distribution Transformers | G28: 415.7332805 | H28: 19.227 | I28: 14.471 | J28: 13.111 | K28: 16.761 | L28: 10.131 | M28: 40.62096777 | N28: 4.529163561 | O28: 7.59446982 | P28: 12.56031403 | Q28: 1.550466574 | R28: 9.42228806 | S28: 4.294498031 | T28: 7.509268761 | U28: 14.872906 | V28: 14.29833052
D29: 5 | E29: LVS | G29: 383.2358361 | H29: 49.126 | I29: 52.504 | J29: 75.843 | K29: 93.002 | L29: 66.339 | M29: 99.79106059 | N29: 82.15150277 | O29: 144.1053985 | P29: 126.7807728 | Q29: 91.53435793 | R29: 115.6317631 | S29: 113.0911732 | T29: 143.4981639 | U29: 138.8375445 | V29: 155.9902793
D30: 6 | E30: Communications | G30: 28.04059677 | H30: 0.21 | I30: 0.688 | J30: 1.669 | K30: 9.072 | L30: 12.58543249 | M30: 12.98243233 | N30: 9.049780174 | O30: 29.29215912 | P30: 2.06787009 | Q30: 4.296421261 | R30: 6.207204582 | S30: 5.362875262 | T30: 16.50585236 | U30: 10.56551008 | V30: 10.15733948
D31: 7 | E31: Contributions | G31: -601.246825 | H31: 0 | I31: 0 | J31: 0 | K31: 0 | L31: 0 | M31: 0 | N31: 0 | O31: 0 | P31: 0 | Q31: 0 | R31: 0 | S31: 0 | T31: 0 | U31: 0 | V31: 0
D32: 8 | E32: Land | G32: 190.9596652 | H32: 0.148 | I32: 4.125 | J32: 0 | K32: 0 | L32: 0.249 | M32: -5.876766768 | N32: 0 | O32: 2.054357327 | P32: 0.66757006 | Q32: 0 | R32: 0 | S32: 0 | T32: 0 | U32: 7.2726469 | V32: 0
D33: 9 | E33: Substation Land | G33: 0 | H33: 0.281 | I33: 4.128 | J33: 0.303 | K33: 0.882 | L33: 0.4702820631 | M33: 6.226195724 | N33: 0.02708405643 | O33: 0.04355219328 | P33: 0.15765505 | Q33: 0.68845178 | R33: 0.08127125 | S33: -0.08127125 | T33: 0 | U33: 0 | V33: 0
D34: 10 | E34: Easements | G34: 0 | H34: 0.189 | I34: 1.815 | J34: 0.879 | K34: 0.59 | L34: 0.9302389073 | M34: 0.4395481454 | N34: 0.3423921733 | O34: 0.5507580966 | P34: 0.4120200163 | Q34: 0.5077739123 | R34: 0.4950245692 | S34: 0.3704658755 | T34: 0.441443818 | U34: 0.6649865737 | V34: 0.933163543
D35: 11 | E35: Buildings-Pre 2020 | G35: 13.86204821 | H35: 0.391 | I35: 6.08 | J35: 0.155 | K35: 0.058 | L35: 0.09239235781 | M35: 0 | N35: 0 | O35: 0 | P35: 7.853410006 | Q35: 6.763701569 | R35: 0 | S35: 0 | T35: 0 | U35: 0 | V35: 0
D36: 12 | E36: Vehicles - 15 years | G36: 43.44830012 | H36: 11.886 | I36: 9.278 | J36: 12.183 | K36: 12.751 | L36: 18.48880603 | M36: 5.01727698 | N36: 1.847038032 | O36: 2.560326223 | P36: 2.302279012 | Q36: 1.28374936 | R36: 0.8454180143 | S36: 4.429328121 | T36: 8.078487945 | U36: 7.103867962 | V36: 3.63888495
D37: 13 | E37: Vehicles - 10 years | G37: 0 | H37: 0 | I37: 0 | J37: 0 | K37: 0 | L37: 0 | M37: 3.212877227 | N37: 6.408584024 | O37: 7.101005908 | P37: 8.377401167 | Q37: 8.254857812 | R37: 8.132811688 | S37: 3.337890252 | T37: 5.773490158 | U37: 5.311132586 | V37: 2.720574276
D38: 14 | E38: Light Vehicles | G38: 0 | H38: 11.199 | I38: 4.936 | J38: 6.633 | K38: 7.29 | L38: 5.937609222 | M38: 6.25753664 | N38: 5.47866756 | O38: 8.94003758 | P38: 9.67865486 | Q38: 8.5939792 | R38: 4.03015854 | S38: 6.78085307 | T38: 11.72891466 | U38: 19.60124514 | V38: 10.04054077
D39: 15 | E39: IT | G39: 62.44113174 | H39: 7.088 | I39: 34.873 | J39: 27.531 | K39: 38.399 | L39: 56.48994638 | M39: 40.85338292 | N39: 52.50307871 | O39: 61.47757043 | P39: 63.20674419 | Q39: 76.31745481 | R39: 7.813061405 | S39: -14.91764752 | T39: 2.488051331 | U39: 6.599191296 | V39: 7.058552844
D40: 16 | E40: Plant & Tools/Office Furniture | G40: 24.56329862 | H40: 10.375 | I40: 18.516 | J40: 16.319 | K40: 10.128 | L40: 18.98879271 | M40: 9.295408555 | N40: 9.225397674 | O40: 13.90928562 | P40: 3.44409151 | Q40: 6.660095264 | R40: 3.756407373 | S40: 8.900780506 | T40: 3.42655494 | U40: 3.568206806 | V40: 3.1
D41: 17 | E41: Distribution Lines-Refurbish and Shorter Life | R41: 5.400184447 | S41: 6.417855765 | T41: 8.669327271 | U41: 7.504589958 | V41: 7.329651877
D42: 18 | E42: Substations-Refurbish and Shorter Life | R42: 0.8179778436 | S42: 0.4473335423 | T42: 0.09247498337 | U42: 1.889598426 | V42: 1.845550353
D43: 19 | E43: Network Electronics | R43: 9.499900317 | S43: 12.58971775 | T43: 22.21608493 | U43: 22.38845497 | V43: 21.86656192
D44: 20 | E44: 0 | R44: 0 | S44: 0 | T44: 0
D45: 21 | E45: 0 | R45: 0 | S45: 0 | T45: 0
D46: 22 | E46: 0 | R46: 0 | S46: 0 | T46: 0
D47: 23 | E47: 0 | R47: 0 | S47: 0 | T47: 0
D48: 24 | E48: 0 | R48: 0 | S48: 0 | T48: 0
D49: 25 | E49: 0 | R49: 0 | S49: 0 | T49: 0
D50: 26 | E50: 0 | R50: 0 | S50: 0 | T50: 0
D51: 27 | E51: 0 | R51: 0 | S51: 0 | T51: 0
D52: 28 | E52: 0 | R52: 0 | S52: 0 | T52: 0
D53: 29 | E53: 0 | R53: 0 | S53: 0 | T53: 0
D54: 30 | E54: 0 | R54: 0 | S54: 0 | T54: 0
D55: 31 | E55: 0 | R55: 0 | S55: 0 | T55: 0
D56: 32 | E56: 0 | R56: 0 | S56: 0 | T56: 0
D57: 33 | E57: 0 | R57: 0 | S57: 0 | T57: 0
D58: 34 | E58: 0 | R58: 0 | S58: 0 | T58: 0
D59: 35 | E59: 0 | R59: 0 | S59: 0 | T59: 0
D60: 36 | E60: 0 | R60: 0 | S60: 0 | T60: 0
D61: 37 | E61: 0 | R61: 0 | S61: 0 | T61: 0
D62: 38 | E62: 0 | R62: 0 | S62: 0 | T62: 0
D63: 39 | E63: 0 | R63: 0 | S63: 0 | T63: 0
D64: 40 | E64: 0 | R64: 0 | S64: 0 | T64: 0
D65: 41 | E65: 0 | R65: 0 | S65: 0 | T65: 0
D66: 42 | E66: 0 | R66: 0 | S66: 0 | T66: 0
D67: 43 | E67: 0 | R67: 0 | S67: 0 | T67: 0
D68: 44 | E68: 0 | R68: 0 | S68: 0 | T68: 0
D69: 45 | E69: 0 | R69: 0 | S69: 0 | T69: 0
D70: 46 | E70: WIP | G70: 119.583596 | H70: 96.946 | I70: -76.048 | J70: 60.261 | K70: 4.423 | L70: 0 | R70: 0 | S70: 0 | T70: 0
D71: 47 | E71: Spare straight-line tax asset class | R71: 0 | S71: 0 | T71: 0
D72: 48 | E72: Buildings | R72: 5.324896231 | S72: 6.397525569 | T72: 21.05979224 | U72: 4.818179544 | V72: 16.96683646
D73: 49 | E73: In-house software | R73: 72.25564599 | S73: 113.256133 | T73: 57.11226179 | U73: 58.19759712 | V73: 63.14033732
D74: 50 | E74: Equity raising costs | G74: 0 | H74: 2.608086337 | I74: 0 | J74: 0 | K74: 0 | L74: 0 | M74: 13.61110651 | N74: 0 | O74: 0 | P74: 0 | Q74: 0 | R74: 0 | S74: 0 | T74: 0 | U74: 0
E75: Total | G75: =SUM(G25:G74) -> 2899.972352 | H75: =SUM(H25:H74) -> 369.7010863 | I75: 405.01 | J75: 393.844 | K75: 362.765 | L75: 374.837 | M75: 306.9442169 | N75: 322.8676836 | O75: 420.0483108 | P75: 432.2155155 | Q75: 378.8669344 | R75: 392.077706 | S75: 400.8920242 | T75: 467.8093428 | U75: 497.2920178 | V75: 522.4 | W75: 0 | X75: 0 | Y75: 0 | Z75: 0 | AA75: 0 | AB75: 0 | AC75: 0 | AD75: 0 | AE75: 0 | AF75: 0 | AG75: 0 | AH75: 0 | AI75: 0 | AJ75: 0 | AK75: 0 | AL75: 0 | AM75: 0 | AN75: 0 | AO75: 0 | AP75: 0 | AQ75: 0 | AR75: 0 | AS75: 0 | AT75: 0 | AU75: 0 | AV75: 0 | AW75: 0 | AX75: 0 | AY75: 0 | AZ75: 0 | BA75: 0 | BB75: 0 | BC75: 0 | BD75: 0 | BE75: 0 | BF75: 0 | BG75: 0 | BH75: 0 | BI75: 0 | BJ75: 0 | BK75: 0 | BL75: 0 | BM75: 0 | BN75: 0 | BO75: 0 | BP75: 0 | BQ75: 0 | BR75: 0 | BS75: 0 | BT75: =SUM(BT25:BT74) -> 0 | BU75: 0 | BV75: 0 | BW75: 0 | BX75: 0 | BY75: 0 | BZ75: 0 | CA75: 0 | CB75: 0 | CC75: 0 | CD75: 0 | CE75: 0
D77: Actual asset disposals - As incurred ($m, nominal)
E78: =$E$23 -> Asset class | H78: =IF(H$23="", "", "Actual asset disposals ("&H$4&")") -> Actual asset disposals (2010-11) | I78: =IF(I$23="", "", "Actual asset disposals ("&I$4&")") -> Actual asset disposals (2011-12) | J78: Actual asset disposals (2012-13) | K78: Actual asset disposals (2013-14) | L78: Actual asset disposals (2014-15) | M78: Actual asset disposals (2015-16) | N78: Actual asset disposals (2016-17) | O78: Actual asset disposals (2017-18) | P78: Actual asset disposals (2018-19) | Q78: Actual asset disposals (2019-20) | R78: Actual asset disposals (2020-21) | S78: Actual asset disposals (2021-22) | T78: Actual asset disposals (2022-23) | U78: Actual asset disposals (2023-24) | V78: Actual asset disposals (2024-25) | BU78: =IF(BU$23="", "", "Actual asset disposals ("&BU$4&")") -> 
E79: =E25 -> Sub-transmission lines | S79: 0 | T79: 0 | U79: 0 | V79: 0
E80: =E26 -> Distribution Lines | S80: 0 | T80: 0 | U80: 0 | V80: 0
E81: Substations | S81: 0 | T81: 0 | U81: 0 | V81: 0
E82: Distribution Transformers | S82: 0 | T82: 0 | U82: 0 | V82: 0
E83: LVS | S83: 0 | T83: 0 | U83: 0 | V83: 0
E84: Communications | S84: 0 | T84: 0 | U84: 0 | V84: 0
E85: Contributions | S85: 0 | T85: 0 | U85: 0 | V85: 0
E86: Land | S86: 0 | T86: 2.525 | U86: 0.01314 | V86: 0
E87: Substation Land | Q87: 5.365 | S87: 0.07 | T87: 0.9713387143 | U87: 0 | V87: 0
E88: Easements | S88: 0 | T88: 0 | V88: 0
E89: Buildings-Pre 2020 | S89: 0 | T89: 0.2486612857 | V89: 0
E90: Vehicles - 15 years | H90: 0 | I90: 0 | J90: 0 | K90: 0 | L90: 0 | M90: 0.43981874 | N90: 0.5288933 | O90: 0.45479106 | P90: 0.74607864 | Q90: 1.09050166 | R90: 1.0036949 | S90: 0.9772432 | T90: 0.5375279 | U90: 1.42848262 | V90: 0.9977499176
E91: Vehicles - 10 years | H91: 0 | I91: 0 | J91: 0 | K91: 0 | L91: 0 | M91: 0.51676689 | N91: 0.16246473 | O91: 0.11975225 | P91: 0.17338104 | Q91: 0.20806719 | R91: 0.32373989 | S91: 0.4116622 | T91: 0.60538426 | U91: 0.60082176 | V91: 0.4288328656
E92: Light Vehicles | H92: 2.351 | I92: 1.481 | J92: 1.906 | K92: 2.558 | L92: 2.388 | M92: 1.08485718 | N92: 1.74319895 | O92: 1.97545308 | P92: 2.32200377 | Q92: 2.6150409 | R92: 1.62149848 | S92: 1.83818103 | T92: 3.75370872 | U92: 4.207730537 | V92: 2.938966662
E93: IT | S93: 0 | T93: 0.046406 | U93: 0.049323 | V93: 0.03445055508
E94: Plant & Tools/Office Furniture | S94: 0 | T94: 0 | U94: 0 | V94: 0
E95: Distribution Lines-Refurbish and Shorter Life | S95: 0 | T95: 0 | U95: 0 | V95: 0
E96: Substations-Refurbish and Shorter Life | S96: 0 | T96: 0 | U96: 0 | V96: 0
E97: Network Electronics | S97: 0 | T97: 0 | U97: 0 | V97: 0
E98: 0 | S98: 0 | T98: 0 | U98: 0 | V98: 0
E99: 0 | S99: 0 | T99: 0 | U99: 0 | V99: 0
E100: 0 | S100: 0 | T100: 0 | U100: 0 | V100: 0
E101: 0 | S101: 0 | T101: 0 | U101: 0 | V101: 0
E102: 0 | S102: 0 | T102: 0 | U102: 0 | V102: 0
E103: 0 | S103: 0 | T103: 0 | U103: 0 | V103: 0
E104: 0 | S104: 0 | T104: 0 | U104: 0 | V104: 0
E105: 0 | S105: 0 | T105: 0 | U105: 0 | V105: 0
E106: 0 | S106: 0 | T106: 0 | U106: 0 | V106: 0
E107: 0 | S107: 0 | T107: 0 | U107: 0 | V107: 0
E108: 0 | S108: 0 | T108: 0 | U108: 0 | V108: 0
E109: 0 | S109: 0 | T109: 0 | U109: 0 | V109: 0
E110: 0 | S110: 0 | T110: 0 | U110: 0 | V110: 0
E111: 0 | S111: 0 | T111: 0 | U111: 0 | V111: 0
E112: 0 | S112: 0 | T112: 0 | U112: 0 | V112: 0
E113: 0 | S113: 0 | T113: 0 | U113: 0 | V113: 0
E114: 0 | S114: 0 | T114: 0 | U114: 0 | V114: 0
E115: 0 | S115: 0 | T115: 0 | U115: 0 | V115: 0
E116: 0 | S116: 0 | T116: 0 | U116: 0 | V116: 0
E117: 0 | S117: 0 | T117: 0 | U117: 0 | V117: 0
E118: 0 | S118: 0 | T118: 0 | U118: 0 | V118: 0
E119: 0 | S119: 0 | T119: 0 | U119: 0 | V119: 0
E120: 0 | S120: 0 | T120: 0 | U120: 0 | V120: 0
E121: 0 | S121: 0 | T121: 0 | U121: 0 | V121: 0
E122: 0 | S122: 0 | T122: 0 | U122: 0 | V122: 0
E123: 0 | S123: 0 | T123: 0 | U123: 0 | V123: 0
E124: WIP | S124: 0 | T124: 0 | U124: 0 | V124: 0
E125: =E71 -> Spare straight-line tax asset class | S125: 0 | T125: 0 | U125: 0 | V125: 0
... 153 more rows

Sheet TAB input
E2: =IF('RAB input'!$F$8=$F$8, 'RAB input'!$F$8, $F$8) & " - TAB input - Elec DNSP "&Intro!$I$3&" - version "&Intro!$M$4 -> SAPN - TAB input - Elec DNSP RFM - Depreciation tracking module - version 1 | J2: Input cells in blue
E4: Year | F4: =IF(LEN($H$9)>4, CONCATENATE(LEFT($H$9, 4)-2 & "-" & IF(AND(RIGHT($H$9, 2)<"12", RIGHT($H$9, 2)>"01"), "0", "") & IF(RIGHT($H$9, 2)="00", "98", IF(RIGHT($H$9, 2)="01", "99", RIGHT($H$9, 2)-2))), $H$9-2) -> 2007-08 | G4: =IF(LEN(F4)>4,CONCATENATE(LEFT(F4,4)+1&"-"&IF(RIGHT(F4, 2)<"09", "0","")&IF(RIGHT(F4, 2)="99", "00", RIGHT(F4,2)+1)),F4+1) -> 2008-09 | H4: =IF(LEN(G4)>4,CONCATENATE(LEFT(G4,4)+1&"-"&IF(RIGHT(G4, 2)<"09", "0","")&IF(RIGHT(G4, 2)="99", "00", RIGHT(G4,2)+1)),G4+1) -> 2009-10 | I4: 2010-11 | J4: 2011-12 | K4: 2012-13 | L4: 2013-14 | M4: 2014-15 | N4: 2015-16 | O4: 2016-17 | P4: 2017-18 | Q4: 2018-19 | R4: 2019-20 | S4: 2020-21 | T4: 2021-22 | U4: 2022-23 | V4: 2023-24 | W4: 2024-25 | X4: 2025-26 | Y4: 2026-27 | Z4: 2027-28 | AA4: 2028-29 | AB4: 2029-30 | AC4: 2030-31 | AD4: 2031-32 | AE4: 2032-33 | AF4: 2033-34 | AG4: 2034-35 | AH4: 2035-36 | AI4: 2036-37 | AJ4: 2037-38 | AK4: 2038-39 | AL4: 2039-40 | AM4: 2040-41 | AN4: 2041-42 | AO4: 2042-43 | AP4: 2043-44 | AQ4: 2044-45 | AR4: 2045-46 | AS4: 2046-47 | AT4: 2047-48 | AU4: 2048-49 | AV4: 2049-50 | AW4: 2050-51 | AX4: 2051-52 | AY4: 2052-53 | AZ4: 2053-54 | BA4: 2054-55 | BB4: 2055-56 | BC4: 2056-57 | BD4: 2057-58 | BE4: 2058-59 | BF4: 2059-60 | BG4: 2060-61 | BH4: 2061-62 | BI4: 2062-63 | BJ4: 2063-64 | BK4: 2064-65 | BL4: 2065-66 | BM4: 2066-67 | BN4: 2067-68 | BO4: 2068-69 | BP4: 2069-70 | BQ4: 2070-71 | BR4: 2071-72 | BS4: 2072-73 | BT4: =IF(LEN(BS4)>4,CONCATENATE(LEFT(BS4,4)+1&"-"&IF(RIGHT(BS4, 2)<"09", "0","")&IF(RIGHT(BS4, 2)="99", "00", RIGHT(BS4,2)+1)),BS4+1) -> 2073-74 | BU4: 2074-75 | BV4: 2075-76 | BW4: 2076-77 | BX4: 2077-78 | BY4: 2078-79 | BZ4: 2079-80 | CA4: 2080-81 | CB4: 2081-82 | CC4: 2082-83 | CD4: 2083-84 | CE4: 2084-85
D6: General information
E8: Business name | F8: ='RAB input'!$F$8 -> SAPN
E9: First regulatory year for tracking | H9: 2009-10 | I9: =IF(SUM($11:$11)=COUNTA($H$9:H$9), "Input for next period", "") ->  | J9: =IF(SUM($11:$11)=COUNTA($H$9:I$9), "Input for next period", "") ->  | K9: =IF(SUM($11:$11)=COUNTA($H$9:J$9), "Input for next period", "") ->  | L9: =IF(SUM($11:$11)=COUNTA($H$9:K$9), "Input for next period", "") ->  | M9: =IF(SUM($11:$11)=COUNTA($H$9:L$9), "Input for next period", "") ->  | N9: =IF(SUM($11:$11)=COUNTA($H$9:M$9), "Input for next period", "") ->  | O9: =IF(SUM($11:$11)=COUNTA($H$9:N$9), "Input for next period", "") ->  | P9: =IF(SUM($11:$11)=COUNTA($H$9:O$9), "Input for next period", "") ->  | Q9: =IF(SUM($11:$11)=COUNTA($H$9:P$9), "Input for next period", "") ->  | R9: =IF(SUM($11:$11)=COUNTA($H$9:Q$9), "Input for next period", "") ->  | S9: =IF(SUM($11:$11)=COUNTA($H$9:R$9), "Input for next period", "") ->  | T9: =IF(SUM($11:$11)=COUNTA($H$9:S$9), "Input for next period", "") ->  | U9: =IF(SUM($11:$11)=COUNTA($H$9:T$9), "Input for next period", "") ->  | V9: =IF(SUM($11:$11)=COUNTA($H$9:U$9), "Input for next period", "") ->  | W9: =IF(SUM($11:$11)=COUNTA($H$9:V$9), "Input for next period", "") ->  | X9: =IF(SUM($11:$11)=COUNTA($H$9:W$9), "Input for next period", "") -> Input for next period | Y9: =IF(SUM($11:$11)=COUNTA($H$9:X$9), "Input for next period", "") ->  | Z9: =IF(SUM($11:$11)=COUNTA($H$9:Y$9), "Input for next period", "") ->  | AA9: =IF(SUM($11:$11)=COUNTA($H$9:Z$9), "Input for next period", "") ->  | AB9: =IF(SUM($11:$11)=COUNTA($H$9:AA$9), "Input for next period", "") ->  | AC9: =IF(SUM($11:$11)=COUNTA($H$9:AB$9), "Input for next period", "") ->  | AD9: =IF(SUM($11:$11)=COUNTA($H$9:AC$9), "Input for next period", "") ->  | AE9: =IF(SUM($11:$11)=COUNTA($H$9:AD$9), "Input for next period", "") ->  | AF9: =IF(SUM($11:$11)=COUNTA($H$9:AE$9), "Input for next period", "") ->  | AG9: =IF(SUM($11:$11)=COUNTA($H$9:AF$9), "Input for next period", "") ->  | AH9: =IF(SUM($11:$11)=COUNTA($H$9:AG$9), "Input for next period", "") ->  | AI9: =IF(SUM($11:$11)=COUNTA($H$9:AH$9), "Input for next period", "") ->  | AJ9: =IF(SUM($11:$11)=COUNTA($H$9:AI$9), "Input for next period", "") ->  | AK9: =IF(SUM($11:$11)=COUNTA($H$9:AJ$9), "Input for next period", "") ->  | AL9: =IF(SUM($11:$11)=COUNTA($H$9:AK$9), "Input for next period", "") ->  | AM9: =IF(SUM($11:$11)=COUNTA($H$9:AL$9), "Input for next period", "") ->  | AN9: =IF(SUM($11:$11)=COUNTA($H$9:AM$9), "Input for next period", "") ->  | AO9: =IF(SUM($11:$11)=COUNTA($H$9:AN$9), "Input for next period", "") ->  | AP9: =IF(SUM($11:$11)=COUNTA($H$9:AO$9), "Input for next period", "") ->  | AQ9: =IF(SUM($11:$11)=COUNTA($H$9:AP$9), "Input for next period", "") ->  | AR9: =IF(SUM($11:$11)=COUNTA($H$9:AQ$9), "Input for next period", "") ->  | AS9: =IF(SUM($11:$11)=COUNTA($H$9:AR$9), "Input for next period", "") ->  | AT9: =IF(SUM($11:$11)=COUNTA($H$9:AS$9), "Input for next period", "") ->  | AU9: =IF(SUM($11:$11)=COUNTA($H$9:AT$9), "Input for next period", "") ->  | AV9: =IF(SUM($11:$11)=COUNTA($H$9:AU$9), "Input for next period", "") ->  | AW9: =IF(SUM($11:$11)=COUNTA($H$9:AV$9), "Input for next period", "") ->  | AX9: =IF(SUM($11:$11)=COUNTA($H$9:AW$9), "Input for next period", "") ->  | AY9: =IF(SUM($11:$11)=COUNTA($H$9:AX$9), "Input for next period", "") ->  | AZ9: =IF(SUM($11:$11)=COUNTA($H$9:AY$9), "Input for next period", "") ->  | BA9: =IF(SUM($11:$11)=COUNTA($H$9:AZ$9), "Input for next period", "") ->  | BB9: =IF(SUM($11:$11)=COUNTA($H$9:BA$9), "Input for next period", "") ->  | BC9: =IF(SUM($11:$11)=COUNTA($H$9:BB$9), "Input for next period", "") ->  | BD9: =IF(SUM($11:$11)=COUNTA($H$9:BC$9), "Input for next period", "") ->  | BE9: =IF(SUM($11:$11)=COUNTA($H$9:BD$9), "Input for next period", "") ->  | BF9: =IF(SUM($11:$11)=COUNTA($H$9:BE$9), "Input for next period", "") ->  | BG9: =IF(SUM($11:$11)=COUNTA($H$9:BF$9), "Input for next period", "") ->  | BH9: =IF(SUM($11:$11)=COUNTA($H$9:BG$9), "Input for next period", "") ->  | BI9: =IF(SUM($11:$11)=COUNTA($H$9:BH$9), "Input for next period", "") ->  | BJ9: =IF(SUM($11:$11)=COUNTA($H$9:BI$9), "Input for next period", "") ->  | BK9: =IF(SUM($11:$11)=COUNTA($H$9:BJ$9), "Input for next period", "") ->  | BL9: =IF(SUM($11:$11)=COUNTA($H$9:BK$9), "Input for next period", "") ->  | BM9: =IF(SUM($11:$11)=COUNTA($H$9:BL$9), "Input for next period", "") ->  | BN9: =IF(SUM($11:$11)=COUNTA($H$9:BM$9), "Input for next period", "") ->  | BO9: =IF(SUM($11:$11)=COUNTA($H$9:BN$9), "Input for next period", "") ->  | BP9: =IF(SUM($11:$11)=COUNTA($H$9:BO$9), "Input for next period", "") ->  | BQ9: =IF(SUM($11:$11)=COUNTA($H$9:BP$9), "Input for next period", "") ->  | BR9: =IF(SUM($11:$11)=COUNTA($H$9:BQ$9), "Input for next period", "") ->  | BS9: =IF(SUM($11:$11)=COUNTA($H$9:BR$9), "Input for next period", "") ->  | BT9: =IF(SUM($11:$11)=COUNTA($H$9:BS$9), "Input for next period", "") ->  | BU9: =IF(SUM($11:$11)=COUNTA($H$9:BT$9), "Input for next period", "") ->  | BV9: =IF(SUM($11:$11)=COUNTA($H$9:BU$9), "Input for next period", "") ->  | BW9: =IF(SUM($11:$11)=COUNTA($H$9:BV$9), "Input for next period", "") ->  | BX9: =IF(SUM($11:$11)=COUNTA($H$9:BW$9), "Input for next period", "") ->  | BY9: =IF(SUM($11:$11)=COUNTA($H$9:BX$9), "Input for next period", "") ->  | BZ9: =IF(SUM($11:$11)=COUNTA($H$9:BY$9), "Input for next period", "") ->  | CA9: =IF(SUM($11:$11)=COUNTA($H$9:BZ$9), "Input for next period", "") ->  | CB9: =IF(SUM($11:$11)=COUNTA($H$9:CA$9), "Input for next period", "") ->  | CC9: =IF(SUM($11:$11)=COUNTA($H$9:CB$9), "Input for next period", "") ->  | CD9: =IF(SUM($11:$11)=COUNTA($H$9:CC$9), "Input for next period", "") ->  | CE9: =IF(SUM($11:$11)=COUNTA($H$9:CD$9), "Input for next period", "") -> 
E10: Regulatory period | H10: 2009-10 | I10: =IFERROR(IF(INDEX('RAB input'!10:10, MATCH(I$4, 'RAB input'!$4:$4, 0))="", "", INDEX('RAB input'!10:10, MATCH(I$4, 'RAB input'!$4:$4, 0))), "") -> 2010-15 | J10: =IFERROR(IF(INDEX('RAB input'!10:10, MATCH(J$4, 'RAB input'!$4:$4, 0))="", "", INDEX('RAB input'!10:10, MATCH(J$4, 'RAB input'!$4:$4, 0))), "") ->  | K10: =IFERROR(IF(INDEX('RAB input'!10:10, MATCH(K$4, 'RAB input'!$4:$4, 0))="", "", INDEX('RAB input'!10:10, MATCH(K$4, 'RAB input'!$4:$4, 0))), "") ->  | L10: =IFERROR(IF(INDEX('RAB input'!10:10, MATCH(L$4, 'RAB input'!$4:$4, 0))="", "", INDEX('RAB input'!10:10, MATCH(L$4, 'RAB input'!$4:$4, 0))), "") ->  | M10: =IFERROR(IF(INDEX('RAB input'!10:10, MATCH(M$4, 'RAB input'!$4:$4, 0))="", "", INDEX('RAB input'!10:10, MATCH(M$4, 'RAB input'!$4:$4, 0))), "") ->  | N10: =IFERROR(IF(INDEX('RAB input'!10:10, MATCH(N$4, 'RAB input'!$4:$4, 0))="", "", INDEX('RAB input'!10:10, MATCH(N$4, 'RAB input'!$4:$4, 0))), "") -> 2015-20 | O10: =IFERROR(IF(INDEX('RAB input'!10:10, MATCH(O$4, 'RAB input'!$4:$4, 0))="", "", INDEX('RAB input'!10:10, MATCH(O$4, 'RAB input'!$4:$4, 0))), "") ->  | P10: =IFERROR(IF(INDEX('RAB input'!10:10, MATCH(P$4, 'RAB input'!$4:$4, 0))="", "", INDEX('RAB input'!10:10, MATCH(P$4, 'RAB input'!$4:$4, 0))), "") ->  | Q10: =IFERROR(IF(INDEX('RAB input'!10:10, MATCH(Q$4, 'RAB input'!$4:$4, 0))="", "", INDEX('RAB input'!10:10, MATCH(Q$4, 'RAB input'!$4:$4, 0))), "") ->  | R10: =IFERROR(IF(INDEX('RAB input'!10:10, MATCH(R$4, 'RAB input'!$4:$4, 0))="", "", INDEX('RAB input'!10:10, MATCH(R$4, 'RAB input'!$4:$4, 0))), "") ->  | S10: =IFERROR(IF(INDEX('RAB input'!10:10, MATCH(S$4, 'RAB input'!$4:$4, 0))="", "", INDEX('RAB input'!10:10, MATCH(S$4, 'RAB input'!$4:$4, 0))), "") -> 2020-25 | T10: =IFERROR(IF(INDEX('RAB input'!10:10, MATCH(T$4, 'RAB input'!$4:$4, 0))="", "", INDEX('RAB input'!10:10, MATCH(T$4, 'RAB input'!$4:$4, 0))), "") ->  | U10: =IFERROR(IF(INDEX('RAB input'!10:10, MATCH(U$4, 'RAB input'!$4:$4, 0))="", "", INDEX('RAB input'!10:10, MATCH(U$4, 'RAB input'!$4:$4, 0))), "") ->  | V10: =IFERROR(IF(INDEX('RAB input'!10:10, MATCH(V$4, 'RAB input'!$4:$4, 0))="", "", INDEX('RAB input'!10:10, MATCH(V$4, 'RAB input'!$4:$4, 0))), "") ->  | W10: =IFERROR(IF(INDEX('RAB input'!10:10, MATCH(W$4, 'RAB input'!$4:$4, 0))="", "", INDEX('RAB input'!10:10, MATCH(W$4, 'RAB input'!$4:$4, 0))), "") ->  | X10: =IFERROR(IF(INDEX('RAB input'!10:10, MATCH(X$4, 'RAB input'!$4:$4, 0))="", "", INDEX('RAB input'!10:10, MATCH(X$4, 'RAB input'!$4:$4, 0))), "") ->  | Y10: =IFERROR(IF(INDEX('RAB input'!10:10, MATCH(Y$4, 'RAB input'!$4:$4, 0))="", "", INDEX('RAB input'!10:10, MATCH(Y$4, 'RAB input'!$4:$4, 0))), "") ->  | Z10: =IFERROR(IF(INDEX('RAB input'!10:10, MATCH(Z$4, 'RAB input'!$4:$4, 0))="", "", INDEX('RAB input'!10:10, MATCH(Z$4, 'RAB input'!$4:$4, 0))), "") ->  | AA10: =IFERROR(IF(INDEX('RAB input'!10:10, MATCH(AA$4, 'RAB input'!$4:$4, 0))="", "", INDEX('RAB input'!10:10, MATCH(AA$4, 'RAB input'!$4:$4, 0))), "") ->  | AB10: =IFERROR(IF(INDEX('RAB input'!10:10, MATCH(AB$4, 'RAB input'!$4:$4, 0))="", "", INDEX('RAB input'!10:10, MATCH(AB$4, 'RAB input'!$4:$4, 0))), "") ->  | AC10: =IFERROR(IF(INDEX('RAB input'!10:10, MATCH(AC$4, 'RAB input'!$4:$4, 0))="", "", INDEX('RAB input'!10:10, MATCH(AC$4, 'RAB input'!$4:$4, 0))), "") ->  | AD10: =IFERROR(IF(INDEX('RAB input'!10:10, MATCH(AD$4, 'RAB input'!$4:$4, 0))="", "", INDEX('RAB input'!10:10, MATCH(AD$4, 'RAB input'!$4:$4, 0))), "") ->  | AE10: =IFERROR(IF(INDEX('RAB input'!10:10, MATCH(AE$4, 'RAB input'!$4:$4, 0))="", "", INDEX('RAB input'!10:10, MATCH(AE$4, 'RAB input'!$4:$4, 0))), "") ->  | AF10: =IFERROR(IF(INDEX('RAB input'!10:10, MATCH(AF$4, 'RAB input'!$4:$4, 0))="", "", INDEX('RAB input'!10:10, MATCH(AF$4, 'RAB input'!$4:$4, 0))), "") ->  | AG10: =IFERROR(IF(INDEX('RAB input'!10:10, MATCH(AG$4, 'RAB input'!$4:$4, 0))="", "", INDEX('RAB input'!10:10, MATCH(AG$4, 'RAB input'!$4:$4, 0))), "") ->  | AH10: =IFERROR(IF(INDEX('RAB input'!10:10, MATCH(AH$4, 'RAB input'!$4:$4, 0))="", "", INDEX('RAB input'!10:10, MATCH(AH$4, 'RAB input'!$4:$4, 0))), "") ->  | AI10: =IFERROR(IF(INDEX('RAB input'!10:10, MATCH(AI$4, 'RAB input'!$4:$4, 0))="", "", INDEX('RAB input'!10:10, MATCH(AI$4, 'RAB input'!$4:$4, 0))), "") ->  | AJ10: =IFERROR(IF(INDEX('RAB input'!10:10, MATCH(AJ$4, 'RAB input'!$4:$4, 0))="", "", INDEX('RAB input'!10:10, MATCH(AJ$4, 'RAB input'!$4:$4, 0))), "") ->  | AK10: =IFERROR(IF(INDEX('RAB input'!10:10, MATCH(AK$4, 'RAB input'!$4:$4, 0))="", "", INDEX('RAB input'!10:10, MATCH(AK$4, 'RAB input'!$4:$4, 0))), "") ->  | AL10: =IFERROR(IF(INDEX('RAB input'!10:10, MATCH(AL$4, 'RAB input'!$4:$4, 0))="", "", INDEX('RAB input'!10:10, MATCH(AL$4, 'RAB input'!$4:$4, 0))), "") ->  | AM10: =IFERROR(IF(INDEX('RAB input'!10:10, MATCH(AM$4, 'RAB input'!$4:$4, 0))="", "", INDEX('RAB input'!10:10, MATCH(AM$4, 'RAB input'!$4:$4, 0))), "") ->  | AN10: =IFERROR(IF(INDEX('RAB input'!10:10, MATCH(AN$4, 'RAB input'!$4:$4, 0))="", "", INDEX('RAB input'!10:10, MATCH(AN$4, 'RAB input'!$4:$4, 0))), "") ->  | AO10: =IFERROR(IF(INDEX('RAB input'!10:10, MATCH(AO$4, 'RAB input'!$4:$4, 0))="", "", INDEX('RAB input'!10:10, MATCH(AO$4, 'RAB input'!$4:$4, 0))), "") ->  | AP10: =IFERROR(IF(INDEX('RAB input'!10:10, MATCH(AP$4, 'RAB input'!$4:$4, 0))="", "", INDEX('RAB input'!10:10, MATCH(AP$4, 'RAB input'!$4:$4, 0))), "") ->  | AQ10: =IFERROR(IF(INDEX('RAB input'!10:10, MATCH(AQ$4, 'RAB input'!$4:$4, 0))="", "", INDEX('RAB input'!10:10, MATCH(AQ$4, 'RAB input'!$4:$4, 0))), "") ->  | AR10: =IFERROR(IF(INDEX('RAB input'!10:10, MATCH(AR$4, 'RAB input'!$4:$4, 0))="", "", INDEX('RAB input'!10:10, MATCH(AR$4, 'RAB input'!$4:$4, 0))), "") ->  | AS10: =IFERROR(IF(INDEX('RAB input'!10:10, MATCH(AS$4, 'RAB input'!$4:$4, 0))="", "", INDEX('RAB input'!10:10, MATCH(AS$4, 'RAB input'!$4:$4, 0))), "") ->  | AT10: =IFERROR(IF(INDEX('RAB input'!10:10, MATCH(AT$4, 'RAB input'!$4:$4, 0))="", "", INDEX('RAB input'!10:10, MATCH(AT$4, 'RAB input'!$4:$4, 0))), "") ->  | AU10: =IFERROR(IF(INDEX('RAB input'!10:10, MATCH(AU$4, 'RAB input'!$4:$4, 0))="", "", INDEX('RAB input'!10:10, MATCH(AU$4, 'RAB input'!$4:$4, 0))), "") ->  | AV10: =IFERROR(IF(INDEX('RAB input'!10:10, MATCH(AV$4, 'RAB input'!$4:$4, 0))="", "", INDEX('RAB input'!10:10, MATCH(AV$4, 'RAB input'!$4:$4, 0))), "") ->  | AW10: =IFERROR(IF(INDEX('RAB input'!10:10, MATCH(AW$4, 'RAB input'!$4:$4, 0))="", "", INDEX('RAB input'!10:10, MATCH(AW$4, 'RAB input'!$4:$4, 0))), "") ->  | AX10: =IFERROR(IF(INDEX('RAB input'!10:10, MATCH(AX$4, 'RAB input'!$4:$4, 0))="", "", INDEX('RAB input'!10:10, MATCH(AX$4, 'RAB input'!$4:$4, 0))), "") ->  | AY10: =IFERROR(IF(INDEX('RAB input'!10:10, MATCH(AY$4, 'RAB input'!$4:$4, 0))="", "", INDEX('RAB input'!10:10, MATCH(AY$4, 'RAB input'!$4:$4, 0))), "") ->  | AZ10: =IFERROR(IF(INDEX('RAB input'!10:10, MATCH(AZ$4, 'RAB input'!$4:$4, 0))="", "", INDEX('RAB input'!10:10, MATCH(AZ$4, 'RAB input'!$4:$4, 0))), "") ->  | BA10: =IFERROR(IF(INDEX('RAB input'!10:10, MATCH(BA$4, 'RAB input'!$4:$4, 0))="", "", INDEX('RAB input'!10:10, MATCH(BA$4, 'RAB input'!$4:$4, 0))), "") ->  | BB10: =IFERROR(IF(INDEX('RAB input'!10:10, MATCH(BB$4, 'RAB input'!$4:$4, 0))="", "", INDEX('RAB input'!10:10, MATCH(BB$4, 'RAB input'!$4:$4, 0))), "") ->  | BC10: =IFERROR(IF(INDEX('RAB input'!10:10, MATCH(BC$4, 'RAB input'!$4:$4, 0))="", "", INDEX('RAB input'!10:10, MATCH(BC$4, 'RAB input'!$4:$4, 0))), "") ->  | BD10: =IFERROR(IF(INDEX('RAB input'!10:10, MATCH(BD$4, 'RAB input'!$4:$4, 0))="", "", INDEX('RAB input'!10:10, MATCH(BD$4, 'RAB input'!$4:$4, 0))), "") ->  | BE10: =IFERROR(IF(INDEX('RAB input'!10:10, MATCH(BE$4, 'RAB input'!$4:$4, 0))="", "", INDEX('RAB input'!10:10, MATCH(BE$4, 'RAB input'!$4:$4, 0))), "") ->  | BF10: =IFERROR(IF(INDEX('RAB input'!10:10, MATCH(BF$4, 'RAB input'!$4:$4, 0))="", "", INDEX('RAB input'!10:10, MATCH(BF$4, 'RAB input'!$4:$4, 0))), "") ->  | BG10: =IFERROR(IF(INDEX('RAB input'!10:10, MATCH(BG$4, 'RAB input'!$4:$4, 0))="", "", INDEX('RAB input'!10:10, MATCH(BG$4, 'RAB input'!$4:$4, 0))), "") ->  | BH10: =IFERROR(IF(INDEX('RAB input'!10:10, MATCH(BH$4, 'RAB input'!$4:$4, 0))="", "", INDEX('RAB input'!10:10, MATCH(BH$4, 'RAB input'!$4:$4, 0))), "") ->  | BI10: =IFERROR(IF(INDEX('RAB input'!10:10, MATCH(BI$4, 'RAB input'!$4:$4, 0))="", "", INDEX('RAB input'!10:10, MATCH(BI$4, 'RAB input'!$4:$4, 0))), "") ->  | BJ10: =IFERROR(IF(INDEX('RAB input'!10:10, MATCH(BJ$4, 'RAB input'!$4:$4, 0))="", "", INDEX('RAB input'!10:10, MATCH(BJ$4, 'RAB input'!$4:$4, 0))), "") ->  | BK10: =IFERROR(IF(INDEX('RAB input'!10:10, MATCH(BK$4, 'RAB input'!$4:$4, 0))="", "", INDEX('RAB input'!10:10, MATCH(BK$4, 'RAB input'!$4:$4, 0))), "") ->  | BL10: =IFERROR(IF(INDEX('RAB input'!10:10, MATCH(BL$4, 'RAB input'!$4:$4, 0))="", "", INDEX('RAB input'!10:10, MATCH(BL$4, 'RAB input'!$4:$4, 0))), "") ->  | BM10: =IFERROR(IF(INDEX('RAB input'!10:10, MATCH(BM$4, 'RAB input'!$4:$4, 0))="", "", INDEX('RAB input'!10:10, MATCH(BM$4, 'RAB input'!$4:$4, 0))), "") ->  | BN10: =IFERROR(IF(INDEX('RAB input'!10:10, MATCH(BN$4, 'RAB input'!$4:$4, 0))="", "", INDEX('RAB input'!10:10, MATCH(BN$4, 'RAB input'!$4:$4, 0))), "") ->  | BO10: =IFERROR(IF(INDEX('RAB input'!10:10, MATCH(BO$4, 'RAB input'!$4:$4, 0))="", "", INDEX('RAB input'!10:10, MATCH(BO$4, 'RAB input'!$4:$4, 0))), "") ->  | BP10: =IFERROR(IF(INDEX('RAB input'!10:10, MATCH(BP$4, 'RAB input'!$4:$4, 0))="", "", INDEX('RAB input'!10:10, MATCH(BP$4, 'RAB input'!$4:$4, 0))), "") ->  | BQ10: =IFERROR(IF(INDEX('RAB input'!10:10, MATCH(BQ$4, 'RAB input'!$4:$4, 0))="", "", INDEX('RAB input'!10:10, MATCH(BQ$4, 'RAB input'!$4:$4, 0))), "") ->  | BR10: =IFERROR(IF(INDEX('RAB input'!10:10, MATCH(BR$4, 'RAB input'!$4:$4, 0))="", "", INDEX('RAB input'!10:10, MATCH(BR$4, 'RAB input'!$4:$4, 0))), "") ->  | BS10: =IFERROR(IF(INDEX('RAB input'!10:10, MATCH(BS$4, 'RAB input'!$4:$4, 0))="", "", INDEX('RAB input'!10:10, MATCH(BS$4, 'RAB input'!$4:$4, 0))), "") ->  | BT10: =IFERROR(IF(INDEX('RAB input'!10:10, MATCH(BT$4, 'RAB input'!$4:$4, 0))="", "", INDEX('RAB input'!10:10, MATCH(BT$4, 'RAB input'!$4:$4, 0))), "") ->  | BU10: =IFERROR(IF(INDEX('RAB input'!10:10, MATCH(BU$4, 'RAB input'!$4:$4, 0))="", "", INDEX('RAB input'!10:10, MATCH(BU$4, 'RAB input'!$4:$4, 0))), "") ->  | BV10: =IFERROR(IF(INDEX('RAB input'!10:10, MATCH(BV$4, 'RAB input'!$4:$4, 0))="", "", INDEX('RAB input'!10:10, MATCH(BV$4, 'RAB input'!$4:$4, 0))), "") ->  | BW10: =IFERROR(IF(INDEX('RAB input'!10:10, MATCH(BW$4, 'RAB input'!$4:$4, 0))="", "", INDEX('RAB input'!10:10, MATCH(BW$4, 'RAB input'!$4:$4, 0))), "") ->  | BX10: =IFERROR(IF(INDEX('RAB input'!10:10, MATCH(BX$4, 'RAB input'!$4:$4, 0))="", "", INDEX('RAB input'!10:10, MATCH(BX$4, 'RAB input'!$4:$4, 0))), "") ->  | BY10: =IFERROR(IF(INDEX('RAB input'!10:10, MATCH(BY$4, 'RAB input'!$4:$4, 0))="", "", INDEX('RAB input'!10:10, MATCH(BY$4, 'RAB input'!$4:$4, 0))), "") ->  | BZ10: =IFERROR(IF(INDEX('RAB input'!10:10, MATCH(BZ$4, 'RAB input'!$4:$4, 0))="", "", INDEX('RAB input'!10:10, MATCH(BZ$4, 'RAB input'!$4:$4, 0))), "") ->  | CA10: =IFERROR(IF(INDEX('RAB input'!10:10, MATCH(CA$4, 'RAB input'!$4:$4, 0))="", "", INDEX('RAB input'!10:10, MATCH(CA$4, 'RAB input'!$4:$4, 0))), "") ->  | CB10: =IFERROR(IF(INDEX('RAB input'!10:10, MATCH(CB$4, 'RAB input'!$4:$4, 0))="", "", INDEX('RAB input'!10:10, MATCH(CB$4, 'RAB input'!$4:$4, 0))), "") ->  | CC10: =IFERROR(IF(INDEX('RAB input'!10:10, MATCH(CC$4, 'RAB input'!$4:$4, 0))="", "", INDEX('RAB input'!10:10, MATCH(CC$4, 'RAB input'!$4:$4, 0))), "") ->  | CD10: =IFERROR(IF(INDEX('RAB input'!10:10, MATCH(CD$4, 'RAB input'!$4:$4, 0))="", "", INDEX('RAB input'!10:10, MATCH(CD$4, 'RAB input'!$4:$4, 0))), "") ->  | CE10: =IFERROR(IF(INDEX('RAB input'!10:10, MATCH(CE$4, 'RAB input'!$4:$4, 0))="", "", INDEX('RAB input'!10:10, MATCH(CE$4, 'RAB input'!$4:$4, 0))), "") -> 
E11: Years in regulatory period | H11: 1 | I11: =IFERROR(IF(INDEX('RAB input'!11:11, MATCH(I$4, 'RAB input'!$4:$4, 0))="", "", INDEX('RAB input'!11:11, MATCH(I$4, 'RAB input'!$4:$4, 0))), "") -> 5 | J11: =IFERROR(IF(INDEX('RAB input'!11:11, MATCH(J$4, 'RAB input'!$4:$4, 0))="", "", INDEX('RAB input'!11:11, MATCH(J$4, 'RAB input'!$4:$4, 0))), "") ->  | K11: =IFERROR(IF(INDEX('RAB input'!11:11, MATCH(K$4, 'RAB input'!$4:$4, 0))="", "", INDEX('RAB input'!11:11, MATCH(K$4, 'RAB input'!$4:$4, 0))), "") ->  | L11: =IFERROR(IF(INDEX('RAB input'!11:11, MATCH(L$4, 'RAB input'!$4:$4, 0))="", "", INDEX('RAB input'!11:11, MATCH(L$4, 'RAB input'!$4:$4, 0))), "") ->  | M11: =IFERROR(IF(INDEX('RAB input'!11:11, MATCH(M$4, 'RAB input'!$4:$4, 0))="", "", INDEX('RAB input'!11:11, MATCH(M$4, 'RAB input'!$4:$4, 0))), "") ->  | N11: =IFERROR(IF(INDEX('RAB input'!11:11, MATCH(N$4, 'RAB input'!$4:$4, 0))="", "", INDEX('RAB input'!11:11, MATCH(N$4, 'RAB input'!$4:$4, 0))), "") -> 5 | O11: =IFERROR(IF(INDEX('RAB input'!11:11, MATCH(O$4, 'RAB input'!$4:$4, 0))="", "", INDEX('RAB input'!11:11, MATCH(O$4, 'RAB input'!$4:$4, 0))), "") ->  | P11: =IFERROR(IF(INDEX('RAB input'!11:11, MATCH(P$4, 'RAB input'!$4:$4, 0))="", "", INDEX('RAB input'!11:11, MATCH(P$4, 'RAB input'!$4:$4, 0))), "") ->  | Q11: =IFERROR(IF(INDEX('RAB input'!11:11, MATCH(Q$4, 'RAB input'!$4:$4, 0))="", "", INDEX('RAB input'!11:11, MATCH(Q$4, 'RAB input'!$4:$4, 0))), "") ->  | R11: =IFERROR(IF(INDEX('RAB input'!11:11, MATCH(R$4, 'RAB input'!$4:$4, 0))="", "", INDEX('RAB input'!11:11, MATCH(R$4, 'RAB input'!$4:$4, 0))), "") ->  | S11: =IFERROR(IF(INDEX('RAB input'!11:11, MATCH(S$4, 'RAB input'!$4:$4, 0))="", "", INDEX('RAB input'!11:11, MATCH(S$4, 'RAB input'!$4:$4, 0))), "") -> 5 | T11: =IFERROR(IF(INDEX('RAB input'!11:11, MATCH(T$4, 'RAB input'!$4:$4, 0))="", "", INDEX('RAB input'!11:11, MATCH(T$4, 'RAB input'!$4:$4, 0))), "") ->  | U11: =IFERROR(IF(INDEX('RAB input'!11:11, MATCH(U$4, 'RAB input'!$4:$4, 0))="", "", INDEX('RAB input'!11:11, MATCH(U$4, 'RAB input'!$4:$4, 0))), "") ->  | V11: =IFERROR(IF(INDEX('RAB input'!11:11, MATCH(V$4, 'RAB input'!$4:$4, 0))="", "", INDEX('RAB input'!11:11, MATCH(V$4, 'RAB input'!$4:$4, 0))), "") ->  | W11: =IFERROR(IF(INDEX('RAB input'!11:11, MATCH(W$4, 'RAB input'!$4:$4, 0))="", "", INDEX('RAB input'!11:11, MATCH(W$4, 'RAB input'!$4:$4, 0))), "") ->  | X11: =IFERROR(IF(INDEX('RAB input'!11:11, MATCH(X$4, 'RAB input'!$4:$4, 0))="", "", INDEX('RAB input'!11:11, MATCH(X$4, 'RAB input'!$4:$4, 0))), "") ->  | Y11: =IFERROR(IF(INDEX('RAB input'!11:11, MATCH(Y$4, 'RAB input'!$4:$4, 0))="", "", INDEX('RAB input'!11:11, MATCH(Y$4, 'RAB input'!$4:$4, 0))), "") ->  | Z11: =IFERROR(IF(INDEX('RAB input'!11:11, MATCH(Z$4, 'RAB input'!$4:$4, 0))="", "", INDEX('RAB input'!11:11, MATCH(Z$4, 'RAB input'!$4:$4, 0))), "") ->  | AA11: =IFERROR(IF(INDEX('RAB input'!11:11, MATCH(AA$4, 'RAB input'!$4:$4, 0))="", "", INDEX('RAB input'!11:11, MATCH(AA$4, 'RAB input'!$4:$4, 0))), "") ->  | AB11: =IFERROR(IF(INDEX('RAB input'!11:11, MATCH(AB$4, 'RAB input'!$4:$4, 0))="", "", INDEX('RAB input'!11:11, MATCH(AB$4, 'RAB input'!$4:$4, 0))), "") ->  | AC11: =IFERROR(IF(INDEX('RAB input'!11:11, MATCH(AC$4, 'RAB input'!$4:$4, 0))="", "", INDEX('RAB input'!11:11, MATCH(AC$4, 'RAB input'!$4:$4, 0))), "") ->  | AD11: =IFERROR(IF(INDEX('RAB input'!11:11, MATCH(AD$4, 'RAB input'!$4:$4, 0))="", "", INDEX('RAB input'!11:11, MATCH(AD$4, 'RAB input'!$4:$4, 0))), "") ->  | AE11: =IFERROR(IF(INDEX('RAB input'!11:11, MATCH(AE$4, 'RAB input'!$4:$4, 0))="", "", INDEX('RAB input'!11:11, MATCH(AE$4, 'RAB input'!$4:$4, 0))), "") ->  | AF11: =IFERROR(IF(INDEX('RAB input'!11:11, MATCH(AF$4, 'RAB input'!$4:$4, 0))="", "", INDEX('RAB input'!11:11, MATCH(AF$4, 'RAB input'!$4:$4, 0))), "") ->  | AG11: =IFERROR(IF(INDEX('RAB input'!11:11, MATCH(AG$4, 'RAB input'!$4:$4, 0))="", "", INDEX('RAB input'!11:11, MATCH(AG$4, 'RAB input'!$4:$4, 0))), "") ->  | AH11: =IFERROR(IF(INDEX('RAB input'!11:11, MATCH(AH$4, 'RAB input'!$4:$4, 0))="", "", INDEX('RAB input'!11:11, MATCH(AH$4, 'RAB input'!$4:$4, 0))), "") ->  | AI11: =IFERROR(IF(INDEX('RAB input'!11:11, MATCH(AI$4, 'RAB input'!$4:$4, 0))="", "", INDEX('RAB input'!11:11, MATCH(AI$4, 'RAB input'!$4:$4, 0))), "") ->  | AJ11: =IFERROR(IF(INDEX('RAB input'!11:11, MATCH(AJ$4, 'RAB input'!$4:$4, 0))="", "", INDEX('RAB input'!11:11, MATCH(AJ$4, 'RAB input'!$4:$4, 0))), "") ->  | AK11: =IFERROR(IF(INDEX('RAB input'!11:11, MATCH(AK$4, 'RAB input'!$4:$4, 0))="", "", INDEX('RAB input'!11:11, MATCH(AK$4, 'RAB input'!$4:$4, 0))), "") ->  | AL11: =IFERROR(IF(INDEX('RAB input'!11:11, MATCH(AL$4, 'RAB input'!$4:$4, 0))="", "", INDEX('RAB input'!11:11, MATCH(AL$4, 'RAB input'!$4:$4, 0))), "") ->  | AM11: =IFERROR(IF(INDEX('RAB input'!11:11, MATCH(AM$4, 'RAB input'!$4:$4, 0))="", "", INDEX('RAB input'!11:11, MATCH(AM$4, 'RAB input'!$4:$4, 0))), "") ->  | AN11: =IFERROR(IF(INDEX('RAB input'!11:11, MATCH(AN$4, 'RAB input'!$4:$4, 0))="", "", INDEX('RAB input'!11:11, MATCH(AN$4, 'RAB input'!$4:$4, 0))), "") ->  | AO11: =IFERROR(IF(INDEX('RAB input'!11:11, MATCH(AO$4, 'RAB input'!$4:$4, 0))="", "", INDEX('RAB input'!11:11, MATCH(AO$4, 'RAB input'!$4:$4, 0))), "") ->  | AP11: =IFERROR(IF(INDEX('RAB input'!11:11, MATCH(AP$4, 'RAB input'!$4:$4, 0))="", "", INDEX('RAB input'!11:11, MATCH(AP$4, 'RAB input'!$4:$4, 0))), "") ->  | AQ11: =IFERROR(IF(INDEX('RAB input'!11:11, MATCH(AQ$4, 'RAB input'!$4:$4, 0))="", "", INDEX('RAB input'!11:11, MATCH(AQ$4, 'RAB input'!$4:$4, 0))), "") ->  | AR11: =IFERROR(IF(INDEX('RAB input'!11:11, MATCH(AR$4, 'RAB input'!$4:$4, 0))="", "", INDEX('RAB input'!11:11, MATCH(AR$4, 'RAB input'!$4:$4, 0))), "") ->  | AS11: =IFERROR(IF(INDEX('RAB input'!11:11, MATCH(AS$4, 'RAB input'!$4:$4, 0))="", "", INDEX('RAB input'!11:11, MATCH(AS$4, 'RAB input'!$4:$4, 0))), "") ->  | AT11: =IFERROR(IF(INDEX('RAB input'!11:11, MATCH(AT$4, 'RAB input'!$4:$4, 0))="", "", INDEX('RAB input'!11:11, MATCH(AT$4, 'RAB input'!$4:$4, 0))), "") ->  | AU11: =IFERROR(IF(INDEX('RAB input'!11:11, MATCH(AU$4, 'RAB input'!$4:$4, 0))="", "", INDEX('RAB input'!11:11, MATCH(AU$4, 'RAB input'!$4:$4, 0))), "") ->  | AV11: =IFERROR(IF(INDEX('RAB input'!11:11, MATCH(AV$4, 'RAB input'!$4:$4, 0))="", "", INDEX('RAB input'!11:11, MATCH(AV$4, 'RAB input'!$4:$4, 0))), "") ->  | AW11: =IFERROR(IF(INDEX('RAB input'!11:11, MATCH(AW$4, 'RAB input'!$4:$4, 0))="", "", INDEX('RAB input'!11:11, MATCH(AW$4, 'RAB input'!$4:$4, 0))), "") ->  | AX11: =IFERROR(IF(INDEX('RAB input'!11:11, MATCH(AX$4, 'RAB input'!$4:$4, 0))="", "", INDEX('RAB input'!11:11, MATCH(AX$4, 'RAB input'!$4:$4, 0))), "") ->  | AY11: =IFERROR(IF(INDEX('RAB input'!11:11, MATCH(AY$4, 'RAB input'!$4:$4, 0))="", "", INDEX('RAB input'!11:11, MATCH(AY$4, 'RAB input'!$4:$4, 0))), "") ->  | AZ11: =IFERROR(IF(INDEX('RAB input'!11:11, MATCH(AZ$4, 'RAB input'!$4:$4, 0))="", "", INDEX('RAB input'!11:11, MATCH(AZ$4, 'RAB input'!$4:$4, 0))), "") ->  | BA11: =IFERROR(IF(INDEX('RAB input'!11:11, MATCH(BA$4, 'RAB input'!$4:$4, 0))="", "", INDEX('RAB input'!11:11, MATCH(BA$4, 'RAB input'!$4:$4, 0))), "") ->  | BB11: =IFERROR(IF(INDEX('RAB input'!11:11, MATCH(BB$4, 'RAB input'!$4:$4, 0))="", "", INDEX('RAB input'!11:11, MATCH(BB$4, 'RAB input'!$4:$4, 0))), "") ->  | BC11: =IFERROR(IF(INDEX('RAB input'!11:11, MATCH(BC$4, 'RAB input'!$4:$4, 0))="", "", INDEX('RAB input'!11:11, MATCH(BC$4, 'RAB input'!$4:$4, 0))), "") ->  | BD11: =IFERROR(IF(INDEX('RAB input'!11:11, MATCH(BD$4, 'RAB input'!$4:$4, 0))="", "", INDEX('RAB input'!11:11, MATCH(BD$4, 'RAB input'!$4:$4, 0))), "") ->  | BE11: =IFERROR(IF(INDEX('RAB input'!11:11, MATCH(BE$4, 'RAB input'!$4:$4, 0))="", "", INDEX('RAB input'!11:11, MATCH(BE$4, 'RAB input'!$4:$4, 0))), "") ->  | BF11: =IFERROR(IF(INDEX('RAB input'!11:11, MATCH(BF$4, 'RAB input'!$4:$4, 0))="", "", INDEX('RAB input'!11:11, MATCH(BF$4, 'RAB input'!$4:$4, 0))), "") ->  | BG11: =IFERROR(IF(INDEX('RAB input'!11:11, MATCH(BG$4, 'RAB input'!$4:$4, 0))="", "", INDEX('RAB input'!11:11, MATCH(BG$4, 'RAB input'!$4:$4, 0))), "") ->  | BH11: =IFERROR(IF(INDEX('RAB input'!11:11, MATCH(BH$4, 'RAB input'!$4:$4, 0))="", "", INDEX('RAB input'!11:11, MATCH(BH$4, 'RAB input'!$4:$4, 0))), "") ->  | BI11: =IFERROR(IF(INDEX('RAB input'!11:11, MATCH(BI$4, 'RAB input'!$4:$4, 0))="", "", INDEX('RAB input'!11:11, MATCH(BI$4, 'RAB input'!$4:$4, 0))), "") ->  | BJ11: =IFERROR(IF(INDEX('RAB input'!11:11, MATCH(BJ$4, 'RAB input'!$4:$4, 0))="", "", INDEX('RAB input'!11:11, MATCH(BJ$4, 'RAB input'!$4:$4, 0))), "") ->  | BK11: =IFERROR(IF(INDEX('RAB input'!11:11, MATCH(BK$4, 'RAB input'!$4:$4, 0))="", "", INDEX('RAB input'!11:11, MATCH(BK$4, 'RAB input'!$4:$4, 0))), "") ->  | BL11: =IFERROR(IF(INDEX('RAB input'!11:11, MATCH(BL$4, 'RAB input'!$4:$4, 0))="", "", INDEX('RAB input'!11:11, MATCH(BL$4, 'RAB input'!$4:$4, 0))), "") ->  | BM11: =IFERROR(IF(INDEX('RAB input'!11:11, MATCH(BM$4, 'RAB input'!$4:$4, 0))="", "", INDEX('RAB input'!11:11, MATCH(BM$4, 'RAB input'!$4:$4, 0))), "") ->  | BN11: =IFERROR(IF(INDEX('RAB input'!11:11, MATCH(BN$4, 'RAB input'!$4:$4, 0))="", "", INDEX('RAB input'!11:11, MATCH(BN$4, 'RAB input'!$4:$4, 0))), "") ->  | BO11: =IFERROR(IF(INDEX('RAB input'!11:11, MATCH(BO$4, 'RAB input'!$4:$4, 0))="", "", INDEX('RAB input'!11:11, MATCH(BO$4, 'RAB input'!$4:$4, 0))), "") ->  | BP11: =IFERROR(IF(INDEX('RAB input'!11:11, MATCH(BP$4, 'RAB input'!$4:$4, 0))="", "", INDEX('RAB input'!11:11, MATCH(BP$4, 'RAB input'!$4:$4, 0))), "") ->  | BQ11: =IFERROR(IF(INDEX('RAB input'!11:11, MATCH(BQ$4, 'RAB input'!$4:$4, 0))="", "", INDEX('RAB input'!11:11, MATCH(BQ$4, 'RAB input'!$4:$4, 0))), "") ->  | BR11: =IFERROR(IF(INDEX('RAB input'!11:11, MATCH(BR$4, 'RAB input'!$4:$4, 0))="", "", INDEX('RAB input'!11:11, MATCH(BR$4, 'RAB input'!$4:$4, 0))), "") ->  | BS11: =IFERROR(IF(INDEX('RAB input'!11:11, MATCH(BS$4, 'RAB input'!$4:$4, 0))="", "", INDEX('RAB input'!11:11, MATCH(BS$4, 'RAB input'!$4:$4, 0))), "") ->  | BT11: =IFERROR(IF(INDEX('RAB input'!11:11, MATCH(BT$4, 'RAB input'!$4:$4, 0))="", "", INDEX('RAB input'!11:11, MATCH(BT$4, 'RAB input'!$4:$4, 0))), "") ->  | BU11: =IFERROR(IF(INDEX('RAB input'!11:11, MATCH(BU$4, 'RAB input'!$4:$4, 0))="", "", INDEX('RAB input'!11:11, MATCH(BU$4, 'RAB input'!$4:$4, 0))), "") ->  | BV11: =IFERROR(IF(INDEX('RAB input'!11:11, MATCH(BV$4, 'RAB input'!$4:$4, 0))="", "", INDEX('RAB input'!11:11, MATCH(BV$4, 'RAB input'!$4:$4, 0))), "") ->  | BW11: =IFERROR(IF(INDEX('RAB input'!11:11, MATCH(BW$4, 'RAB input'!$4:$4, 0))="", "", INDEX('RAB input'!11:11, MATCH(BW$4, 'RAB input'!$4:$4, 0))), "") ->  | BX11: =IFERROR(IF(INDEX('RAB input'!11:11, MATCH(BX$4, 'RAB input'!$4:$4, 0))="", "", INDEX('RAB input'!11:11, MATCH(BX$4, 'RAB input'!$4:$4, 0))), "") ->  | BY11: =IFERROR(IF(INDEX('RAB input'!11:11, MATCH(BY$4, 'RAB input'!$4:$4, 0))="", "", INDEX('RAB input'!11:11, MATCH(BY$4, 'RAB input'!$4:$4, 0))), "") ->  | BZ11: =IFERROR(IF(INDEX('RAB input'!11:11, MATCH(BZ$4, 'RAB input'!$4:$4, 0))="", "", INDEX('RAB input'!11:11, MATCH(BZ$4, 'RAB input'!$4:$4, 0))), "") ->  | CA11: =IFERROR(IF(INDEX('RAB input'!11:11, MATCH(CA$4, 'RAB input'!$4:$4, 0))="", "", INDEX('RAB input'!11:11, MATCH(CA$4, 'RAB input'!$4:$4, 0))), "") ->  | CB11: =IFERROR(IF(INDEX('RAB input'!11:11, MATCH(CB$4, 'RAB input'!$4:$4, 0))="", "", INDEX('RAB input'!11:11, MATCH(CB$4, 'RAB input'!$4:$4, 0))), "") ->  | CC11: =IFERROR(IF(INDEX('RAB input'!11:11, MATCH(CC$4, 'RAB input'!$4:$4, 0))="", "", INDEX('RAB input'!11:11, MATCH(CC$4, 'RAB input'!$4:$4, 0))), "") ->  | CD11: =IFERROR(IF(INDEX('RAB input'!11:11, MATCH(CD$4, 'RAB input'!$4:$4, 0))="", "", INDEX('RAB input'!11:11, MATCH(CD$4, 'RAB input'!$4:$4, 0))), "") ->  | CE11: =IFERROR(IF(INDEX('RAB input'!11:11, MATCH(CE$4, 'RAB input'!$4:$4, 0))="", "", INDEX('RAB input'!11:11, MATCH(CE$4, 'RAB input'!$4:$4, 0))), "") -> 
G12: =IF(OR(G$446:G$495="DV"), "DV input required", "") ->  | H12: =IF(AND(OR(H$446:H$495="DV"), H$13=""), "DV input required", "") ->  | I12: =IF(COUNTA($H$12:H$12)<SUM($11:$11), IF(AND(I$446:I$495=""), IF(AND(H$13<>"", I$13=""), "DV input required", H$12), IF(AND(OR(I$446:I$495="DV"), I$13=""), "DV input required", "")), "") ->  | J12: =IF(COUNTA($H$12:I$12)<SUM($11:$11), IF(AND(J$446:J$495=""), IF(AND(I$13<>"", J$13=""), "DV input required", I$12), IF(AND(OR(J$446:J$495="DV"), J$13=""), "DV input required", "")), "") ->  | K12: =IF(COUNTA($H$12:J$12)<SUM($11:$11), IF(AND(K$446:K$495=""), IF(AND(J$13<>"", K$13=""), "DV input required", J$12), IF(AND(OR(K$446:K$495="DV"), K$13=""), "DV input required", "")), "") ->  | L12: =IF(COUNTA($H$12:K$12)<SUM($11:$11), IF(AND(L$446:L$495=""), IF(AND(K$13<>"", L$13=""), "DV input required", K$12), IF(AND(OR(L$446:L$495="DV"), L$13=""), "DV input required", "")), "") ->  | M12: =IF(COUNTA($H$12:L$12)<SUM($11:$11), IF(AND(M$446:M$495=""), IF(AND(L$13<>"", M$13=""), "DV input required", L$12), IF(AND(OR(M$446:M$495="DV"), M$13=""), "DV input required", "")), "") ->  | N12: =IF(COUNTA($H$12:M$12)<SUM($11:$11), IF(AND(N$446:N$495=""), IF(AND(M$13<>"", N$13=""), "DV input required", M$12), IF(AND(OR(N$446:N$495="DV"), N$13=""), "DV input required", "")), "") ->  | O12: =IF(COUNTA($H$12:N$12)<SUM($11:$11), IF(AND(O$446:O$495=""), IF(AND(N$13<>"", O$13=""), "DV input required", N$12), IF(AND(OR(O$446:O$495="DV"), O$13=""), "DV input required", "")), "") ->  | P12: =IF(COUNTA($H$12:O$12)<SUM($11:$11), IF(AND(P$446:P$495=""), IF(AND(O$13<>"", P$13=""), "DV input required", O$12), IF(AND(OR(P$446:P$495="DV"), P$13=""), "DV input required", "")), "") ->  | Q12: =IF(COUNTA($H$12:P$12)<SUM($11:$11), IF(AND(Q$446:Q$495=""), IF(AND(P$13<>"", Q$13=""), "DV input required", P$12), IF(AND(OR(Q$446:Q$495="DV"), Q$13=""), "DV input required", "")), "") ->  | R12: =IF(COUNTA($H$12:Q$12)<SUM($11:$11), IF(AND(R$446:R$495=""), IF(AND(Q$13<>"", R$13=""), "DV input required", Q$12), IF(AND(OR(R$446:R$495="DV"), R$13=""), "DV input required", "")), "") ->  | S12: =IF(COUNTA($H$12:R$12)<SUM($11:$11), IF(AND(S$446:S$495=""), IF(AND(R$13<>"", S$13=""), "DV input required", R$12), IF(AND(OR(S$446:S$495="DV"), S$13=""), "DV input required", "")), "") ->  | T12: =IF(COUNTA($H$12:S$12)<SUM($11:$11), IF(AND(T$446:T$495=""), IF(AND(S$13<>"", T$13=""), "DV input required", S$12), IF(AND(OR(T$446:T$495="DV"), T$13=""), "DV input required", "")), "") ->  | U12: =IF(COUNTA($H$12:T$12)<SUM($11:$11), IF(AND(U$446:U$495=""), IF(AND(T$13<>"", U$13=""), "DV input required", T$12), IF(AND(OR(U$446:U$495="DV"), U$13=""), "DV input required", "")), "") ->  | V12: =IF(COUNTA($H$12:U$12)<SUM($11:$11), IF(AND(V$446:V$495=""), IF(AND(U$13<>"", V$13=""), "DV input required", U$12), IF(AND(OR(V$446:V$495="DV"), V$13=""), "DV input required", "")), "") ->  | W12: =IF(COUNTA($H$12:V$12)<SUM($11:$11), IF(AND(W$446:W$495=""), IF(AND(V$13<>"", W$13=""), "DV input required", V$12), IF(AND(OR(W$446:W$495="DV"), W$13=""), "DV input required", "")), "") ->  | X12: =IF(COUNTA($H$12:W$12)<SUM($11:$11), IF(AND(X$446:X$495=""), IF(AND(W$13<>"", X$13=""), "DV input required", W$12), IF(AND(OR(X$446:X$495="DV"), X$13=""), "DV input required", "")), "") ->  | Y12: =IF(COUNTA($H$12:X$12)<SUM($11:$11), IF(AND(Y$446:Y$495=""), IF(AND(X$13<>"", Y$13=""), "DV input required", X$12), IF(AND(OR(Y$446:Y$495="DV"), Y$13=""), "DV input required", "")), "") ->  | Z12: =IF(COUNTA($H$12:Y$12)<SUM($11:$11), IF(AND(Z$446:Z$495=""), IF(AND(Y$13<>"", Z$13=""), "DV input required", Y$12), IF(AND(OR(Z$446:Z$495="DV"), Z$13=""), "DV input required", "")), "") ->  | AA12: =IF(COUNTA($H$12:Z$12)<SUM($11:$11), IF(AND(AA$446:AA$495=""), IF(AND(Z$13<>"", AA$13=""), "DV input required", Z$12), IF(AND(OR(AA$446:AA$495="DV"), AA$13=""), "DV input required", "")), "") ->  | AB12: =IF(COUNTA($H$12:AA$12)<SUM($11:$11), IF(AND(AB$446:AB$495=""), IF(AND(AA$13<>"", AB$13=""), "DV input required", AA$12), IF(AND(OR(AB$446:AB$495="DV"), AB$13=""), "DV input required", "")), "") ->  | AC12: =IF(COUNTA($H$12:AB$12)<SUM($11:$11), IF(AND(AC$446:AC$495=""), IF(AND(AB$13<>"", AC$13=""), "DV input required", AB$12), IF(AND(OR(AC$446:AC$495="DV"), AC$13=""), "DV input required", "")), "") ->  | AD12: =IF(COUNTA($H$12:AC$12)<SUM($11:$11), IF(AND(AD$446:AD$495=""), IF(AND(AC$13<>"", AD$13=""), "DV input required", AC$12), IF(AND(OR(AD$446:AD$495="DV"), AD$13=""), "DV input required", "")), "") ->  | AE12: =IF(COUNTA($H$12:AD$12)<SUM($11:$11), IF(AND(AE$446:AE$495=""), IF(AND(AD$13<>"", AE$13=""), "DV input required", AD$12), IF(AND(OR(AE$446:AE$495="DV"), AE$13=""), "DV input required", "")), "") ->  | AF12: =IF(COUNTA($H$12:AE$12)<SUM($11:$11), IF(AND(AF$446:AF$495=""), IF(AND(AE$13<>"", AF$13=""), "DV input required", AE$12), IF(AND(OR(AF$446:AF$495="DV"), AF$13=""), "DV input required", "")), "") ->  | AG12: =IF(COUNTA($H$12:AF$12)<SUM($11:$11), IF(AND(AG$446:AG$495=""), IF(AND(AF$13<>"", AG$13=""), "DV input required", AF$12), IF(AND(OR(AG$446:AG$495="DV"), AG$13=""), "DV input required", "")), "") ->  | AH12: =IF(COUNTA($H$12:AG$12)<SUM($11:$11), IF(AND(AH$446:AH$495=""), IF(AND(AG$13<>"", AH$13=""), "DV input required", AG$12), IF(AND(OR(AH$446:AH$495="DV"), AH$13=""), "DV input required", "")), "") ->  | AI12: =IF(COUNTA($H$12:AH$12)<SUM($11:$11), IF(AND(AI$446:AI$495=""), IF(AND(AH$13<>"", AI$13=""), "DV input required", AH$12), IF(AND(OR(AI$446:AI$495="DV"), AI$13=""), "DV input required", "")), "") ->  | AJ12: =IF(COUNTA($H$12:AI$12)<SUM($11:$11), IF(AND(AJ$446:AJ$495=""), IF(AND(AI$13<>"", AJ$13=""), "DV input required", AI$12), IF(AND(OR(AJ$446:AJ$495="DV"), AJ$13=""), "DV input required", "")), "") ->  | AK12: =IF(COUNTA($H$12:AJ$12)<SUM($11:$11), IF(AND(AK$446:AK$495=""), IF(AND(AJ$13<>"", AK$13=""), "DV input required", AJ$12), IF(AND(OR(AK$446:AK$495="DV"), AK$13=""), "DV input required", "")), "") ->  | AL12: =IF(COUNTA($H$12:AK$12)<SUM($11:$11), IF(AND(AL$446:AL$495=""), IF(AND(AK$13<>"", AL$13=""), "DV input required", AK$12), IF(AND(OR(AL$446:AL$495="DV"), AL$13=""), "DV input required", "")), "") ->  | AM12: =IF(COUNTA($H$12:AL$12)<SUM($11:$11), IF(AND(AM$446:AM$495=""), IF(AND(AL$13<>"", AM$13=""), "DV input required", AL$12), IF(AND(OR(AM$446:AM$495="DV"), AM$13=""), "DV input required", "")), "") ->  | AN12: =IF(COUNTA($H$12:AM$12)<SUM($11:$11), IF(AND(AN$446:AN$495=""), IF(AND(AM$13<>"", AN$13=""), "DV input required", AM$12), IF(AND(OR(AN$446:AN$495="DV"), AN$13=""), "DV input required", "")), "") ->  | AO12: =IF(COUNTA($H$12:AN$12)<SUM($11:$11), IF(AND(AO$446:AO$495=""), IF(AND(AN$13<>"", AO$13=""), "DV input required", AN$12), IF(AND(OR(AO$446:AO$495="DV"), AO$13=""), "DV input required", "")), "") ->  | AP12: =IF(COUNTA($H$12:AO$12)<SUM($11:$11), IF(AND(AP$446:AP$495=""), IF(AND(AO$13<>"", AP$13=""), "DV input required", AO$12), IF(AND(OR(AP$446:AP$495="DV"), AP$13=""), "DV input required", "")), "") ->  | AQ12: =IF(COUNTA($H$12:AP$12)<SUM($11:$11), IF(AND(AQ$446:AQ$495=""), IF(AND(AP$13<>"", AQ$13=""), "DV input required", AP$12), IF(AND(OR(AQ$446:AQ$495="DV"), AQ$13=""), "DV input required", "")), "") ->  | AR12: =IF(COUNTA($H$12:AQ$12)<SUM($11:$11), IF(AND(AR$446:AR$495=""), IF(AND(AQ$13<>"", AR$13=""), "DV input required", AQ$12), IF(AND(OR(AR$446:AR$495="DV"), AR$13=""), "DV input required", "")), "") ->  | AS12: =IF(COUNTA($H$12:AR$12)<SUM($11:$11), IF(AND(AS$446:AS$495=""), IF(AND(AR$13<>"", AS$13=""), "DV input required", AR$12), IF(AND(OR(AS$446:AS$495="DV"), AS$13=""), "DV input required", "")), "") ->  | AT12: =IF(COUNTA($H$12:AS$12)<SUM($11:$11), IF(AND(AT$446:AT$495=""), IF(AND(AS$13<>"", AT$13=""), "DV input required", AS$12), IF(AND(OR(AT$446:AT$495="DV"), AT$13=""), "DV input required", "")), "") ->  | AU12: =IF(COUNTA($H$12:AT$12)<SUM($11:$11), IF(AND(AU$446:AU$495=""), IF(AND(AT$13<>"", AU$13=""), "DV input required", AT$12), IF(AND(OR(AU$446:AU$495="DV"), AU$13=""), "DV input required", "")), "") ->  | AV12: =IF(COUNTA($H$12:AU$12)<SUM($11:$11), IF(AND(AV$446:AV$495=""), IF(AND(AU$13<>"", AV$13=""), "DV input required", AU$12), IF(AND(OR(AV$446:AV$495="DV"), AV$13=""), "DV input required", "")), "") ->  | AW12: =IF(COUNTA($H$12:AV$12)<SUM($11:$11), IF(AND(AW$446:AW$495=""), IF(AND(AV$13<>"", AW$13=""), "DV input required", AV$12), IF(AND(OR(AW$446:AW$495="DV"), AW$13=""), "DV input required", "")), "") ->  | AX12: =IF(COUNTA($H$12:AW$12)<SUM($11:$11), IF(AND(AX$446:AX$495=""), IF(AND(AW$13<>"", AX$13=""), "DV input required", AW$12), IF(AND(OR(AX$446:AX$495="DV"), AX$13=""), "DV input required", "")), "") ->  | AY12: =IF(COUNTA($H$12:AX$12)<SUM($11:$11), IF(AND(AY$446:AY$495=""), IF(AND(AX$13<>"", AY$13=""), "DV input required", AX$12), IF(AND(OR(AY$446:AY$495="DV"), AY$13=""), "DV input required", "")), "") ->  | AZ12: =IF(COUNTA($H$12:AY$12)<SUM($11:$11), IF(AND(AZ$446:AZ$495=""), IF(AND(AY$13<>"", AZ$13=""), "DV input required", AY$12), IF(AND(OR(AZ$446:AZ$495="DV"), AZ$13=""), "DV input required", "")), "") ->  | BA12: =IF(COUNTA($H$12:AZ$12)<SUM($11:$11), IF(AND(BA$446:BA$495=""), IF(AND(AZ$13<>"", BA$13=""), "DV input required", AZ$12), IF(AND(OR(BA$446:BA$495="DV"), BA$13=""), "DV input required", "")), "") ->  | BB12: =IF(COUNTA($H$12:BA$12)<SUM($11:$11), IF(AND(BB$446:BB$495=""), IF(AND(BA$13<>"", BB$13=""), "DV input required", BA$12), IF(AND(OR(BB$446:BB$495="DV"), BB$13=""), "DV input required", "")), "") ->  | BC12: =IF(COUNTA($H$12:BB$12)<SUM($11:$11), IF(AND(BC$446:BC$495=""), IF(AND(BB$13<>"", BC$13=""), "DV input required", BB$12), IF(AND(OR(BC$446:BC$495="DV"), BC$13=""), "DV input required", "")), "") ->  | BD12: =IF(COUNTA($H$12:BC$12)<SUM($11:$11), IF(AND(BD$446:BD$495=""), IF(AND(BC$13<>"", BD$13=""), "DV input required", BC$12), IF(AND(OR(BD$446:BD$495="DV"), BD$13=""), "DV input required", "")), "") ->  | BE12: =IF(COUNTA($H$12:BD$12)<SUM($11:$11), IF(AND(BE$446:BE$495=""), IF(AND(BD$13<>"", BE$13=""), "DV input required", BD$12), IF(AND(OR(BE$446:BE$495="DV"), BE$13=""), "DV input required", "")), "") ->  | BF12: =IF(COUNTA($H$12:BE$12)<SUM($11:$11), IF(AND(BF$446:BF$495=""), IF(AND(BE$13<>"", BF$13=""), "DV input required", BE$12), IF(AND(OR(BF$446:BF$495="DV"), BF$13=""), "DV input required", "")), "") ->  | BG12: =IF(COUNTA($H$12:BF$12)<SUM($11:$11), IF(AND(BG$446:BG$495=""), IF(AND(BF$13<>"", BG$13=""), "DV input required", BF$12), IF(AND(OR(BG$446:BG$495="DV"), BG$13=""), "DV input required", "")), "") ->  | BH12: =IF(COUNTA($H$12:BG$12)<SUM($11:$11), IF(AND(BH$446:BH$495=""), IF(AND(BG$13<>"", BH$13=""), "DV input required", BG$12), IF(AND(OR(BH$446:BH$495="DV"), BH$13=""), "DV input required", "")), "") ->  | BI12: =IF(COUNTA($H$12:BH$12)<SUM($11:$11), IF(AND(BI$446:BI$495=""), IF(AND(BH$13<>"", BI$13=""), "DV input required", BH$12), IF(AND(OR(BI$446:BI$495="DV"), BI$13=""), "DV input required", "")), "") ->  | BJ12: =IF(COUNTA($H$12:BI$12)<SUM($11:$11), IF(AND(BJ$446:BJ$495=""), IF(AND(BI$13<>"", BJ$13=""), "DV input required", BI$12), IF(AND(OR(BJ$446:BJ$495="DV"), BJ$13=""), "DV input required", "")), "") ->  | BK12: =IF(COUNTA($H$12:BJ$12)<SUM($11:$11), IF(AND(BK$446:BK$495=""), IF(AND(BJ$13<>"", BK$13=""), "DV input required", BJ$12), IF(AND(OR(BK$446:BK$495="DV"), BK$13=""), "DV input required", "")), "") ->  | BL12: =IF(COUNTA($H$12:BK$12)<SUM($11:$11), IF(AND(BL$446:BL$495=""), IF(AND(BK$13<>"", BL$13=""), "DV input required", BK$12), IF(AND(OR(BL$446:BL$495="DV"), BL$13=""), "DV input required", "")), "") ->  | BM12: =IF(COUNTA($H$12:BL$12)<SUM($11:$11), IF(AND(BM$446:BM$495=""), IF(AND(BL$13<>"", BM$13=""), "DV input required", BL$12), IF(AND(OR(BM$446:BM$495="DV"), BM$13=""), "DV input required", "")), "") ->  | BN12: =IF(COUNTA($H$12:BM$12)<SUM($11:$11), IF(AND(BN$446:BN$495=""), IF(AND(BM$13<>"", BN$13=""), "DV input required", BM$12), IF(AND(OR(BN$446:BN$495="DV"), BN$13=""), "DV input required", "")), "") ->  | BO12: =IF(COUNTA($H$12:BN$12)<SUM($11:$11), IF(AND(BO$446:BO$495=""), IF(AND(BN$13<>"", BO$13=""), "DV input required", BN$12), IF(AND(OR(BO$446:BO$495="DV"), BO$13=""), "DV input required", "")), "") ->  | BP12: =IF(COUNTA($H$12:BO$12)<SUM($11:$11), IF(AND(BP$446:BP$495=""), IF(AND(BO$13<>"", BP$13=""), "DV input required", BO$12), IF(AND(OR(BP$446:BP$495="DV"), BP$13=""), "DV input required", "")), "") ->  | BQ12: =IF(COUNTA($H$12:BP$12)<SUM($11:$11), IF(AND(BQ$446:BQ$495=""), IF(AND(BP$13<>"", BQ$13=""), "DV input required", BP$12), IF(AND(OR(BQ$446:BQ$495="DV"), BQ$13=""), "DV input required", "")), "") ->  | BR12: =IF(COUNTA($H$12:BQ$12)<SUM($11:$11), IF(AND(BR$446:BR$495=""), IF(AND(BQ$13<>"", BR$13=""), "DV input required", BQ$12), IF(AND(OR(BR$446:BR$495="DV"), BR$13=""), "DV input required", "")), "") ->  | BS12: =IF(COUNTA($H$12:BR$12)<SUM($11:$11), IF(AND(BS$446:BS$495=""), IF(AND(BR$13<>"", BS$13=""), "DV input required", BR$12), IF(AND(OR(BS$446:BS$495="DV"), BS$13=""), "DV input required", "")), "") ->  | BT12: =IF(COUNTA($H$12:BS$12)<SUM($11:$11), IF(AND(BT$446:BT$495=""), IF(AND(BS$13<>"", BT$13=""), "DV input required", BS$12), IF(AND(OR(BT$446:BT$495="DV"), BT$13=""), "DV input required", "")), "") ->  | BU12: =IF(COUNTA($H$12:BT$12)<SUM($11:$11), IF(AND(BU$446:BU$495=""), IF(AND(BT$13<>"", BU$13=""), "DV input required", BT$12), IF(AND(OR(BU$446:BU$495="DV"), BU$13=""), "DV input required", "")), "") ->  | BV12: =IF(COUNTA($H$12:BU$12)<SUM($11:$11), IF(AND(BV$446:BV$495=""), IF(AND(BU$13<>"", BV$13=""), "DV input required", BU$12), IF(AND(OR(BV$446:BV$495="DV"), BV$13=""), "DV input required", "")), "") ->  | BW12: =IF(COUNTA($H$12:BV$12)<SUM($11:$11), IF(AND(BW$446:BW$495=""), IF(AND(BV$13<>"", BW$13=""), "DV input required", BV$12), IF(AND(OR(BW$446:BW$495="DV"), BW$13=""), "DV input required", "")), "") ->  | BX12: =IF(COUNTA($H$12:BW$12)<SUM($11:$11), IF(AND(BX$446:BX$495=""), IF(AND(BW$13<>"", BX$13=""), "DV input required", BW$12), IF(AND(OR(BX$446:BX$495="DV"), BX$13=""), "DV input required", "")), "") ->  | BY12: =IF(COUNTA($H$12:BX$12)<SUM($11:$11), IF(AND(BY$446:BY$495=""), IF(AND(BX$13<>"", BY$13=""), "DV input required", BX$12), IF(AND(OR(BY$446:BY$495="DV"), BY$13=""), "DV input required", "")), "") ->  | BZ12: =IF(COUNTA($H$12:BY$12)<SUM($11:$11), IF(AND(BZ$446:BZ$495=""), IF(AND(BY$13<>"", BZ$13=""), "DV input required", BY$12), IF(AND(OR(BZ$446:BZ$495="DV"), BZ$13=""), "DV input required", "")), "") ->  | CA12: =IF(COUNTA($H$12:BZ$12)<SUM($11:$11), IF(AND(CA$446:CA$495=""), IF(AND(BZ$13<>"", CA$13=""), "DV input required", BZ$12), IF(AND(OR(CA$446:CA$495="DV"), CA$13=""), "DV input required", "")), "") ->  | CB12: =IF(COUNTA($H$12:CA$12)<SUM($11:$11), IF(AND(CB$446:CB$495=""), IF(AND(CA$13<>"", CB$13=""), "DV input required", CA$12), IF(AND(OR(CB$446:CB$495="DV"), CB$13=""), "DV input required", "")), "") ->  | CC12: =IF(COUNTA($H$12:CB$12)<SUM($11:$11), IF(AND(CC$446:CC$495=""), IF(AND(CB$13<>"", CC$13=""), "DV input required", CB$12), IF(AND(OR(CC$446:CC$495="DV"), CC$13=""), "DV input required", "")), "") ->  | CD12: =IF(COUNTA($H$12:CC$12)<SUM($11:$11), IF(AND(CD$446:CD$495=""), IF(AND(CC$13<>"", CD$13=""), "DV input required", CC$12), IF(AND(OR(CD$446:CD$495="DV"), CD$13=""), "DV input required", "")), "") ->  | CE12: =IF(COUNTA($H$12:CD$12)<SUM($11:$11), IF(AND(CE$446:CE$495=""), IF(AND(CD$13<>"", CE$13=""), "DV input required", CD$12), IF(AND(OR(CE$446:CE$495="DV"), CE$13=""), "DV input required", "")), "") -> 
E13: Diminishing value multiplier | S13: 2 | T13: 2 | U13: 2 | V13: 2 | W13: 2 | X13: 2 | Y13: 2 | Z13: 2 | AA13: 2 | AB13: 2
D15: Starting TAB and actual gross capex - As incurred ($m, nominal)
E16: Asset class | G16: ="TAB (opening as at "&$H$4&")" -> TAB (opening as at 2009-10) | H16: ="Actual gross capex ("&H$4&")" -> Actual gross capex (2009-10) | I16: =IF(COUNTA($H$16:H$16)<SUM($11:$11), "Actual gross capex ("&I$4&")", "") -> Actual gross capex (2010-11) | J16: =IF(COUNTA($H$16:I$16)<SUM($11:$11), "Actual gross capex ("&J$4&")", "") -> Actual gross capex (2011-12) | K16: =IF(COUNTA($H$16:J$16)<SUM($11:$11), "Actual gross capex ("&K$4&")", "") -> Actual gross capex (2012-13) | L16: =IF(COUNTA($H$16:K$16)<SUM($11:$11), "Actual gross capex ("&L$4&")", "") -> Actual gross capex (2013-14) | M16: =IF(COUNTA($H$16:L$16)<SUM($11:$11), "Actual gross capex ("&M$4&")", "") -> Actual gross capex (2014-15) | N16: =IF(COUNTA($H$16:M$16)<SUM($11:$11), "Actual gross capex ("&N$4&")", "") -> Actual gross capex (2015-16) | O16: =IF(COUNTA($H$16:N$16)<SUM($11:$11), "Actual gross capex ("&O$4&")", "") -> Actual gross capex (2016-17) | P16: =IF(COUNTA($H$16:O$16)<SUM($11:$11), "Actual gross capex ("&P$4&")", "") -> Actual gross capex (2017-18) | Q16: =IF(COUNTA($H$16:P$16)<SUM($11:$11), "Actual gross capex ("&Q$4&")", "") -> Actual gross capex (2018-19) | R16: =IF(COUNTA($H$16:Q$16)<SUM($11:$11), "Actual gross capex ("&R$4&")", "") -> Actual gross capex (2019-20) | S16: =IF(COUNTA($H$16:R$16)<SUM($11:$11), "Actual gross capex ("&S$4&")", "") -> Actual gross capex (2020-21) | T16: =IF(COUNTA($H$16:S$16)<SUM($11:$11), "Actual gross capex ("&T$4&")", "") -> Actual gross capex (2021-22) | U16: =IF(COUNTA($H$16:T$16)<SUM($11:$11), "Actual gross capex ("&U$4&")", "") -> Actual gross capex (2022-23) | V16: =IF(COUNTA($H$16:U$16)<SUM($11:$11), "Actual gross capex ("&V$4&")", "") -> Actual gross capex (2023-24) | W16: =IF(COUNTA($H$16:V$16)<SUM($11:$11), "Actual gross capex ("&W$4&")", "") -> Actual gross capex (2024-25) | X16: =IF(COUNTA($H$16:W$16)<SUM($11:$11), "Actual gross capex ("&X$4&")", "") ->  | Y16: =IF(COUNTA($H$16:X$16)<SUM($11:$11), "Actual gross capex ("&Y$4&")", "") ->  | Z16: =IF(COUNTA($H$16:Y$16)<SUM($11:$11), "Actual gross capex ("&Z$4&")", "") ->  | AA16: =IF(COUNTA($H$16:Z$16)<SUM($11:$11), "Actual gross capex ("&AA$4&")", "") ->  | AB16: =IF(COUNTA($H$16:AA$16)<SUM($11:$11), "Actual gross capex ("&AB$4&")", "") ->  | AC16: =IF(COUNTA($H$16:AB$16)<SUM($11:$11), "Actual gross capex ("&AC$4&")", "") ->  | AD16: =IF(COUNTA($H$16:AC$16)<SUM($11:$11), "Actual gross capex ("&AD$4&")", "") ->  | AE16: =IF(COUNTA($H$16:AD$16)<SUM($11:$11), "Actual gross capex ("&AE$4&")", "") ->  | AF16: =IF(COUNTA($H$16:AE$16)<SUM($11:$11), "Actual gross capex ("&AF$4&")", "") ->  | AG16: =IF(COUNTA($H$16:AF$16)<SUM($11:$11), "Actual gross capex ("&AG$4&")", "") ->  | AH16: =IF(COUNTA($H$16:AG$16)<SUM($11:$11), "Actual gross capex ("&AH$4&")", "") ->  | AI16: =IF(COUNTA($H$16:AH$16)<SUM($11:$11), "Actual gross capex ("&AI$4&")", "") ->  | AJ16: =IF(COUNTA($H$16:AI$16)<SUM($11:$11), "Actual gross capex ("&AJ$4&")", "") ->  | AK16: =IF(COUNTA($H$16:AJ$16)<SUM($11:$11), "Actual gross capex ("&AK$4&")", "") ->  | AL16: =IF(COUNTA($H$16:AK$16)<SUM($11:$11), "Actual gross capex ("&AL$4&")", "") ->  | AM16: =IF(COUNTA($H$16:AL$16)<SUM($11:$11), "Actual gross capex ("&AM$4&")", "") ->  | AN16: =IF(COUNTA($H$16:AM$16)<SUM($11:$11), "Actual gross capex ("&AN$4&")", "") ->  | AO16: =IF(COUNTA($H$16:AN$16)<SUM($11:$11), "Actual gross capex ("&AO$4&")", "") ->  | AP16: =IF(COUNTA($H$16:AO$16)<SUM($11:$11), "Actual gross capex ("&AP$4&")", "") ->  | AQ16: =IF(COUNTA($H$16:AP$16)<SUM($11:$11), "Actual gross capex ("&AQ$4&")", "") ->  | AR16: =IF(COUNTA($H$16:AQ$16)<SUM($11:$11), "Actual gross capex ("&AR$4&")", "") ->  | AS16: =IF(COUNTA($H$16:AR$16)<SUM($11:$11), "Actual gross capex ("&AS$4&")", "") ->  | AT16: =IF(COUNTA($H$16:AS$16)<SUM($11:$11), "Actual gross capex ("&AT$4&")", "") ->  | AU16: =IF(COUNTA($H$16:AT$16)<SUM($11:$11), "Actual gross capex ("&AU$4&")", "") ->  | AV16: =IF(COUNTA($H$16:AU$16)<SUM($11:$11), "Actual gross capex ("&AV$4&")", "") ->  | AW16: =IF(COUNTA($H$16:AV$16)<SUM($11:$11), "Actual gross capex ("&AW$4&")", "") ->  | AX16: =IF(COUNTA($H$16:AW$16)<SUM($11:$11), "Actual gross capex ("&AX$4&")", "") ->  | AY16: =IF(COUNTA($H$16:AX$16)<SUM($11:$11), "Actual gross capex ("&AY$4&")", "") ->  | AZ16: =IF(COUNTA($H$16:AY$16)<SUM($11:$11), "Actual gross capex ("&AZ$4&")", "") ->  | BA16: =IF(COUNTA($H$16:AZ$16)<SUM($11:$11), "Actual gross capex ("&BA$4&")", "") ->  | BB16: =IF(COUNTA($H$16:BA$16)<SUM($11:$11), "Actual gross capex ("&BB$4&")", "") ->  | BC16: =IF(COUNTA($H$16:BB$16)<SUM($11:$11), "Actual gross capex ("&BC$4&")", "") ->  | BD16: =IF(COUNTA($H$16:BC$16)<SUM($11:$11), "Actual gross capex ("&BD$4&")", "") ->  | BE16: =IF(COUNTA($H$16:BD$16)<SUM($11:$11), "Actual gross capex ("&BE$4&")", "") ->  | BF16: =IF(COUNTA($H$16:BE$16)<SUM($11:$11), "Actual gross capex ("&BF$4&")", "") ->  | BG16: =IF(COUNTA($H$16:BF$16)<SUM($11:$11), "Actual gross capex ("&BG$4&")", "") ->  | BH16: =IF(COUNTA($H$16:BG$16)<SUM($11:$11), "Actual gross capex ("&BH$4&")", "") ->  | BI16: =IF(COUNTA($H$16:BH$16)<SUM($11:$11), "Actual gross capex ("&BI$4&")", "") ->  | BJ16: =IF(COUNTA($H$16:BI$16)<SUM($11:$11), "Actual gross capex ("&BJ$4&")", "") ->  | BK16: =IF(COUNTA($H$16:BJ$16)<SUM($11:$11), "Actual gross capex ("&BK$4&")", "") ->  | BL16: =IF(COUNTA($H$16:BK$16)<SUM($11:$11), "Actual gross capex ("&BL$4&")", "") ->  | BM16: =IF(COUNTA($H$16:BL$16)<SUM($11:$11), "Actual gross capex ("&BM$4&")", "") ->  | BN16: =IF(COUNTA($H$16:BM$16)<SUM($11:$11), "Actual gross capex ("&BN$4&")", "") ->  | BO16: =IF(COUNTA($H$16:BN$16)<SUM($11:$11), "Actual gross capex ("&BO$4&")", "") ->  | BP16: =IF(COUNTA($H$16:BO$16)<SUM($11:$11), "Actual gross capex ("&BP$4&")", "") ->  | BQ16: =IF(COUNTA($H$16:BP$16)<SUM($11:$11), "Actual gross capex ("&BQ$4&")", "") ->  | BR16: =IF(COUNTA($H$16:BQ$16)<SUM($11:$11), "Actual gross capex ("&BR$4&")", "") ->  | BS16: =IF(COUNTA($H$16:BR$16)<SUM($11:$11), "Actual gross capex ("&BS$4&")", "") ->  | BT16: =IF(COUNTA($H$16:BS$16)<SUM($11:$11), "Actual gross capex ("&BT$4&")", "") ->  | BU16: =IF(COUNTA($H$16:BT$16)<SUM($11:$11), "Actual gross capex ("&BU$4&")", "") ->  | BV16: =IF(COUNTA($H$16:BU$16)<SUM($11:$11), "Actual gross capex ("&BV$4&")", "") ->  | BW16: =IF(COUNTA($H$16:BV$16)<SUM($11:$11), "Actual gross capex ("&BW$4&")", "") ->  | BX16: =IF(COUNTA($H$16:BW$16)<SUM($11:$11), "Actual gross capex ("&BX$4&")", "") ->  | BY16: =IF(COUNTA($H$16:BX$16)<SUM($11:$11), "Actual gross capex ("&BY$4&")", "") ->  | BZ16: =IF(COUNTA($H$16:BY$16)<SUM($11:$11), "Actual gross capex ("&BZ$4&")", "") ->  | CA16: =IF(COUNTA($H$16:BZ$16)<SUM($11:$11), "Actual gross capex ("&CA$4&")", "") ->  | CB16: =IF(COUNTA($H$16:CA$16)<SUM($11:$11), "Actual gross capex ("&CB$4&")", "") ->  | CC16: =IF(COUNTA($H$16:CB$16)<SUM($11:$11), "Actual gross capex ("&CC$4&")", "") ->  | CD16: =IF(COUNTA($H$16:CC$16)<SUM($11:$11), "Actual gross capex ("&CD$4&")", "") ->  | CE16: =IF(COUNTA($H$16:CD$16)<SUM($11:$11), "Actual gross capex ("&CE$4&")", "") -> 
D18: 1 | E18: ='RAB input'!E25 -> Sub-transmission lines | G18: 38.6447206 | H18: 4.975 | I18: =INDEX('RAB input'!$H$25:$XFD$74, MATCH($E18, 'RAB input'!$E$25:$E$74, 0), MATCH(I$4, RAB_years, 0)) -> 22.937 | J18: =INDEX('RAB input'!$H$25:$XFD$74, MATCH($E18, 'RAB input'!$E$25:$E$74, 0), MATCH(J$4, RAB_years, 0)) -> 39.522 | K18: =INDEX('RAB input'!$H$25:$XFD$74, MATCH($E18, 'RAB input'!$E$25:$E$74, 0), MATCH(K$4, RAB_years, 0)) -> 6.413 | L18: =INDEX('RAB input'!$H$25:$XFD$74, MATCH($E18, 'RAB input'!$E$25:$E$74, 0), MATCH(L$4, RAB_years, 0)) -> 6.939 | M18: =INDEX('RAB input'!$H$25:$XFD$74, MATCH($E18, 'RAB input'!$E$25:$E$74, 0), MATCH(M$4, RAB_years, 0)) -> 17.89254028 | N18: =INDEX('RAB input'!$H$25:$XFD$74, MATCH($E18, 'RAB input'!$E$25:$E$74, 0), MATCH(N$4, RAB_years, 0)) -> 3.476546835 | O18: =INDEX('RAB input'!$H$25:$XFD$74, MATCH($E18, 'RAB input'!$E$25:$E$74, 0), MATCH(O$4, RAB_years, 0)) -> 1.618500422 | P18: =INDEX('RAB input'!$H$25:$XFD$74, MATCH($E18, 'RAB input'!$E$25:$E$74, 0), MATCH(P$4, RAB_years, 0)) -> 1.360541962 | Q18: =INDEX('RAB input'!$H$25:$XFD$74, MATCH($E18, 'RAB input'!$E$25:$E$74, 0), MATCH(Q$4, RAB_years, 0)) -> 24.89773088 | R18: =INDEX('RAB input'!$H$25:$XFD$74, MATCH($E18, 'RAB input'!$E$25:$E$74, 0), MATCH(R$4, RAB_years, 0)) -> 5.031961994 | S18: =INDEX('RAB input'!$H$25:$XFD$74, MATCH($E18, 'RAB input'!$E$25:$E$74, 0), MATCH(S$4, RAB_years, 0)) -> 1.192069939 | T18: =INDEX('RAB input'!$H$25:$XFD$74, MATCH($E18, 'RAB input'!$E$25:$E$74, 0), MATCH(T$4, RAB_years, 0)) -> 1.882979808 | U18: =INDEX('RAB input'!$H$25:$XFD$74, MATCH($E18, 'RAB input'!$E$25:$E$74, 0), MATCH(U$4, RAB_years, 0)) -> 0.1889527319 | V18: =INDEX('RAB input'!$H$25:$XFD$74, MATCH($E18, 'RAB input'!$E$25:$E$74, 0), MATCH(V$4, RAB_years, 0)) -> 0 | W18: =INDEX('RAB input'!$H$25:$XFD$74, MATCH($E18, 'RAB input'!$E$25:$E$74, 0), MATCH(W$4, RAB_years, 0)) -> 0 | X18: =INDEX('RAB input'!$H$25:$XFD$74, MATCH($E18, 'RAB input'!$E$25:$E$74, 0), MATCH(X$4, RAB_years, 0)) -> 0 | Y18: =INDEX('RAB input'!$H$25:$XFD$74, MATCH($E18, 'RAB input'!$E$25:$E$74, 0), MATCH(Y$4, RAB_years, 0)) -> 0 | Z18: =INDEX('RAB input'!$H$25:$XFD$74, MATCH($E18, 'RAB input'!$E$25:$E$74, 0), MATCH(Z$4, RAB_years, 0)) -> 0 | AA18: =INDEX('RAB input'!$H$25:$XFD$74, MATCH($E18, 'RAB input'!$E$25:$E$74, 0), MATCH(AA$4, RAB_years, 0)) -> 0 | AB18: =INDEX('RAB input'!$H$25:$XFD$74, MATCH($E18, 'RAB input'!$E$25:$E$74, 0), MATCH(AB$4, RAB_years, 0)) -> 0 | AC18: =INDEX('RAB input'!$H$25:$XFD$74, MATCH($E18, 'RAB input'!$E$25:$E$74, 0), MATCH(AC$4, RAB_years, 0)) -> 0 | AD18: =INDEX('RAB input'!$H$25:$XFD$74, MATCH($E18, 'RAB input'!$E$25:$E$74, 0), MATCH(AD$4, RAB_years, 0)) -> 0 | AE18: =INDEX('RAB input'!$H$25:$XFD$74, MATCH($E18, 'RAB input'!$E$25:$E$74, 0), MATCH(AE$4, RAB_years, 0)) -> 0 | AF18: =INDEX('RAB input'!$H$25:$XFD$74, MATCH($E18, 'RAB input'!$E$25:$E$74, 0), MATCH(AF$4, RAB_years, 0)) -> 0 | AG18: =INDEX('RAB input'!$H$25:$XFD$74, MATCH($E18, 'RAB input'!$E$25:$E$74, 0), MATCH(AG$4, RAB_years, 0)) -> 0 | AH18: =INDEX('RAB input'!$H$25:$XFD$74, MATCH($E18, 'RAB input'!$E$25:$E$74, 0), MATCH(AH$4, RAB_years, 0)) -> 0 | AI18: =INDEX('RAB input'!$H$25:$XFD$74, MATCH($E18, 'RAB input'!$E$25:$E$74, 0), MATCH(AI$4, RAB_years, 0)) -> 0 | AJ18: =INDEX('RAB input'!$H$25:$XFD$74, MATCH($E18, 'RAB input'!$E$25:$E$74, 0), MATCH(AJ$4, RAB_years, 0)) -> 0 | AK18: =INDEX('RAB input'!$H$25:$XFD$74, MATCH($E18, 'RAB input'!$E$25:$E$74, 0), MATCH(AK$4, RAB_years, 0)) -> 0 | AL18: =INDEX('RAB input'!$H$25:$XFD$74, MATCH($E18, 'RAB input'!$E$25:$E$74, 0), MATCH(AL$4, RAB_years, 0)) -> 0 | AM18: =INDEX('RAB input'!$H$25:$XFD$74, MATCH($E18, 'RAB input'!$E$25:$E$74, 0), MATCH(AM$4, RAB_years, 0)) -> 0 | AN18: =INDEX('RAB input'!$H$25:$XFD$74, MATCH($E18, 'RAB input'!$E$25:$E$74, 0), MATCH(AN$4, RAB_years, 0)) -> 0 | AO18: =INDEX('RAB input'!$H$25:$XFD$74, MATCH($E18, 'RAB input'!$E$25:$E$74, 0), MATCH(AO$4, RAB_years, 0)) -> 0 | AP18: =INDEX('RAB input'!$H$25:$XFD$74, MATCH($E18, 'RAB input'!$E$25:$E$74, 0), MATCH(AP$4, RAB_years, 0)) -> 0 | AQ18: =INDEX('RAB input'!$H$25:$XFD$74, MATCH($E18, 'RAB input'!$E$25:$E$74, 0), MATCH(AQ$4, RAB_years, 0)) -> 0 | AR18: =INDEX('RAB input'!$H$25:$XFD$74, MATCH($E18, 'RAB input'!$E$25:$E$74, 0), MATCH(AR$4, RAB_years, 0)) -> 0 | AS18: =INDEX('RAB input'!$H$25:$XFD$74, MATCH($E18, 'RAB input'!$E$25:$E$74, 0), MATCH(AS$4, RAB_years, 0)) -> 0 | AT18: =INDEX('RAB input'!$H$25:$XFD$74, MATCH($E18, 'RAB input'!$E$25:$E$74, 0), MATCH(AT$4, RAB_years, 0)) -> 0 | AU18: =INDEX('RAB input'!$H$25:$XFD$74, MATCH($E18, 'RAB input'!$E$25:$E$74, 0), MATCH(AU$4, RAB_years, 0)) -> 0 | AV18: =INDEX('RAB input'!$H$25:$XFD$74, MATCH($E18, 'RAB input'!$E$25:$E$74, 0), MATCH(AV$4, RAB_years, 0)) -> 0 | AW18: =INDEX('RAB input'!$H$25:$XFD$74, MATCH($E18, 'RAB input'!$E$25:$E$74, 0), MATCH(AW$4, RAB_years, 0)) -> 0 | AX18: =INDEX('RAB input'!$H$25:$XFD$74, MATCH($E18, 'RAB input'!$E$25:$E$74, 0), MATCH(AX$4, RAB_years, 0)) -> 0 | AY18: =INDEX('RAB input'!$H$25:$XFD$74, MATCH($E18, 'RAB input'!$E$25:$E$74, 0), MATCH(AY$4, RAB_years, 0)) -> 0 | AZ18: =INDEX('RAB input'!$H$25:$XFD$74, MATCH($E18, 'RAB input'!$E$25:$E$74, 0), MATCH(AZ$4, RAB_years, 0)) -> 0 | BA18: =INDEX('RAB input'!$H$25:$XFD$74, MATCH($E18, 'RAB input'!$E$25:$E$74, 0), MATCH(BA$4, RAB_years, 0)) -> 0 | BB18: =INDEX('RAB input'!$H$25:$XFD$74, MATCH($E18, 'RAB input'!$E$25:$E$74, 0), MATCH(BB$4, RAB_years, 0)) -> 0 | BC18: =INDEX('RAB input'!$H$25:$XFD$74, MATCH($E18, 'RAB input'!$E$25:$E$74, 0), MATCH(BC$4, RAB_years, 0)) -> 0 | BD18: =INDEX('RAB input'!$H$25:$XFD$74, MATCH($E18, 'RAB input'!$E$25:$E$74, 0), MATCH(BD$4, RAB_years, 0)) -> 0 | BE18: =INDEX('RAB input'!$H$25:$XFD$74, MATCH($E18, 'RAB input'!$E$25:$E$74, 0), MATCH(BE$4, RAB_years, 0)) -> 0 | BF18: =INDEX('RAB input'!$H$25:$XFD$74, MATCH($E18, 'RAB input'!$E$25:$E$74, 0), MATCH(BF$4, RAB_years, 0)) -> 0 | BG18: =INDEX('RAB input'!$H$25:$XFD$74, MATCH($E18, 'RAB input'!$E$25:$E$74, 0), MATCH(BG$4, RAB_years, 0)) -> 0 | BH18: =INDEX('RAB input'!$H$25:$XFD$74, MATCH($E18, 'RAB input'!$E$25:$E$74, 0), MATCH(BH$4, RAB_years, 0)) -> 0 | BI18: =INDEX('RAB input'!$H$25:$XFD$74, MATCH($E18, 'RAB input'!$E$25:$E$74, 0), MATCH(BI$4, RAB_years, 0)) -> 0 | BJ18: =INDEX('RAB input'!$H$25:$XFD$74, MATCH($E18, 'RAB input'!$E$25:$E$74, 0), MATCH(BJ$4, RAB_years, 0)) -> 0 | BK18: =INDEX('RAB input'!$H$25:$XFD$74, MATCH($E18, 'RAB input'!$E$25:$E$74, 0), MATCH(BK$4, RAB_years, 0)) -> 0 | BL18: =INDEX('RAB input'!$H$25:$XFD$74, MATCH($E18, 'RAB input'!$E$25:$E$74, 0), MATCH(BL$4, RAB_years, 0)) -> 0 | BM18: =INDEX('RAB input'!$H$25:$XFD$74, MATCH($E18, 'RAB input'!$E$25:$E$74, 0), MATCH(BM$4, RAB_years, 0)) -> 0 | BN18: =INDEX('RAB input'!$H$25:$XFD$74, MATCH($E18, 'RAB input'!$E$25:$E$74, 0), MATCH(BN$4, RAB_years, 0)) -> 0 | BO18: =INDEX('RAB input'!$H$25:$XFD$74, MATCH($E18, 'RAB input'!$E$25:$E$74, 0), MATCH(BO$4, RAB_years, 0)) -> 0 | BP18: =INDEX('RAB input'!$H$25:$XFD$74, MATCH($E18, 'RAB input'!$E$25:$E$74, 0), MATCH(BP$4, RAB_years, 0)) -> 0 | BQ18: =INDEX('RAB input'!$H$25:$XFD$74, MATCH($E18, 'RAB input'!$E$25:$E$74, 0), MATCH(BQ$4, RAB_years, 0)) -> 0 | BR18: =INDEX('RAB input'!$H$25:$XFD$74, MATCH($E18, 'RAB input'!$E$25:$E$74, 0), MATCH(BR$4, RAB_years, 0)) -> 0 | BS18: =INDEX('RAB input'!$H$25:$XFD$74, MATCH($E18, 'RAB input'!$E$25:$E$74, 0), MATCH(BS$4, RAB_years, 0)) -> 0 | BT18: =INDEX('RAB input'!$H$25:$XFD$74, MATCH($E18, 'RAB input'!$E$25:$E$74, 0), MATCH(BT$4, RAB_years, 0)) -> 0 | BU18: =INDEX('RAB input'!$H$25:$XFD$74, MATCH($E18, 'RAB input'!$E$25:$E$74, 0), MATCH(BU$4, RAB_years, 0)) -> 0 | BV18: =INDEX('RAB input'!$H$25:$XFD$74, MATCH($E18, 'RAB input'!$E$25:$E$74, 0), MATCH(BV$4, RAB_years, 0)) -> 0 | BW18: =INDEX('RAB input'!$H$25:$XFD$74, MATCH($E18, 'RAB input'!$E$25:$E$74, 0), MATCH(BW$4, RAB_years, 0)) -> 0 | BX18: =INDEX('RAB input'!$H$25:$XFD$74, MATCH($E18, 'RAB input'!$E$25:$E$74, 0), MATCH(BX$4, RAB_years, 0)) -> 0 | BY18: =INDEX('RAB input'!$H$25:$XFD$74, MATCH($E18, 'RAB input'!$E$25:$E$74, 0), MATCH(BY$4, RAB_years, 0)) -> 0 | BZ18: =INDEX('RAB input'!$H$25:$XFD$74, MATCH($E18, 'RAB input'!$E$25:$E$74, 0), MATCH(BZ$4, RAB_years, 0)) -> 0 | CA18: =INDEX('RAB input'!$H$25:$XFD$74, MATCH($E18, 'RAB input'!$E$25:$E$74, 0), MATCH(CA$4, RAB_years, 0)) -> 0 | CB18: =INDEX('RAB input'!$H$25:$XFD$74, MATCH($E18, 'RAB input'!$E$25:$E$74, 0), MATCH(CB$4, RAB_years, 0)) -> 0 | CC18: =INDEX('RAB input'!$H$25:$XFD$74, MATCH($E18, 'RAB input'!$E$25:$E$74, 0), MATCH(CC$4, RAB_years, 0)) -> 0 | CD18: =INDEX('RAB input'!$H$25:$XFD$74, MATCH($E18, 'RAB input'!$E$25:$E$74, 0), MATCH(CD$4, RAB_years, 0)) -> 0 | CE18: =INDEX('RAB input'!$H$25:$XFD$74, MATCH($E18, 'RAB input'!$E$25:$E$74, 0), MATCH(CE$4, RAB_years, 0)) -> 0
D19: 2 | E19: ='RAB input'!E26 -> Distribution Lines | G19: 564.6078899 | H19: 118.056 | I19: =INDEX('RAB input'!$H$25:$XFD$74, MATCH($E19, 'RAB input'!$E$25:$E$74, 0), MATCH(I$4, RAB_years, 0)) -> 77.063 | J19: =INDEX('RAB input'!$H$25:$XFD$74, MATCH($E19, 'RAB input'!$E$25:$E$74, 0), MATCH(J$4, RAB_years, 0)) -> 128.23 | K19: =INDEX('RAB input'!$H$25:$XFD$74, MATCH($E19, 'RAB input'!$E$25:$E$74, 0), MATCH(K$4, RAB_years, 0)) -> 89.537 | L19: =INDEX('RAB input'!$H$25:$XFD$74, MATCH($E19, 'RAB input'!$E$25:$E$74, 0), MATCH(L$4, RAB_years, 0)) -> 68.101 | M19: =INDEX('RAB input'!$H$25:$XFD$74, MATCH($E19, 'RAB input'!$E$25:$E$74, 0), MATCH(M$4, RAB_years, 0)) -> 77.92136758 | N19: =INDEX('RAB input'!$H$25:$XFD$74, MATCH($E19, 'RAB input'!$E$25:$E$74, 0), MATCH(N$4, RAB_years, 0)) -> -138.379592 | O19: =INDEX('RAB input'!$H$25:$XFD$74, MATCH($E19, 'RAB input'!$E$25:$E$74, 0), MATCH(O$4, RAB_years, 0)) -> 115.8239572 | P19: =INDEX('RAB input'!$H$25:$XFD$74, MATCH($E19, 'RAB input'!$E$25:$E$74, 0), MATCH(P$4, RAB_years, 0)) -> 76.94959299 | Q19: =INDEX('RAB input'!$H$25:$XFD$74, MATCH($E19, 'RAB input'!$E$25:$E$74, 0), MATCH(Q$4, RAB_years, 0)) -> 103.4723241 | R19: =INDEX('RAB input'!$H$25:$XFD$74, MATCH($E19, 'RAB input'!$E$25:$E$74, 0), MATCH(R$4, RAB_years, 0)) -> 92.14820644 | S19: =INDEX('RAB input'!$H$25:$XFD$74, MATCH($E19, 'RAB input'!$E$25:$E$74, 0), MATCH(S$4, RAB_years, 0)) -> 100.7841204 | T19: =INDEX('RAB input'!$H$25:$XFD$74, MATCH($E19, 'RAB input'!$E$25:$E$74, 0), MATCH(T$4, RAB_years, 0)) -> 73.9143488 | U19: =INDEX('RAB input'!$H$25:$XFD$74, MATCH($E19, 'RAB input'!$E$25:$E$74, 0), MATCH(U$4, RAB_years, 0)) -> 103.2088005 | V19: =INDEX('RAB input'!$H$25:$XFD$74, MATCH($E19, 'RAB input'!$E$25:$E$74, 0), MATCH(V$4, RAB_years, 0)) -> 138.6358269 | W19: =INDEX('RAB input'!$H$25:$XFD$74, MATCH($E19, 'RAB input'!$E$25:$E$74, 0), MATCH(W$4, RAB_years, 0)) -> 155.7636405 | X19: =INDEX('RAB input'!$H$25:$XFD$74, MATCH($E19, 'RAB input'!$E$25:$E$74, 0), MATCH(X$4, RAB_years, 0)) -> 0 | Y19: =INDEX('RAB input'!$H$25:$XFD$74, MATCH($E19, 'RAB input'!$E$25:$E$74, 0), MATCH(Y$4, RAB_years, 0)) -> 0 | Z19: =INDEX('RAB input'!$H$25:$XFD$74, MATCH($E19, 'RAB input'!$E$25:$E$74, 0), MATCH(Z$4, RAB_years, 0)) -> 0 | AA19: =INDEX('RAB input'!$H$25:$XFD$74, MATCH($E19, 'RAB input'!$E$25:$E$74, 0), MATCH(AA$4, RAB_years, 0)) -> 0 | AB19: =INDEX('RAB input'!$H$25:$XFD$74, MATCH($E19, 'RAB input'!$E$25:$E$74, 0), MATCH(AB$4, RAB_years, 0)) -> 0 | AC19: =INDEX('RAB input'!$H$25:$XFD$74, MATCH($E19, 'RAB input'!$E$25:$E$74, 0), MATCH(AC$4, RAB_years, 0)) -> 0 | AD19: =INDEX('RAB input'!$H$25:$XFD$74, MATCH($E19, 'RAB input'!$E$25:$E$74, 0), MATCH(AD$4, RAB_years, 0)) -> 0 | AE19: =INDEX('RAB input'!$H$25:$XFD$74, MATCH($E19, 'RAB input'!$E$25:$E$74, 0), MATCH(AE$4, RAB_years, 0)) -> 0 | AF19: =INDEX('RAB input'!$H$25:$XFD$74, MATCH($E19, 'RAB input'!$E$25:$E$74, 0), MATCH(AF$4, RAB_years, 0)) -> 0 | AG19: =INDEX('RAB input'!$H$25:$XFD$74, MATCH($E19, 'RAB input'!$E$25:$E$74, 0), MATCH(AG$4, RAB_years, 0)) -> 0 | AH19: =INDEX('RAB input'!$H$25:$XFD$74, MATCH($E19, 'RAB input'!$E$25:$E$74, 0), MATCH(AH$4, RAB_years, 0)) -> 0 | AI19: =INDEX('RAB input'!$H$25:$XFD$74, MATCH($E19, 'RAB input'!$E$25:$E$74, 0), MATCH(AI$4, RAB_years, 0)) -> 0 | AJ19: =INDEX('RAB input'!$H$25:$XFD$74, MATCH($E19, 'RAB input'!$E$25:$E$74, 0), MATCH(AJ$4, RAB_years, 0)) -> 0 | AK19: =INDEX('RAB input'!$H$25:$XFD$74, MATCH($E19, 'RAB input'!$E$25:$E$74, 0), MATCH(AK$4, RAB_years, 0)) -> 0 | AL19: =INDEX('RAB input'!$H$25:$XFD$74, MATCH($E19, 'RAB input'!$E$25:$E$74, 0), MATCH(AL$4, RAB_years, 0)) -> 0 | AM19: =INDEX('RAB input'!$H$25:$XFD$74, MATCH($E19, 'RAB input'!$E$25:$E$74, 0), MATCH(AM$4, RAB_years, 0)) -> 0 | AN19: =INDEX('RAB input'!$H$25:$XFD$74, MATCH($E19, 'RAB input'!$E$25:$E$74, 0), MATCH(AN$4, RAB_years, 0)) -> 0 | AO19: =INDEX('RAB input'!$H$25:$XFD$74, MATCH($E19, 'RAB input'!$E$25:$E$74, 0), MATCH(AO$4, RAB_years, 0)) -> 0 | AP19: =INDEX('RAB input'!$H$25:$XFD$74, MATCH($E19, 'RAB input'!$E$25:$E$74, 0), MATCH(AP$4, RAB_years, 0)) -> 0 | AQ19: =INDEX('RAB input'!$H$25:$XFD$74, MATCH($E19, 'RAB input'!$E$25:$E$74, 0), MATCH(AQ$4, RAB_years, 0)) -> 0 | AR19: =INDEX('RAB input'!$H$25:$XFD$74, MATCH($E19, 'RAB input'!$E$25:$E$74, 0), MATCH(AR$4, RAB_years, 0)) -> 0 | AS19: =INDEX('RAB input'!$H$25:$XFD$74, MATCH($E19, 'RAB input'!$E$25:$E$74, 0), MATCH(AS$4, RAB_years, 0)) -> 0 | AT19: =INDEX('RAB input'!$H$25:$XFD$74, MATCH($E19, 'RAB input'!$E$25:$E$74, 0), MATCH(AT$4, RAB_years, 0)) -> 0 | AU19: =INDEX('RAB input'!$H$25:$XFD$74, MATCH($E19, 'RAB input'!$E$25:$E$74, 0), MATCH(AU$4, RAB_years, 0)) -> 0 | AV19: =INDEX('RAB input'!$H$25:$XFD$74, MATCH($E19, 'RAB input'!$E$25:$E$74, 0), MATCH(AV$4, RAB_years, 0)) -> 0 | AW19: =INDEX('RAB input'!$H$25:$XFD$74, MATCH($E19, 'RAB input'!$E$25:$E$74, 0), MATCH(AW$4, RAB_years, 0)) -> 0 | AX19: =INDEX('RAB input'!$H$25:$XFD$74, MATCH($E19, 'RAB input'!$E$25:$E$74, 0), MATCH(AX$4, RAB_years, 0)) -> 0 | AY19: =INDEX('RAB input'!$H$25:$XFD$74, MATCH($E19, 'RAB input'!$E$25:$E$74, 0), MATCH(AY$4, RAB_years, 0)) -> 0 | AZ19: =INDEX('RAB input'!$H$25:$XFD$74, MATCH($E19, 'RAB input'!$E$25:$E$74, 0), MATCH(AZ$4, RAB_years, 0)) -> 0 | BA19: =INDEX('RAB input'!$H$25:$XFD$74, MATCH($E19, 'RAB input'!$E$25:$E$74, 0), MATCH(BA$4, RAB_years, 0)) -> 0 | BB19: =INDEX('RAB input'!$H$25:$XFD$74, MATCH($E19, 'RAB input'!$E$25:$E$74, 0), MATCH(BB$4, RAB_years, 0)) -> 0 | BC19: =INDEX('RAB input'!$H$25:$XFD$74, MATCH($E19, 'RAB input'!$E$25:$E$74, 0), MATCH(BC$4, RAB_years, 0)) -> 0 | BD19: =INDEX('RAB input'!$H$25:$XFD$74, MATCH($E19, 'RAB input'!$E$25:$E$74, 0), MATCH(BD$4, RAB_years, 0)) -> 0 | BE19: =INDEX('RAB input'!$H$25:$XFD$74, MATCH($E19, 'RAB input'!$E$25:$E$74, 0), MATCH(BE$4, RAB_years, 0)) -> 0 | BF19: =INDEX('RAB input'!$H$25:$XFD$74, MATCH($E19, 'RAB input'!$E$25:$E$74, 0), MATCH(BF$4, RAB_years, 0)) -> 0 | BG19: =INDEX('RAB input'!$H$25:$XFD$74, MATCH($E19, 'RAB input'!$E$25:$E$74, 0), MATCH(BG$4, RAB_years, 0)) -> 0 | BH19: =INDEX('RAB input'!$H$25:$XFD$74, MATCH($E19, 'RAB input'!$E$25:$E$74, 0), MATCH(BH$4, RAB_years, 0)) -> 0 | BI19: =INDEX('RAB input'!$H$25:$XFD$74, MATCH($E19, 'RAB input'!$E$25:$E$74, 0), MATCH(BI$4, RAB_years, 0)) -> 0 | BJ19: =INDEX('RAB input'!$H$25:$XFD$74, MATCH($E19, 'RAB input'!$E$25:$E$74, 0), MATCH(BJ$4, RAB_years, 0)) -> 0 | BK19: =INDEX('RAB input'!$H$25:$XFD$74, MATCH($E19, 'RAB input'!$E$25:$E$74, 0), MATCH(BK$4, RAB_years, 0)) -> 0 | BL19: =INDEX('RAB input'!$H$25:$XFD$74, MATCH($E19, 'RAB input'!$E$25:$E$74, 0), MATCH(BL$4, RAB_years, 0)) -> 0 | BM19: =INDEX('RAB input'!$H$25:$XFD$74, MATCH($E19, 'RAB input'!$E$25:$E$74, 0), MATCH(BM$4, RAB_years, 0)) -> 0 | BN19: =INDEX('RAB input'!$H$25:$XFD$74, MATCH($E19, 'RAB input'!$E$25:$E$74, 0), MATCH(BN$4, RAB_years, 0)) -> 0 | BO19: =INDEX('RAB input'!$H$25:$XFD$74, MATCH($E19, 'RAB input'!$E$25:$E$74, 0), MATCH(BO$4, RAB_years, 0)) -> 0 | BP19: =INDEX('RAB input'!$H$25:$XFD$74, MATCH($E19, 'RAB input'!$E$25:$E$74, 0), MATCH(BP$4, RAB_years, 0)) -> 0 | BQ19: =INDEX('RAB input'!$H$25:$XFD$74, MATCH($E19, 'RAB input'!$E$25:$E$74, 0), MATCH(BQ$4, RAB_years, 0)) -> 0 | BR19: =INDEX('RAB input'!$H$25:$XFD$74, MATCH($E19, 'RAB input'!$E$25:$E$74, 0), MATCH(BR$4, RAB_years, 0)) -> 0 | BS19: =INDEX('RAB input'!$H$25:$XFD$74, MATCH($E19, 'RAB input'!$E$25:$E$74, 0), MATCH(BS$4, RAB_years, 0)) -> 0 | BT19: =INDEX('RAB input'!$H$25:$XFD$74, MATCH($E19, 'RAB input'!$E$25:$E$74, 0), MATCH(BT$4, RAB_years, 0)) -> 0 | BU19: =INDEX('RAB input'!$H$25:$XFD$74, MATCH($E19, 'RAB input'!$E$25:$E$74, 0), MATCH(BU$4, RAB_years, 0)) -> 0 | BV19: =INDEX('RAB input'!$H$25:$XFD$74, MATCH($E19, 'RAB input'!$E$25:$E$74, 0), MATCH(BV$4, RAB_years, 0)) -> 0 | BW19: =INDEX('RAB input'!$H$25:$XFD$74, MATCH($E19, 'RAB input'!$E$25:$E$74, 0), MATCH(BW$4, RAB_years, 0)) -> 0 | BX19: =INDEX('RAB input'!$H$25:$XFD$74, MATCH($E19, 'RAB input'!$E$25:$E$74, 0), MATCH(BX$4, RAB_years, 0)) -> 0 | BY19: =INDEX('RAB input'!$H$25:$XFD$74, MATCH($E19, 'RAB input'!$E$25:$E$74, 0), MATCH(BY$4, RAB_years, 0)) -> 0 | BZ19: =INDEX('RAB input'!$H$25:$XFD$74, MATCH($E19, 'RAB input'!$E$25:$E$74, 0), MATCH(BZ$4, RAB_years, 0)) -> 0 | CA19: =INDEX('RAB input'!$H$25:$XFD$74, MATCH($E19, 'RAB input'!$E$25:$E$74, 0), MATCH(CA$4, RAB_years, 0)) -> 0 | CB19: =INDEX('RAB input'!$H$25:$XFD$74, MATCH($E19, 'RAB input'!$E$25:$E$74, 0), MATCH(CB$4, RAB_years, 0)) -> 0 | CC19: =INDEX('RAB input'!$H$25:$XFD$74, MATCH($E19, 'RAB input'!$E$25:$E$74, 0), MATCH(CC$4, RAB_years, 0)) -> 0 | CD19: =INDEX('RAB input'!$H$25:$XFD$74, MATCH($E19, 'RAB input'!$E$25:$E$74, 0), MATCH(CD$4, RAB_years, 0)) -> 0 | CE19: =INDEX('RAB input'!$H$25:$XFD$74, MATCH($E19, 'RAB input'!$E$25:$E$74, 0), MATCH(CE$4, RAB_years, 0)) -> 0
D20: 3 | E20: ='RAB input'!E27 -> Substations | G20: 238.8747596 | H20: 50.773 | I20: =INDEX('RAB input'!$H$25:$XFD$74, MATCH($E20, 'RAB input'!$E$25:$E$74, 0), MATCH(I$4, RAB_years, 0)) -> 60.027 | J20: =INDEX('RAB input'!$H$25:$XFD$74, MATCH($E20, 'RAB input'!$E$25:$E$74, 0), MATCH(J$4, RAB_years, 0)) -> 161.892 | K20: =INDEX('RAB input'!$H$25:$XFD$74, MATCH($E20, 'RAB input'!$E$25:$E$74, 0), MATCH(K$4, RAB_years, 0)) -> 83.007 | L20: =INDEX('RAB input'!$H$25:$XFD$74, MATCH($E20, 'RAB input'!$E$25:$E$74, 0), MATCH(L$4, RAB_years, 0)) -> 94.369 | M20: =INDEX('RAB input'!$H$25:$XFD$74, MATCH($E20, 'RAB input'!$E$25:$E$74, 0), MATCH(M$4, RAB_years, 0)) -> 88.32059198 | N20: =INDEX('RAB input'!$H$25:$XFD$74, MATCH($E20, 'RAB input'!$E$25:$E$74, 0), MATCH(N$4, RAB_years, 0)) -> 209.4162354 | O20: =INDEX('RAB input'!$H$25:$XFD$74, MATCH($E20, 'RAB input'!$E$25:$E$74, 0), MATCH(O$4, RAB_years, 0)) -> 33.86253721 | P20: =INDEX('RAB input'!$H$25:$XFD$74, MATCH($E20, 'RAB input'!$E$25:$E$74, 0), MATCH(P$4, RAB_years, 0)) -> 64.10925501 | Q20: =INDEX('RAB input'!$H$25:$XFD$74, MATCH($E20, 'RAB input'!$E$25:$E$74, 0), MATCH(Q$4, RAB_years, 0)) -> 66.33667766 | R20: =INDEX('RAB input'!$H$25:$XFD$74, MATCH($E20, 'RAB input'!$E$25:$E$74, 0), MATCH(R$4, RAB_years, 0)) -> 75.23545652 | S20: =INDEX('RAB input'!$H$25:$XFD$74, MATCH($E20, 'RAB input'!$E$25:$E$74, 0), MATCH(S$4, RAB_years, 0)) -> 40.38750236 | T20: =INDEX('RAB input'!$H$25:$XFD$74, MATCH($E20, 'RAB input'!$E$25:$E$74, 0), MATCH(T$4, RAB_years, 0)) -> 54.41718436 | U20: =INDEX('RAB input'!$H$25:$XFD$74, MATCH($E20, 'RAB input'!$E$25:$E$74, 0), MATCH(U$4, RAB_years, 0)) -> 55.81142046 | V20: =INDEX('RAB input'!$H$25:$XFD$74, MATCH($E20, 'RAB input'!$E$25:$E$74, 0), MATCH(V$4, RAB_years, 0)) -> 49.4605331 | W20: =INDEX('RAB input'!$H$25:$XFD$74, MATCH($E20, 'RAB input'!$E$25:$E$74, 0), MATCH(W$4, RAB_years, 0)) -> 47.5497559 | X20: =INDEX('RAB input'!$H$25:$XFD$74, MATCH($E20, 'RAB input'!$E$25:$E$74, 0), MATCH(X$4, RAB_years, 0)) -> 0 | Y20: =INDEX('RAB input'!$H$25:$XFD$74, MATCH($E20, 'RAB input'!$E$25:$E$74, 0), MATCH(Y$4, RAB_years, 0)) -> 0 | Z20: =INDEX('RAB input'!$H$25:$XFD$74, MATCH($E20, 'RAB input'!$E$25:$E$74, 0), MATCH(Z$4, RAB_years, 0)) -> 0 | AA20: =INDEX('RAB input'!$H$25:$XFD$74, MATCH($E20, 'RAB input'!$E$25:$E$74, 0), MATCH(AA$4, RAB_years, 0)) -> 0 | AB20: =INDEX('RAB input'!$H$25:$XFD$74, MATCH($E20, 'RAB input'!$E$25:$E$74, 0), MATCH(AB$4, RAB_years, 0)) -> 0 | AC20: =INDEX('RAB input'!$H$25:$XFD$74, MATCH($E20, 'RAB input'!$E$25:$E$74, 0), MATCH(AC$4, RAB_years, 0)) -> 0 | AD20: =INDEX('RAB input'!$H$25:$XFD$74, MATCH($E20, 'RAB input'!$E$25:$E$74, 0), MATCH(AD$4, RAB_years, 0)) -> 0 | AE20: =INDEX('RAB input'!$H$25:$XFD$74, MATCH($E20, 'RAB input'!$E$25:$E$74, 0), MATCH(AE$4, RAB_years, 0)) -> 0 | AF20: =INDEX('RAB input'!$H$25:$XFD$74, MATCH($E20, 'RAB input'!$E$25:$E$74, 0), MATCH(AF$4, RAB_years, 0)) -> 0 | AG20: =INDEX('RAB input'!$H$25:$XFD$74, MATCH($E20, 'RAB input'!$E$25:$E$74, 0), MATCH(AG$4, RAB_years, 0)) -> 0 | AH20: =INDEX('RAB input'!$H$25:$XFD$74, MATCH($E20, 'RAB input'!$E$25:$E$74, 0), MATCH(AH$4, RAB_years, 0)) -> 0 | AI20: =INDEX('RAB input'!$H$25:$XFD$74, MATCH($E20, 'RAB input'!$E$25:$E$74, 0), MATCH(AI$4, RAB_years, 0)) -> 0 | AJ20: =INDEX('RAB input'!$H$25:$XFD$74, MATCH($E20, 'RAB input'!$E$25:$E$74, 0), MATCH(AJ$4, RAB_years, 0)) -> 0 | AK20: =INDEX('RAB input'!$H$25:$XFD$74, MATCH($E20, 'RAB input'!$E$25:$E$74, 0), MATCH(AK$4, RAB_years, 0)) -> 0 | AL20: =INDEX('RAB input'!$H$25:$XFD$74, MATCH($E20, 'RAB input'!$E$25:$E$74, 0), MATCH(AL$4, RAB_years, 0)) -> 0 | AM20: =INDEX('RAB input'!$H$25:$XFD$74, MATCH($E20, 'RAB input'!$E$25:$E$74, 0), MATCH(AM$4, RAB_years, 0)) -> 0 | AN20: =INDEX('RAB input'!$H$25:$XFD$74, MATCH($E20, 'RAB input'!$E$25:$E$74, 0), MATCH(AN$4, RAB_years, 0)) -> 0 | AO20: =INDEX('RAB input'!$H$25:$XFD$74, MATCH($E20, 'RAB input'!$E$25:$E$74, 0), MATCH(AO$4, RAB_years, 0)) -> 0 | AP20: =INDEX('RAB input'!$H$25:$XFD$74, MATCH($E20, 'RAB input'!$E$25:$E$74, 0), MATCH(AP$4, RAB_years, 0)) -> 0 | AQ20: =INDEX('RAB input'!$H$25:$XFD$74, MATCH($E20, 'RAB input'!$E$25:$E$74, 0), MATCH(AQ$4, RAB_years, 0)) -> 0 | AR20: =INDEX('RAB input'!$H$25:$XFD$74, MATCH($E20, 'RAB input'!$E$25:$E$74, 0), MATCH(AR$4, RAB_years, 0)) -> 0 | AS20: =INDEX('RAB input'!$H$25:$XFD$74, MATCH($E20, 'RAB input'!$E$25:$E$74, 0), MATCH(AS$4, RAB_years, 0)) -> 0 | AT20: =INDEX('RAB input'!$H$25:$XFD$74, MATCH($E20, 'RAB input'!$E$25:$E$74, 0), MATCH(AT$4, RAB_years, 0)) -> 0 | AU20: =INDEX('RAB input'!$H$25:$XFD$74, MATCH($E20, 'RAB input'!$E$25:$E$74, 0), MATCH(AU$4, RAB_years, 0)) -> 0 | AV20: =INDEX('RAB input'!$H$25:$XFD$74, MATCH($E20, 'RAB input'!$E$25:$E$74, 0), MATCH(AV$4, RAB_years, 0)) -> 0 | AW20: =INDEX('RAB input'!$H$25:$XFD$74, MATCH($E20, 'RAB input'!$E$25:$E$74, 0), MATCH(AW$4, RAB_years, 0)) -> 0 | AX20: =INDEX('RAB input'!$H$25:$XFD$74, MATCH($E20, 'RAB input'!$E$25:$E$74, 0), MATCH(AX$4, RAB_years, 0)) -> 0 | AY20: =INDEX('RAB input'!$H$25:$XFD$74, MATCH($E20, 'RAB input'!$E$25:$E$74, 0), MATCH(AY$4, RAB_years, 0)) -> 0 | AZ20: =INDEX('RAB input'!$H$25:$XFD$74, MATCH($E20, 'RAB input'!$E$25:$E$74, 0), MATCH(AZ$4, RAB_years, 0)) -> 0 | BA20: =INDEX('RAB input'!$H$25:$XFD$74, MATCH($E20, 'RAB input'!$E$25:$E$74, 0), MATCH(BA$4, RAB_years, 0)) -> 0 | BB20: =INDEX('RAB input'!$H$25:$XFD$74, MATCH($E20, 'RAB input'!$E$25:$E$74, 0), MATCH(BB$4, RAB_years, 0)) -> 0 | BC20: =INDEX('RAB input'!$H$25:$XFD$74, MATCH($E20, 'RAB input'!$E$25:$E$74, 0), MATCH(BC$4, RAB_years, 0)) -> 0 | BD20: =INDEX('RAB input'!$H$25:$XFD$74, MATCH($E20, 'RAB input'!$E$25:$E$74, 0), MATCH(BD$4, RAB_years, 0)) -> 0 | BE20: =INDEX('RAB input'!$H$25:$XFD$74, MATCH($E20, 'RAB input'!$E$25:$E$74, 0), MATCH(BE$4, RAB_years, 0)) -> 0 | BF20: =INDEX('RAB input'!$H$25:$XFD$74, MATCH($E20, 'RAB input'!$E$25:$E$74, 0), MATCH(BF$4, RAB_years, 0)) -> 0 | BG20: =INDEX('RAB input'!$H$25:$XFD$74, MATCH($E20, 'RAB input'!$E$25:$E$74, 0), MATCH(BG$4, RAB_years, 0)) -> 0 | BH20: =INDEX('RAB input'!$H$25:$XFD$74, MATCH($E20, 'RAB input'!$E$25:$E$74, 0), MATCH(BH$4, RAB_years, 0)) -> 0 | BI20: =INDEX('RAB input'!$H$25:$XFD$74, MATCH($E20, 'RAB input'!$E$25:$E$74, 0), MATCH(BI$4, RAB_years, 0)) -> 0 | BJ20: =INDEX('RAB input'!$H$25:$XFD$74, MATCH($E20, 'RAB input'!$E$25:$E$74, 0), MATCH(BJ$4, RAB_years, 0)) -> 0 | BK20: =INDEX('RAB input'!$H$25:$XFD$74, MATCH($E20, 'RAB input'!$E$25:$E$74, 0), MATCH(BK$4, RAB_years, 0)) -> 0 | BL20: =INDEX('RAB input'!$H$25:$XFD$74, MATCH($E20, 'RAB input'!$E$25:$E$74, 0), MATCH(BL$4, RAB_years, 0)) -> 0 | BM20: =INDEX('RAB input'!$H$25:$XFD$74, MATCH($E20, 'RAB input'!$E$25:$E$74, 0), MATCH(BM$4, RAB_years, 0)) -> 0 | BN20: =INDEX('RAB input'!$H$25:$XFD$74, MATCH($E20, 'RAB input'!$E$25:$E$74, 0), MATCH(BN$4, RAB_years, 0)) -> 0 | BO20: =INDEX('RAB input'!$H$25:$XFD$74, MATCH($E20, 'RAB input'!$E$25:$E$74, 0), MATCH(BO$4, RAB_years, 0)) -> 0 | BP20: =INDEX('RAB input'!$H$25:$XFD$74, MATCH($E20, 'RAB input'!$E$25:$E$74, 0), MATCH(BP$4, RAB_years, 0)) -> 0 | BQ20: =INDEX('RAB input'!$H$25:$XFD$74, MATCH($E20, 'RAB input'!$E$25:$E$74, 0), MATCH(BQ$4, RAB_years, 0)) -> 0 | BR20: =INDEX('RAB input'!$H$25:$XFD$74, MATCH($E20, 'RAB input'!$E$25:$E$74, 0), MATCH(BR$4, RAB_years, 0)) -> 0 | BS20: =INDEX('RAB input'!$H$25:$XFD$74, MATCH($E20, 'RAB input'!$E$25:$E$74, 0), MATCH(BS$4, RAB_years, 0)) -> 0 | BT20: =INDEX('RAB input'!$H$25:$XFD$74, MATCH($E20, 'RAB input'!$E$25:$E$74, 0), MATCH(BT$4, RAB_years, 0)) -> 0 | BU20: =INDEX('RAB input'!$H$25:$XFD$74, MATCH($E20, 'RAB input'!$E$25:$E$74, 0), MATCH(BU$4, RAB_years, 0)) -> 0 | BV20: =INDEX('RAB input'!$H$25:$XFD$74, MATCH($E20, 'RAB input'!$E$25:$E$74, 0), MATCH(BV$4, RAB_years, 0)) -> 0 | BW20: =INDEX('RAB input'!$H$25:$XFD$74, MATCH($E20, 'RAB input'!$E$25:$E$74, 0), MATCH(BW$4, RAB_years, 0)) -> 0 | BX20: =INDEX('RAB input'!$H$25:$XFD$74, MATCH($E20, 'RAB input'!$E$25:$E$74, 0), MATCH(BX$4, RAB_years, 0)) -> 0 | BY20: =INDEX('RAB input'!$H$25:$XFD$74, MATCH($E20, 'RAB input'!$E$25:$E$74, 0), MATCH(BY$4, RAB_years, 0)) -> 0 | BZ20: =INDEX('RAB input'!$H$25:$XFD$74, MATCH($E20, 'RAB input'!$E$25:$E$74, 0), MATCH(BZ$4, RAB_years, 0)) -> 0 | CA20: =INDEX('RAB input'!$H$25:$XFD$74, MATCH($E20, 'RAB input'!$E$25:$E$74, 0), MATCH(CA$4, RAB_years, 0)) -> 0 | CB20: =INDEX('RAB input'!$H$25:$XFD$74, MATCH($E20, 'RAB input'!$E$25:$E$74, 0), MATCH(CB$4, RAB_years, 0)) -> 0 | CC20: =INDEX('RAB input'!$H$25:$XFD$74, MATCH($E20, 'RAB input'!$E$25:$E$74, 0), MATCH(CC$4, RAB_years, 0)) -> 0 | CD20: =INDEX('RAB input'!$H$25:$XFD$74, MATCH($E20, 'RAB input'!$E$25:$E$74, 0), MATCH(CD$4, RAB_years, 0)) -> 0 | CE20: =INDEX('RAB input'!$H$25:$XFD$74, MATCH($E20, 'RAB input'!$E$25:$E$74, 0), MATCH(CE$4, RAB_years, 0)) -> 0
D21: 4 | E21: ='RAB input'!E28 -> Distribution Transformers | G21: 68.91287994 | H21: 11.6 | I21: =INDEX('RAB input'!$H$25:$XFD$74, MATCH($E21, 'RAB input'!$E$25:$E$74, 0), MATCH(I$4, RAB_years, 0)) -> 19.227 | J21: =INDEX('RAB input'!$H$25:$XFD$74, MATCH($E21, 'RAB input'!$E$25:$E$74, 0), MATCH(J$4, RAB_years, 0)) -> 14.471 | K21: =INDEX('RAB input'!$H$25:$XFD$74, MATCH($E21, 'RAB input'!$E$25:$E$74, 0), MATCH(K$4, RAB_years, 0)) -> 13.111 | L21: =INDEX('RAB input'!$H$25:$XFD$74, MATCH($E21, 'RAB input'!$E$25:$E$74, 0), MATCH(L$4, RAB_years, 0)) -> 16.761 | M21: =INDEX('RAB input'!$H$25:$XFD$74, MATCH($E21, 'RAB input'!$E$25:$E$74, 0), MATCH(M$4, RAB_years, 0)) -> 10.131 | N21: =INDEX('RAB input'!$H$25:$XFD$74, MATCH($E21, 'RAB input'!$E$25:$E$74, 0), MATCH(N$4, RAB_years, 0)) -> 40.62096777 | O21: =INDEX('RAB input'!$H$25:$XFD$74, MATCH($E21, 'RAB input'!$E$25:$E$74, 0), MATCH(O$4, RAB_years, 0)) -> 4.529163561 | P21: =INDEX('RAB input'!$H$25:$XFD$74, MATCH($E21, 'RAB input'!$E$25:$E$74, 0), MATCH(P$4, RAB_years, 0)) -> 7.59446982 | Q21: =INDEX('RAB input'!$H$25:$XFD$74, MATCH($E21, 'RAB input'!$E$25:$E$74, 0), MATCH(Q$4, RAB_years, 0)) -> 12.56031403 | R21: =INDEX('RAB input'!$H$25:$XFD$74, MATCH($E21, 'RAB input'!$E$25:$E$74, 0), MATCH(R$4, RAB_years, 0)) -> 1.550466574 | S21: =INDEX('RAB input'!$H$25:$XFD$74, MATCH($E21, 'RAB input'!$E$25:$E$74, 0), MATCH(S$4, RAB_years, 0)) -> 9.42228806 | T21: =INDEX('RAB input'!$H$25:$XFD$74, MATCH($E21, 'RAB input'!$E$25:$E$74, 0), MATCH(T$4, RAB_years, 0)) -> 4.294498031 | U21: =INDEX('RAB input'!$H$25:$XFD$74, MATCH($E21, 'RAB input'!$E$25:$E$74, 0), MATCH(U$4, RAB_years, 0)) -> 7.509268761 | V21: =INDEX('RAB input'!$H$25:$XFD$74, MATCH($E21, 'RAB input'!$E$25:$E$74, 0), MATCH(V$4, RAB_years, 0)) -> 14.872906 | W21: =INDEX('RAB input'!$H$25:$XFD$74, MATCH($E21, 'RAB input'!$E$25:$E$74, 0), MATCH(W$4, RAB_years, 0)) -> 14.29833052 | X21: =INDEX('RAB input'!$H$25:$XFD$74, MATCH($E21, 'RAB input'!$E$25:$E$74, 0), MATCH(X$4, RAB_years, 0)) -> 0 | Y21: =INDEX('RAB input'!$H$25:$XFD$74, MATCH($E21, 'RAB input'!$E$25:$E$74, 0), MATCH(Y$4, RAB_years, 0)) -> 0 | Z21: =INDEX('RAB input'!$H$25:$XFD$74, MATCH($E21, 'RAB input'!$E$25:$E$74, 0), MATCH(Z$4, RAB_years, 0)) -> 0 | AA21: =INDEX('RAB input'!$H$25:$XFD$74, MATCH($E21, 'RAB input'!$E$25:$E$74, 0), MATCH(AA$4, RAB_years, 0)) -> 0 | AB21: =INDEX('RAB input'!$H$25:$XFD$74, MATCH($E21, 'RAB input'!$E$25:$E$74, 0), MATCH(AB$4, RAB_years, 0)) -> 0 | AC21: =INDEX('RAB input'!$H$25:$XFD$74, MATCH($E21, 'RAB input'!$E$25:$E$74, 0), MATCH(AC$4, RAB_years, 0)) -> 0 | AD21: =INDEX('RAB input'!$H$25:$XFD$74, MATCH($E21, 'RAB input'!$E$25:$E$74, 0), MATCH(AD$4, RAB_years, 0)) -> 0 | AE21: =INDEX('RAB input'!$H$25:$XFD$74, MATCH($E21, 'RAB input'!$E$25:$E$74, 0), MATCH(AE$4, RAB_years, 0)) -> 0 | AF21: =INDEX('RAB input'!$H$25:$XFD$74, MATCH($E21, 'RAB input'!$E$25:$E$74, 0), MATCH(AF$4, RAB_years, 0)) -> 0 | AG21: =INDEX('RAB input'!$H$25:$XFD$74, MATCH($E21, 'RAB input'!$E$25:$E$74, 0), MATCH(AG$4, RAB_years, 0)) -> 0 | AH21: =INDEX('RAB input'!$H$25:$XFD$74, MATCH($E21, 'RAB input'!$E$25:$E$74, 0), MATCH(AH$4, RAB_years, 0)) -> 0 | AI21: =INDEX('RAB input'!$H$25:$XFD$74, MATCH($E21, 'RAB input'!$E$25:$E$74, 0), MATCH(AI$4, RAB_years, 0)) -> 0 | AJ21: =INDEX('RAB input'!$H$25:$XFD$74, MATCH($E21, 'RAB input'!$E$25:$E$74, 0), MATCH(AJ$4, RAB_years, 0)) -> 0 | AK21: =INDEX('RAB input'!$H$25:$XFD$74, MATCH($E21, 'RAB input'!$E$25:$E$74, 0), MATCH(AK$4, RAB_years, 0)) -> 0 | AL21: =INDEX('RAB input'!$H$25:$XFD$74, MATCH($E21, 'RAB input'!$E$25:$E$74, 0), MATCH(AL$4, RAB_years, 0)) -> 0 | AM21: =INDEX('RAB input'!$H$25:$XFD$74, MATCH($E21, 'RAB input'!$E$25:$E$74, 0), MATCH(AM$4, RAB_years, 0)) -> 0 | AN21: =INDEX('RAB input'!$H$25:$XFD$74, MATCH($E21, 'RAB input'!$E$25:$E$74, 0), MATCH(AN$4, RAB_years, 0)) -> 0 | AO21: =INDEX('RAB input'!$H$25:$XFD$74, MATCH($E21, 'RAB input'!$E$25:$E$74, 0), MATCH(AO$4, RAB_years, 0)) -> 0 | AP21: =INDEX('RAB input'!$H$25:$XFD$74, MATCH($E21, 'RAB input'!$E$25:$E$74, 0), MATCH(AP$4, RAB_years, 0)) -> 0 | AQ21: =INDEX('RAB input'!$H$25:$XFD$74, MATCH($E21, 'RAB input'!$E$25:$E$74, 0), MATCH(AQ$4, RAB_years, 0)) -> 0 | AR21: =INDEX('RAB input'!$H$25:$XFD$74, MATCH($E21, 'RAB input'!$E$25:$E$74, 0), MATCH(AR$4, RAB_years, 0)) -> 0 | AS21: =INDEX('RAB input'!$H$25:$XFD$74, MATCH($E21, 'RAB input'!$E$25:$E$74, 0), MATCH(AS$4, RAB_years, 0)) -> 0 | AT21: =INDEX('RAB input'!$H$25:$XFD$74, MATCH($E21, 'RAB input'!$E$25:$E$74, 0), MATCH(AT$4, RAB_years, 0)) -> 0 | AU21: =INDEX('RAB input'!$H$25:$XFD$74, MATCH($E21, 'RAB input'!$E$25:$E$74, 0), MATCH(AU$4, RAB_years, 0)) -> 0 | AV21: =INDEX('RAB input'!$H$25:$XFD$74, MATCH($E21, 'RAB input'!$E$25:$E$74, 0), MATCH(AV$4, RAB_years, 0)) -> 0 | AW21: =INDEX('RAB input'!$H$25:$XFD$74, MATCH($E21, 'RAB input'!$E$25:$E$74, 0), MATCH(AW$4, RAB_years, 0)) -> 0 | AX21: =INDEX('RAB input'!$H$25:$XFD$74, MATCH($E21, 'RAB input'!$E$25:$E$74, 0), MATCH(AX$4, RAB_years, 0)) -> 0 | AY21: =INDEX('RAB input'!$H$25:$XFD$74, MATCH($E21, 'RAB input'!$E$25:$E$74, 0), MATCH(AY$4, RAB_years, 0)) -> 0 | AZ21: =INDEX('RAB input'!$H$25:$XFD$74, MATCH($E21, 'RAB input'!$E$25:$E$74, 0), MATCH(AZ$4, RAB_years, 0)) -> 0 | BA21: =INDEX('RAB input'!$H$25:$XFD$74, MATCH($E21, 'RAB input'!$E$25:$E$74, 0), MATCH(BA$4, RAB_years, 0)) -> 0 | BB21: =INDEX('RAB input'!$H$25:$XFD$74, MATCH($E21, 'RAB input'!$E$25:$E$74, 0), MATCH(BB$4, RAB_years, 0)) -> 0 | BC21: =INDEX('RAB input'!$H$25:$XFD$74, MATCH($E21, 'RAB input'!$E$25:$E$74, 0), MATCH(BC$4, RAB_years, 0)) -> 0 | BD21: =INDEX('RAB input'!$H$25:$XFD$74, MATCH($E21, 'RAB input'!$E$25:$E$74, 0), MATCH(BD$4, RAB_years, 0)) -> 0 | BE21: =INDEX('RAB input'!$H$25:$XFD$74, MATCH($E21, 'RAB input'!$E$25:$E$74, 0), MATCH(BE$4, RAB_years, 0)) -> 0 | BF21: =INDEX('RAB input'!$H$25:$XFD$74, MATCH($E21, 'RAB input'!$E$25:$E$74, 0), MATCH(BF$4, RAB_years, 0)) -> 0 | BG21: =INDEX('RAB input'!$H$25:$XFD$74, MATCH($E21, 'RAB input'!$E$25:$E$74, 0), MATCH(BG$4, RAB_years, 0)) -> 0 | BH21: =INDEX('RAB input'!$H$25:$XFD$74, MATCH($E21, 'RAB input'!$E$25:$E$74, 0), MATCH(BH$4, RAB_years, 0)) -> 0 | BI21: =INDEX('RAB input'!$H$25:$XFD$74, MATCH($E21, 'RAB input'!$E$25:$E$74, 0), MATCH(BI$4, RAB_years, 0)) -> 0 | BJ21: =INDEX('RAB input'!$H$25:$XFD$74, MATCH($E21, 'RAB input'!$E$25:$E$74, 0), MATCH(BJ$4, RAB_years, 0)) -> 0 | BK21: =INDEX('RAB input'!$H$25:$XFD$74, MATCH($E21, 'RAB input'!$E$25:$E$74, 0), MATCH(BK$4, RAB_years, 0)) -> 0 | BL21: =INDEX('RAB input'!$H$25:$XFD$74, MATCH($E21, 'RAB input'!$E$25:$E$74, 0), MATCH(BL$4, RAB_years, 0)) -> 0 | BM21: =INDEX('RAB input'!$H$25:$XFD$74, MATCH($E21, 'RAB input'!$E$25:$E$74, 0), MATCH(BM$4, RAB_years, 0)) -> 0 | BN21: =INDEX('RAB input'!$H$25:$XFD$74, MATCH($E21, 'RAB input'!$E$25:$E$74, 0), MATCH(BN$4, RAB_years, 0)) -> 0 | BO21: =INDEX('RAB input'!$H$25:$XFD$74, MATCH($E21, 'RAB input'!$E$25:$E$74, 0), MATCH(BO$4, RAB_years, 0)) -> 0 | BP21: =INDEX('RAB input'!$H$25:$XFD$74, MATCH($E21, 'RAB input'!$E$25:$E$74, 0), MATCH(BP$4, RAB_years, 0)) -> 0 | BQ21: =INDEX('RAB input'!$H$25:$XFD$74, MATCH($E21, 'RAB input'!$E$25:$E$74, 0), MATCH(BQ$4, RAB_years, 0)) -> 0 | BR21: =INDEX('RAB input'!$H$25:$XFD$74, MATCH($E21, 'RAB input'!$E$25:$E$74, 0), MATCH(BR$4, RAB_years, 0)) -> 0 | BS21: =INDEX('RAB input'!$H$25:$XFD$74, MATCH($E21, 'RAB input'!$E$25:$E$74, 0), MATCH(BS$4, RAB_years, 0)) -> 0 | BT21: =INDEX('RAB input'!$H$25:$XFD$74, MATCH($E21, 'RAB input'!$E$25:$E$74, 0), MATCH(BT$4, RAB_years, 0)) -> 0 | BU21: =INDEX('RAB input'!$H$25:$XFD$74, MATCH($E21, 'RAB input'!$E$25:$E$74, 0), MATCH(BU$4, RAB_years, 0)) -> 0 | BV21: =INDEX('RAB input'!$H$25:$XFD$74, MATCH($E21, 'RAB input'!$E$25:$E$74, 0), MATCH(BV$4, RAB_years, 0)) -> 0 | BW21: =INDEX('RAB input'!$H$25:$XFD$74, MATCH($E21, 'RAB input'!$E$25:$E$74, 0), MATCH(BW$4, RAB_years, 0)) -> 0 | BX21: =INDEX('RAB input'!$H$25:$XFD$74, MATCH($E21, 'RAB input'!$E$25:$E$74, 0), MATCH(BX$4, RAB_years, 0)) -> 0 | BY21: =INDEX('RAB input'!$H$25:$XFD$74, MATCH($E21, 'RAB input'!$E$25:$E$74, 0), MATCH(BY$4, RAB_years, 0)) -> 0 | BZ21: =INDEX('RAB input'!$H$25:$XFD$74, MATCH($E21, 'RAB input'!$E$25:$E$74, 0), MATCH(BZ$4, RAB_years, 0)) -> 0 | CA21: =INDEX('RAB input'!$H$25:$XFD$74, MATCH($E21, 'RAB input'!$E$25:$E$74, 0), MATCH(CA$4, RAB_years, 0)) -> 0 | CB21: =INDEX('RAB input'!$H$25:$XFD$74, MATCH($E21, 'RAB input'!$E$25:$E$74, 0), MATCH(CB$4, RAB_years, 0)) -> 0 | CC21: =INDEX('RAB input'!$H$25:$XFD$74, MATCH($E21, 'RAB input'!$E$25:$E$74, 0), MATCH(CC$4, RAB_years, 0)) -> 0 | CD21: =INDEX('RAB input'!$H$25:$XFD$74, MATCH($E21, 'RAB input'!$E$25:$E$74, 0), MATCH(CD$4, RAB_years, 0)) -> 0 | CE21: =INDEX('RAB input'!$H$25:$XFD$74, MATCH($E21, 'RAB input'!$E$25:$E$74, 0), MATCH(CE$4, RAB_years, 0)) -> 0
D22: 5 | E22: ='RAB input'!E29 -> LVS | G22: 306.4727544 | H22: 45.96 | I22: =INDEX('RAB input'!$H$25:$XFD$74, MATCH($E22, 'RAB input'!$E$25:$E$74, 0), MATCH(I$4, RAB_years, 0)) -> 49.126 | J22: =INDEX('RAB input'!$H$25:$XFD$74, MATCH($E22, 'RAB input'!$E$25:$E$74, 0), MATCH(J$4, RAB_years, 0)) -> 52.504 | K22: =INDEX('RAB input'!$H$25:$XFD$74, MATCH($E22, 'RAB input'!$E$25:$E$74, 0), MATCH(K$4, RAB_years, 0)) -> 75.843 | L22: =INDEX('RAB input'!$H$25:$XFD$74, MATCH($E22, 'RAB input'!$E$25:$E$74, 0), MATCH(L$4, RAB_years, 0)) -> 93.002 | M22: =INDEX('RAB input'!$H$25:$XFD$74, MATCH($E22, 'RAB input'!$E$25:$E$74, 0), MATCH(M$4, RAB_years, 0)) -> 66.339 | N22: =INDEX('RAB input'!$H$25:$XFD$74, MATCH($E22, 'RAB input'!$E$25:$E$74, 0), MATCH(N$4, RAB_years, 0)) -> 99.79106059 | O22: =INDEX('RAB input'!$H$25:$XFD$74, MATCH($E22, 'RAB input'!$E$25:$E$74, 0), MATCH(O$4, RAB_years, 0)) -> 82.15150277 | P22: =INDEX('RAB input'!$H$25:$XFD$74, MATCH($E22, 'RAB input'!$E$25:$E$74, 0), MATCH(P$4, RAB_years, 0)) -> 144.1053985 | Q22: =INDEX('RAB input'!$H$25:$XFD$74, MATCH($E22, 'RAB input'!$E$25:$E$74, 0), MATCH(Q$4, RAB_years, 0)) -> 126.7807728 | R22: =INDEX('RAB input'!$H$25:$XFD$74, MATCH($E22, 'RAB input'!$E$25:$E$74, 0), MATCH(R$4, RAB_years, 0)) -> 91.53435793 | S22: =INDEX('RAB input'!$H$25:$XFD$74, MATCH($E22, 'RAB input'!$E$25:$E$74, 0), MATCH(S$4, RAB_years, 0)) -> 115.6317631 | T22: =INDEX('RAB input'!$H$25:$XFD$74, MATCH($E22, 'RAB input'!$E$25:$E$74, 0), MATCH(T$4, RAB_years, 0)) -> 113.0911732 | U22: =INDEX('RAB input'!$H$25:$XFD$74, MATCH($E22, 'RAB input'!$E$25:$E$74, 0), MATCH(U$4, RAB_years, 0)) -> 143.4981639 | V22: =INDEX('RAB input'!$H$25:$XFD$74, MATCH($E22, 'RAB input'!$E$25:$E$74, 0), MATCH(V$4, RAB_years, 0)) -> 138.8375445 | W22: =INDEX('RAB input'!$H$25:$XFD$74, MATCH($E22, 'RAB input'!$E$25:$E$74, 0), MATCH(W$4, RAB_years, 0)) -> 155.9902793 | X22: =INDEX('RAB input'!$H$25:$XFD$74, MATCH($E22, 'RAB input'!$E$25:$E$74, 0), MATCH(X$4, RAB_years, 0)) -> 0 | Y22: =INDEX('RAB input'!$H$25:$XFD$74, MATCH($E22, 'RAB input'!$E$25:$E$74, 0), MATCH(Y$4, RAB_years, 0)) -> 0 | Z22: =INDEX('RAB input'!$H$25:$XFD$74, MATCH($E22, 'RAB input'!$E$25:$E$74, 0), MATCH(Z$4, RAB_years, 0)) -> 0 | AA22: =INDEX('RAB input'!$H$25:$XFD$74, MATCH($E22, 'RAB input'!$E$25:$E$74, 0), MATCH(AA$4, RAB_years, 0)) -> 0 | AB22: =INDEX('RAB input'!$H$25:$XFD$74, MATCH($E22, 'RAB input'!$E$25:$E$74, 0), MATCH(AB$4, RAB_years, 0)) -> 0 | AC22: =INDEX('RAB input'!$H$25:$XFD$74, MATCH($E22, 'RAB input'!$E$25:$E$74, 0), MATCH(AC$4, RAB_years, 0)) -> 0 | AD22: =INDEX('RAB input'!$H$25:$XFD$74, MATCH($E22, 'RAB input'!$E$25:$E$74, 0), MATCH(AD$4, RAB_years, 0)) -> 0 | AE22: =INDEX('RAB input'!$H$25:$XFD$74, MATCH($E22, 'RAB input'!$E$25:$E$74, 0), MATCH(AE$4, RAB_years, 0)) -> 0 | AF22: =INDEX('RAB input'!$H$25:$XFD$74, MATCH($E22, 'RAB input'!$E$25:$E$74, 0), MATCH(AF$4, RAB_years, 0)) -> 0 | AG22: =INDEX('RAB input'!$H$25:$XFD$74, MATCH($E22, 'RAB input'!$E$25:$E$74, 0), MATCH(AG$4, RAB_years, 0)) -> 0 | AH22: =INDEX('RAB input'!$H$25:$XFD$74, MATCH($E22, 'RAB input'!$E$25:$E$74, 0), MATCH(AH$4, RAB_years, 0)) -> 0 | AI22: =INDEX('RAB input'!$H$25:$XFD$74, MATCH($E22, 'RAB input'!$E$25:$E$74, 0), MATCH(AI$4, RAB_years, 0)) -> 0 | AJ22: =INDEX('RAB input'!$H$25:$XFD$74, MATCH($E22, 'RAB input'!$E$25:$E$74, 0), MATCH(AJ$4, RAB_years, 0)) -> 0 | AK22: =INDEX('RAB input'!$H$25:$XFD$74, MATCH($E22, 'RAB input'!$E$25:$E$74, 0), MATCH(AK$4, RAB_years, 0)) -> 0 | AL22: =INDEX('RAB input'!$H$25:$XFD$74, MATCH($E22, 'RAB input'!$E$25:$E$74, 0), MATCH(AL$4, RAB_years, 0)) -> 0 | AM22: =INDEX('RAB input'!$H$25:$XFD$74, MATCH($E22, 'RAB input'!$E$25:$E$74, 0), MATCH(AM$4, RAB_years, 0)) -> 0 | AN22: =INDEX('RAB input'!$H$25:$XFD$74, MATCH($E22, 'RAB input'!$E$25:$E$74, 0), MATCH(AN$4, RAB_years, 0)) -> 0 | AO22: =INDEX('RAB input'!$H$25:$XFD$74, MATCH($E22, 'RAB input'!$E$25:$E$74, 0), MATCH(AO$4, RAB_years, 0)) -> 0 | AP22: =INDEX('RAB input'!$H$25:$XFD$74, MATCH($E22, 'RAB input'!$E$25:$E$74, 0), MATCH(AP$4, RAB_years, 0)) -> 0 | AQ22: =INDEX('RAB input'!$H$25:$XFD$74, MATCH($E22, 'RAB input'!$E$25:$E$74, 0), MATCH(AQ$4, RAB_years, 0)) -> 0 | AR22: =INDEX('RAB input'!$H$25:$XFD$74, MATCH($E22, 'RAB input'!$E$25:$E$74, 0), MATCH(AR$4, RAB_years, 0)) -> 0 | AS22: =INDEX('RAB input'!$H$25:$XFD$74, MATCH($E22, 'RAB input'!$E$25:$E$74, 0), MATCH(AS$4, RAB_years, 0)) -> 0 | AT22: =INDEX('RAB input'!$H$25:$XFD$74, MATCH($E22, 'RAB input'!$E$25:$E$74, 0), MATCH(AT$4, RAB_years, 0)) -> 0 | AU22: =INDEX('RAB input'!$H$25:$XFD$74, MATCH($E22, 'RAB input'!$E$25:$E$74, 0), MATCH(AU$4, RAB_years, 0)) -> 0 | AV22: =INDEX('RAB input'!$H$25:$XFD$74, MATCH($E22, 'RAB input'!$E$25:$E$74, 0), MATCH(AV$4, RAB_years, 0)) -> 0 | AW22: =INDEX('RAB input'!$H$25:$XFD$74, MATCH($E22, 'RAB input'!$E$25:$E$74, 0), MATCH(AW$4, RAB_years, 0)) -> 0 | AX22: =INDEX('RAB input'!$H$25:$XFD$74, MATCH($E22, 'RAB input'!$E$25:$E$74, 0), MATCH(AX$4, RAB_years, 0)) -> 0 | AY22: =INDEX('RAB input'!$H$25:$XFD$74, MATCH($E22, 'RAB input'!$E$25:$E$74, 0), MATCH(AY$4, RAB_years, 0)) -> 0 | AZ22: =INDEX('RAB input'!$H$25:$XFD$74, MATCH($E22, 'RAB input'!$E$25:$E$74, 0), MATCH(AZ$4, RAB_years, 0)) -> 0 | BA22: =INDEX('RAB input'!$H$25:$XFD$74, MATCH($E22, 'RAB input'!$E$25:$E$74, 0), MATCH(BA$4, RAB_years, 0)) -> 0 | BB22: =INDEX('RAB input'!$H$25:$XFD$74, MATCH($E22, 'RAB input'!$E$25:$E$74, 0), MATCH(BB$4, RAB_years, 0)) -> 0 | BC22: =INDEX('RAB input'!$H$25:$XFD$74, MATCH($E22, 'RAB input'!$E$25:$E$74, 0), MATCH(BC$4, RAB_years, 0)) -> 0 | BD22: =INDEX('RAB input'!$H$25:$XFD$74, MATCH($E22, 'RAB input'!$E$25:$E$74, 0), MATCH(BD$4, RAB_years, 0)) -> 0 | BE22: =INDEX('RAB input'!$H$25:$XFD$74, MATCH($E22, 'RAB input'!$E$25:$E$74, 0), MATCH(BE$4, RAB_years, 0)) -> 0 | BF22: =INDEX('RAB input'!$H$25:$XFD$74, MATCH($E22, 'RAB input'!$E$25:$E$74, 0), MATCH(BF$4, RAB_years, 0)) -> 0 | BG22: =INDEX('RAB input'!$H$25:$XFD$74, MATCH($E22, 'RAB input'!$E$25:$E$74, 0), MATCH(BG$4, RAB_years, 0)) -> 0 | BH22: =INDEX('RAB input'!$H$25:$XFD$74, MATCH($E22, 'RAB input'!$E$25:$E$74, 0), MATCH(BH$4, RAB_years, 0)) -> 0 | BI22: =INDEX('RAB input'!$H$25:$XFD$74, MATCH($E22, 'RAB input'!$E$25:$E$74, 0), MATCH(BI$4, RAB_years, 0)) -> 0 | BJ22: =INDEX('RAB input'!$H$25:$XFD$74, MATCH($E22, 'RAB input'!$E$25:$E$74, 0), MATCH(BJ$4, RAB_years, 0)) -> 0 | BK22: =INDEX('RAB input'!$H$25:$XFD$74, MATCH($E22, 'RAB input'!$E$25:$E$74, 0), MATCH(BK$4, RAB_years, 0)) -> 0 | BL22: =INDEX('RAB input'!$H$25:$XFD$74, MATCH($E22, 'RAB input'!$E$25:$E$74, 0), MATCH(BL$4, RAB_years, 0)) -> 0 | BM22: =INDEX('RAB input'!$H$25:$XFD$74, MATCH($E22, 'RAB input'!$E$25:$E$74, 0), MATCH(BM$4, RAB_years, 0)) -> 0 | BN22: =INDEX('RAB input'!$H$25:$XFD$74, MATCH($E22, 'RAB input'!$E$25:$E$74, 0), MATCH(BN$4, RAB_years, 0)) -> 0 | BO22: =INDEX('RAB input'!$H$25:$XFD$74, MATCH($E22, 'RAB input'!$E$25:$E$74, 0), MATCH(BO$4, RAB_years, 0)) -> 0 | BP22: =INDEX('RAB input'!$H$25:$XFD$74, MATCH($E22, 'RAB input'!$E$25:$E$74, 0), MATCH(BP$4, RAB_years, 0)) -> 0 | BQ22: =INDEX('RAB input'!$H$25:$XFD$74, MATCH($E22, 'RAB input'!$E$25:$E$74, 0), MATCH(BQ$4, RAB_years, 0)) -> 0 | BR22: =INDEX('RAB input'!$H$25:$XFD$74, MATCH($E22, 'RAB input'!$E$25:$E$74, 0), MATCH(BR$4, RAB_years, 0)) -> 0 | BS22: =INDEX('RAB input'!$H$25:$XFD$74, MATCH($E22, 'RAB input'!$E$25:$E$74, 0), MATCH(BS$4, RAB_years, 0)) -> 0 | BT22: =INDEX('RAB input'!$H$25:$XFD$74, MATCH($E22, 'RAB input'!$E$25:$E$74, 0), MATCH(BT$4, RAB_years, 0)) -> 0 | BU22: =INDEX('RAB input'!$H$25:$XFD$74, MATCH($E22, 'RAB input'!$E$25:$E$74, 0), MATCH(BU$4, RAB_years, 0)) -> 0 | BV22: =INDEX('RAB input'!$H$25:$XFD$74, MATCH($E22, 'RAB input'!$E$25:$E$74, 0), MATCH(BV$4, RAB_years, 0)) -> 0 | BW22: =INDEX('RAB input'!$H$25:$XFD$74, MATCH($E22, 'RAB input'!$E$25:$E$74, 0), MATCH(BW$4, RAB_years, 0)) -> 0 | BX22: =INDEX('RAB input'!$H$25:$XFD$74, MATCH($E22, 'RAB input'!$E$25:$E$74, 0), MATCH(BX$4, RAB_years, 0)) -> 0 | BY22: =INDEX('RAB input'!$H$25:$XFD$74, MATCH($E22, 'RAB input'!$E$25:$E$74, 0), MATCH(BY$4, RAB_years, 0)) -> 0 | BZ22: =INDEX('RAB input'!$H$25:$XFD$74, MATCH($E22, 'RAB input'!$E$25:$E$74, 0), MATCH(BZ$4, RAB_years, 0)) -> 0 | CA22: =INDEX('RAB input'!$H$25:$XFD$74, MATCH($E22, 'RAB input'!$E$25:$E$74, 0), MATCH(CA$4, RAB_years, 0)) -> 0 | CB22: =INDEX('RAB input'!$H$25:$XFD$74, MATCH($E22, 'RAB input'!$E$25:$E$74, 0), MATCH(CB$4, RAB_years, 0)) -> 0 | CC22: =INDEX('RAB input'!$H$25:$XFD$74, MATCH($E22, 'RAB input'!$E$25:$E$74, 0), MATCH(CC$4, RAB_years, 0)) -> 0 | CD22: =INDEX('RAB input'!$H$25:$XFD$74, MATCH($E22, 'RAB input'!$E$25:$E$74, 0), MATCH(CD$4, RAB_years, 0)) -> 0 | CE22: =INDEX('RAB input'!$H$25:$XFD$74, MATCH($E22, 'RAB input'!$E$25:$E$74, 0), MATCH(CE$4, RAB_years, 0)) -> 0
D23: 6 | E23: ='RAB input'!E30 -> Communications | G23: 14.10620709 | H23: 1.471 | I23: =INDEX('RAB input'!$H$25:$XFD$74, MATCH($E23, 'RAB input'!$E$25:$E$74, 0), MATCH(I$4, RAB_years, 0)) -> 0.21 | J23: =INDEX('RAB input'!$H$25:$XFD$74, MATCH($E23, 'RAB input'!$E$25:$E$74, 0), MATCH(J$4, RAB_years, 0)) -> 0.688 | K23: =INDEX('RAB input'!$H$25:$XFD$74, MATCH($E23, 'RAB input'!$E$25:$E$74, 0), MATCH(K$4, RAB_years, 0)) -> 1.669 | L23: =INDEX('RAB input'!$H$25:$XFD$74, MATCH($E23, 'RAB input'!$E$25:$E$74, 0), MATCH(L$4, RAB_years, 0)) -> 9.072 | M23: =INDEX('RAB input'!$H$25:$XFD$74, MATCH($E23, 'RAB input'!$E$25:$E$74, 0), MATCH(M$4, RAB_years, 0)) -> 12.58543249 | N23: =INDEX('RAB input'!$H$25:$XFD$74, MATCH($E23, 'RAB input'!$E$25:$E$74, 0), MATCH(N$4, RAB_years, 0)) -> 12.98243233 | O23: =INDEX('RAB input'!$H$25:$XFD$74, MATCH($E23, 'RAB input'!$E$25:$E$74, 0), MATCH(O$4, RAB_years, 0)) -> 9.049780174 | P23: =INDEX('RAB input'!$H$25:$XFD$74, MATCH($E23, 'RAB input'!$E$25:$E$74, 0), MATCH(P$4, RAB_years, 0)) -> 29.29215912 | Q23: =INDEX('RAB input'!$H$25:$XFD$74, MATCH($E23, 'RAB input'!$E$25:$E$74, 0), MATCH(Q$4, RAB_years, 0)) -> 2.06787009 | R23: =INDEX('RAB input'!$H$25:$XFD$74, MATCH($E23, 'RAB input'!$E$25:$E$74, 0), MATCH(R$4, RAB_years, 0)) -> 4.296421261 | S23: =INDEX('RAB input'!$H$25:$XFD$74, MATCH($E23, 'RAB input'!$E$25:$E$74, 0), MATCH(S$4, RAB_years, 0)) -> 6.207204582 | T23: =INDEX('RAB input'!$H$25:$XFD$74, MATCH($E23, 'RAB input'!$E$25:$E$74, 0), MATCH(T$4, RAB_years, 0)) -> 5.362875262 | U23: =INDEX('RAB input'!$H$25:$XFD$74, MATCH($E23, 'RAB input'!$E$25:$E$74, 0), MATCH(U$4, RAB_years, 0)) -> 16.50585236 | V23: =INDEX('RAB input'!$H$25:$XFD$74, MATCH($E23, 'RAB input'!$E$25:$E$74, 0), MATCH(V$4, RAB_years, 0)) -> 10.56551008 | W23: =INDEX('RAB input'!$H$25:$XFD$74, MATCH($E23, 'RAB input'!$E$25:$E$74, 0), MATCH(W$4, RAB_years, 0)) -> 10.15733948 | X23: =INDEX('RAB input'!$H$25:$XFD$74, MATCH($E23, 'RAB input'!$E$25:$E$74, 0), MATCH(X$4, RAB_years, 0)) -> 0 | Y23: =INDEX('RAB input'!$H$25:$XFD$74, MATCH($E23, 'RAB input'!$E$25:$E$74, 0), MATCH(Y$4, RAB_years, 0)) -> 0 | Z23: =INDEX('RAB input'!$H$25:$XFD$74, MATCH($E23, 'RAB input'!$E$25:$E$74, 0), MATCH(Z$4, RAB_years, 0)) -> 0 | AA23: =INDEX('RAB input'!$H$25:$XFD$74, MATCH($E23, 'RAB input'!$E$25:$E$74, 0), MATCH(AA$4, RAB_years, 0)) -> 0 | AB23: =INDEX('RAB input'!$H$25:$XFD$74, MATCH($E23, 'RAB input'!$E$25:$E$74, 0), MATCH(AB$4, RAB_years, 0)) -> 0 | AC23: =INDEX('RAB input'!$H$25:$XFD$74, MATCH($E23, 'RAB input'!$E$25:$E$74, 0), MATCH(AC$4, RAB_years, 0)) -> 0 | AD23: =INDEX('RAB input'!$H$25:$XFD$74, MATCH($E23, 'RAB input'!$E$25:$E$74, 0), MATCH(AD$4, RAB_years, 0)) -> 0 | AE23: =INDEX('RAB input'!$H$25:$XFD$74, MATCH($E23, 'RAB input'!$E$25:$E$74, 0), MATCH(AE$4, RAB_years, 0)) -> 0 | AF23: =INDEX('RAB input'!$H$25:$XFD$74, MATCH($E23, 'RAB input'!$E$25:$E$74, 0), MATCH(AF$4, RAB_years, 0)) -> 0 | AG23: =INDEX('RAB input'!$H$25:$XFD$74, MATCH($E23, 'RAB input'!$E$25:$E$74, 0), MATCH(AG$4, RAB_years, 0)) -> 0 | AH23: =INDEX('RAB input'!$H$25:$XFD$74, MATCH($E23, 'RAB input'!$E$25:$E$74, 0), MATCH(AH$4, RAB_years, 0)) -> 0 | AI23: =INDEX('RAB input'!$H$25:$XFD$74, MATCH($E23, 'RAB input'!$E$25:$E$74, 0), MATCH(AI$4, RAB_years, 0)) -> 0 | AJ23: =INDEX('RAB input'!$H$25:$XFD$74, MATCH($E23, 'RAB input'!$E$25:$E$74, 0), MATCH(AJ$4, RAB_years, 0)) -> 0 | AK23: =INDEX('RAB input'!$H$25:$XFD$74, MATCH($E23, 'RAB input'!$E$25:$E$74, 0), MATCH(AK$4, RAB_years, 0)) -> 0 | AL23: =INDEX('RAB input'!$H$25:$XFD$74, MATCH($E23, 'RAB input'!$E$25:$E$74, 0), MATCH(AL$4, RAB_years, 0)) -> 0 | AM23: =INDEX('RAB input'!$H$25:$XFD$74, MATCH($E23, 'RAB input'!$E$25:$E$74, 0), MATCH(AM$4, RAB_years, 0)) -> 0 | AN23: =INDEX('RAB input'!$H$25:$XFD$74, MATCH($E23, 'RAB input'!$E$25:$E$74, 0), MATCH(AN$4, RAB_years, 0)) -> 0 | AO23: =INDEX('RAB input'!$H$25:$XFD$74, MATCH($E23, 'RAB input'!$E$25:$E$74, 0), MATCH(AO$4, RAB_years, 0)) -> 0 | AP23: =INDEX('RAB input'!$H$25:$XFD$74, MATCH($E23, 'RAB input'!$E$25:$E$74, 0), MATCH(AP$4, RAB_years, 0)) -> 0 | AQ23: =INDEX('RAB input'!$H$25:$XFD$74, MATCH($E23, 'RAB input'!$E$25:$E$74, 0), MATCH(AQ$4, RAB_years, 0)) -> 0 | AR23: =INDEX('RAB input'!$H$25:$XFD$74, MATCH($E23, 'RAB input'!$E$25:$E$74, 0), MATCH(AR$4, RAB_years, 0)) -> 0 | AS23: =INDEX('RAB input'!$H$25:$XFD$74, MATCH($E23, 'RAB input'!$E$25:$E$74, 0), MATCH(AS$4, RAB_years, 0)) -> 0 | AT23: =INDEX('RAB input'!$H$25:$XFD$74, MATCH($E23, 'RAB input'!$E$25:$E$74, 0), MATCH(AT$4, RAB_years, 0)) -> 0 | AU23: =INDEX('RAB input'!$H$25:$XFD$74, MATCH($E23, 'RAB input'!$E$25:$E$74, 0), MATCH(AU$4, RAB_years, 0)) -> 0 | AV23: =INDEX('RAB input'!$H$25:$XFD$74, MATCH($E23, 'RAB input'!$E$25:$E$74, 0), MATCH(AV$4, RAB_years, 0)) -> 0 | AW23: =INDEX('RAB input'!$H$25:$XFD$74, MATCH($E23, 'RAB input'!$E$25:$E$74, 0), MATCH(AW$4, RAB_years, 0)) -> 0 | AX23: =INDEX('RAB input'!$H$25:$XFD$74, MATCH($E23, 'RAB input'!$E$25:$E$74, 0), MATCH(AX$4, RAB_years, 0)) -> 0 | AY23: =INDEX('RAB input'!$H$25:$XFD$74, MATCH($E23, 'RAB input'!$E$25:$E$74, 0), MATCH(AY$4, RAB_years, 0)) -> 0 | AZ23: =INDEX('RAB input'!$H$25:$XFD$74, MATCH($E23, 'RAB input'!$E$25:$E$74, 0), MATCH(AZ$4, RAB_years, 0)) -> 0 | BA23: =INDEX('RAB input'!$H$25:$XFD$74, MATCH($E23, 'RAB input'!$E$25:$E$74, 0), MATCH(BA$4, RAB_years, 0)) -> 0 | BB23: =INDEX('RAB input'!$H$25:$XFD$74, MATCH($E23, 'RAB input'!$E$25:$E$74, 0), MATCH(BB$4, RAB_years, 0)) -> 0 | BC23: =INDEX('RAB input'!$H$25:$XFD$74, MATCH($E23, 'RAB input'!$E$25:$E$74, 0), MATCH(BC$4, RAB_years, 0)) -> 0 | BD23: =INDEX('RAB input'!$H$25:$XFD$74, MATCH($E23, 'RAB input'!$E$25:$E$74, 0), MATCH(BD$4, RAB_years, 0)) -> 0 | BE23: =INDEX('RAB input'!$H$25:$XFD$74, MATCH($E23, 'RAB input'!$E$25:$E$74, 0), MATCH(BE$4, RAB_years, 0)) -> 0 | BF23: =INDEX('RAB input'!$H$25:$XFD$74, MATCH($E23, 'RAB input'!$E$25:$E$74, 0), MATCH(BF$4, RAB_years, 0)) -> 0 | BG23: =INDEX('RAB input'!$H$25:$XFD$74, MATCH($E23, 'RAB input'!$E$25:$E$74, 0), MATCH(BG$4, RAB_years, 0)) -> 0 | BH23: =INDEX('RAB input'!$H$25:$XFD$74, MATCH($E23, 'RAB input'!$E$25:$E$74, 0), MATCH(BH$4, RAB_years, 0)) -> 0 | BI23: =INDEX('RAB input'!$H$25:$XFD$74, MATCH($E23, 'RAB input'!$E$25:$E$74, 0), MATCH(BI$4, RAB_years, 0)) -> 0 | BJ23: =INDEX('RAB input'!$H$25:$XFD$74, MATCH($E23, 'RAB input'!$E$25:$E$74, 0), MATCH(BJ$4, RAB_years, 0)) -> 0 | BK23: =INDEX('RAB input'!$H$25:$XFD$74, MATCH($E23, 'RAB input'!$E$25:$E$74, 0), MATCH(BK$4, RAB_years, 0)) -> 0 | BL23: =INDEX('RAB input'!$H$25:$XFD$74, MATCH($E23, 'RAB input'!$E$25:$E$74, 0), MATCH(BL$4, RAB_years, 0)) -> 0 | BM23: =INDEX('RAB input'!$H$25:$XFD$74, MATCH($E23, 'RAB input'!$E$25:$E$74, 0), MATCH(BM$4, RAB_years, 0)) -> 0 | BN23: =INDEX('RAB input'!$H$25:$XFD$74, MATCH($E23, 'RAB input'!$E$25:$E$74, 0), MATCH(BN$4, RAB_years, 0)) -> 0 | BO23: =INDEX('RAB input'!$H$25:$XFD$74, MATCH($E23, 'RAB input'!$E$25:$E$74, 0), MATCH(BO$4, RAB_years, 0)) -> 0 | BP23: =INDEX('RAB input'!$H$25:$XFD$74, MATCH($E23, 'RAB input'!$E$25:$E$74, 0), MATCH(BP$4, RAB_years, 0)) -> 0 | BQ23: =INDEX('RAB input'!$H$25:$XFD$74, MATCH($E23, 'RAB input'!$E$25:$E$74, 0), MATCH(BQ$4, RAB_years, 0)) -> 0 | BR23: =INDEX('RAB input'!$H$25:$XFD$74, MATCH($E23, 'RAB input'!$E$25:$E$74, 0), MATCH(BR$4, RAB_years, 0)) -> 0 | BS23: =INDEX('RAB input'!$H$25:$XFD$74, MATCH($E23, 'RAB input'!$E$25:$E$74, 0), MATCH(BS$4, RAB_years, 0)) -> 0 | BT23: =INDEX('RAB input'!$H$25:$XFD$74, MATCH($E23, 'RAB input'!$E$25:$E$74, 0), MATCH(BT$4, RAB_years, 0)) -> 0 | BU23: =INDEX('RAB input'!$H$25:$XFD$74, MATCH($E23, 'RAB input'!$E$25:$E$74, 0), MATCH(BU$4, RAB_years, 0)) -> 0 | BV23: =INDEX('RAB input'!$H$25:$XFD$74, MATCH($E23, 'RAB input'!$E$25:$E$74, 0), MATCH(BV$4, RAB_years, 0)) -> 0 | BW23: =INDEX('RAB input'!$H$25:$XFD$74, MATCH($E23, 'RAB input'!$E$25:$E$74, 0), MATCH(BW$4, RAB_years, 0)) -> 0 | BX23: =INDEX('RAB input'!$H$25:$XFD$74, MATCH($E23, 'RAB input'!$E$25:$E$74, 0), MATCH(BX$4, RAB_years, 0)) -> 0 | BY23: =INDEX('RAB input'!$H$25:$XFD$74, MATCH($E23, 'RAB input'!$E$25:$E$74, 0), MATCH(BY$4, RAB_years, 0)) -> 0 | BZ23: =INDEX('RAB input'!$H$25:$XFD$74, MATCH($E23, 'RAB input'!$E$25:$E$74, 0), MATCH(BZ$4, RAB_years, 0)) -> 0 | CA23: =INDEX('RAB input'!$H$25:$XFD$74, MATCH($E23, 'RAB input'!$E$25:$E$74, 0), MATCH(CA$4, RAB_years, 0)) -> 0 | CB23: =INDEX('RAB input'!$H$25:$XFD$74, MATCH($E23, 'RAB input'!$E$25:$E$74, 0), MATCH(CB$4, RAB_years, 0)) -> 0 | CC23: =INDEX('RAB input'!$H$25:$XFD$74, MATCH($E23, 'RAB input'!$E$25:$E$74, 0), MATCH(CC$4, RAB_years, 0)) -> 0 | CD23: =INDEX('RAB input'!$H$25:$XFD$74, MATCH($E23, 'RAB input'!$E$25:$E$74, 0), MATCH(CD$4, RAB_years, 0)) -> 0 | CE23: =INDEX('RAB input'!$H$25:$XFD$74, MATCH($E23, 'RAB input'!$E$25:$E$74, 0), MATCH(CE$4, RAB_years, 0)) -> 0
D24: 7 | E24: ='RAB input'!E31 -> Contributions | G24: -468.6639972 | H24: -152.519 | I24: =INDEX('RAB input'!$H$25:$XFD$74, MATCH($E24, 'RAB input'!$E$25:$E$74, 0), MATCH(I$4, RAB_years, 0)) -> 0 | J24: =INDEX('RAB input'!$H$25:$XFD$74, MATCH($E24, 'RAB input'!$E$25:$E$74, 0), MATCH(J$4, RAB_years, 0)) -> 0 | K24: =INDEX('RAB input'!$H$25:$XFD$74, MATCH($E24, 'RAB input'!$E$25:$E$74, 0), MATCH(K$4, RAB_years, 0)) -> 0 | L24: =INDEX('RAB input'!$H$25:$XFD$74, MATCH($E24, 'RAB input'!$E$25:$E$74, 0), MATCH(L$4, RAB_years, 0)) -> 0 | M24: -65.594 | N24: =INDEX('RAB input'!$H$25:$XFD$74, MATCH($E24, 'RAB input'!$E$25:$E$74, 0), MATCH(N$4, RAB_years, 0)) -> 0 | O24: =INDEX('RAB input'!$H$25:$XFD$74, MATCH($E24, 'RAB input'!$E$25:$E$74, 0), MATCH(O$4, RAB_years, 0)) -> 0 | P24: =INDEX('RAB input'!$H$25:$XFD$74, MATCH($E24, 'RAB input'!$E$25:$E$74, 0), MATCH(P$4, RAB_years, 0)) -> 0 | Q24: =INDEX('RAB input'!$H$25:$XFD$74, MATCH($E24, 'RAB input'!$E$25:$E$74, 0), MATCH(Q$4, RAB_years, 0)) -> 0 | R24: =INDEX('RAB input'!$H$25:$XFD$74, MATCH($E24, 'RAB input'!$E$25:$E$74, 0), MATCH(R$4, RAB_years, 0)) -> 0 | S24: =INDEX('RAB input'!$H$25:$XFD$74, MATCH($E24, 'RAB input'!$E$25:$E$74, 0), MATCH(S$4, RAB_years, 0)) -> 0 | T24: =INDEX('RAB input'!$H$25:$XFD$74, MATCH($E24, 'RAB input'!$E$25:$E$74, 0), MATCH(T$4, RAB_years, 0)) -> 0 | U24: =INDEX('RAB input'!$H$25:$XFD$74, MATCH($E24, 'RAB input'!$E$25:$E$74, 0), MATCH(U$4, RAB_years, 0)) -> 0 | V24: =INDEX('RAB input'!$H$25:$XFD$74, MATCH($E24, 'RAB input'!$E$25:$E$74, 0), MATCH(V$4, RAB_years, 0)) -> 0 | W24: =INDEX('RAB input'!$H$25:$XFD$74, MATCH($E24, 'RAB input'!$E$25:$E$74, 0), MATCH(W$4, RAB_years, 0)) -> 0 | X24: =INDEX('RAB input'!$H$25:$XFD$74, MATCH($E24, 'RAB input'!$E$25:$E$74, 0), MATCH(X$4, RAB_years, 0)) -> 0 | Y24: =INDEX('RAB input'!$H$25:$XFD$74, MATCH($E24, 'RAB input'!$E$25:$E$74, 0), MATCH(Y$4, RAB_years, 0)) -> 0 | Z24: =INDEX('RAB input'!$H$25:$XFD$74, MATCH($E24, 'RAB input'!$E$25:$E$74, 0), MATCH(Z$4, RAB_years, 0)) -> 0 | AA24: =INDEX('RAB input'!$H$25:$XFD$74, MATCH($E24, 'RAB input'!$E$25:$E$74, 0), MATCH(AA$4, RAB_years, 0)) -> 0 | AB24: =INDEX('RAB input'!$H$25:$XFD$74, MATCH($E24, 'RAB input'!$E$25:$E$74, 0), MATCH(AB$4, RAB_years, 0)) -> 0 | AC24: =INDEX('RAB input'!$H$25:$XFD$74, MATCH($E24, 'RAB input'!$E$25:$E$74, 0), MATCH(AC$4, RAB_years, 0)) -> 0 | AD24: =INDEX('RAB input'!$H$25:$XFD$74, MATCH($E24, 'RAB input'!$E$25:$E$74, 0), MATCH(AD$4, RAB_years, 0)) -> 0 | AE24: =INDEX('RAB input'!$H$25:$XFD$74, MATCH($E24, 'RAB input'!$E$25:$E$74, 0), MATCH(AE$4, RAB_years, 0)) -> 0 | AF24: =INDEX('RAB input'!$H$25:$XFD$74, MATCH($E24, 'RAB input'!$E$25:$E$74, 0), MATCH(AF$4, RAB_years, 0)) -> 0 | AG24: =INDEX('RAB input'!$H$25:$XFD$74, MATCH($E24, 'RAB input'!$E$25:$E$74, 0), MATCH(AG$4, RAB_years, 0)) -> 0 | AH24: =INDEX('RAB input'!$H$25:$XFD$74, MATCH($E24, 'RAB input'!$E$25:$E$74, 0), MATCH(AH$4, RAB_years, 0)) -> 0 | AI24: =INDEX('RAB input'!$H$25:$XFD$74, MATCH($E24, 'RAB input'!$E$25:$E$74, 0), MATCH(AI$4, RAB_years, 0)) -> 0 | AJ24: =INDEX('RAB input'!$H$25:$XFD$74, MATCH($E24, 'RAB input'!$E$25:$E$74, 0), MATCH(AJ$4, RAB_years, 0)) -> 0 | AK24: =INDEX('RAB input'!$H$25:$XFD$74, MATCH($E24, 'RAB input'!$E$25:$E$74, 0), MATCH(AK$4, RAB_years, 0)) -> 0 | AL24: =INDEX('RAB input'!$H$25:$XFD$74, MATCH($E24, 'RAB input'!$E$25:$E$74, 0), MATCH(AL$4, RAB_years, 0)) -> 0 | AM24: =INDEX('RAB input'!$H$25:$XFD$74, MATCH($E24, 'RAB input'!$E$25:$E$74, 0), MATCH(AM$4, RAB_years, 0)) -> 0 | AN24: =INDEX('RAB input'!$H$25:$XFD$74, MATCH($E24, 'RAB input'!$E$25:$E$74, 0), MATCH(AN$4, RAB_years, 0)) -> 0 | AO24: =INDEX('RAB input'!$H$25:$XFD$74, MATCH($E24, 'RAB input'!$E$25:$E$74, 0), MATCH(AO$4, RAB_years, 0)) -> 0 | AP24: =INDEX('RAB input'!$H$25:$XFD$74, MATCH($E24, 'RAB input'!$E$25:$E$74, 0), MATCH(AP$4, RAB_years, 0)) -> 0 | AQ24: =INDEX('RAB input'!$H$25:$XFD$74, MATCH($E24, 'RAB input'!$E$25:$E$74, 0), MATCH(AQ$4, RAB_years, 0)) -> 0 | AR24: =INDEX('RAB input'!$H$25:$XFD$74, MATCH($E24, 'RAB input'!$E$25:$E$74, 0), MATCH(AR$4, RAB_years, 0)) -> 0 | AS24: =INDEX('RAB input'!$H$25:$XFD$74, MATCH($E24, 'RAB input'!$E$25:$E$74, 0), MATCH(AS$4, RAB_years, 0)) -> 0 | AT24: =INDEX('RAB input'!$H$25:$XFD$74, MATCH($E24, 'RAB input'!$E$25:$E$74, 0), MATCH(AT$4, RAB_years, 0)) -> 0 | AU24: =INDEX('RAB input'!$H$25:$XFD$74, MATCH($E24, 'RAB input'!$E$25:$E$74, 0), MATCH(AU$4, RAB_years, 0)) -> 0 | AV24: =INDEX('RAB input'!$H$25:$XFD$74, MATCH($E24, 'RAB input'!$E$25:$E$74, 0), MATCH(AV$4, RAB_years, 0)) -> 0 | AW24: =INDEX('RAB input'!$H$25:$XFD$74, MATCH($E24, 'RAB input'!$E$25:$E$74, 0), MATCH(AW$4, RAB_years, 0)) -> 0 | AX24: =INDEX('RAB input'!$H$25:$XFD$74, MATCH($E24, 'RAB input'!$E$25:$E$74, 0), MATCH(AX$4, RAB_years, 0)) -> 0 | AY24: =INDEX('RAB input'!$H$25:$XFD$74, MATCH($E24, 'RAB input'!$E$25:$E$74, 0), MATCH(AY$4, RAB_years, 0)) -> 0 | AZ24: =INDEX('RAB input'!$H$25:$XFD$74, MATCH($E24, 'RAB input'!$E$25:$E$74, 0), MATCH(AZ$4, RAB_years, 0)) -> 0 | BA24: =INDEX('RAB input'!$H$25:$XFD$74, MATCH($E24, 'RAB input'!$E$25:$E$74, 0), MATCH(BA$4, RAB_years, 0)) -> 0 | BB24: =INDEX('RAB input'!$H$25:$XFD$74, MATCH($E24, 'RAB input'!$E$25:$E$74, 0), MATCH(BB$4, RAB_years, 0)) -> 0 | BC24: =INDEX('RAB input'!$H$25:$XFD$74, MATCH($E24, 'RAB input'!$E$25:$E$74, 0), MATCH(BC$4, RAB_years, 0)) -> 0 | BD24: =INDEX('RAB input'!$H$25:$XFD$74, MATCH($E24, 'RAB input'!$E$25:$E$74, 0), MATCH(BD$4, RAB_years, 0)) -> 0 | BE24: =INDEX('RAB input'!$H$25:$XFD$74, MATCH($E24, 'RAB input'!$E$25:$E$74, 0), MATCH(BE$4, RAB_years, 0)) -> 0 | BF24: =INDEX('RAB input'!$H$25:$XFD$74, MATCH($E24, 'RAB input'!$E$25:$E$74, 0), MATCH(BF$4, RAB_years, 0)) -> 0 | BG24: =INDEX('RAB input'!$H$25:$XFD$74, MATCH($E24, 'RAB input'!$E$25:$E$74, 0), MATCH(BG$4, RAB_years, 0)) -> 0 | BH24: =INDEX('RAB input'!$H$25:$XFD$74, MATCH($E24, 'RAB input'!$E$25:$E$74, 0), MATCH(BH$4, RAB_years, 0)) -> 0 | BI24: =INDEX('RAB input'!$H$25:$XFD$74, MATCH($E24, 'RAB input'!$E$25:$E$74, 0), MATCH(BI$4, RAB_years, 0)) -> 0 | BJ24: =INDEX('RAB input'!$H$25:$XFD$74, MATCH($E24, 'RAB input'!$E$25:$E$74, 0), MATCH(BJ$4, RAB_years, 0)) -> 0 | BK24: =INDEX('RAB input'!$H$25:$XFD$74, MATCH($E24, 'RAB input'!$E$25:$E$74, 0), MATCH(BK$4, RAB_years, 0)) -> 0 | BL24: =INDEX('RAB input'!$H$25:$XFD$74, MATCH($E24, 'RAB input'!$E$25:$E$74, 0), MATCH(BL$4, RAB_years, 0)) -> 0 | BM24: =INDEX('RAB input'!$H$25:$XFD$74, MATCH($E24, 'RAB input'!$E$25:$E$74, 0), MATCH(BM$4, RAB_years, 0)) -> 0 | BN24: =INDEX('RAB input'!$H$25:$XFD$74, MATCH($E24, 'RAB input'!$E$25:$E$74, 0), MATCH(BN$4, RAB_years, 0)) -> 0 | BO24: =INDEX('RAB input'!$H$25:$XFD$74, MATCH($E24, 'RAB input'!$E$25:$E$74, 0), MATCH(BO$4, RAB_years, 0)) -> 0 | BP24: =INDEX('RAB input'!$H$25:$XFD$74, MATCH($E24, 'RAB input'!$E$25:$E$74, 0), MATCH(BP$4, RAB_years, 0)) -> 0 | BQ24: =INDEX('RAB input'!$H$25:$XFD$74, MATCH($E24, 'RAB input'!$E$25:$E$74, 0), MATCH(BQ$4, RAB_years, 0)) -> 0 | BR24: =INDEX('RAB input'!$H$25:$XFD$74, MATCH($E24, 'RAB input'!$E$25:$E$74, 0), MATCH(BR$4, RAB_years, 0)) -> 0 | BS24: =INDEX('RAB input'!$H$25:$XFD$74, MATCH($E24, 'RAB input'!$E$25:$E$74, 0), MATCH(BS$4, RAB_years, 0)) -> 0 | BT24: =INDEX('RAB input'!$H$25:$XFD$74, MATCH($E24, 'RAB input'!$E$25:$E$74, 0), MATCH(BT$4, RAB_years, 0)) -> 0 | BU24: =INDEX('RAB input'!$H$25:$XFD$74, MATCH($E24, 'RAB input'!$E$25:$E$74, 0), MATCH(BU$4, RAB_years, 0)) -> 0 | BV24: =INDEX('RAB input'!$H$25:$XFD$74, MATCH($E24, 'RAB input'!$E$25:$E$74, 0), MATCH(BV$4, RAB_years, 0)) -> 0 | BW24: =INDEX('RAB input'!$H$25:$XFD$74, MATCH($E24, 'RAB input'!$E$25:$E$74, 0), MATCH(BW$4, RAB_years, 0)) -> 0 | BX24: =INDEX('RAB input'!$H$25:$XFD$74, MATCH($E24, 'RAB input'!$E$25:$E$74, 0), MATCH(BX$4, RAB_years, 0)) -> 0 | BY24: =INDEX('RAB input'!$H$25:$XFD$74, MATCH($E24, 'RAB input'!$E$25:$E$74, 0), MATCH(BY$4, RAB_years, 0)) -> 0 | BZ24: =INDEX('RAB input'!$H$25:$XFD$74, MATCH($E24, 'RAB input'!$E$25:$E$74, 0), MATCH(BZ$4, RAB_years, 0)) -> 0 | CA24: =INDEX('RAB input'!$H$25:$XFD$74, MATCH($E24, 'RAB input'!$E$25:$E$74, 0), MATCH(CA$4, RAB_years, 0)) -> 0 | CB24: =INDEX('RAB input'!$H$25:$XFD$74, MATCH($E24, 'RAB input'!$E$25:$E$74, 0), MATCH(CB$4, RAB_years, 0)) -> 0 | CC24: =INDEX('RAB input'!$H$25:$XFD$74, MATCH($E24, 'RAB input'!$E$25:$E$74, 0), MATCH(CC$4, RAB_years, 0)) -> 0 | CD24: =INDEX('RAB input'!$H$25:$XFD$74, MATCH($E24, 'RAB input'!$E$25:$E$74, 0), MATCH(CD$4, RAB_years, 0)) -> 0 | CE24: =INDEX('RAB input'!$H$25:$XFD$74, MATCH($E24, 'RAB input'!$E$25:$E$74, 0), MATCH(CE$4, RAB_years, 0)) -> 0
D25: 8 | E25: ='RAB input'!E32 -> Land | G25: -0.3652373101 | H25: 0.863 | I25: =INDEX('RAB input'!$H$25:$XFD$74, MATCH($E25, 'RAB input'!$E$25:$E$74, 0), MATCH(I$4, RAB_years, 0)) -> 0.148 | J25: =INDEX('RAB input'!$H$25:$XFD$74, MATCH($E25, 'RAB input'!$E$25:$E$74, 0), MATCH(J$4, RAB_years, 0)) -> 4.125 | K25: =INDEX('RAB input'!$H$25:$XFD$74, MATCH($E25, 'RAB input'!$E$25:$E$74, 0), MATCH(K$4, RAB_years, 0)) -> 0 | L25: =INDEX('RAB input'!$H$25:$XFD$74, MATCH($E25, 'RAB input'!$E$25:$E$74, 0), MATCH(L$4, RAB_years, 0)) -> 0 | M25: =INDEX('RAB input'!$H$25:$XFD$74, MATCH($E25, 'RAB input'!$E$25:$E$74, 0), MATCH(M$4, RAB_years, 0)) -> 0.249 | N25: =INDEX('RAB input'!$H$25:$XFD$74, MATCH($E25, 'RAB input'!$E$25:$E$74, 0), MATCH(N$4, RAB_years, 0)) -> -5.876766768 | O25: =INDEX('RAB input'!$H$25:$XFD$74, MATCH($E25, 'RAB input'!$E$25:$E$74, 0), MATCH(O$4, RAB_years, 0)) -> 0 | P25: =INDEX('RAB input'!$H$25:$XFD$74, MATCH($E25, 'RAB input'!$E$25:$E$74, 0), MATCH(P$4, RAB_years, 0)) -> 2.054357327 | Q25: =INDEX('RAB input'!$H$25:$XFD$74, MATCH($E25, 'RAB input'!$E$25:$E$74, 0), MATCH(Q$4, RAB_years, 0)) -> 0.66757006 | R25: =INDEX('RAB input'!$H$25:$XFD$74, MATCH($E25, 'RAB input'!$E$25:$E$74, 0), MATCH(R$4, RAB_years, 0)) -> 0 | S25: =INDEX('RAB input'!$H$25:$XFD$74, MATCH($E25, 'RAB input'!$E$25:$E$74, 0), MATCH(S$4, RAB_years, 0)) -> 0 | T25: =INDEX('RAB input'!$H$25:$XFD$74, MATCH($E25, 'RAB input'!$E$25:$E$74, 0), MATCH(T$4, RAB_years, 0)) -> 0 | U25: =INDEX('RAB input'!$H$25:$XFD$74, MATCH($E25, 'RAB input'!$E$25:$E$74, 0), MATCH(U$4, RAB_years, 0)) -> 0 | V25: =INDEX('RAB input'!$H$25:$XFD$74, MATCH($E25, 'RAB input'!$E$25:$E$74, 0), MATCH(V$4, RAB_years, 0)) -> 7.2726469 | W25: =INDEX('RAB input'!$H$25:$XFD$74, MATCH($E25, 'RAB input'!$E$25:$E$74, 0), MATCH(W$4, RAB_years, 0)) -> 0 | X25: =INDEX('RAB input'!$H$25:$XFD$74, MATCH($E25, 'RAB input'!$E$25:$E$74, 0), MATCH(X$4, RAB_years, 0)) -> 0 | Y25: =INDEX('RAB input'!$H$25:$XFD$74, MATCH($E25, 'RAB input'!$E$25:$E$74, 0), MATCH(Y$4, RAB_years, 0)) -> 0 | Z25: =INDEX('RAB input'!$H$25:$XFD$74, MATCH($E25, 'RAB input'!$E$25:$E$74, 0), MATCH(Z$4, RAB_years, 0)) -> 0 | AA25: =INDEX('RAB input'!$H$25:$XFD$74, MATCH($E25, 'RAB input'!$E$25:$E$74, 0), MATCH(AA$4, RAB_years, 0)) -> 0 | AB25: =INDEX('RAB input'!$H$25:$XFD$74, MATCH($E25, 'RAB input'!$E$25:$E$74, 0), MATCH(AB$4, RAB_years, 0)) -> 0 | AC25: =INDEX('RAB input'!$H$25:$XFD$74, MATCH($E25, 'RAB input'!$E$25:$E$74, 0), MATCH(AC$4, RAB_years, 0)) -> 0 | AD25: =INDEX('RAB input'!$H$25:$XFD$74, MATCH($E25, 'RAB input'!$E$25:$E$74, 0), MATCH(AD$4, RAB_years, 0)) -> 0 | AE25: =INDEX('RAB input'!$H$25:$XFD$74, MATCH($E25, 'RAB input'!$E$25:$E$74, 0), MATCH(AE$4, RAB_years, 0)) -> 0 | AF25: =INDEX('RAB input'!$H$25:$XFD$74, MATCH($E25, 'RAB input'!$E$25:$E$74, 0), MATCH(AF$4, RAB_years, 0)) -> 0 | AG25: =INDEX('RAB input'!$H$25:$XFD$74, MATCH($E25, 'RAB input'!$E$25:$E$74, 0), MATCH(AG$4, RAB_years, 0)) -> 0 | AH25: =INDEX('RAB input'!$H$25:$XFD$74, MATCH($E25, 'RAB input'!$E$25:$E$74, 0), MATCH(AH$4, RAB_years, 0)) -> 0 | AI25: =INDEX('RAB input'!$H$25:$XFD$74, MATCH($E25, 'RAB input'!$E$25:$E$74, 0), MATCH(AI$4, RAB_years, 0)) -> 0 | AJ25: =INDEX('RAB input'!$H$25:$XFD$74, MATCH($E25, 'RAB input'!$E$25:$E$74, 0), MATCH(AJ$4, RAB_years, 0)) -> 0 | AK25: =INDEX('RAB input'!$H$25:$XFD$74, MATCH($E25, 'RAB input'!$E$25:$E$74, 0), MATCH(AK$4, RAB_years, 0)) -> 0 | AL25: =INDEX('RAB input'!$H$25:$XFD$74, MATCH($E25, 'RAB input'!$E$25:$E$74, 0), MATCH(AL$4, RAB_years, 0)) -> 0 | AM25: =INDEX('RAB input'!$H$25:$XFD$74, MATCH($E25, 'RAB input'!$E$25:$E$74, 0), MATCH(AM$4, RAB_years, 0)) -> 0 | AN25: =INDEX('RAB input'!$H$25:$XFD$74, MATCH($E25, 'RAB input'!$E$25:$E$74, 0), MATCH(AN$4, RAB_years, 0)) -> 0 | AO25: =INDEX('RAB input'!$H$25:$XFD$74, MATCH($E25, 'RAB input'!$E$25:$E$74, 0), MATCH(AO$4, RAB_years, 0)) -> 0 | AP25: =INDEX('RAB input'!$H$25:$XFD$74, MATCH($E25, 'RAB input'!$E$25:$E$74, 0), MATCH(AP$4, RAB_years, 0)) -> 0 | AQ25: =INDEX('RAB input'!$H$25:$XFD$74, MATCH($E25, 'RAB input'!$E$25:$E$74, 0), MATCH(AQ$4, RAB_years, 0)) -> 0 | AR25: =INDEX('RAB input'!$H$25:$XFD$74, MATCH($E25, 'RAB input'!$E$25:$E$74, 0), MATCH(AR$4, RAB_years, 0)) -> 0 | AS25: =INDEX('RAB input'!$H$25:$XFD$74, MATCH($E25, 'RAB input'!$E$25:$E$74, 0), MATCH(AS$4, RAB_years, 0)) -> 0 | AT25: =INDEX('RAB input'!$H$25:$XFD$74, MATCH($E25, 'RAB input'!$E$25:$E$74, 0), MATCH(AT$4, RAB_years, 0)) -> 0 | AU25: =INDEX('RAB input'!$H$25:$XFD$74, MATCH($E25, 'RAB input'!$E$25:$E$74, 0), MATCH(AU$4, RAB_years, 0)) -> 0 | AV25: =INDEX('RAB input'!$H$25:$XFD$74, MATCH($E25, 'RAB input'!$E$25:$E$74, 0), MATCH(AV$4, RAB_years, 0)) -> 0 | AW25: =INDEX('RAB input'!$H$25:$XFD$74, MATCH($E25, 'RAB input'!$E$25:$E$74, 0), MATCH(AW$4, RAB_years, 0)) -> 0 | AX25: =INDEX('RAB input'!$H$25:$XFD$74, MATCH($E25, 'RAB input'!$E$25:$E$74, 0), MATCH(AX$4, RAB_years, 0)) -> 0 | AY25: =INDEX('RAB input'!$H$25:$XFD$74, MATCH($E25, 'RAB input'!$E$25:$E$74, 0), MATCH(AY$4, RAB_years, 0)) -> 0 | AZ25: =INDEX('RAB input'!$H$25:$XFD$74, MATCH($E25, 'RAB input'!$E$25:$E$74, 0), MATCH(AZ$4, RAB_years, 0)) -> 0 | BA25: =INDEX('RAB input'!$H$25:$XFD$74, MATCH($E25, 'RAB input'!$E$25:$E$74, 0), MATCH(BA$4, RAB_years, 0)) -> 0 | BB25: =INDEX('RAB input'!$H$25:$XFD$74, MATCH($E25, 'RAB input'!$E$25:$E$74, 0), MATCH(BB$4, RAB_years, 0)) -> 0 | BC25: =INDEX('RAB input'!$H$25:$XFD$74, MATCH($E25, 'RAB input'!$E$25:$E$74, 0), MATCH(BC$4, RAB_years, 0)) -> 0 | BD25: =INDEX('RAB input'!$H$25:$XFD$74, MATCH($E25, 'RAB input'!$E$25:$E$74, 0), MATCH(BD$4, RAB_years, 0)) -> 0 | BE25: =INDEX('RAB input'!$H$25:$XFD$74, MATCH($E25, 'RAB input'!$E$25:$E$74, 0), MATCH(BE$4, RAB_years, 0)) -> 0 | BF25: =INDEX('RAB input'!$H$25:$XFD$74, MATCH($E25, 'RAB input'!$E$25:$E$74, 0), MATCH(BF$4, RAB_years, 0)) -> 0 | BG25: =INDEX('RAB input'!$H$25:$XFD$74, MATCH($E25, 'RAB input'!$E$25:$E$74, 0), MATCH(BG$4, RAB_years, 0)) -> 0 | BH25: =INDEX('RAB input'!$H$25:$XFD$74, MATCH($E25, 'RAB input'!$E$25:$E$74, 0), MATCH(BH$4, RAB_years, 0)) -> 0 | BI25: =INDEX('RAB input'!$H$25:$XFD$74, MATCH($E25, 'RAB input'!$E$25:$E$74, 0), MATCH(BI$4, RAB_years, 0)) -> 0 | BJ25: =INDEX('RAB input'!$H$25:$XFD$74, MATCH($E25, 'RAB input'!$E$25:$E$74, 0), MATCH(BJ$4, RAB_years, 0)) -> 0 | BK25: =INDEX('RAB input'!$H$25:$XFD$74, MATCH($E25, 'RAB input'!$E$25:$E$74, 0), MATCH(BK$4, RAB_years, 0)) -> 0 | BL25: =INDEX('RAB input'!$H$25:$XFD$74, MATCH($E25, 'RAB input'!$E$25:$E$74, 0), MATCH(BL$4, RAB_years, 0)) -> 0 | BM25: =INDEX('RAB input'!$H$25:$XFD$74, MATCH($E25, 'RAB input'!$E$25:$E$74, 0), MATCH(BM$4, RAB_years, 0)) -> 0 | BN25: =INDEX('RAB input'!$H$25:$XFD$74, MATCH($E25, 'RAB input'!$E$25:$E$74, 0), MATCH(BN$4, RAB_years, 0)) -> 0 | BO25: =INDEX('RAB input'!$H$25:$XFD$74, MATCH($E25, 'RAB input'!$E$25:$E$74, 0), MATCH(BO$4, RAB_years, 0)) -> 0 | BP25: =INDEX('RAB input'!$H$25:$XFD$74, MATCH($E25, 'RAB input'!$E$25:$E$74, 0), MATCH(BP$4, RAB_years, 0)) -> 0 | BQ25: =INDEX('RAB input'!$H$25:$XFD$74, MATCH($E25, 'RAB input'!$E$25:$E$74, 0), MATCH(BQ$4, RAB_years, 0)) -> 0 | BR25: =INDEX('RAB input'!$H$25:$XFD$74, MATCH($E25, 'RAB input'!$E$25:$E$74, 0), MATCH(BR$4, RAB_years, 0)) -> 0 | BS25: =INDEX('RAB input'!$H$25:$XFD$74, MATCH($E25, 'RAB input'!$E$25:$E$74, 0), MATCH(BS$4, RAB_years, 0)) -> 0 | BT25: =INDEX('RAB input'!$H$25:$XFD$74, MATCH($E25, 'RAB input'!$E$25:$E$74, 0), MATCH(BT$4, RAB_years, 0)) -> 0 | BU25: =INDEX('RAB input'!$H$25:$XFD$74, MATCH($E25, 'RAB input'!$E$25:$E$74, 0), MATCH(BU$4, RAB_years, 0)) -> 0 | BV25: =INDEX('RAB input'!$H$25:$XFD$74, MATCH($E25, 'RAB input'!$E$25:$E$74, 0), MATCH(BV$4, RAB_years, 0)) -> 0 | BW25: =INDEX('RAB input'!$H$25:$XFD$74, MATCH($E25, 'RAB input'!$E$25:$E$74, 0), MATCH(BW$4, RAB_years, 0)) -> 0 | BX25: =INDEX('RAB input'!$H$25:$XFD$74, MATCH($E25, 'RAB input'!$E$25:$E$74, 0), MATCH(BX$4, RAB_years, 0)) -> 0 | BY25: =INDEX('RAB input'!$H$25:$XFD$74, MATCH($E25, 'RAB input'!$E$25:$E$74, 0), MATCH(BY$4, RAB_years, 0)) -> 0 | BZ25: =INDEX('RAB input'!$H$25:$XFD$74, MATCH($E25, 'RAB input'!$E$25:$E$74, 0), MATCH(BZ$4, RAB_years, 0)) -> 0 | CA25: =INDEX('RAB input'!$H$25:$XFD$74, MATCH($E25, 'RAB input'!$E$25:$E$74, 0), MATCH(CA$4, RAB_years, 0)) -> 0 | CB25: =INDEX('RAB input'!$H$25:$XFD$74, MATCH($E25, 'RAB input'!$E$25:$E$74, 0), MATCH(CB$4, RAB_years, 0)) -> 0 | CC25: =INDEX('RAB input'!$H$25:$XFD$74, MATCH($E25, 'RAB input'!$E$25:$E$74, 0), MATCH(CC$4, RAB_years, 0)) -> 0 | CD25: =INDEX('RAB input'!$H$25:$XFD$74, MATCH($E25, 'RAB input'!$E$25:$E$74, 0), MATCH(CD$4, RAB_years, 0)) -> 0 | CE25: =INDEX('RAB input'!$H$25:$XFD$74, MATCH($E25, 'RAB input'!$E$25:$E$74, 0), MATCH(CE$4, RAB_years, 0)) -> 0
D26: 9 | E26: ='RAB input'!E33 -> Substation Land | G26: 0 | H26: 0 | I26: =INDEX('RAB input'!$H$25:$XFD$74, MATCH($E26, 'RAB input'!$E$25:$E$74, 0), MATCH(I$4, RAB_years, 0)) -> 0.281 | J26: =INDEX('RAB input'!$H$25:$XFD$74, MATCH($E26, 'RAB input'!$E$25:$E$74, 0), MATCH(J$4, RAB_years, 0)) -> 4.128 | K26: =INDEX('RAB input'!$H$25:$XFD$74, MATCH($E26, 'RAB input'!$E$25:$E$74, 0), MATCH(K$4, RAB_years, 0)) -> 0.303 | L26: =INDEX('RAB input'!$H$25:$XFD$74, MATCH($E26, 'RAB input'!$E$25:$E$74, 0), MATCH(L$4, RAB_years, 0)) -> 0.882 | M26: =INDEX('RAB input'!$H$25:$XFD$74, MATCH($E26, 'RAB input'!$E$25:$E$74, 0), MATCH(M$4, RAB_years, 0)) -> 0.4702820631 | N26: =INDEX('RAB input'!$H$25:$XFD$74, MATCH($E26, 'RAB input'!$E$25:$E$74, 0), MATCH(N$4, RAB_years, 0)) -> 6.226195724 | O26: =INDEX('RAB input'!$H$25:$XFD$74, MATCH($E26, 'RAB input'!$E$25:$E$74, 0), MATCH(O$4, RAB_years, 0)) -> 0.02708405643 | P26: =INDEX('RAB input'!$H$25:$XFD$74, MATCH($E26, 'RAB input'!$E$25:$E$74, 0), MATCH(P$4, RAB_years, 0)) -> 0.04355219328 | Q26: =INDEX('RAB input'!$H$25:$XFD$74, MATCH($E26, 'RAB input'!$E$25:$E$74, 0), MATCH(Q$4, RAB_years, 0)) -> 0.15765505 | R26: =INDEX('RAB input'!$H$25:$XFD$74, MATCH($E26, 'RAB input'!$E$25:$E$74, 0), MATCH(R$4, RAB_years, 0)) -> 0.68845178 | S26: =INDEX('RAB input'!$H$25:$XFD$74, MATCH($E26, 'RAB input'!$E$25:$E$74, 0), MATCH(S$4, RAB_years, 0)) -> 0.08127125 | T26: =INDEX('RAB input'!$H$25:$XFD$74, MATCH($E26, 'RAB input'!$E$25:$E$74, 0), MATCH(T$4, RAB_years, 0)) -> -0.08127125 | U26: =INDEX('RAB input'!$H$25:$XFD$74, MATCH($E26, 'RAB input'!$E$25:$E$74, 0), MATCH(U$4, RAB_years, 0)) -> 0 | V26: =INDEX('RAB input'!$H$25:$XFD$74, MATCH($E26, 'RAB input'!$E$25:$E$74, 0), MATCH(V$4, RAB_years, 0)) -> 0 | W26: =INDEX('RAB input'!$H$25:$XFD$74, MATCH($E26, 'RAB input'!$E$25:$E$74, 0), MATCH(W$4, RAB_years, 0)) -> 0 | X26: =INDEX('RAB input'!$H$25:$XFD$74, MATCH($E26, 'RAB input'!$E$25:$E$74, 0), MATCH(X$4, RAB_years, 0)) -> 0 | Y26: =INDEX('RAB input'!$H$25:$XFD$74, MATCH($E26, 'RAB input'!$E$25:$E$74, 0), MATCH(Y$4, RAB_years, 0)) -> 0 | Z26: =INDEX('RAB input'!$H$25:$XFD$74, MATCH($E26, 'RAB input'!$E$25:$E$74, 0), MATCH(Z$4, RAB_years, 0)) -> 0 | AA26: =INDEX('RAB input'!$H$25:$XFD$74, MATCH($E26, 'RAB input'!$E$25:$E$74, 0), MATCH(AA$4, RAB_years, 0)) -> 0 | AB26: =INDEX('RAB input'!$H$25:$XFD$74, MATCH($E26, 'RAB input'!$E$25:$E$74, 0), MATCH(AB$4, RAB_years, 0)) -> 0 | AC26: =INDEX('RAB input'!$H$25:$XFD$74, MATCH($E26, 'RAB input'!$E$25:$E$74, 0), MATCH(AC$4, RAB_years, 0)) -> 0 | AD26: =INDEX('RAB input'!$H$25:$XFD$74, MATCH($E26, 'RAB input'!$E$25:$E$74, 0), MATCH(AD$4, RAB_years, 0)) -> 0 | AE26: =INDEX('RAB input'!$H$25:$XFD$74, MATCH($E26, 'RAB input'!$E$25:$E$74, 0), MATCH(AE$4, RAB_years, 0)) -> 0 | AF26: =INDEX('RAB input'!$H$25:$XFD$74, MATCH($E26, 'RAB input'!$E$25:$E$74, 0), MATCH(AF$4, RAB_years, 0)) -> 0 | AG26: =INDEX('RAB input'!$H$25:$XFD$74, MATCH($E26, 'RAB input'!$E$25:$E$74, 0), MATCH(AG$4, RAB_years, 0)) -> 0 | AH26: =INDEX('RAB input'!$H$25:$XFD$74, MATCH($E26, 'RAB input'!$E$25:$E$74, 0), MATCH(AH$4, RAB_years, 0)) -> 0 | AI26: =INDEX('RAB input'!$H$25:$XFD$74, MATCH($E26, 'RAB input'!$E$25:$E$74, 0), MATCH(AI$4, RAB_years, 0)) -> 0 | AJ26: =INDEX('RAB input'!$H$25:$XFD$74, MATCH($E26, 'RAB input'!$E$25:$E$74, 0), MATCH(AJ$4, RAB_years, 0)) -> 0 | AK26: =INDEX('RAB input'!$H$25:$XFD$74, MATCH($E26, 'RAB input'!$E$25:$E$74, 0), MATCH(AK$4, RAB_years, 0)) -> 0 | AL26: =INDEX('RAB input'!$H$25:$XFD$74, MATCH($E26, 'RAB input'!$E$25:$E$74, 0), MATCH(AL$4, RAB_years, 0)) -> 0 | AM26: =INDEX('RAB input'!$H$25:$XFD$74, MATCH($E26, 'RAB input'!$E$25:$E$74, 0), MATCH(AM$4, RAB_years, 0)) -> 0 | AN26: =INDEX('RAB input'!$H$25:$XFD$74, MATCH($E26, 'RAB input'!$E$25:$E$74, 0), MATCH(AN$4, RAB_years, 0)) -> 0 | AO26: =INDEX('RAB input'!$H$25:$XFD$74, MATCH($E26, 'RAB input'!$E$25:$E$74, 0), MATCH(AO$4, RAB_years, 0)) -> 0 | AP26: =INDEX('RAB input'!$H$25:$XFD$74, MATCH($E26, 'RAB input'!$E$25:$E$74, 0), MATCH(AP$4, RAB_years, 0)) -> 0 | AQ26: =INDEX('RAB input'!$H$25:$XFD$74, MATCH($E26, 'RAB input'!$E$25:$E$74, 0), MATCH(AQ$4, RAB_years, 0)) -> 0 | AR26: =INDEX('RAB input'!$H$25:$XFD$74, MATCH($E26, 'RAB input'!$E$25:$E$74, 0), MATCH(AR$4, RAB_years, 0)) -> 0 | AS26: =INDEX('RAB input'!$H$25:$XFD$74, MATCH($E26, 'RAB input'!$E$25:$E$74, 0), MATCH(AS$4, RAB_years, 0)) -> 0 | AT26: =INDEX('RAB input'!$H$25:$XFD$74, MATCH($E26, 'RAB input'!$E$25:$E$74, 0), MATCH(AT$4, RAB_years, 0)) -> 0 | AU26: =INDEX('RAB input'!$H$25:$XFD$74, MATCH($E26, 'RAB input'!$E$25:$E$74, 0), MATCH(AU$4, RAB_years, 0)) -> 0 | AV26: =INDEX('RAB input'!$H$25:$XFD$74, MATCH($E26, 'RAB input'!$E$25:$E$74, 0), MATCH(AV$4, RAB_years, 0)) -> 0 | AW26: =INDEX('RAB input'!$H$25:$XFD$74, MATCH($E26, 'RAB input'!$E$25:$E$74, 0), MATCH(AW$4, RAB_years, 0)) -> 0 | AX26: =INDEX('RAB input'!$H$25:$XFD$74, MATCH($E26, 'RAB input'!$E$25:$E$74, 0), MATCH(AX$4, RAB_years, 0)) -> 0 | AY26: =INDEX('RAB input'!$H$25:$XFD$74, MATCH($E26, 'RAB input'!$E$25:$E$74, 0), MATCH(AY$4, RAB_years, 0)) -> 0 | AZ26: =INDEX('RAB input'!$H$25:$XFD$74, MATCH($E26, 'RAB input'!$E$25:$E$74, 0), MATCH(AZ$4, RAB_years, 0)) -> 0 | BA26: =INDEX('RAB input'!$H$25:$XFD$74, MATCH($E26, 'RAB input'!$E$25:$E$74, 0), MATCH(BA$4, RAB_years, 0)) -> 0 | BB26: =INDEX('RAB input'!$H$25:$XFD$74, MATCH($E26, 'RAB input'!$E$25:$E$74, 0), MATCH(BB$4, RAB_years, 0)) -> 0 | BC26: =INDEX('RAB input'!$H$25:$XFD$74, MATCH($E26, 'RAB input'!$E$25:$E$74, 0), MATCH(BC$4, RAB_years, 0)) -> 0 | BD26: =INDEX('RAB input'!$H$25:$XFD$74, MATCH($E26, 'RAB input'!$E$25:$E$74, 0), MATCH(BD$4, RAB_years, 0)) -> 0 | BE26: =INDEX('RAB input'!$H$25:$XFD$74, MATCH($E26, 'RAB input'!$E$25:$E$74, 0), MATCH(BE$4, RAB_years, 0)) -> 0 | BF26: =INDEX('RAB input'!$H$25:$XFD$74, MATCH($E26, 'RAB input'!$E$25:$E$74, 0), MATCH(BF$4, RAB_years, 0)) -> 0 | BG26: =INDEX('RAB input'!$H$25:$XFD$74, MATCH($E26, 'RAB input'!$E$25:$E$74, 0), MATCH(BG$4, RAB_years, 0)) -> 0 | BH26: =INDEX('RAB input'!$H$25:$XFD$74, MATCH($E26, 'RAB input'!$E$25:$E$74, 0), MATCH(BH$4, RAB_years, 0)) -> 0 | BI26: =INDEX('RAB input'!$H$25:$XFD$74, MATCH($E26, 'RAB input'!$E$25:$E$74, 0), MATCH(BI$4, RAB_years, 0)) -> 0 | BJ26: =INDEX('RAB input'!$H$25:$XFD$74, MATCH($E26, 'RAB input'!$E$25:$E$74, 0), MATCH(BJ$4, RAB_years, 0)) -> 0 | BK26: =INDEX('RAB input'!$H$25:$XFD$74, MATCH($E26, 'RAB input'!$E$25:$E$74, 0), MATCH(BK$4, RAB_years, 0)) -> 0 | BL26: =INDEX('RAB input'!$H$25:$XFD$74, MATCH($E26, 'RAB input'!$E$25:$E$74, 0), MATCH(BL$4, RAB_years, 0)) -> 0 | BM26: =INDEX('RAB input'!$H$25:$XFD$74, MATCH($E26, 'RAB input'!$E$25:$E$74, 0), MATCH(BM$4, RAB_years, 0)) -> 0 | BN26: =INDEX('RAB input'!$H$25:$XFD$74, MATCH($E26, 'RAB input'!$E$25:$E$74, 0), MATCH(BN$4, RAB_years, 0)) -> 0 | BO26: =INDEX('RAB input'!$H$25:$XFD$74, MATCH($E26, 'RAB input'!$E$25:$E$74, 0), MATCH(BO$4, RAB_years, 0)) -> 0 | BP26: =INDEX('RAB input'!$H$25:$XFD$74, MATCH($E26, 'RAB input'!$E$25:$E$74, 0), MATCH(BP$4, RAB_years, 0)) -> 0 | BQ26: =INDEX('RAB input'!$H$25:$XFD$74, MATCH($E26, 'RAB input'!$E$25:$E$74, 0), MATCH(BQ$4, RAB_years, 0)) -> 0 | BR26: =INDEX('RAB input'!$H$25:$XFD$74, MATCH($E26, 'RAB input'!$E$25:$E$74, 0), MATCH(BR$4, RAB_years, 0)) -> 0 | BS26: =INDEX('RAB input'!$H$25:$XFD$74, MATCH($E26, 'RAB input'!$E$25:$E$74, 0), MATCH(BS$4, RAB_years, 0)) -> 0 | BT26: =INDEX('RAB input'!$H$25:$XFD$74, MATCH($E26, 'RAB input'!$E$25:$E$74, 0), MATCH(BT$4, RAB_years, 0)) -> 0 | BU26: =INDEX('RAB input'!$H$25:$XFD$74, MATCH($E26, 'RAB input'!$E$25:$E$74, 0), MATCH(BU$4, RAB_years, 0)) -> 0 | BV26: =INDEX('RAB input'!$H$25:$XFD$74, MATCH($E26, 'RAB input'!$E$25:$E$74, 0), MATCH(BV$4, RAB_years, 0)) -> 0 | BW26: =INDEX('RAB input'!$H$25:$XFD$74, MATCH($E26, 'RAB input'!$E$25:$E$74, 0), MATCH(BW$4, RAB_years, 0)) -> 0 | BX26: =INDEX('RAB input'!$H$25:$XFD$74, MATCH($E26, 'RAB input'!$E$25:$E$74, 0), MATCH(BX$4, RAB_years, 0)) -> 0 | BY26: =INDEX('RAB input'!$H$25:$XFD$74, MATCH($E26, 'RAB input'!$E$25:$E$74, 0), MATCH(BY$4, RAB_years, 0)) -> 0 | BZ26: =INDEX('RAB input'!$H$25:$XFD$74, MATCH($E26, 'RAB input'!$E$25:$E$74, 0), MATCH(BZ$4, RAB_years, 0)) -> 0 | CA26: =INDEX('RAB input'!$H$25:$XFD$74, MATCH($E26, 'RAB input'!$E$25:$E$74, 0), MATCH(CA$4, RAB_years, 0)) -> 0 | CB26: =INDEX('RAB input'!$H$25:$XFD$74, MATCH($E26, 'RAB input'!$E$25:$E$74, 0), MATCH(CB$4, RAB_years, 0)) -> 0 | CC26: =INDEX('RAB input'!$H$25:$XFD$74, MATCH($E26, 'RAB input'!$E$25:$E$74, 0), MATCH(CC$4, RAB_years, 0)) -> 0 | CD26: =INDEX('RAB input'!$H$25:$XFD$74, MATCH($E26, 'RAB input'!$E$25:$E$74, 0), MATCH(CD$4, RAB_years, 0)) -> 0 | CE26: =INDEX('RAB input'!$H$25:$XFD$74, MATCH($E26, 'RAB input'!$E$25:$E$74, 0), MATCH(CE$4, RAB_years, 0)) -> 0
D27: 10 | E27: ='RAB input'!E34 -> Easements | G27: 0 | H27: 0 | I27: =INDEX('RAB input'!$H$25:$XFD$74, MATCH($E27, 'RAB input'!$E$25:$E$74, 0), MATCH(I$4, RAB_years, 0)) -> 0.189 | J27: =INDEX('RAB input'!$H$25:$XFD$74, MATCH($E27, 'RAB input'!$E$25:$E$74, 0), MATCH(J$4, RAB_years, 0)) -> 1.815 | K27: =INDEX('RAB input'!$H$25:$XFD$74, MATCH($E27, 'RAB input'!$E$25:$E$74, 0), MATCH(K$4, RAB_years, 0)) -> 0.879 | L27: =INDEX('RAB input'!$H$25:$XFD$74, MATCH($E27, 'RAB input'!$E$25:$E$74, 0), MATCH(L$4, RAB_years, 0)) -> 0.59 | M27: =INDEX('RAB input'!$H$25:$XFD$74, MATCH($E27, 'RAB input'!$E$25:$E$74, 0), MATCH(M$4, RAB_years, 0)) -> 0.9302389073 | N27: =INDEX('RAB input'!$H$25:$XFD$74, MATCH($E27, 'RAB input'!$E$25:$E$74, 0), MATCH(N$4, RAB_years, 0)) -> 0.4395481454 | O27: =INDEX('RAB input'!$H$25:$XFD$74, MATCH($E27, 'RAB input'!$E$25:$E$74, 0), MATCH(O$4, RAB_years, 0)) -> 0.3423921733 | P27: =INDEX('RAB input'!$H$25:$XFD$74, MATCH($E27, 'RAB input'!$E$25:$E$74, 0), MATCH(P$4, RAB_years, 0)) -> 0.5507580966 | Q27: =INDEX('RAB input'!$H$25:$XFD$74, MATCH($E27, 'RAB input'!$E$25:$E$74, 0), MATCH(Q$4, RAB_years, 0)) -> 0.4120200163 | R27: =INDEX('RAB input'!$H$25:$XFD$74, MATCH($E27, 'RAB input'!$E$25:$E$74, 0), MATCH(R$4, RAB_years, 0)) -> 0.5077739123 | S27: =INDEX('RAB input'!$H$25:$XFD$74, MATCH($E27, 'RAB input'!$E$25:$E$74, 0), MATCH(S$4, RAB_years, 0)) -> 0.4950245692 | T27: =INDEX('RAB input'!$H$25:$XFD$74, MATCH($E27, 'RAB input'!$E$25:$E$74, 0), MATCH(T$4, RAB_years, 0)) -> 0.3704658755 | U27: =INDEX('RAB input'!$H$25:$XFD$74, MATCH($E27, 'RAB input'!$E$25:$E$74, 0), MATCH(U$4, RAB_years, 0)) -> 0.441443818 | V27: =INDEX('RAB input'!$H$25:$XFD$74, MATCH($E27, 'RAB input'!$E$25:$E$74, 0), MATCH(V$4, RAB_years, 0)) -> 0.6649865737 | W27: =INDEX('RAB input'!$H$25:$XFD$74, MATCH($E27, 'RAB input'!$E$25:$E$74, 0), MATCH(W$4, RAB_years, 0)) -> 0.933163543 | X27: =INDEX('RAB input'!$H$25:$XFD$74, MATCH($E27, 'RAB input'!$E$25:$E$74, 0), MATCH(X$4, RAB_years, 0)) -> 0 | Y27: =INDEX('RAB input'!$H$25:$XFD$74, MATCH($E27, 'RAB input'!$E$25:$E$74, 0), MATCH(Y$4, RAB_years, 0)) -> 0 | Z27: =INDEX('RAB input'!$H$25:$XFD$74, MATCH($E27, 'RAB input'!$E$25:$E$74, 0), MATCH(Z$4, RAB_years, 0)) -> 0 | AA27: =INDEX('RAB input'!$H$25:$XFD$74, MATCH($E27, 'RAB input'!$E$25:$E$74, 0), MATCH(AA$4, RAB_years, 0)) -> 0 | AB27: =INDEX('RAB input'!$H$25:$XFD$74, MATCH($E27, 'RAB input'!$E$25:$E$74, 0), MATCH(AB$4, RAB_years, 0)) -> 0 | AC27: =INDEX('RAB input'!$H$25:$XFD$74, MATCH($E27, 'RAB input'!$E$25:$E$74, 0), MATCH(AC$4, RAB_years, 0)) -> 0 | AD27: =INDEX('RAB input'!$H$25:$XFD$74, MATCH($E27, 'RAB input'!$E$25:$E$74, 0), MATCH(AD$4, RAB_years, 0)) -> 0 | AE27: =INDEX('RAB input'!$H$25:$XFD$74, MATCH($E27, 'RAB input'!$E$25:$E$74, 0), MATCH(AE$4, RAB_years, 0)) -> 0 | AF27: =INDEX('RAB input'!$H$25:$XFD$74, MATCH($E27, 'RAB input'!$E$25:$E$74, 0), MATCH(AF$4, RAB_years, 0)) -> 0 | AG27: =INDEX('RAB input'!$H$25:$XFD$74, MATCH($E27, 'RAB input'!$E$25:$E$74, 0), MATCH(AG$4, RAB_years, 0)) -> 0 | AH27: =INDEX('RAB input'!$H$25:$XFD$74, MATCH($E27, 'RAB input'!$E$25:$E$74, 0), MATCH(AH$4, RAB_years, 0)) -> 0 | AI27: =INDEX('RAB input'!$H$25:$XFD$74, MATCH($E27, 'RAB input'!$E$25:$E$74, 0), MATCH(AI$4, RAB_years, 0)) -> 0 | AJ27: =INDEX('RAB input'!$H$25:$XFD$74, MATCH($E27, 'RAB input'!$E$25:$E$74, 0), MATCH(AJ$4, RAB_years, 0)) -> 0 | AK27: =INDEX('RAB input'!$H$25:$XFD$74, MATCH($E27, 'RAB input'!$E$25:$E$74, 0), MATCH(AK$4, RAB_years, 0)) -> 0 | AL27: =INDEX('RAB input'!$H$25:$XFD$74, MATCH($E27, 'RAB input'!$E$25:$E$74, 0), MATCH(AL$4, RAB_years, 0)) -> 0 | AM27: =INDEX('RAB input'!$H$25:$XFD$74, MATCH($E27, 'RAB input'!$E$25:$E$74, 0), MATCH(AM$4, RAB_years, 0)) -> 0 | AN27: =INDEX('RAB input'!$H$25:$XFD$74, MATCH($E27, 'RAB input'!$E$25:$E$74, 0), MATCH(AN$4, RAB_years, 0)) -> 0 | AO27: =INDEX('RAB input'!$H$25:$XFD$74, MATCH($E27, 'RAB input'!$E$25:$E$74, 0), MATCH(AO$4, RAB_years, 0)) -> 0 | AP27: =INDEX('RAB input'!$H$25:$XFD$74, MATCH($E27, 'RAB input'!$E$25:$E$74, 0), MATCH(AP$4, RAB_years, 0)) -> 0 | AQ27: =INDEX('RAB input'!$H$25:$XFD$74, MATCH($E27, 'RAB input'!$E$25:$E$74, 0), MATCH(AQ$4, RAB_years, 0)) -> 0 | AR27: =INDEX('RAB input'!$H$25:$XFD$74, MATCH($E27, 'RAB input'!$E$25:$E$74, 0), MATCH(AR$4, RAB_years, 0)) -> 0 | AS27: =INDEX('RAB input'!$H$25:$XFD$74, MATCH($E27, 'RAB input'!$E$25:$E$74, 0), MATCH(AS$4, RAB_years, 0)) -> 0 | AT27: =INDEX('RAB input'!$H$25:$XFD$74, MATCH($E27, 'RAB input'!$E$25:$E$74, 0), MATCH(AT$4, RAB_years, 0)) -> 0 | AU27: =INDEX('RAB input'!$H$25:$XFD$74, MATCH($E27, 'RAB input'!$E$25:$E$74, 0), MATCH(AU$4, RAB_years, 0)) -> 0 | AV27: =INDEX('RAB input'!$H$25:$XFD$74, MATCH($E27, 'RAB input'!$E$25:$E$74, 0), MATCH(AV$4, RAB_years, 0)) -> 0 | AW27: =INDEX('RAB input'!$H$25:$XFD$74, MATCH($E27, 'RAB input'!$E$25:$E$74, 0), MATCH(AW$4, RAB_years, 0)) -> 0 | AX27: =INDEX('RAB input'!$H$25:$XFD$74, MATCH($E27, 'RAB input'!$E$25:$E$74, 0), MATCH(AX$4, RAB_years, 0)) -> 0 | AY27: =INDEX('RAB input'!$H$25:$XFD$74, MATCH($E27, 'RAB input'!$E$25:$E$74, 0), MATCH(AY$4, RAB_years, 0)) -> 0 | AZ27: =INDEX('RAB input'!$H$25:$XFD$74, MATCH($E27, 'RAB input'!$E$25:$E$74, 0), MATCH(AZ$4, RAB_years, 0)) -> 0 | BA27: =INDEX('RAB input'!$H$25:$XFD$74, MATCH($E27, 'RAB input'!$E$25:$E$74, 0), MATCH(BA$4, RAB_years, 0)) -> 0 | BB27: =INDEX('RAB input'!$H$25:$XFD$74, MATCH($E27, 'RAB input'!$E$25:$E$74, 0), MATCH(BB$4, RAB_years, 0)) -> 0 | BC27: =INDEX('RAB input'!$H$25:$XFD$74, MATCH($E27, 'RAB input'!$E$25:$E$74, 0), MATCH(BC$4, RAB_years, 0)) -> 0 | BD27: =INDEX('RAB input'!$H$25:$XFD$74, MATCH($E27, 'RAB input'!$E$25:$E$74, 0), MATCH(BD$4, RAB_years, 0)) -> 0 | BE27: =INDEX('RAB input'!$H$25:$XFD$74, MATCH($E27, 'RAB input'!$E$25:$E$74, 0), MATCH(BE$4, RAB_years, 0)) -> 0 | BF27: =INDEX('RAB input'!$H$25:$XFD$74, MATCH($E27, 'RAB input'!$E$25:$E$74, 0), MATCH(BF$4, RAB_years, 0)) -> 0 | BG27: =INDEX('RAB input'!$H$25:$XFD$74, MATCH($E27, 'RAB input'!$E$25:$E$74, 0), MATCH(BG$4, RAB_years, 0)) -> 0 | BH27: =INDEX('RAB input'!$H$25:$XFD$74, MATCH($E27, 'RAB input'!$E$25:$E$74, 0), MATCH(BH$4, RAB_years, 0)) -> 0 | BI27: =INDEX('RAB input'!$H$25:$XFD$74, MATCH($E27, 'RAB input'!$E$25:$E$74, 0), MATCH(BI$4, RAB_years, 0)) -> 0 | BJ27: =INDEX('RAB input'!$H$25:$XFD$74, MATCH($E27, 'RAB input'!$E$25:$E$74, 0), MATCH(BJ$4, RAB_years, 0)) -> 0 | BK27: =INDEX('RAB input'!$H$25:$XFD$74, MATCH($E27, 'RAB input'!$E$25:$E$74, 0), MATCH(BK$4, RAB_years, 0)) -> 0 | BL27: =INDEX('RAB input'!$H$25:$XFD$74, MATCH($E27, 'RAB input'!$E$25:$E$74, 0), MATCH(BL$4, RAB_years, 0)) -> 0 | BM27: =INDEX('RAB input'!$H$25:$XFD$74, MATCH($E27, 'RAB input'!$E$25:$E$74, 0), MATCH(BM$4, RAB_years, 0)) -> 0 | BN27: =INDEX('RAB input'!$H$25:$XFD$74, MATCH($E27, 'RAB input'!$E$25:$E$74, 0), MATCH(BN$4, RAB_years, 0)) -> 0 | BO27: =INDEX('RAB input'!$H$25:$XFD$74, MATCH($E27, 'RAB input'!$E$25:$E$74, 0), MATCH(BO$4, RAB_years, 0)) -> 0 | BP27: =INDEX('RAB input'!$H$25:$XFD$74, MATCH($E27, 'RAB input'!$E$25:$E$74, 0), MATCH(BP$4, RAB_years, 0)) -> 0 | BQ27: =INDEX('RAB input'!$H$25:$XFD$74, MATCH($E27, 'RAB input'!$E$25:$E$74, 0), MATCH(BQ$4, RAB_years, 0)) -> 0 | BR27: =INDEX('RAB input'!$H$25:$XFD$74, MATCH($E27, 'RAB input'!$E$25:$E$74, 0), MATCH(BR$4, RAB_years, 0)) -> 0 | BS27: =INDEX('RAB input'!$H$25:$XFD$74, MATCH($E27, 'RAB input'!$E$25:$E$74, 0), MATCH(BS$4, RAB_years, 0)) -> 0 | BT27: =INDEX('RAB input'!$H$25:$XFD$74, MATCH($E27, 'RAB input'!$E$25:$E$74, 0), MATCH(BT$4, RAB_years, 0)) -> 0 | BU27: =INDEX('RAB input'!$H$25:$XFD$74, MATCH($E27, 'RAB input'!$E$25:$E$74, 0), MATCH(BU$4, RAB_years, 0)) -> 0 | BV27: =INDEX('RAB input'!$H$25:$XFD$74, MATCH($E27, 'RAB input'!$E$25:$E$74, 0), MATCH(BV$4, RAB_years, 0)) -> 0 | BW27: =INDEX('RAB input'!$H$25:$XFD$74, MATCH($E27, 'RAB input'!$E$25:$E$74, 0), MATCH(BW$4, RAB_years, 0)) -> 0 | BX27: =INDEX('RAB input'!$H$25:$XFD$74, MATCH($E27, 'RAB input'!$E$25:$E$74, 0), MATCH(BX$4, RAB_years, 0)) -> 0 | BY27: =INDEX('RAB input'!$H$25:$XFD$74, MATCH($E27, 'RAB input'!$E$25:$E$74, 0), MATCH(BY$4, RAB_years, 0)) -> 0 | BZ27: =INDEX('RAB input'!$H$25:$XFD$74, MATCH($E27, 'RAB input'!$E$25:$E$74, 0), MATCH(BZ$4, RAB_years, 0)) -> 0 | CA27: =INDEX('RAB input'!$H$25:$XFD$74, MATCH($E27, 'RAB input'!$E$25:$E$74, 0), MATCH(CA$4, RAB_years, 0)) -> 0 | CB27: =INDEX('RAB input'!$H$25:$XFD$74, MATCH($E27, 'RAB input'!$E$25:$E$74, 0), MATCH(CB$4, RAB_years, 0)) -> 0 | CC27: =INDEX('RAB input'!$H$25:$XFD$74, MATCH($E27, 'RAB input'!$E$25:$E$74, 0), MATCH(CC$4, RAB_years, 0)) -> 0 | CD27: =INDEX('RAB input'!$H$25:$XFD$74, MATCH($E27, 'RAB input'!$E$25:$E$74, 0), MATCH(CD$4, RAB_years, 0)) -> 0 | CE27: =INDEX('RAB input'!$H$25:$XFD$74, MATCH($E27, 'RAB input'!$E$25:$E$74, 0), MATCH(CE$4, RAB_years, 0)) -> 0
D28: 11 | E28: ='RAB input'!E35 -> Buildings-Pre 2020 | G28: -1.089222877 | I28: =INDEX('RAB input'!$H$25:$XFD$74, MATCH($E28, 'RAB input'!$E$25:$E$74, 0), MATCH(I$4, RAB_years, 0)) -> 0.391 | J28: =INDEX('RAB input'!$H$25:$XFD$74, MATCH($E28, 'RAB input'!$E$25:$E$74, 0), MATCH(J$4, RAB_years, 0)) -> 6.08 | K28: =INDEX('RAB input'!$H$25:$XFD$74, MATCH($E28, 'RAB input'!$E$25:$E$74, 0), MATCH(K$4, RAB_years, 0)) -> 0.155 | L28: =INDEX('RAB input'!$H$25:$XFD$74, MATCH($E28, 'RAB input'!$E$25:$E$74, 0), MATCH(L$4, RAB_years, 0)) -> 0.058 | M28: =INDEX('RAB input'!$H$25:$XFD$74, MATCH($E28, 'RAB input'!$E$25:$E$74, 0), MATCH(M$4, RAB_years, 0)) -> 0.09239235781 | N28: =INDEX('RAB input'!$H$25:$XFD$74, MATCH($E28, 'RAB input'!$E$25:$E$74, 0), MATCH(N$4, RAB_years, 0)) -> 0 | O28: =INDEX('RAB input'!$H$25:$XFD$74, MATCH($E28, 'RAB input'!$E$25:$E$74, 0), MATCH(O$4, RAB_years, 0)) -> 0 | P28: =INDEX('RAB input'!$H$25:$XFD$74, MATCH($E28, 'RAB input'!$E$25:$E$74, 0), MATCH(P$4, RAB_years, 0)) -> 0 | Q28: =INDEX('RAB input'!$H$25:$XFD$74, MATCH($E28, 'RAB input'!$E$25:$E$74, 0), MATCH(Q$4, RAB_years, 0)) -> 7.853410006 | R28: =INDEX('RAB input'!$H$25:$XFD$74, MATCH($E28, 'RAB input'!$E$25:$E$74, 0), MATCH(R$4, RAB_years, 0)) -> 6.763701569 | S28: =INDEX('RAB input'!$H$25:$XFD$74, MATCH($E28, 'RAB input'!$E$25:$E$74, 0), MATCH(S$4, RAB_years, 0)) -> 0 | T28: =INDEX('RAB input'!$H$25:$XFD$74, MATCH($E28, 'RAB input'!$E$25:$E$74, 0), MATCH(T$4, RAB_years, 0)) -> 0 | U28: =INDEX('RAB input'!$H$25:$XFD$74, MATCH($E28, 'RAB input'!$E$25:$E$74, 0), MATCH(U$4, RAB_years, 0)) -> 0 | V28: =INDEX('RAB input'!$H$25:$XFD$74, MATCH($E28, 'RAB input'!$E$25:$E$74, 0), MATCH(V$4, RAB_years, 0)) -> 0 | W28: =INDEX('RAB input'!$H$25:$XFD$74, MATCH($E28, 'RAB input'!$E$25:$E$74, 0), MATCH(W$4, RAB_years, 0)) -> 0 | X28: =INDEX('RAB input'!$H$25:$XFD$74, MATCH($E28, 'RAB input'!$E$25:$E$74, 0), MATCH(X$4, RAB_years, 0)) -> 0 | Y28: =INDEX('RAB input'!$H$25:$XFD$74, MATCH($E28, 'RAB input'!$E$25:$E$74, 0), MATCH(Y$4, RAB_years, 0)) -> 0 | Z28: =INDEX('RAB input'!$H$25:$XFD$74, MATCH($E28, 'RAB input'!$E$25:$E$74, 0), MATCH(Z$4, RAB_years, 0)) -> 0 | AA28: =INDEX('RAB input'!$H$25:$XFD$74, MATCH($E28, 'RAB input'!$E$25:$E$74, 0), MATCH(AA$4, RAB_years, 0)) -> 0 | AB28: =INDEX('RAB input'!$H$25:$XFD$74, MATCH($E28, 'RAB input'!$E$25:$E$74, 0), MATCH(AB$4, RAB_years, 0)) -> 0 | AC28: =INDEX('RAB input'!$H$25:$XFD$74, MATCH($E28, 'RAB input'!$E$25:$E$74, 0), MATCH(AC$4, RAB_years, 0)) -> 0 | AD28: =INDEX('RAB input'!$H$25:$XFD$74, MATCH($E28, 'RAB input'!$E$25:$E$74, 0), MATCH(AD$4, RAB_years, 0)) -> 0 | AE28: =INDEX('RAB input'!$H$25:$XFD$74, MATCH($E28, 'RAB input'!$E$25:$E$74, 0), MATCH(AE$4, RAB_years, 0)) -> 0 | AF28: =INDEX('RAB input'!$H$25:$XFD$74, MATCH($E28, 'RAB input'!$E$25:$E$74, 0), MATCH(AF$4, RAB_years, 0)) -> 0 | AG28: =INDEX('RAB input'!$H$25:$XFD$74, MATCH($E28, 'RAB input'!$E$25:$E$74, 0), MATCH(AG$4, RAB_years, 0)) -> 0 | AH28: =INDEX('RAB input'!$H$25:$XFD$74, MATCH($E28, 'RAB input'!$E$25:$E$74, 0), MATCH(AH$4, RAB_years, 0)) -> 0 | AI28: =INDEX('RAB input'!$H$25:$XFD$74, MATCH($E28, 'RAB input'!$E$25:$E$74, 0), MATCH(AI$4, RAB_years, 0)) -> 0 | AJ28: =INDEX('RAB input'!$H$25:$XFD$74, MATCH($E28, 'RAB input'!$E$25:$E$74, 0), MATCH(AJ$4, RAB_years, 0)) -> 0 | AK28: =INDEX('RAB input'!$H$25:$XFD$74, MATCH($E28, 'RAB input'!$E$25:$E$74, 0), MATCH(AK$4, RAB_years, 0)) -> 0 | AL28: =INDEX('RAB input'!$H$25:$XFD$74, MATCH($E28, 'RAB input'!$E$25:$E$74, 0), MATCH(AL$4, RAB_years, 0)) -> 0 | AM28: =INDEX('RAB input'!$H$25:$XFD$74, MATCH($E28, 'RAB input'!$E$25:$E$74, 0), MATCH(AM$4, RAB_years, 0)) -> 0 | AN28: =INDEX('RAB input'!$H$25:$XFD$74, MATCH($E28, 'RAB input'!$E$25:$E$74, 0), MATCH(AN$4, RAB_years, 0)) -> 0 | AO28: =INDEX('RAB input'!$H$25:$XFD$74, MATCH($E28, 'RAB input'!$E$25:$E$74, 0), MATCH(AO$4, RAB_years, 0)) -> 0 | AP28: =INDEX('RAB input'!$H$25:$XFD$74, MATCH($E28, 'RAB input'!$E$25:$E$74, 0), MATCH(AP$4, RAB_years, 0)) -> 0 | AQ28: =INDEX('RAB input'!$H$25:$XFD$74, MATCH($E28, 'RAB input'!$E$25:$E$74, 0), MATCH(AQ$4, RAB_years, 0)) -> 0 | AR28: =INDEX('RAB input'!$H$25:$XFD$74, MATCH($E28, 'RAB input'!$E$25:$E$74, 0), MATCH(AR$4, RAB_years, 0)) -> 0 | AS28: =INDEX('RAB input'!$H$25:$XFD$74, MATCH($E28, 'RAB input'!$E$25:$E$74, 0), MATCH(AS$4, RAB_years, 0)) -> 0 | AT28: =INDEX('RAB input'!$H$25:$XFD$74, MATCH($E28, 'RAB input'!$E$25:$E$74, 0), MATCH(AT$4, RAB_years, 0)) -> 0 | AU28: =INDEX('RAB input'!$H$25:$XFD$74, MATCH($E28, 'RAB input'!$E$25:$E$74, 0), MATCH(AU$4, RAB_years, 0)) -> 0 | AV28: =INDEX('RAB input'!$H$25:$XFD$74, MATCH($E28, 'RAB input'!$E$25:$E$74, 0), MATCH(AV$4, RAB_years, 0)) -> 0 | AW28: =INDEX('RAB input'!$H$25:$XFD$74, MATCH($E28, 'RAB input'!$E$25:$E$74, 0), MATCH(AW$4, RAB_years, 0)) -> 0 | AX28: =INDEX('RAB input'!$H$25:$XFD$74, MATCH($E28, 'RAB input'!$E$25:$E$74, 0), MATCH(AX$4, RAB_years, 0)) -> 0 | AY28: =INDEX('RAB input'!$H$25:$XFD$74, MATCH($E28, 'RAB input'!$E$25:$E$74, 0), MATCH(AY$4, RAB_years, 0)) -> 0 | AZ28: =INDEX('RAB input'!$H$25:$XFD$74, MATCH($E28, 'RAB input'!$E$25:$E$74, 0), MATCH(AZ$4, RAB_years, 0)) -> 0 | BA28: =INDEX('RAB input'!$H$25:$XFD$74, MATCH($E28, 'RAB input'!$E$25:$E$74, 0), MATCH(BA$4, RAB_years, 0)) -> 0 | BB28: =INDEX('RAB input'!$H$25:$XFD$74, MATCH($E28, 'RAB input'!$E$25:$E$74, 0), MATCH(BB$4, RAB_years, 0)) -> 0 | BC28: =INDEX('RAB input'!$H$25:$XFD$74, MATCH($E28, 'RAB input'!$E$25:$E$74, 0), MATCH(BC$4, RAB_years, 0)) -> 0 | BD28: =INDEX('RAB input'!$H$25:$XFD$74, MATCH($E28, 'RAB input'!$E$25:$E$74, 0), MATCH(BD$4, RAB_years, 0)) -> 0 | BE28: =INDEX('RAB input'!$H$25:$XFD$74, MATCH($E28, 'RAB input'!$E$25:$E$74, 0), MATCH(BE$4, RAB_years, 0)) -> 0 | BF28: =INDEX('RAB input'!$H$25:$XFD$74, MATCH($E28, 'RAB input'!$E$25:$E$74, 0), MATCH(BF$4, RAB_years, 0)) -> 0 | BG28: =INDEX('RAB input'!$H$25:$XFD$74, MATCH($E28, 'RAB input'!$E$25:$E$74, 0), MATCH(BG$4, RAB_years, 0)) -> 0 | BH28: =INDEX('RAB input'!$H$25:$XFD$74, MATCH($E28, 'RAB input'!$E$25:$E$74, 0), MATCH(BH$4, RAB_years, 0)) -> 0 | BI28: =INDEX('RAB input'!$H$25:$XFD$74, MATCH($E28, 'RAB input'!$E$25:$E$74, 0), MATCH(BI$4, RAB_years, 0)) -> 0 | BJ28: =INDEX('RAB input'!$H$25:$XFD$74, MATCH($E28, 'RAB input'!$E$25:$E$74, 0), MATCH(BJ$4, RAB_years, 0)) -> 0 | BK28: =INDEX('RAB input'!$H$25:$XFD$74, MATCH($E28, 'RAB input'!$E$25:$E$74, 0), MATCH(BK$4, RAB_years, 0)) -> 0 | BL28: =INDEX('RAB input'!$H$25:$XFD$74, MATCH($E28, 'RAB input'!$E$25:$E$74, 0), MATCH(BL$4, RAB_years, 0)) -> 0 | BM28: =INDEX('RAB input'!$H$25:$XFD$74, MATCH($E28, 'RAB input'!$E$25:$E$74, 0), MATCH(BM$4, RAB_years, 0)) -> 0 | BN28: =INDEX('RAB input'!$H$25:$XFD$74, MATCH($E28, 'RAB input'!$E$25:$E$74, 0), MATCH(BN$4, RAB_years, 0)) -> 0 | BO28: =INDEX('RAB input'!$H$25:$XFD$74, MATCH($E28, 'RAB input'!$E$25:$E$74, 0), MATCH(BO$4, RAB_years, 0)) -> 0 | BP28: =INDEX('RAB input'!$H$25:$XFD$74, MATCH($E28, 'RAB input'!$E$25:$E$74, 0), MATCH(BP$4, RAB_years, 0)) -> 0 | BQ28: =INDEX('RAB input'!$H$25:$XFD$74, MATCH($E28, 'RAB input'!$E$25:$E$74, 0), MATCH(BQ$4, RAB_years, 0)) -> 0 | BR28: =INDEX('RAB input'!$H$25:$XFD$74, MATCH($E28, 'RAB input'!$E$25:$E$74, 0), MATCH(BR$4, RAB_years, 0)) -> 0 | BS28: =INDEX('RAB input'!$H$25:$XFD$74, MATCH($E28, 'RAB input'!$E$25:$E$74, 0), MATCH(BS$4, RAB_years, 0)) -> 0 | BT28: =INDEX('RAB input'!$H$25:$XFD$74, MATCH($E28, 'RAB input'!$E$25:$E$74, 0), MATCH(BT$4, RAB_years, 0)) -> 0 | BU28: =INDEX('RAB input'!$H$25:$XFD$74, MATCH($E28, 'RAB input'!$E$25:$E$74, 0), MATCH(BU$4, RAB_years, 0)) -> 0 | BV28: =INDEX('RAB input'!$H$25:$XFD$74, MATCH($E28, 'RAB input'!$E$25:$E$74, 0), MATCH(BV$4, RAB_years, 0)) -> 0 | BW28: =INDEX('RAB input'!$H$25:$XFD$74, MATCH($E28, 'RAB input'!$E$25:$E$74, 0), MATCH(BW$4, RAB_years, 0)) -> 0 | BX28: =INDEX('RAB input'!$H$25:$XFD$74, MATCH($E28, 'RAB input'!$E$25:$E$74, 0), MATCH(BX$4, RAB_years, 0)) -> 0 | BY28: =INDEX('RAB input'!$H$25:$XFD$74, MATCH($E28, 'RAB input'!$E$25:$E$74, 0), MATCH(BY$4, RAB_years, 0)) -> 0 | BZ28: =INDEX('RAB input'!$H$25:$XFD$74, MATCH($E28, 'RAB input'!$E$25:$E$74, 0), MATCH(BZ$4, RAB_years, 0)) -> 0 | CA28: =INDEX('RAB input'!$H$25:$XFD$74, MATCH($E28, 'RAB input'!$E$25:$E$74, 0), MATCH(CA$4, RAB_years, 0)) -> 0 | CB28: =INDEX('RAB input'!$H$25:$XFD$74, MATCH($E28, 'RAB input'!$E$25:$E$74, 0), MATCH(CB$4, RAB_years, 0)) -> 0 | CC28: =INDEX('RAB input'!$H$25:$XFD$74, MATCH($E28, 'RAB input'!$E$25:$E$74, 0), MATCH(CC$4, RAB_years, 0)) -> 0 | CD28: =INDEX('RAB input'!$H$25:$XFD$74, MATCH($E28, 'RAB input'!$E$25:$E$74, 0), MATCH(CD$4, RAB_years, 0)) -> 0 | CE28: =INDEX('RAB input'!$H$25:$XFD$74, MATCH($E28, 'RAB input'!$E$25:$E$74, 0), MATCH(CE$4, RAB_years, 0)) -> 0
D29: 12 | E29: ='RAB input'!E36 -> Vehicles - 15 years | G29: 26.27911531 | H29: 1.738 | I29: =INDEX('RAB input'!$H$25:$XFD$74, MATCH($E29, 'RAB input'!$E$25:$E$74, 0), MATCH(I$4, RAB_years, 0)) -> 11.886 | J29: =INDEX('RAB input'!$H$25:$XFD$74, MATCH($E29, 'RAB input'!$E$25:$E$74, 0), MATCH(J$4, RAB_years, 0)) -> 9.278 | K29: =INDEX('RAB input'!$H$25:$XFD$74, MATCH($E29, 'RAB input'!$E$25:$E$74, 0), MATCH(K$4, RAB_years, 0)) -> 12.183 | L29: =INDEX('RAB input'!$H$25:$XFD$74, MATCH($E29, 'RAB input'!$E$25:$E$74, 0), MATCH(L$4, RAB_years, 0)) -> 12.751 | M29: =INDEX('RAB input'!$H$25:$XFD$74, MATCH($E29, 'RAB input'!$E$25:$E$74, 0), MATCH(M$4, RAB_years, 0)) -> 18.48880603 | N29: =INDEX('RAB input'!$H$25:$XFD$74, MATCH($E29, 'RAB input'!$E$25:$E$74, 0), MATCH(N$4, RAB_years, 0)) -> 5.01727698 | O29: =INDEX('RAB input'!$H$25:$XFD$74, MATCH($E29, 'RAB input'!$E$25:$E$74, 0), MATCH(O$4, RAB_years, 0)) -> 1.847038032 | P29: =INDEX('RAB input'!$H$25:$XFD$74, MATCH($E29, 'RAB input'!$E$25:$E$74, 0), MATCH(P$4, RAB_years, 0)) -> 2.560326223 | Q29: =INDEX('RAB input'!$H$25:$XFD$74, MATCH($E29, 'RAB input'!$E$25:$E$74, 0), MATCH(Q$4, RAB_years, 0)) -> 2.302279012 | R29: =INDEX('RAB input'!$H$25:$XFD$74, MATCH($E29, 'RAB input'!$E$25:$E$74, 0), MATCH(R$4, RAB_years, 0)) -> 1.28374936 | S29: =INDEX('RAB input'!$H$25:$XFD$74, MATCH($E29, 'RAB input'!$E$25:$E$74, 0), MATCH(S$4, RAB_years, 0)) -> 0.8454180143 | T29: =INDEX('RAB input'!$H$25:$XFD$74, MATCH($E29, 'RAB input'!$E$25:$E$74, 0), MATCH(T$4, RAB_years, 0)) -> 4.429328121 | U29: =INDEX('RAB input'!$H$25:$XFD$74, MATCH($E29, 'RAB input'!$E$25:$E$74, 0), MATCH(U$4, RAB_years, 0)) -> 8.078487945 | V29: =INDEX('RAB input'!$H$25:$XFD$74, MATCH($E29, 'RAB input'!$E$25:$E$74, 0), MATCH(V$4, RAB_years, 0)) -> 7.103867962 | W29: =INDEX('RAB input'!$H$25:$XFD$74, MATCH($E29, 'RAB input'!$E$25:$E$74, 0), MATCH(W$4, RAB_years, 0)) -> 3.63888495 | X29: =INDEX('RAB input'!$H$25:$XFD$74, MATCH($E29, 'RAB input'!$E$25:$E$74, 0), MATCH(X$4, RAB_years, 0)) -> 0 | Y29: =INDEX('RAB input'!$H$25:$XFD$74, MATCH($E29, 'RAB input'!$E$25:$E$74, 0), MATCH(Y$4, RAB_years, 0)) -> 0 | Z29: =INDEX('RAB input'!$H$25:$XFD$74, MATCH($E29, 'RAB input'!$E$25:$E$74, 0), MATCH(Z$4, RAB_years, 0)) -> 0 | AA29: =INDEX('RAB input'!$H$25:$XFD$74, MATCH($E29, 'RAB input'!$E$25:$E$74, 0), MATCH(AA$4, RAB_years, 0)) -> 0 | AB29: =INDEX('RAB input'!$H$25:$XFD$74, MATCH($E29, 'RAB input'!$E$25:$E$74, 0), MATCH(AB$4, RAB_years, 0)) -> 0 | AC29: =INDEX('RAB input'!$H$25:$XFD$74, MATCH($E29, 'RAB input'!$E$25:$E$74, 0), MATCH(AC$4, RAB_years, 0)) -> 0 | AD29: =INDEX('RAB input'!$H$25:$XFD$74, MATCH($E29, 'RAB input'!$E$25:$E$74, 0), MATCH(AD$4, RAB_years, 0)) -> 0 | AE29: =INDEX('RAB input'!$H$25:$XFD$74, MATCH($E29, 'RAB input'!$E$25:$E$74, 0), MATCH(AE$4, RAB_years, 0)) -> 0 | AF29: =INDEX('RAB input'!$H$25:$XFD$74, MATCH($E29, 'RAB input'!$E$25:$E$74, 0), MATCH(AF$4, RAB_years, 0)) -> 0 | AG29: =INDEX('RAB input'!$H$25:$XFD$74, MATCH($E29, 'RAB input'!$E$25:$E$74, 0), MATCH(AG$4, RAB_years, 0)) -> 0 | AH29: =INDEX('RAB input'!$H$25:$XFD$74, MATCH($E29, 'RAB input'!$E$25:$E$74, 0), MATCH(AH$4, RAB_years, 0)) -> 0 | AI29: =INDEX('RAB input'!$H$25:$XFD$74, MATCH($E29, 'RAB input'!$E$25:$E$74, 0), MATCH(AI$4, RAB_years, 0)) -> 0 | AJ29: =INDEX('RAB input'!$H$25:$XFD$74, MATCH($E29, 'RAB input'!$E$25:$E$74, 0), MATCH(AJ$4, RAB_years, 0)) -> 0 | AK29: =INDEX('RAB input'!$H$25:$XFD$74, MATCH($E29, 'RAB input'!$E$25:$E$74, 0), MATCH(AK$4, RAB_years, 0)) -> 0 | AL29: =INDEX('RAB input'!$H$25:$XFD$74, MATCH($E29, 'RAB input'!$E$25:$E$74, 0), MATCH(AL$4, RAB_years, 0)) -> 0 | AM29: =INDEX('RAB input'!$H$25:$XFD$74, MATCH($E29, 'RAB input'!$E$25:$E$74, 0), MATCH(AM$4, RAB_years, 0)) -> 0 | AN29: =INDEX('RAB input'!$H$25:$XFD$74, MATCH($E29, 'RAB input'!$E$25:$E$74, 0), MATCH(AN$4, RAB_years, 0)) -> 0 | AO29: =INDEX('RAB input'!$H$25:$XFD$74, MATCH($E29, 'RAB input'!$E$25:$E$74, 0), MATCH(AO$4, RAB_years, 0)) -> 0 | AP29: =INDEX('RAB input'!$H$25:$XFD$74, MATCH($E29, 'RAB input'!$E$25:$E$74, 0), MATCH(AP$4, RAB_years, 0)) -> 0 | AQ29: =INDEX('RAB input'!$H$25:$XFD$74, MATCH($E29, 'RAB input'!$E$25:$E$74, 0), MATCH(AQ$4, RAB_years, 0)) -> 0 | AR29: =INDEX('RAB input'!$H$25:$XFD$74, MATCH($E29, 'RAB input'!$E$25:$E$74, 0), MATCH(AR$4, RAB_years, 0)) -> 0 | AS29: =INDEX('RAB input'!$H$25:$XFD$74, MATCH($E29, 'RAB input'!$E$25:$E$74, 0), MATCH(AS$4, RAB_years, 0)) -> 0 | AT29: =INDEX('RAB input'!$H$25:$XFD$74, MATCH($E29, 'RAB input'!$E$25:$E$74, 0), MATCH(AT$4, RAB_years, 0)) -> 0 | AU29: =INDEX('RAB input'!$H$25:$XFD$74, MATCH($E29, 'RAB input'!$E$25:$E$74, 0), MATCH(AU$4, RAB_years, 0)) -> 0 | AV29: =INDEX('RAB input'!$H$25:$XFD$74, MATCH($E29, 'RAB input'!$E$25:$E$74, 0), MATCH(AV$4, RAB_years, 0)) -> 0 | AW29: =INDEX('RAB input'!$H$25:$XFD$74, MATCH($E29, 'RAB input'!$E$25:$E$74, 0), MATCH(AW$4, RAB_years, 0)) -> 0 | AX29: =INDEX('RAB input'!$H$25:$XFD$74, MATCH($E29, 'RAB input'!$E$25:$E$74, 0), MATCH(AX$4, RAB_years, 0)) -> 0 | AY29: =INDEX('RAB input'!$H$25:$XFD$74, MATCH($E29, 'RAB input'!$E$25:$E$74, 0), MATCH(AY$4, RAB_years, 0)) -> 0 | AZ29: =INDEX('RAB input'!$H$25:$XFD$74, MATCH($E29, 'RAB input'!$E$25:$E$74, 0), MATCH(AZ$4, RAB_years, 0)) -> 0 | BA29: =INDEX('RAB input'!$H$25:$XFD$74, MATCH($E29, 'RAB input'!$E$25:$E$74, 0), MATCH(BA$4, RAB_years, 0)) -> 0 | BB29: =INDEX('RAB input'!$H$25:$XFD$74, MATCH($E29, 'RAB input'!$E$25:$E$74, 0), MATCH(BB$4, RAB_years, 0)) -> 0 | BC29: =INDEX('RAB input'!$H$25:$XFD$74, MATCH($E29, 'RAB input'!$E$25:$E$74, 0), MATCH(BC$4, RAB_years, 0)) -> 0 | BD29: =INDEX('RAB input'!$H$25:$XFD$74, MATCH($E29, 'RAB input'!$E$25:$E$74, 0), MATCH(BD$4, RAB_years, 0)) -> 0 | BE29: =INDEX('RAB input'!$H$25:$XFD$74, MATCH($E29, 'RAB input'!$E$25:$E$74, 0), MATCH(BE$4, RAB_years, 0)) -> 0 | BF29: =INDEX('RAB input'!$H$25:$XFD$74, MATCH($E29, 'RAB input'!$E$25:$E$74, 0), MATCH(BF$4, RAB_years, 0)) -> 0 | BG29: =INDEX('RAB input'!$H$25:$XFD$74, MATCH($E29, 'RAB input'!$E$25:$E$74, 0), MATCH(BG$4, RAB_years, 0)) -> 0 | BH29: =INDEX('RAB input'!$H$25:$XFD$74, MATCH($E29, 'RAB input'!$E$25:$E$74, 0), MATCH(BH$4, RAB_years, 0)) -> 0 | BI29: =INDEX('RAB input'!$H$25:$XFD$74, MATCH($E29, 'RAB input'!$E$25:$E$74, 0), MATCH(BI$4, RAB_years, 0)) -> 0 | BJ29: =INDEX('RAB input'!$H$25:$XFD$74, MATCH($E29, 'RAB input'!$E$25:$E$74, 0), MATCH(BJ$4, RAB_years, 0)) -> 0 | BK29: =INDEX('RAB input'!$H$25:$XFD$74, MATCH($E29, 'RAB input'!$E$25:$E$74, 0), MATCH(BK$4, RAB_years, 0)) -> 0 | BL29: =INDEX('RAB input'!$H$25:$XFD$74, MATCH($E29, 'RAB input'!$E$25:$E$74, 0), MATCH(BL$4, RAB_years, 0)) -> 0 | BM29: =INDEX('RAB input'!$H$25:$XFD$74, MATCH($E29, 'RAB input'!$E$25:$E$74, 0), MATCH(BM$4, RAB_years, 0)) -> 0 | BN29: =INDEX('RAB input'!$H$25:$XFD$74, MATCH($E29, 'RAB input'!$E$25:$E$74, 0), MATCH(BN$4, RAB_years, 0)) -> 0 | BO29: =INDEX('RAB input'!$H$25:$XFD$74, MATCH($E29, 'RAB input'!$E$25:$E$74, 0), MATCH(BO$4, RAB_years, 0)) -> 0 | BP29: =INDEX('RAB input'!$H$25:$XFD$74, MATCH($E29, 'RAB input'!$E$25:$E$74, 0), MATCH(BP$4, RAB_years, 0)) -> 0 | BQ29: =INDEX('RAB input'!$H$25:$XFD$74, MATCH($E29, 'RAB input'!$E$25:$E$74, 0), MATCH(BQ$4, RAB_years, 0)) -> 0 | BR29: =INDEX('RAB input'!$H$25:$XFD$74, MATCH($E29, 'RAB input'!$E$25:$E$74, 0), MATCH(BR$4, RAB_years, 0)) -> 0 | BS29: =INDEX('RAB input'!$H$25:$XFD$74, MATCH($E29, 'RAB input'!$E$25:$E$74, 0), MATCH(BS$4, RAB_years, 0)) -> 0 | BT29: =INDEX('RAB input'!$H$25:$XFD$74, MATCH($E29, 'RAB input'!$E$25:$E$74, 0), MATCH(BT$4, RAB_years, 0)) -> 0 | BU29: =INDEX('RAB input'!$H$25:$XFD$74, MATCH($E29, 'RAB input'!$E$25:$E$74, 0), MATCH(BU$4, RAB_years, 0)) -> 0 | BV29: =INDEX('RAB input'!$H$25:$XFD$74, MATCH($E29, 'RAB input'!$E$25:$E$74, 0), MATCH(BV$4, RAB_years, 0)) -> 0 | BW29: =INDEX('RAB input'!$H$25:$XFD$74, MATCH($E29, 'RAB input'!$E$25:$E$74, 0), MATCH(BW$4, RAB_years, 0)) -> 0 | BX29: =INDEX('RAB input'!$H$25:$XFD$74, MATCH($E29, 'RAB input'!$E$25:$E$74, 0), MATCH(BX$4, RAB_years, 0)) -> 0 | BY29: =INDEX('RAB input'!$H$25:$XFD$74, MATCH($E29, 'RAB input'!$E$25:$E$74, 0), MATCH(BY$4, RAB_years, 0)) -> 0 | BZ29: =INDEX('RAB input'!$H$25:$XFD$74, MATCH($E29, 'RAB input'!$E$25:$E$74, 0), MATCH(BZ$4, RAB_years, 0)) -> 0 | CA29: =INDEX('RAB input'!$H$25:$XFD$74, MATCH($E29, 'RAB input'!$E$25:$E$74, 0), MATCH(CA$4, RAB_years, 0)) -> 0 | CB29: =INDEX('RAB input'!$H$25:$XFD$74, MATCH($E29, 'RAB input'!$E$25:$E$74, 0), MATCH(CB$4, RAB_years, 0)) -> 0 | CC29: =INDEX('RAB input'!$H$25:$XFD$74, MATCH($E29, 'RAB input'!$E$25:$E$74, 0), MATCH(CC$4, RAB_years, 0)) -> 0 | CD29: =INDEX('RAB input'!$H$25:$XFD$74, MATCH($E29, 'RAB input'!$E$25:$E$74, 0), MATCH(CD$4, RAB_years, 0)) -> 0 | CE29: =INDEX('RAB input'!$H$25:$XFD$74, MATCH($E29, 'RAB input'!$E$25:$E$74, 0), MATCH(CE$4, RAB_years, 0)) -> 0
D30: 13 | E30: ='RAB input'!E37 -> Vehicles - 10 years | G30: 0 | H30: 0 | I30: =INDEX('RAB input'!$H$25:$XFD$74, MATCH($E30, 'RAB input'!$E$25:$E$74, 0), MATCH(I$4, RAB_years, 0)) -> 0 | J30: =INDEX('RAB input'!$H$25:$XFD$74, MATCH($E30, 'RAB input'!$E$25:$E$74, 0), MATCH(J$4, RAB_years, 0)) -> 0 | K30: =INDEX('RAB input'!$H$25:$XFD$74, MATCH($E30, 'RAB input'!$E$25:$E$74, 0), MATCH(K$4, RAB_years, 0)) -> 0 | L30: =INDEX('RAB input'!$H$25:$XFD$74, MATCH($E30, 'RAB input'!$E$25:$E$74, 0), MATCH(L$4, RAB_years, 0)) -> 0 | M30: =INDEX('RAB input'!$H$25:$XFD$74, MATCH($E30, 'RAB input'!$E$25:$E$74, 0), MATCH(M$4, RAB_years, 0)) -> 0 | N30: =INDEX('RAB input'!$H$25:$XFD$74, MATCH($E30, 'RAB input'!$E$25:$E$74, 0), MATCH(N$4, RAB_years, 0)) -> 3.212877227 | O30: =INDEX('RAB input'!$H$25:$XFD$74, MATCH($E30, 'RAB input'!$E$25:$E$74, 0), MATCH(O$4, RAB_years, 0)) -> 6.408584024 | P30: =INDEX('RAB input'!$H$25:$XFD$74, MATCH($E30, 'RAB input'!$E$25:$E$74, 0), MATCH(P$4, RAB_years, 0)) -> 7.101005908 | Q30: =INDEX('RAB input'!$H$25:$XFD$74, MATCH($E30, 'RAB input'!$E$25:$E$74, 0), MATCH(Q$4, RAB_years, 0)) -> 8.377401167 | R30: =INDEX('RAB input'!$H$25:$XFD$74, MATCH($E30, 'RAB input'!$E$25:$E$74, 0), MATCH(R$4, RAB_years, 0)) -> 8.254857812 | S30: =INDEX('RAB input'!$H$25:$XFD$74, MATCH($E30, 'RAB input'!$E$25:$E$74, 0), MATCH(S$4, RAB_years, 0)) -> 8.132811688 | T30: =INDEX('RAB input'!$H$25:$XFD$74, MATCH($E30, 'RAB input'!$E$25:$E$74, 0), MATCH(T$4, RAB_years, 0)) -> 3.337890252 | U30: =INDEX('RAB input'!$H$25:$XFD$74, MATCH($E30, 'RAB input'!$E$25:$E$74, 0), MATCH(U$4, RAB_years, 0)) -> 5.773490158 | V30: =INDEX('RAB input'!$H$25:$XFD$74, MATCH($E30, 'RAB input'!$E$25:$E$74, 0), MATCH(V$4, RAB_years, 0)) -> 5.311132586 | W30: =INDEX('RAB input'!$H$25:$XFD$74, MATCH($E30, 'RAB input'!$E$25:$E$74, 0), MATCH(W$4, RAB_years, 0)) -> 2.720574276 | X30: =INDEX('RAB input'!$H$25:$XFD$74, MATCH($E30, 'RAB input'!$E$25:$E$74, 0), MATCH(X$4, RAB_years, 0)) -> 0 | Y30: =INDEX('RAB input'!$H$25:$XFD$74, MATCH($E30, 'RAB input'!$E$25:$E$74, 0), MATCH(Y$4, RAB_years, 0)) -> 0 | Z30: =INDEX('RAB input'!$H$25:$XFD$74, MATCH($E30, 'RAB input'!$E$25:$E$74, 0), MATCH(Z$4, RAB_years, 0)) -> 0 | AA30: =INDEX('RAB input'!$H$25:$XFD$74, MATCH($E30, 'RAB input'!$E$25:$E$74, 0), MATCH(AA$4, RAB_years, 0)) -> 0 | AB30: =INDEX('RAB input'!$H$25:$XFD$74, MATCH($E30, 'RAB input'!$E$25:$E$74, 0), MATCH(AB$4, RAB_years, 0)) -> 0 | AC30: =INDEX('RAB input'!$H$25:$XFD$74, MATCH($E30, 'RAB input'!$E$25:$E$74, 0), MATCH(AC$4, RAB_years, 0)) -> 0 | AD30: =INDEX('RAB input'!$H$25:$XFD$74, MATCH($E30, 'RAB input'!$E$25:$E$74, 0), MATCH(AD$4, RAB_years, 0)) -> 0 | AE30: =INDEX('RAB input'!$H$25:$XFD$74, MATCH($E30, 'RAB input'!$E$25:$E$74, 0), MATCH(AE$4, RAB_years, 0)) -> 0 | AF30: =INDEX('RAB input'!$H$25:$XFD$74, MATCH($E30, 'RAB input'!$E$25:$E$74, 0), MATCH(AF$4, RAB_years, 0)) -> 0 | AG30: =INDEX('RAB input'!$H$25:$XFD$74, MATCH($E30, 'RAB input'!$E$25:$E$74, 0), MATCH(AG$4, RAB_years, 0)) -> 0 | AH30: =INDEX('RAB input'!$H$25:$XFD$74, MATCH($E30, 'RAB input'!$E$25:$E$74, 0), MATCH(AH$4, RAB_years, 0)) -> 0 | AI30: =INDEX('RAB input'!$H$25:$XFD$74, MATCH($E30, 'RAB input'!$E$25:$E$74, 0), MATCH(AI$4, RAB_years, 0)) -> 0 | AJ30: =INDEX('RAB input'!$H$25:$XFD$74, MATCH($E30, 'RAB input'!$E$25:$E$74, 0), MATCH(AJ$4, RAB_years, 0)) -> 0 | AK30: =INDEX('RAB input'!$H$25:$XFD$74, MATCH($E30, 'RAB input'!$E$25:$E$74, 0), MATCH(AK$4, RAB_years, 0)) -> 0 | AL30: =INDEX('RAB input'!$H$25:$XFD$74, MATCH($E30, 'RAB input'!$E$25:$E$74, 0), MATCH(AL$4, RAB_years, 0)) -> 0 | AM30: =INDEX('RAB input'!$H$25:$XFD$74, MATCH($E30, 'RAB input'!$E$25:$E$74, 0), MATCH(AM$4, RAB_years, 0)) -> 0 | AN30: =INDEX('RAB input'!$H$25:$XFD$74, MATCH($E30, 'RAB input'!$E$25:$E$74, 0), MATCH(AN$4, RAB_years, 0)) -> 0 | AO30: =INDEX('RAB input'!$H$25:$XFD$74, MATCH($E30, 'RAB input'!$E$25:$E$74, 0), MATCH(AO$4, RAB_years, 0)) -> 0 | AP30: =INDEX('RAB input'!$H$25:$XFD$74, MATCH($E30, 'RAB input'!$E$25:$E$74, 0), MATCH(AP$4, RAB_years, 0)) -> 0 | AQ30: =INDEX('RAB input'!$H$25:$XFD$74, MATCH($E30, 'RAB input'!$E$25:$E$74, 0), MATCH(AQ$4, RAB_years, 0)) -> 0 | AR30: =INDEX('RAB input'!$H$25:$XFD$74, MATCH($E30, 'RAB input'!$E$25:$E$74, 0), MATCH(AR$4, RAB_years, 0)) -> 0 | AS30: =INDEX('RAB input'!$H$25:$XFD$74, MATCH($E30, 'RAB input'!$E$25:$E$74, 0), MATCH(AS$4, RAB_years, 0)) -> 0 | AT30: =INDEX('RAB input'!$H$25:$XFD$74, MATCH($E30, 'RAB input'!$E$25:$E$74, 0), MATCH(AT$4, RAB_years, 0)) -> 0 | AU30: =INDEX('RAB input'!$H$25:$XFD$74, MATCH($E30, 'RAB input'!$E$25:$E$74, 0), MATCH(AU$4, RAB_years, 0)) -> 0 | AV30: =INDEX('RAB input'!$H$25:$XFD$74, MATCH($E30, 'RAB input'!$E$25:$E$74, 0), MATCH(AV$4, RAB_years, 0)) -> 0 | AW30: =INDEX('RAB input'!$H$25:$XFD$74, MATCH($E30, 'RAB input'!$E$25:$E$74, 0), MATCH(AW$4, RAB_years, 0)) -> 0 | AX30: =INDEX('RAB input'!$H$25:$XFD$74, MATCH($E30, 'RAB input'!$E$25:$E$74, 0), MATCH(AX$4, RAB_years, 0)) -> 0 | AY30: =INDEX('RAB input'!$H$25:$XFD$74, MATCH($E30, 'RAB input'!$E$25:$E$74, 0), MATCH(AY$4, RAB_years, 0)) -> 0 | AZ30: =INDEX('RAB input'!$H$25:$XFD$74, MATCH($E30, 'RAB input'!$E$25:$E$74, 0), MATCH(AZ$4, RAB_years, 0)) -> 0 | BA30: =INDEX('RAB input'!$H$25:$XFD$74, MATCH($E30, 'RAB input'!$E$25:$E$74, 0), MATCH(BA$4, RAB_years, 0)) -> 0 | BB30: =INDEX('RAB input'!$H$25:$XFD$74, MATCH($E30, 'RAB input'!$E$25:$E$74, 0), MATCH(BB$4, RAB_years, 0)) -> 0 | BC30: =INDEX('RAB input'!$H$25:$XFD$74, MATCH($E30, 'RAB input'!$E$25:$E$74, 0), MATCH(BC$4, RAB_years, 0)) -> 0 | BD30: =INDEX('RAB input'!$H$25:$XFD$74, MATCH($E30, 'RAB input'!$E$25:$E$74, 0), MATCH(BD$4, RAB_years, 0)) -> 0 | BE30: =INDEX('RAB input'!$H$25:$XFD$74, MATCH($E30, 'RAB input'!$E$25:$E$74, 0), MATCH(BE$4, RAB_years, 0)) -> 0 | BF30: =INDEX('RAB input'!$H$25:$XFD$74, MATCH($E30, 'RAB input'!$E$25:$E$74, 0), MATCH(BF$4, RAB_years, 0)) -> 0 | BG30: =INDEX('RAB input'!$H$25:$XFD$74, MATCH($E30, 'RAB input'!$E$25:$E$74, 0), MATCH(BG$4, RAB_years, 0)) -> 0 | BH30: =INDEX('RAB input'!$H$25:$XFD$74, MATCH($E30, 'RAB input'!$E$25:$E$74, 0), MATCH(BH$4, RAB_years, 0)) -> 0 | BI30: =INDEX('RAB input'!$H$25:$XFD$74, MATCH($E30, 'RAB input'!$E$25:$E$74, 0), MATCH(BI$4, RAB_years, 0)) -> 0 | BJ30: =INDEX('RAB input'!$H$25:$XFD$74, MATCH($E30, 'RAB input'!$E$25:$E$74, 0), MATCH(BJ$4, RAB_years, 0)) -> 0 | BK30: =INDEX('RAB input'!$H$25:$XFD$74, MATCH($E30, 'RAB input'!$E$25:$E$74, 0), MATCH(BK$4, RAB_years, 0)) -> 0 | BL30: =INDEX('RAB input'!$H$25:$XFD$74, MATCH($E30, 'RAB input'!$E$25:$E$74, 0), MATCH(BL$4, RAB_years, 0)) -> 0 | BM30: =INDEX('RAB input'!$H$25:$XFD$74, MATCH($E30, 'RAB input'!$E$25:$E$74, 0), MATCH(BM$4, RAB_years, 0)) -> 0 | BN30: =INDEX('RAB input'!$H$25:$XFD$74, MATCH($E30, 'RAB input'!$E$25:$E$74, 0), MATCH(BN$4, RAB_years, 0)) -> 0 | BO30: =INDEX('RAB input'!$H$25:$XFD$74, MATCH($E30, 'RAB input'!$E$25:$E$74, 0), MATCH(BO$4, RAB_years, 0)) -> 0 | BP30: =INDEX('RAB input'!$H$25:$XFD$74, MATCH($E30, 'RAB input'!$E$25:$E$74, 0), MATCH(BP$4, RAB_years, 0)) -> 0 | BQ30: =INDEX('RAB input'!$H$25:$XFD$74, MATCH($E30, 'RAB input'!$E$25:$E$74, 0), MATCH(BQ$4, RAB_years, 0)) -> 0 | BR30: =INDEX('RAB input'!$H$25:$XFD$74, MATCH($E30, 'RAB input'!$E$25:$E$74, 0), MATCH(BR$4, RAB_years, 0)) -> 0 | BS30: =INDEX('RAB input'!$H$25:$XFD$74, MATCH($E30, 'RAB input'!$E$25:$E$74, 0), MATCH(BS$4, RAB_years, 0)) -> 0 | BT30: =INDEX('RAB input'!$H$25:$XFD$74, MATCH($E30, 'RAB input'!$E$25:$E$74, 0), MATCH(BT$4, RAB_years, 0)) -> 0 | BU30: =INDEX('RAB input'!$H$25:$XFD$74, MATCH($E30, 'RAB input'!$E$25:$E$74, 0), MATCH(BU$4, RAB_years, 0)) -> 0 | BV30: =INDEX('RAB input'!$H$25:$XFD$74, MATCH($E30, 'RAB input'!$E$25:$E$74, 0), MATCH(BV$4, RAB_years, 0)) -> 0 | BW30: =INDEX('RAB input'!$H$25:$XFD$74, MATCH($E30, 'RAB input'!$E$25:$E$74, 0), MATCH(BW$4, RAB_years, 0)) -> 0 | BX30: =INDEX('RAB input'!$H$25:$XFD$74, MATCH($E30, 'RAB input'!$E$25:$E$74, 0), MATCH(BX$4, RAB_years, 0)) -> 0 | BY30: =INDEX('RAB input'!$H$25:$XFD$74, MATCH($E30, 'RAB input'!$E$25:$E$74, 0), MATCH(BY$4, RAB_years, 0)) -> 0 | BZ30: =INDEX('RAB input'!$H$25:$XFD$74, MATCH($E30, 'RAB input'!$E$25:$E$74, 0), MATCH(BZ$4, RAB_years, 0)) -> 0 | CA30: =INDEX('RAB input'!$H$25:$XFD$74, MATCH($E30, 'RAB input'!$E$25:$E$74, 0), MATCH(CA$4, RAB_years, 0)) -> 0 | CB30: =INDEX('RAB input'!$H$25:$XFD$74, MATCH($E30, 'RAB input'!$E$25:$E$74, 0), MATCH(CB$4, RAB_years, 0)) -> 0 | CC30: =INDEX('RAB input'!$H$25:$XFD$74, MATCH($E30, 'RAB input'!$E$25:$E$74, 0), MATCH(CC$4, RAB_years, 0)) -> 0 | CD30: =INDEX('RAB input'!$H$25:$XFD$74, MATCH($E30, 'RAB input'!$E$25:$E$74, 0), MATCH(CD$4, RAB_years, 0)) -> 0 | CE30: =INDEX('RAB input'!$H$25:$XFD$74, MATCH($E30, 'RAB input'!$E$25:$E$74, 0), MATCH(CE$4, RAB_years, 0)) -> 0
D31: 14 | E31: ='RAB input'!E38 -> Light Vehicles | G31: 10.69838813 | H31: 0 | I31: =INDEX('RAB input'!$H$25:$XFD$74, MATCH($E31, 'RAB input'!$E$25:$E$74, 0), MATCH(I$4, RAB_years, 0)) -> 11.199 | J31: =INDEX('RAB input'!$H$25:$XFD$74, MATCH($E31, 'RAB input'!$E$25:$E$74, 0), MATCH(J$4, RAB_years, 0)) -> 4.936 | K31: =INDEX('RAB input'!$H$25:$XFD$74, MATCH($E31, 'RAB input'!$E$25:$E$74, 0), MATCH(K$4, RAB_years, 0)) -> 6.633 | L31: =INDEX('RAB input'!$H$25:$XFD$74, MATCH($E31, 'RAB input'!$E$25:$E$74, 0), MATCH(L$4, RAB_years, 0)) -> 7.29 | M31: =INDEX('RAB input'!$H$25:$XFD$74, MATCH($E31, 'RAB input'!$E$25:$E$74, 0), MATCH(M$4, RAB_years, 0)) -> 5.937609222 | N31: =INDEX('RAB input'!$H$25:$XFD$74, MATCH($E31, 'RAB input'!$E$25:$E$74, 0), MATCH(N$4, RAB_years, 0)) -> 6.25753664 | O31: =INDEX('RAB input'!$H$25:$XFD$74, MATCH($E31, 'RAB input'!$E$25:$E$74, 0), MATCH(O$4, RAB_years, 0)) -> 5.47866756 | P31: =INDEX('RAB input'!$H$25:$XFD$74, MATCH($E31, 'RAB input'!$E$25:$E$74, 0), MATCH(P$4, RAB_years, 0)) -> 8.94003758 | Q31: =INDEX('RAB input'!$H$25:$XFD$74, MATCH($E31, 'RAB input'!$E$25:$E$74, 0), MATCH(Q$4, RAB_years, 0)) -> 9.67865486 | R31: =INDEX('RAB input'!$H$25:$XFD$74, MATCH($E31, 'RAB input'!$E$25:$E$74, 0), MATCH(R$4, RAB_years, 0)) -> 8.5939792 | S31: =INDEX('RAB input'!$H$25:$XFD$74, MATCH($E31, 'RAB input'!$E$25:$E$74, 0), MATCH(S$4, RAB_years, 0)) -> 4.03015854 | T31: =INDEX('RAB input'!$H$25:$XFD$74, MATCH($E31, 'RAB input'!$E$25:$E$74, 0), MATCH(T$4, RAB_years, 0)) -> 6.78085307 | U31: =INDEX('RAB input'!$H$25:$XFD$74, MATCH($E31, 'RAB input'!$E$25:$E$74, 0), MATCH(U$4, RAB_years, 0)) -> 11.72891466 | V31: =INDEX('RAB input'!$H$25:$XFD$74, MATCH($E31, 'RAB input'!$E$25:$E$74, 0), MATCH(V$4, RAB_years, 0)) -> 19.60124514 | W31: =INDEX('RAB input'!$H$25:$XFD$74, MATCH($E31, 'RAB input'!$E$25:$E$74, 0), MATCH(W$4, RAB_years, 0)) -> 10.04054077 | X31: =INDEX('RAB input'!$H$25:$XFD$74, MATCH($E31, 'RAB input'!$E$25:$E$74, 0), MATCH(X$4, RAB_years, 0)) -> 0 | Y31: =INDEX('RAB input'!$H$25:$XFD$74, MATCH($E31, 'RAB input'!$E$25:$E$74, 0), MATCH(Y$4, RAB_years, 0)) -> 0 | Z31: =INDEX('RAB input'!$H$25:$XFD$74, MATCH($E31, 'RAB input'!$E$25:$E$74, 0), MATCH(Z$4, RAB_years, 0)) -> 0 | AA31: =INDEX('RAB input'!$H$25:$XFD$74, MATCH($E31, 'RAB input'!$E$25:$E$74, 0), MATCH(AA$4, RAB_years, 0)) -> 0 | AB31: =INDEX('RAB input'!$H$25:$XFD$74, MATCH($E31, 'RAB input'!$E$25:$E$74, 0), MATCH(AB$4, RAB_years, 0)) -> 0 | AC31: =INDEX('RAB input'!$H$25:$XFD$74, MATCH($E31, 'RAB input'!$E$25:$E$74, 0), MATCH(AC$4, RAB_years, 0)) -> 0 | AD31: =INDEX('RAB input'!$H$25:$XFD$74, MATCH($E31, 'RAB input'!$E$25:$E$74, 0), MATCH(AD$4, RAB_years, 0)) -> 0 | AE31: =INDEX('RAB input'!$H$25:$XFD$74, MATCH($E31, 'RAB input'!$E$25:$E$74, 0), MATCH(AE$4, RAB_years, 0)) -> 0 | AF31: =INDEX('RAB input'!$H$25:$XFD$74, MATCH($E31, 'RAB input'!$E$25:$E$74, 0), MATCH(AF$4, RAB_years, 0)) -> 0 | AG31: =INDEX('RAB input'!$H$25:$XFD$74, MATCH($E31, 'RAB input'!$E$25:$E$74, 0), MATCH(AG$4, RAB_years, 0)) -> 0 | AH31: =INDEX('RAB input'!$H$25:$XFD$74, MATCH($E31, 'RAB input'!$E$25:$E$74, 0), MATCH(AH$4, RAB_years, 0)) -> 0 | AI31: =INDEX('RAB input'!$H$25:$XFD$74, MATCH($E31, 'RAB input'!$E$25:$E$74, 0), MATCH(AI$4, RAB_years, 0)) -> 0 | AJ31: =INDEX('RAB input'!$H$25:$XFD$74, MATCH($E31, 'RAB input'!$E$25:$E$74, 0), MATCH(AJ$4, RAB_years, 0)) -> 0 | AK31: =INDEX('RAB input'!$H$25:$XFD$74, MATCH($E31, 'RAB input'!$E$25:$E$74, 0), MATCH(AK$4, RAB_years, 0)) -> 0 | AL31: =INDEX('RAB input'!$H$25:$XFD$74, MATCH($E31, 'RAB input'!$E$25:$E$74, 0), MATCH(AL$4, RAB_years, 0)) -> 0 | AM31: =INDEX('RAB input'!$H$25:$XFD$74, MATCH($E31, 'RAB input'!$E$25:$E$74, 0), MATCH(AM$4, RAB_years, 0)) -> 0 | AN31: =INDEX('RAB input'!$H$25:$XFD$74, MATCH($E31, 'RAB input'!$E$25:$E$74, 0), MATCH(AN$4, RAB_years, 0)) -> 0 | AO31: =INDEX('RAB input'!$H$25:$XFD$74, MATCH($E31, 'RAB input'!$E$25:$E$74, 0), MATCH(AO$4, RAB_years, 0)) -> 0 | AP31: =INDEX('RAB input'!$H$25:$XFD$74, MATCH($E31, 'RAB input'!$E$25:$E$74, 0), MATCH(AP$4, RAB_years, 0)) -> 0 | AQ31: =INDEX('RAB input'!$H$25:$XFD$74, MATCH($E31, 'RAB input'!$E$25:$E$74, 0), MATCH(AQ$4, RAB_years, 0)) -> 0 | AR31: =INDEX('RAB input'!$H$25:$XFD$74, MATCH($E31, 'RAB input'!$E$25:$E$74, 0), MATCH(AR$4, RAB_years, 0)) -> 0 | AS31: =INDEX('RAB input'!$H$25:$XFD$74, MATCH($E31, 'RAB input'!$E$25:$E$74, 0), MATCH(AS$4, RAB_years, 0)) -> 0 | AT31: =INDEX('RAB input'!$H$25:$XFD$74, MATCH($E31, 'RAB input'!$E$25:$E$74, 0), MATCH(AT$4, RAB_years, 0)) -> 0 | AU31: =INDEX('RAB input'!$H$25:$XFD$74, MATCH($E31, 'RAB input'!$E$25:$E$74, 0), MATCH(AU$4, RAB_years, 0)) -> 0 | AV31: =INDEX('RAB input'!$H$25:$XFD$74, MATCH($E31, 'RAB input'!$E$25:$E$74, 0), MATCH(AV$4, RAB_years, 0)) -> 0 | AW31: =INDEX('RAB input'!$H$25:$XFD$74, MATCH($E31, 'RAB input'!$E$25:$E$74, 0), MATCH(AW$4, RAB_years, 0)) -> 0 | AX31: =INDEX('RAB input'!$H$25:$XFD$74, MATCH($E31, 'RAB input'!$E$25:$E$74, 0), MATCH(AX$4, RAB_years, 0)) -> 0 | AY31: =INDEX('RAB input'!$H$25:$XFD$74, MATCH($E31, 'RAB input'!$E$25:$E$74, 0), MATCH(AY$4, RAB_years, 0)) -> 0 | AZ31: =INDEX('RAB input'!$H$25:$XFD$74, MATCH($E31, 'RAB input'!$E$25:$E$74, 0), MATCH(AZ$4, RAB_years, 0)) -> 0 | BA31: =INDEX('RAB input'!$H$25:$XFD$74, MATCH($E31, 'RAB input'!$E$25:$E$74, 0), MATCH(BA$4, RAB_years, 0)) -> 0 | BB31: =INDEX('RAB input'!$H$25:$XFD$74, MATCH($E31, 'RAB input'!$E$25:$E$74, 0), MATCH(BB$4, RAB_years, 0)) -> 0 | BC31: =INDEX('RAB input'!$H$25:$XFD$74, MATCH($E31, 'RAB input'!$E$25:$E$74, 0), MATCH(BC$4, RAB_years, 0)) -> 0 | BD31: =INDEX('RAB input'!$H$25:$XFD$74, MATCH($E31, 'RAB input'!$E$25:$E$74, 0), MATCH(BD$4, RAB_years, 0)) -> 0 | BE31: =INDEX('RAB input'!$H$25:$XFD$74, MATCH($E31, 'RAB input'!$E$25:$E$74, 0), MATCH(BE$4, RAB_years, 0)) -> 0 | BF31: =INDEX('RAB input'!$H$25:$XFD$74, MATCH($E31, 'RAB input'!$E$25:$E$74, 0), MATCH(BF$4, RAB_years, 0)) -> 0 | BG31: =INDEX('RAB input'!$H$25:$XFD$74, MATCH($E31, 'RAB input'!$E$25:$E$74, 0), MATCH(BG$4, RAB_years, 0)) -> 0 | BH31: =INDEX('RAB input'!$H$25:$XFD$74, MATCH($E31, 'RAB input'!$E$25:$E$74, 0), MATCH(BH$4, RAB_years, 0)) -> 0 | BI31: =INDEX('RAB input'!$H$25:$XFD$74, MATCH($E31, 'RAB input'!$E$25:$E$74, 0), MATCH(BI$4, RAB_years, 0)) -> 0 | BJ31: =INDEX('RAB input'!$H$25:$XFD$74, MATCH($E31, 'RAB input'!$E$25:$E$74, 0), MATCH(BJ$4, RAB_years, 0)) -> 0 | BK31: =INDEX('RAB input'!$H$25:$XFD$74, MATCH($E31, 'RAB input'!$E$25:$E$74, 0), MATCH(BK$4, RAB_years, 0)) -> 0 | BL31: =INDEX('RAB input'!$H$25:$XFD$74, MATCH($E31, 'RAB input'!$E$25:$E$74, 0), MATCH(BL$4, RAB_years, 0)) -> 0 | BM31: =INDEX('RAB input'!$H$25:$XFD$74, MATCH($E31, 'RAB input'!$E$25:$E$74, 0), MATCH(BM$4, RAB_years, 0)) -> 0 | BN31: =INDEX('RAB input'!$H$25:$XFD$74, MATCH($E31, 'RAB input'!$E$25:$E$74, 0), MATCH(BN$4, RAB_years, 0)) -> 0 | BO31: =INDEX('RAB input'!$H$25:$XFD$74, MATCH($E31, 'RAB input'!$E$25:$E$74, 0), MATCH(BO$4, RAB_years, 0)) -> 0 | BP31: =INDEX('RAB input'!$H$25:$XFD$74, MATCH($E31, 'RAB input'!$E$25:$E$74, 0), MATCH(BP$4, RAB_years, 0)) -> 0 | BQ31: =INDEX('RAB input'!$H$25:$XFD$74, MATCH($E31, 'RAB input'!$E$25:$E$74, 0), MATCH(BQ$4, RAB_years, 0)) -> 0 | BR31: =INDEX('RAB input'!$H$25:$XFD$74, MATCH($E31, 'RAB input'!$E$25:$E$74, 0), MATCH(BR$4, RAB_years, 0)) -> 0 | BS31: =INDEX('RAB input'!$H$25:$XFD$74, MATCH($E31, 'RAB input'!$E$25:$E$74, 0), MATCH(BS$4, RAB_years, 0)) -> 0 | BT31: =INDEX('RAB input'!$H$25:$XFD$74, MATCH($E31, 'RAB input'!$E$25:$E$74, 0), MATCH(BT$4, RAB_years, 0)) -> 0 | BU31: =INDEX('RAB input'!$H$25:$XFD$74, MATCH($E31, 'RAB input'!$E$25:$E$74, 0), MATCH(BU$4, RAB_years, 0)) -> 0 | BV31: =INDEX('RAB input'!$H$25:$XFD$74, MATCH($E31, 'RAB input'!$E$25:$E$74, 0), MATCH(BV$4, RAB_years, 0)) -> 0 | BW31: =INDEX('RAB input'!$H$25:$XFD$74, MATCH($E31, 'RAB input'!$E$25:$E$74, 0), MATCH(BW$4, RAB_years, 0)) -> 0 | BX31: =INDEX('RAB input'!$H$25:$XFD$74, MATCH($E31, 'RAB input'!$E$25:$E$74, 0), MATCH(BX$4, RAB_years, 0)) -> 0 | BY31: =INDEX('RAB input'!$H$25:$XFD$74, MATCH($E31, 'RAB input'!$E$25:$E$74, 0), MATCH(BY$4, RAB_years, 0)) -> 0 | BZ31: =INDEX('RAB input'!$H$25:$XFD$74, MATCH($E31, 'RAB input'!$E$25:$E$74, 0), MATCH(BZ$4, RAB_years, 0)) -> 0 | CA31: =INDEX('RAB input'!$H$25:$XFD$74, MATCH($E31, 'RAB input'!$E$25:$E$74, 0), MATCH(CA$4, RAB_years, 0)) -> 0 | CB31: =INDEX('RAB input'!$H$25:$XFD$74, MATCH($E31, 'RAB input'!$E$25:$E$74, 0), MATCH(CB$4, RAB_years, 0)) -> 0 | CC31: =INDEX('RAB input'!$H$25:$XFD$74, MATCH($E31, 'RAB input'!$E$25:$E$74, 0), MATCH(CC$4, RAB_years, 0)) -> 0 | CD31: =INDEX('RAB input'!$H$25:$XFD$74, MATCH($E31, 'RAB input'!$E$25:$E$74, 0), MATCH(CD$4, RAB_years, 0)) -> 0 | CE31: =INDEX('RAB input'!$H$25:$XFD$74, MATCH($E31, 'RAB input'!$E$25:$E$74, 0), MATCH(CE$4, RAB_years, 0)) -> 0
D32: 15 | E32: ='RAB input'!E39 -> IT | G32: 51.28713471 | H32: 0.401 | I32: =INDEX('RAB input'!$H$25:$XFD$74, MATCH($E32, 'RAB input'!$E$25:$E$74, 0), MATCH(I$4, RAB_years, 0)) -> 7.088 | J32: =INDEX('RAB input'!$H$25:$XFD$74, MATCH($E32, 'RAB input'!$E$25:$E$74, 0), MATCH(J$4, RAB_years, 0)) -> 34.873 | K32: =INDEX('RAB input'!$H$25:$XFD$74, MATCH($E32, 'RAB input'!$E$25:$E$74, 0), MATCH(K$4, RAB_years, 0)) -> 27.531 | L32: =INDEX('RAB input'!$H$25:$XFD$74, MATCH($E32, 'RAB input'!$E$25:$E$74, 0), MATCH(L$4, RAB_years, 0)) -> 38.399 | M32: =INDEX('RAB input'!$H$25:$XFD$74, MATCH($E32, 'RAB input'!$E$25:$E$74, 0), MATCH(M$4, RAB_years, 0)) -> 56.48994638 | N32: =INDEX('RAB input'!$H$25:$XFD$74, MATCH($E32, 'RAB input'!$E$25:$E$74, 0), MATCH(N$4, RAB_years, 0)) -> 40.85338292 | O32: =INDEX('RAB input'!$H$25:$XFD$74, MATCH($E32, 'RAB input'!$E$25:$E$74, 0), MATCH(O$4, RAB_years, 0)) -> 52.50307871 | P32: =INDEX('RAB input'!$H$25:$XFD$74, MATCH($E32, 'RAB input'!$E$25:$E$74, 0), MATCH(P$4, RAB_years, 0)) -> 61.47757043 | Q32: =INDEX('RAB input'!$H$25:$XFD$74, MATCH($E32, 'RAB input'!$E$25:$E$74, 0), MATCH(Q$4, RAB_years, 0)) -> 63.20674419 | R32: =INDEX('RAB input'!$H$25:$XFD$74, MATCH($E32, 'RAB input'!$E$25:$E$74, 0), MATCH(R$4, RAB_years, 0)) -> 76.31745481 | S32: =INDEX('RAB input'!$H$25:$XFD$74, MATCH($E32, 'RAB input'!$E$25:$E$74, 0), MATCH(S$4, RAB_years, 0)) -> 7.813061405 | T32: =INDEX('RAB input'!$H$25:$XFD$74, MATCH($E32, 'RAB input'!$E$25:$E$74, 0), MATCH(T$4, RAB_years, 0)) -> -14.91764752 | U32: =INDEX('RAB input'!$H$25:$XFD$74, MATCH($E32, 'RAB input'!$E$25:$E$74, 0), MATCH(U$4, RAB_years, 0)) -> 2.488051331 | V32: =INDEX('RAB input'!$H$25:$XFD$74, MATCH($E32, 'RAB input'!$E$25:$E$74, 0), MATCH(V$4, RAB_years, 0)) -> 6.599191296 | W32: =INDEX('RAB input'!$H$25:$XFD$74, MATCH($E32, 'RAB input'!$E$25:$E$74, 0), MATCH(W$4, RAB_years, 0)) -> 7.058552844 | X32: =INDEX('RAB input'!$H$25:$XFD$74, MATCH($E32, 'RAB input'!$E$25:$E$74, 0), MATCH(X$4, RAB_years, 0)) -> 0 | Y32: =INDEX('RAB input'!$H$25:$XFD$74, MATCH($E32, 'RAB input'!$E$25:$E$74, 0), MATCH(Y$4, RAB_years, 0)) -> 0 | Z32: =INDEX('RAB input'!$H$25:$XFD$74, MATCH($E32, 'RAB input'!$E$25:$E$74, 0), MATCH(Z$4, RAB_years, 0)) -> 0 | AA32: =INDEX('RAB input'!$H$25:$XFD$74, MATCH($E32, 'RAB input'!$E$25:$E$74, 0), MATCH(AA$4, RAB_years, 0)) -> 0 | AB32: =INDEX('RAB input'!$H$25:$XFD$74, MATCH($E32, 'RAB input'!$E$25:$E$74, 0), MATCH(AB$4, RAB_years, 0)) -> 0 | AC32: =INDEX('RAB input'!$H$25:$XFD$74, MATCH($E32, 'RAB input'!$E$25:$E$74, 0), MATCH(AC$4, RAB_years, 0)) -> 0 | AD32: =INDEX('RAB input'!$H$25:$XFD$74, MATCH($E32, 'RAB input'!$E$25:$E$74, 0), MATCH(AD$4, RAB_years, 0)) -> 0 | AE32: =INDEX('RAB input'!$H$25:$XFD$74, MATCH($E32, 'RAB input'!$E$25:$E$74, 0), MATCH(AE$4, RAB_years, 0)) -> 0 | AF32: =INDEX('RAB input'!$H$25:$XFD$74, MATCH($E32, 'RAB input'!$E$25:$E$74, 0), MATCH(AF$4, RAB_years, 0)) -> 0 | AG32: =INDEX('RAB input'!$H$25:$XFD$74, MATCH($E32, 'RAB input'!$E$25:$E$74, 0), MATCH(AG$4, RAB_years, 0)) -> 0 | AH32: =INDEX('RAB input'!$H$25:$XFD$74, MATCH($E32, 'RAB input'!$E$25:$E$74, 0), MATCH(AH$4, RAB_years, 0)) -> 0 | AI32: =INDEX('RAB input'!$H$25:$XFD$74, MATCH($E32, 'RAB input'!$E$25:$E$74, 0), MATCH(AI$4, RAB_years, 0)) -> 0 | AJ32: =INDEX('RAB input'!$H$25:$XFD$74, MATCH($E32, 'RAB input'!$E$25:$E$74, 0), MATCH(AJ$4, RAB_years, 0)) -> 0 | AK32: =INDEX('RAB input'!$H$25:$XFD$74, MATCH($E32, 'RAB input'!$E$25:$E$74, 0), MATCH(AK$4, RAB_years, 0)) -> 0 | AL32: =INDEX('RAB input'!$H$25:$XFD$74, MATCH($E32, 'RAB input'!$E$25:$E$74, 0), MATCH(AL$4, RAB_years, 0)) -> 0 | AM32: =INDEX('RAB input'!$H$25:$XFD$74, MATCH($E32, 'RAB input'!$E$25:$E$74, 0), MATCH(AM$4, RAB_years, 0)) -> 0 | AN32: =INDEX('RAB input'!$H$25:$XFD$74, MATCH($E32, 'RAB input'!$E$25:$E$74, 0), MATCH(AN$4, RAB_years, 0)) -> 0 | AO32: =INDEX('RAB input'!$H$25:$XFD$74, MATCH($E32, 'RAB input'!$E$25:$E$74, 0), MATCH(AO$4, RAB_years, 0)) -> 0 | AP32: =INDEX('RAB input'!$H$25:$XFD$74, MATCH($E32, 'RAB input'!$E$25:$E$74, 0), MATCH(AP$4, RAB_years, 0)) -> 0 | AQ32: =INDEX('RAB input'!$H$25:$XFD$74, MATCH($E32, 'RAB input'!$E$25:$E$74, 0), MATCH(AQ$4, RAB_years, 0)) -> 0 | AR32: =INDEX('RAB input'!$H$25:$XFD$74, MATCH($E32, 'RAB input'!$E$25:$E$74, 0), MATCH(AR$4, RAB_years, 0)) -> 0 | AS32: =INDEX('RAB input'!$H$25:$XFD$74, MATCH($E32, 'RAB input'!$E$25:$E$74, 0), MATCH(AS$4, RAB_years, 0)) -> 0 | AT32: =INDEX('RAB input'!$H$25:$XFD$74, MATCH($E32, 'RAB input'!$E$25:$E$74, 0), MATCH(AT$4, RAB_years, 0)) -> 0 | AU32: =INDEX('RAB input'!$H$25:$XFD$74, MATCH($E32, 'RAB input'!$E$25:$E$74, 0), MATCH(AU$4, RAB_years, 0)) -> 0 | AV32: =INDEX('RAB input'!$H$25:$XFD$74, MATCH($E32, 'RAB input'!$E$25:$E$74, 0), MATCH(AV$4, RAB_years, 0)) -> 0 | AW32: =INDEX('RAB input'!$H$25:$XFD$74, MATCH($E32, 'RAB input'!$E$25:$E$74, 0), MATCH(AW$4, RAB_years, 0)) -> 0 | AX32: =INDEX('RAB input'!$H$25:$XFD$74, MATCH($E32, 'RAB input'!$E$25:$E$74, 0), MATCH(AX$4, RAB_years, 0)) -> 0 | AY32: =INDEX('RAB input'!$H$25:$XFD$74, MATCH($E32, 'RAB input'!$E$25:$E$74, 0), MATCH(AY$4, RAB_years, 0)) -> 0 | AZ32: =INDEX('RAB input'!$H$25:$XFD$74, MATCH($E32, 'RAB input'!$E$25:$E$74, 0), MATCH(AZ$4, RAB_years, 0)) -> 0 | BA32: =INDEX('RAB input'!$H$25:$XFD$74, MATCH($E32, 'RAB input'!$E$25:$E$74, 0), MATCH(BA$4, RAB_years, 0)) -> 0 | BB32: =INDEX('RAB input'!$H$25:$XFD$74, MATCH($E32, 'RAB input'!$E$25:$E$74, 0), MATCH(BB$4, RAB_years, 0)) -> 0 | BC32: =INDEX('RAB input'!$H$25:$XFD$74, MATCH($E32, 'RAB input'!$E$25:$E$74, 0), MATCH(BC$4, RAB_years, 0)) -> 0 | BD32: =INDEX('RAB input'!$H$25:$XFD$74, MATCH($E32, 'RAB input'!$E$25:$E$74, 0), MATCH(BD$4, RAB_years, 0)) -> 0 | BE32: =INDEX('RAB input'!$H$25:$XFD$74, MATCH($E32, 'RAB input'!$E$25:$E$74, 0), MATCH(BE$4, RAB_years, 0)) -> 0 | BF32: =INDEX('RAB input'!$H$25:$XFD$74, MATCH($E32, 'RAB input'!$E$25:$E$74, 0), MATCH(BF$4, RAB_years, 0)) -> 0 | BG32: =INDEX('RAB input'!$H$25:$XFD$74, MATCH($E32, 'RAB input'!$E$25:$E$74, 0), MATCH(BG$4, RAB_years, 0)) -> 0 | BH32: =INDEX('RAB input'!$H$25:$XFD$74, MATCH($E32, 'RAB input'!$E$25:$E$74, 0), MATCH(BH$4, RAB_years, 0)) -> 0 | BI32: =INDEX('RAB input'!$H$25:$XFD$74, MATCH($E32, 'RAB input'!$E$25:$E$74, 0), MATCH(BI$4, RAB_years, 0)) -> 0 | BJ32: =INDEX('RAB input'!$H$25:$XFD$74, MATCH($E32, 'RAB input'!$E$25:$E$74, 0), MATCH(BJ$4, RAB_years, 0)) -> 0 | BK32: =INDEX('RAB input'!$H$25:$XFD$74, MATCH($E32, 'RAB input'!$E$25:$E$74, 0), MATCH(BK$4, RAB_years, 0)) -> 0 | BL32: =INDEX('RAB input'!$H$25:$XFD$74, MATCH($E32, 'RAB input'!$E$25:$E$74, 0), MATCH(BL$4, RAB_years, 0)) -> 0 | BM32: =INDEX('RAB input'!$H$25:$XFD$74, MATCH($E32, 'RAB input'!$E$25:$E$74, 0), MATCH(BM$4, RAB_years, 0)) -> 0 | BN32: =INDEX('RAB input'!$H$25:$XFD$74, MATCH($E32, 'RAB input'!$E$25:$E$74, 0), MATCH(BN$4, RAB_years, 0)) -> 0 | BO32: =INDEX('RAB input'!$H$25:$XFD$74, MATCH($E32, 'RAB input'!$E$25:$E$74, 0), MATCH(BO$4, RAB_years, 0)) -> 0 | BP32: =INDEX('RAB input'!$H$25:$XFD$74, MATCH($E32, 'RAB input'!$E$25:$E$74, 0), MATCH(BP$4, RAB_years, 0)) -> 0 | BQ32: =INDEX('RAB input'!$H$25:$XFD$74, MATCH($E32, 'RAB input'!$E$25:$E$74, 0), MATCH(BQ$4, RAB_years, 0)) -> 0 | BR32: =INDEX('RAB input'!$H$25:$XFD$74, MATCH($E32, 'RAB input'!$E$25:$E$74, 0), MATCH(BR$4, RAB_years, 0)) -> 0 | BS32: =INDEX('RAB input'!$H$25:$XFD$74, MATCH($E32, 'RAB input'!$E$25:$E$74, 0), MATCH(BS$4, RAB_years, 0)) -> 0 | BT32: =INDEX('RAB input'!$H$25:$XFD$74, MATCH($E32, 'RAB input'!$E$25:$E$74, 0), MATCH(BT$4, RAB_years, 0)) -> 0 | BU32: =INDEX('RAB input'!$H$25:$XFD$74, MATCH($E32, 'RAB input'!$E$25:$E$74, 0), MATCH(BU$4, RAB_years, 0)) -> 0 | BV32: =INDEX('RAB input'!$H$25:$XFD$74, MATCH($E32, 'RAB input'!$E$25:$E$74, 0), MATCH(BV$4, RAB_years, 0)) -> 0 | BW32: =INDEX('RAB input'!$H$25:$XFD$74, MATCH($E32, 'RAB input'!$E$25:$E$74, 0), MATCH(BW$4, RAB_years, 0)) -> 0 | BX32: =INDEX('RAB input'!$H$25:$XFD$74, MATCH($E32, 'RAB input'!$E$25:$E$74, 0), MATCH(BX$4, RAB_years, 0)) -> 0 | BY32: =INDEX('RAB input'!$H$25:$XFD$74, MATCH($E32, 'RAB input'!$E$25:$E$74, 0), MATCH(BY$4, RAB_years, 0)) -> 0 | BZ32: =INDEX('RAB input'!$H$25:$XFD$74, MATCH($E32, 'RAB input'!$E$25:$E$74, 0), MATCH(BZ$4, RAB_years, 0)) -> 0 | CA32: =INDEX('RAB input'!$H$25:$XFD$74, MATCH($E32, 'RAB input'!$E$25:$E$74, 0), MATCH(CA$4, RAB_years, 0)) -> 0 | CB32: =INDEX('RAB input'!$H$25:$XFD$74, MATCH($E32, 'RAB input'!$E$25:$E$74, 0), MATCH(CB$4, RAB_years, 0)) -> 0 | CC32: =INDEX('RAB input'!$H$25:$XFD$74, MATCH($E32, 'RAB input'!$E$25:$E$74, 0), MATCH(CC$4, RAB_years, 0)) -> 0 | CD32: =INDEX('RAB input'!$H$25:$XFD$74, MATCH($E32, 'RAB input'!$E$25:$E$74, 0), MATCH(CD$4, RAB_years, 0)) -> 0 | CE32: =INDEX('RAB input'!$H$25:$XFD$74, MATCH($E32, 'RAB input'!$E$25:$E$74, 0), MATCH(CE$4, RAB_years, 0)) -> 0
D33: 16 | E33: ='RAB input'!E40 -> Plant & Tools/Office Furniture | G33: 31.49849768 | H33: 0.327 | I33: =INDEX('RAB input'!$H$25:$XFD$74, MATCH($E33, 'RAB input'!$E$25:$E$74, 0), MATCH(I$4, RAB_years, 0)) -> 10.375 | J33: =INDEX('RAB input'!$H$25:$XFD$74, MATCH($E33, 'RAB input'!$E$25:$E$74, 0), MATCH(J$4, RAB_years, 0)) -> 18.516 | K33: =INDEX('RAB input'!$H$25:$XFD$74, MATCH($E33, 'RAB input'!$E$25:$E$74, 0), MATCH(K$4, RAB_years, 0)) -> 16.319 | L33: =INDEX('RAB input'!$H$25:$XFD$74, MATCH($E33, 'RAB input'!$E$25:$E$74, 0), MATCH(L$4, RAB_years, 0)) -> 10.128 | M33: =INDEX('RAB input'!$H$25:$XFD$74, MATCH($E33, 'RAB input'!$E$25:$E$74, 0), MATCH(M$4, RAB_years, 0)) -> 18.98879271 | N33: =INDEX('RAB input'!$H$25:$XFD$74, MATCH($E33, 'RAB input'!$E$25:$E$74, 0), MATCH(N$4, RAB_years, 0)) -> 9.295408555 | O33: =INDEX('RAB input'!$H$25:$XFD$74, MATCH($E33, 'RAB input'!$E$25:$E$74, 0), MATCH(O$4, RAB_years, 0)) -> 9.225397674 | P33: =INDEX('RAB input'!$H$25:$XFD$74, MATCH($E33, 'RAB input'!$E$25:$E$74, 0), MATCH(P$4, RAB_years, 0)) -> 13.90928562 | Q33: =INDEX('RAB input'!$H$25:$XFD$74, MATCH($E33, 'RAB input'!$E$25:$E$74, 0), MATCH(Q$4, RAB_years, 0)) -> 3.44409151 | R33: =INDEX('RAB input'!$H$25:$XFD$74, MATCH($E33, 'RAB input'!$E$25:$E$74, 0), MATCH(R$4, RAB_years, 0)) -> 6.660095264 | S33: =INDEX('RAB input'!$H$25:$XFD$74, MATCH($E33, 'RAB input'!$E$25:$E$74, 0), MATCH(S$4, RAB_years, 0)) -> 3.756407373 | T33: =INDEX('RAB input'!$H$25:$XFD$74, MATCH($E33, 'RAB input'!$E$25:$E$74, 0), MATCH(T$4, RAB_years, 0)) -> 8.900780506 | U33: =INDEX('RAB input'!$H$25:$XFD$74, MATCH($E33, 'RAB input'!$E$25:$E$74, 0), MATCH(U$4, RAB_years, 0)) -> 3.42655494 | V33: =INDEX('RAB input'!$H$25:$XFD$74, MATCH($E33, 'RAB input'!$E$25:$E$74, 0), MATCH(V$4, RAB_years, 0)) -> 3.568206806 | W33: =INDEX('RAB input'!$H$25:$XFD$74, MATCH($E33, 'RAB input'!$E$25:$E$74, 0), MATCH(W$4, RAB_years, 0)) -> 3.1 | X33: =INDEX('RAB input'!$H$25:$XFD$74, MATCH($E33, 'RAB input'!$E$25:$E$74, 0), MATCH(X$4, RAB_years, 0)) -> 0 | Y33: =INDEX('RAB input'!$H$25:$XFD$74, MATCH($E33, 'RAB input'!$E$25:$E$74, 0), MATCH(Y$4, RAB_years, 0)) -> 0 | Z33: =INDEX('RAB input'!$H$25:$XFD$74, MATCH($E33, 'RAB input'!$E$25:$E$74, 0), MATCH(Z$4, RAB_years, 0)) -> 0 | AA33: =INDEX('RAB input'!$H$25:$XFD$74, MATCH($E33, 'RAB input'!$E$25:$E$74, 0), MATCH(AA$4, RAB_years, 0)) -> 0 | AB33: =INDEX('RAB input'!$H$25:$XFD$74, MATCH($E33, 'RAB input'!$E$25:$E$74, 0), MATCH(AB$4, RAB_years, 0)) -> 0 | AC33: =INDEX('RAB input'!$H$25:$XFD$74, MATCH($E33, 'RAB input'!$E$25:$E$74, 0), MATCH(AC$4, RAB_years, 0)) -> 0 | AD33: =INDEX('RAB input'!$H$25:$XFD$74, MATCH($E33, 'RAB input'!$E$25:$E$74, 0), MATCH(AD$4, RAB_years, 0)) -> 0 | AE33: =INDEX('RAB input'!$H$25:$XFD$74, MATCH($E33, 'RAB input'!$E$25:$E$74, 0), MATCH(AE$4, RAB_years, 0)) -> 0 | AF33: =INDEX('RAB input'!$H$25:$XFD$74, MATCH($E33, 'RAB input'!$E$25:$E$74, 0), MATCH(AF$4, RAB_years, 0)) -> 0 | AG33: =INDEX('RAB input'!$H$25:$XFD$74, MATCH($E33, 'RAB input'!$E$25:$E$74, 0), MATCH(AG$4, RAB_years, 0)) -> 0 | AH33: =INDEX('RAB input'!$H$25:$XFD$74, MATCH($E33, 'RAB input'!$E$25:$E$74, 0), MATCH(AH$4, RAB_years, 0)) -> 0 | AI33: =INDEX('RAB input'!$H$25:$XFD$74, MATCH($E33, 'RAB input'!$E$25:$E$74, 0), MATCH(AI$4, RAB_years, 0)) -> 0 | AJ33: =INDEX('RAB input'!$H$25:$XFD$74, MATCH($E33, 'RAB input'!$E$25:$E$74, 0), MATCH(AJ$4, RAB_years, 0)) -> 0 | AK33: =INDEX('RAB input'!$H$25:$XFD$74, MATCH($E33, 'RAB input'!$E$25:$E$74, 0), MATCH(AK$4, RAB_years, 0)) -> 0 | AL33: =INDEX('RAB input'!$H$25:$XFD$74, MATCH($E33, 'RAB input'!$E$25:$E$74, 0), MATCH(AL$4, RAB_years, 0)) -> 0 | AM33: =INDEX('RAB input'!$H$25:$XFD$74, MATCH($E33, 'RAB input'!$E$25:$E$74, 0), MATCH(AM$4, RAB_years, 0)) -> 0 | AN33: =INDEX('RAB input'!$H$25:$XFD$74, MATCH($E33, 'RAB input'!$E$25:$E$74, 0), MATCH(AN$4, RAB_years, 0)) -> 0 | AO33: =INDEX('RAB input'!$H$25:$XFD$74, MATCH($E33, 'RAB input'!$E$25:$E$74, 0), MATCH(AO$4, RAB_years, 0)) -> 0 | AP33: =INDEX('RAB input'!$H$25:$XFD$74, MATCH($E33, 'RAB input'!$E$25:$E$74, 0), MATCH(AP$4, RAB_years, 0)) -> 0 | AQ33: =INDEX('RAB input'!$H$25:$XFD$74, MATCH($E33, 'RAB input'!$E$25:$E$74, 0), MATCH(AQ$4, RAB_years, 0)) -> 0 | AR33: =INDEX('RAB input'!$H$25:$XFD$74, MATCH($E33, 'RAB input'!$E$25:$E$74, 0), MATCH(AR$4, RAB_years, 0)) -> 0 | AS33: =INDEX('RAB input'!$H$25:$XFD$74, MATCH($E33, 'RAB input'!$E$25:$E$74, 0), MATCH(AS$4, RAB_years, 0)) -> 0 | AT33: =INDEX('RAB input'!$H$25:$XFD$74, MATCH($E33, 'RAB input'!$E$25:$E$74, 0), MATCH(AT$4, RAB_years, 0)) -> 0 | AU33: =INDEX('RAB input'!$H$25:$XFD$74, MATCH($E33, 'RAB input'!$E$25:$E$74, 0), MATCH(AU$4, RAB_years, 0)) -> 0 | AV33: =INDEX('RAB input'!$H$25:$XFD$74, MATCH($E33, 'RAB input'!$E$25:$E$74, 0), MATCH(AV$4, RAB_years, 0)) -> 0 | AW33: =INDEX('RAB input'!$H$25:$XFD$74, MATCH($E33, 'RAB input'!$E$25:$E$74, 0), MATCH(AW$4, RAB_years, 0)) -> 0 | AX33: =INDEX('RAB input'!$H$25:$XFD$74, MATCH($E33, 'RAB input'!$E$25:$E$74, 0), MATCH(AX$4, RAB_years, 0)) -> 0 | AY33: =INDEX('RAB input'!$H$25:$XFD$74, MATCH($E33, 'RAB input'!$E$25:$E$74, 0), MATCH(AY$4, RAB_years, 0)) -> 0 | AZ33: =INDEX('RAB input'!$H$25:$XFD$74, MATCH($E33, 'RAB input'!$E$25:$E$74, 0), MATCH(AZ$4, RAB_years, 0)) -> 0 | BA33: =INDEX('RAB input'!$H$25:$XFD$74, MATCH($E33, 'RAB input'!$E$25:$E$74, 0), MATCH(BA$4, RAB_years, 0)) -> 0 | BB33: =INDEX('RAB input'!$H$25:$XFD$74, MATCH($E33, 'RAB input'!$E$25:$E$74, 0), MATCH(BB$4, RAB_years, 0)) -> 0 | BC33: =INDEX('RAB input'!$H$25:$XFD$74, MATCH($E33, 'RAB input'!$E$25:$E$74, 0), MATCH(BC$4, RAB_years, 0)) -> 0 | BD33: =INDEX('RAB input'!$H$25:$XFD$74, MATCH($E33, 'RAB input'!$E$25:$E$74, 0), MATCH(BD$4, RAB_years, 0)) -> 0 | BE33: =INDEX('RAB input'!$H$25:$XFD$74, MATCH($E33, 'RAB input'!$E$25:$E$74, 0), MATCH(BE$4, RAB_years, 0)) -> 0 | BF33: =INDEX('RAB input'!$H$25:$XFD$74, MATCH($E33, 'RAB input'!$E$25:$E$74, 0), MATCH(BF$4, RAB_years, 0)) -> 0 | BG33: =INDEX('RAB input'!$H$25:$XFD$74, MATCH($E33, 'RAB input'!$E$25:$E$74, 0), MATCH(BG$4, RAB_years, 0)) -> 0 | BH33: =INDEX('RAB input'!$H$25:$XFD$74, MATCH($E33, 'RAB input'!$E$25:$E$74, 0), MATCH(BH$4, RAB_years, 0)) -> 0 | BI33: =INDEX('RAB input'!$H$25:$XFD$74, MATCH($E33, 'RAB input'!$E$25:$E$74, 0), MATCH(BI$4, RAB_years, 0)) -> 0 | BJ33: =INDEX('RAB input'!$H$25:$XFD$74, MATCH($E33, 'RAB input'!$E$25:$E$74, 0), MATCH(BJ$4, RAB_years, 0)) -> 0 | BK33: =INDEX('RAB input'!$H$25:$XFD$74, MATCH($E33, 'RAB input'!$E$25:$E$74, 0), MATCH(BK$4, RAB_years, 0)) -> 0 | BL33: =INDEX('RAB input'!$H$25:$XFD$74, MATCH($E33, 'RAB input'!$E$25:$E$74, 0), MATCH(BL$4, RAB_years, 0)) -> 0 | BM33: =INDEX('RAB input'!$H$25:$XFD$74, MATCH($E33, 'RAB input'!$E$25:$E$74, 0), MATCH(BM$4, RAB_years, 0)) -> 0 | BN33: =INDEX('RAB input'!$H$25:$XFD$74, MATCH($E33, 'RAB input'!$E$25:$E$74, 0), MATCH(BN$4, RAB_years, 0)) -> 0 | BO33: =INDEX('RAB input'!$H$25:$XFD$74, MATCH($E33, 'RAB input'!$E$25:$E$74, 0), MATCH(BO$4, RAB_years, 0)) -> 0 | BP33: =INDEX('RAB input'!$H$25:$XFD$74, MATCH($E33, 'RAB input'!$E$25:$E$74, 0), MATCH(BP$4, RAB_years, 0)) -> 0 | BQ33: =INDEX('RAB input'!$H$25:$XFD$74, MATCH($E33, 'RAB input'!$E$25:$E$74, 0), MATCH(BQ$4, RAB_years, 0)) -> 0 | BR33: =INDEX('RAB input'!$H$25:$XFD$74, MATCH($E33, 'RAB input'!$E$25:$E$74, 0), MATCH(BR$4, RAB_years, 0)) -> 0 | BS33: =INDEX('RAB input'!$H$25:$XFD$74, MATCH($E33, 'RAB input'!$E$25:$E$74, 0), MATCH(BS$4, RAB_years, 0)) -> 0 | BT33: =INDEX('RAB input'!$H$25:$XFD$74, MATCH($E33, 'RAB input'!$E$25:$E$74, 0), MATCH(BT$4, RAB_years, 0)) -> 0 | BU33: =INDEX('RAB input'!$H$25:$XFD$74, MATCH($E33, 'RAB input'!$E$25:$E$74, 0), MATCH(BU$4, RAB_years, 0)) -> 0 | BV33: =INDEX('RAB input'!$H$25:$XFD$74, MATCH($E33, 'RAB input'!$E$25:$E$74, 0), MATCH(BV$4, RAB_years, 0)) -> 0 | BW33: =INDEX('RAB input'!$H$25:$XFD$74, MATCH($E33, 'RAB input'!$E$25:$E$74, 0), MATCH(BW$4, RAB_years, 0)) -> 0 | BX33: =INDEX('RAB input'!$H$25:$XFD$74, MATCH($E33, 'RAB input'!$E$25:$E$74, 0), MATCH(BX$4, RAB_years, 0)) -> 0 | BY33: =INDEX('RAB input'!$H$25:$XFD$74, MATCH($E33, 'RAB input'!$E$25:$E$74, 0), MATCH(BY$4, RAB_years, 0)) -> 0 | BZ33: =INDEX('RAB input'!$H$25:$XFD$74, MATCH($E33, 'RAB input'!$E$25:$E$74, 0), MATCH(BZ$4, RAB_years, 0)) -> 0 | CA33: =INDEX('RAB input'!$H$25:$XFD$74, MATCH($E33, 'RAB input'!$E$25:$E$74, 0), MATCH(CA$4, RAB_years, 0)) -> 0 | CB33: =INDEX('RAB input'!$H$25:$XFD$74, MATCH($E33, 'RAB input'!$E$25:$E$74, 0), MATCH(CB$4, RAB_years, 0)) -> 0 | CC33: =INDEX('RAB input'!$H$25:$XFD$74, MATCH($E33, 'RAB input'!$E$25:$E$74, 0), MATCH(CC$4, RAB_years, 0)) -> 0 | CD33: =INDEX('RAB input'!$H$25:$XFD$74, MATCH($E33, 'RAB input'!$E$25:$E$74, 0), MATCH(CD$4, RAB_years, 0)) -> 0 | CE33: =INDEX('RAB input'!$H$25:$XFD$74, MATCH($E33, 'RAB input'!$E$25:$E$74, 0), MATCH(CE$4, RAB_years, 0)) -> 0
D34: 17 | E34: ='RAB input'!E41 -> Distribution Lines-Refurbish and Shorter Life | H34: 0 | I34: =INDEX('RAB input'!$H$25:$XFD$74, MATCH($E34, 'RAB input'!$E$25:$E$74, 0), MATCH(I$4, RAB_years, 0)) -> 0 | J34: =INDEX('RAB input'!$H$25:$XFD$74, MATCH($E34, 'RAB input'!$E$25:$E$74, 0), MATCH(J$4, RAB_years, 0)) -> 0 | K34: =INDEX('RAB input'!$H$25:$XFD$74, MATCH($E34, 'RAB input'!$E$25:$E$74, 0), MATCH(K$4, RAB_years, 0)) -> 0 | L34: =INDEX('RAB input'!$H$25:$XFD$74, MATCH($E34, 'RAB input'!$E$25:$E$74, 0), MATCH(L$4, RAB_years, 0)) -> 0 | M34: =INDEX('RAB input'!$H$25:$XFD$74, MATCH($E34, 'RAB input'!$E$25:$E$74, 0), MATCH(M$4, RAB_years, 0)) -> 0 | N34: =INDEX('RAB input'!$H$25:$XFD$74, MATCH($E34, 'RAB input'!$E$25:$E$74, 0), MATCH(N$4, RAB_years, 0)) -> 0 | O34: =INDEX('RAB input'!$H$25:$XFD$74, MATCH($E34, 'RAB input'!$E$25:$E$74, 0), MATCH(O$4, RAB_years, 0)) -> 0 | P34: =INDEX('RAB input'!$H$25:$XFD$74, MATCH($E34, 'RAB input'!$E$25:$E$74, 0), MATCH(P$4, RAB_years, 0)) -> 0 | Q34: =INDEX('RAB input'!$H$25:$XFD$74, MATCH($E34, 'RAB input'!$E$25:$E$74, 0), MATCH(Q$4, RAB_years, 0)) -> 0 | R34: =INDEX('RAB input'!$H$25:$XFD$74, MATCH($E34, 'RAB input'!$E$25:$E$74, 0), MATCH(R$4, RAB_years, 0)) -> 0 | S34: =INDEX('RAB input'!$H$25:$XFD$74, MATCH($E34, 'RAB input'!$E$25:$E$74, 0), MATCH(S$4, RAB_years, 0)) -> 5.400184447 | T34: =INDEX('RAB input'!$H$25:$XFD$74, MATCH($E34, 'RAB input'!$E$25:$E$74, 0), MATCH(T$4, RAB_years, 0)) -> 6.417855765 | U34: =INDEX('RAB input'!$H$25:$XFD$74, MATCH($E34, 'RAB input'!$E$25:$E$74, 0), MATCH(U$4, RAB_years, 0)) -> 8.669327271 | V34: =INDEX('RAB input'!$H$25:$XFD$74, MATCH($E34, 'RAB input'!$E$25:$E$74, 0), MATCH(V$4, RAB_years, 0)) -> 7.504589958 | W34: =INDEX('RAB input'!$H$25:$XFD$74, MATCH($E34, 'RAB input'!$E$25:$E$74, 0), MATCH(W$4, RAB_years, 0)) -> 7.329651877 | X34: =INDEX('RAB input'!$H$25:$XFD$74, MATCH($E34, 'RAB input'!$E$25:$E$74, 0), MATCH(X$4, RAB_years, 0)) -> 0 | Y34: =INDEX('RAB input'!$H$25:$XFD$74, MATCH($E34, 'RAB input'!$E$25:$E$74, 0), MATCH(Y$4, RAB_years, 0)) -> 0 | Z34: =INDEX('RAB input'!$H$25:$XFD$74, MATCH($E34, 'RAB input'!$E$25:$E$74, 0), MATCH(Z$4, RAB_years, 0)) -> 0 | AA34: =INDEX('RAB input'!$H$25:$XFD$74, MATCH($E34, 'RAB input'!$E$25:$E$74, 0), MATCH(AA$4, RAB_years, 0)) -> 0 | AB34: =INDEX('RAB input'!$H$25:$XFD$74, MATCH($E34, 'RAB input'!$E$25:$E$74, 0), MATCH(AB$4, RAB_years, 0)) -> 0 | AC34: =INDEX('RAB input'!$H$25:$XFD$74, MATCH($E34, 'RAB input'!$E$25:$E$74, 0), MATCH(AC$4, RAB_years, 0)) -> 0 | AD34: =INDEX('RAB input'!$H$25:$XFD$74, MATCH($E34, 'RAB input'!$E$25:$E$74, 0), MATCH(AD$4, RAB_years, 0)) -> 0 | AE34: =INDEX('RAB input'!$H$25:$XFD$74, MATCH($E34, 'RAB input'!$E$25:$E$74, 0), MATCH(AE$4, RAB_years, 0)) -> 0 | AF34: =INDEX('RAB input'!$H$25:$XFD$74, MATCH($E34, 'RAB input'!$E$25:$E$74, 0), MATCH(AF$4, RAB_years, 0)) -> 0 | AG34: =INDEX('RAB input'!$H$25:$XFD$74, MATCH($E34, 'RAB input'!$E$25:$E$74, 0), MATCH(AG$4, RAB_years, 0)) -> 0 | AH34: =INDEX('RAB input'!$H$25:$XFD$74, MATCH($E34, 'RAB input'!$E$25:$E$74, 0), MATCH(AH$4, RAB_years, 0)) -> 0 | AI34: =INDEX('RAB input'!$H$25:$XFD$74, MATCH($E34, 'RAB input'!$E$25:$E$74, 0), MATCH(AI$4, RAB_years, 0)) -> 0 | AJ34: =INDEX('RAB input'!$H$25:$XFD$74, MATCH($E34, 'RAB input'!$E$25:$E$74, 0), MATCH(AJ$4, RAB_years, 0)) -> 0 | AK34: =INDEX('RAB input'!$H$25:$XFD$74, MATCH($E34, 'RAB input'!$E$25:$E$74, 0), MATCH(AK$4, RAB_years, 0)) -> 0 | AL34: =INDEX('RAB input'!$H$25:$XFD$74, MATCH($E34, 'RAB input'!$E$25:$E$74, 0), MATCH(AL$4, RAB_years, 0)) -> 0 | AM34: =INDEX('RAB input'!$H$25:$XFD$74, MATCH($E34, 'RAB input'!$E$25:$E$74, 0), MATCH(AM$4, RAB_years, 0)) -> 0 | AN34: =INDEX('RAB input'!$H$25:$XFD$74, MATCH($E34, 'RAB input'!$E$25:$E$74, 0), MATCH(AN$4, RAB_years, 0)) -> 0 | AO34: =INDEX('RAB input'!$H$25:$XFD$74, MATCH($E34, 'RAB input'!$E$25:$E$74, 0), MATCH(AO$4, RAB_years, 0)) -> 0 | AP34: =INDEX('RAB input'!$H$25:$XFD$74, MATCH($E34, 'RAB input'!$E$25:$E$74, 0), MATCH(AP$4, RAB_years, 0)) -> 0 | AQ34: =INDEX('RAB input'!$H$25:$XFD$74, MATCH($E34, 'RAB input'!$E$25:$E$74, 0), MATCH(AQ$4, RAB_years, 0)) -> 0 | AR34: =INDEX('RAB input'!$H$25:$XFD$74, MATCH($E34, 'RAB input'!$E$25:$E$74, 0), MATCH(AR$4, RAB_years, 0)) -> 0 | AS34: =INDEX('RAB input'!$H$25:$XFD$74, MATCH($E34, 'RAB input'!$E$25:$E$74, 0), MATCH(AS$4, RAB_years, 0)) -> 0 | AT34: =INDEX('RAB input'!$H$25:$XFD$74, MATCH($E34, 'RAB input'!$E$25:$E$74, 0), MATCH(AT$4, RAB_years, 0)) -> 0 | AU34: =INDEX('RAB input'!$H$25:$XFD$74, MATCH($E34, 'RAB input'!$E$25:$E$74, 0), MATCH(AU$4, RAB_years, 0)) -> 0 | AV34: =INDEX('RAB input'!$H$25:$XFD$74, MATCH($E34, 'RAB input'!$E$25:$E$74, 0), MATCH(AV$4, RAB_years, 0)) -> 0 | AW34: =INDEX('RAB input'!$H$25:$XFD$74, MATCH($E34, 'RAB input'!$E$25:$E$74, 0), MATCH(AW$4, RAB_years, 0)) -> 0 | AX34: =INDEX('RAB input'!$H$25:$XFD$74, MATCH($E34, 'RAB input'!$E$25:$E$74, 0), MATCH(AX$4, RAB_years, 0)) -> 0 | AY34: =INDEX('RAB input'!$H$25:$XFD$74, MATCH($E34, 'RAB input'!$E$25:$E$74, 0), MATCH(AY$4, RAB_years, 0)) -> 0 | AZ34: =INDEX('RAB input'!$H$25:$XFD$74, MATCH($E34, 'RAB input'!$E$25:$E$74, 0), MATCH(AZ$4, RAB_years, 0)) -> 0 | BA34: =INDEX('RAB input'!$H$25:$XFD$74, MATCH($E34, 'RAB input'!$E$25:$E$74, 0), MATCH(BA$4, RAB_years, 0)) -> 0 | BB34: =INDEX('RAB input'!$H$25:$XFD$74, MATCH($E34, 'RAB input'!$E$25:$E$74, 0), MATCH(BB$4, RAB_years, 0)) -> 0 | BC34: =INDEX('RAB input'!$H$25:$XFD$74, MATCH($E34, 'RAB input'!$E$25:$E$74, 0), MATCH(BC$4, RAB_years, 0)) -> 0 | BD34: =INDEX('RAB input'!$H$25:$XFD$74, MATCH($E34, 'RAB input'!$E$25:$E$74, 0), MATCH(BD$4, RAB_years, 0)) -> 0 | BE34: =INDEX('RAB input'!$H$25:$XFD$74, MATCH($E34, 'RAB input'!$E$25:$E$74, 0), MATCH(BE$4, RAB_years, 0)) -> 0 | BF34: =INDEX('RAB input'!$H$25:$XFD$74, MATCH($E34, 'RAB input'!$E$25:$E$74, 0), MATCH(BF$4, RAB_years, 0)) -> 0 | BG34: =INDEX('RAB input'!$H$25:$XFD$74, MATCH($E34, 'RAB input'!$E$25:$E$74, 0), MATCH(BG$4, RAB_years, 0)) -> 0 | BH34: =INDEX('RAB input'!$H$25:$XFD$74, MATCH($E34, 'RAB input'!$E$25:$E$74, 0), MATCH(BH$4, RAB_years, 0)) -> 0 | BI34: =INDEX('RAB input'!$H$25:$XFD$74, MATCH($E34, 'RAB input'!$E$25:$E$74, 0), MATCH(BI$4, RAB_years, 0)) -> 0 | BJ34: =INDEX('RAB input'!$H$25:$XFD$74, MATCH($E34, 'RAB input'!$E$25:$E$74, 0), MATCH(BJ$4, RAB_years, 0)) -> 0 | BK34: =INDEX('RAB input'!$H$25:$XFD$74, MATCH($E34, 'RAB input'!$E$25:$E$74, 0), MATCH(BK$4, RAB_years, 0)) -> 0 | BL34: =INDEX('RAB input'!$H$25:$XFD$74, MATCH($E34, 'RAB input'!$E$25:$E$74, 0), MATCH(BL$4, RAB_years, 0)) -> 0 | BM34: =INDEX('RAB input'!$H$25:$XFD$74, MATCH($E34, 'RAB input'!$E$25:$E$74, 0), MATCH(BM$4, RAB_years, 0)) -> 0 | BN34: =INDEX('RAB input'!$H$25:$XFD$74, MATCH($E34, 'RAB input'!$E$25:$E$74, 0), MATCH(BN$4, RAB_years, 0)) -> 0 | BO34: =INDEX('RAB input'!$H$25:$XFD$74, MATCH($E34, 'RAB input'!$E$25:$E$74, 0), MATCH(BO$4, RAB_years, 0)) -> 0 | BP34: =INDEX('RAB input'!$H$25:$XFD$74, MATCH($E34, 'RAB input'!$E$25:$E$74, 0), MATCH(BP$4, RAB_years, 0)) -> 0 | BQ34: =INDEX('RAB input'!$H$25:$XFD$74, MATCH($E34, 'RAB input'!$E$25:$E$74, 0), MATCH(BQ$4, RAB_years, 0)) -> 0 | BR34: =INDEX('RAB input'!$H$25:$XFD$74, MATCH($E34, 'RAB input'!$E$25:$E$74, 0), MATCH(BR$4, RAB_years, 0)) -> 0 | BS34: =INDEX('RAB input'!$H$25:$XFD$74, MATCH($E34, 'RAB input'!$E$25:$E$74, 0), MATCH(BS$4, RAB_years, 0)) -> 0 | BT34: =INDEX('RAB input'!$H$25:$XFD$74, MATCH($E34, 'RAB input'!$E$25:$E$74, 0), MATCH(BT$4, RAB_years, 0)) -> 0 | BU34: =INDEX('RAB input'!$H$25:$XFD$74, MATCH($E34, 'RAB input'!$E$25:$E$74, 0), MATCH(BU$4, RAB_years, 0)) -> 0 | BV34: =INDEX('RAB input'!$H$25:$XFD$74, MATCH($E34, 'RAB input'!$E$25:$E$74, 0), MATCH(BV$4, RAB_years, 0)) -> 0 | BW34: =INDEX('RAB input'!$H$25:$XFD$74, MATCH($E34, 'RAB input'!$E$25:$E$74, 0), MATCH(BW$4, RAB_years, 0)) -> 0 | BX34: =INDEX('RAB input'!$H$25:$XFD$74, MATCH($E34, 'RAB input'!$E$25:$E$74, 0), MATCH(BX$4, RAB_years, 0)) -> 0 | BY34: =INDEX('RAB input'!$H$25:$XFD$74, MATCH($E34, 'RAB input'!$E$25:$E$74, 0), MATCH(BY$4, RAB_years, 0)) -> 0 | BZ34: =INDEX('RAB input'!$H$25:$XFD$74, MATCH($E34, 'RAB input'!$E$25:$E$74, 0), MATCH(BZ$4, RAB_years, 0)) -> 0 | CA34: =INDEX('RAB input'!$H$25:$XFD$74, MATCH($E34, 'RAB input'!$E$25:$E$74, 0), MATCH(CA$4, RAB_years, 0)) -> 0 | CB34: =INDEX('RAB input'!$H$25:$XFD$74, MATCH($E34, 'RAB input'!$E$25:$E$74, 0), MATCH(CB$4, RAB_years, 0)) -> 0 | CC34: =INDEX('RAB input'!$H$25:$XFD$74, MATCH($E34, 'RAB input'!$E$25:$E$74, 0), MATCH(CC$4, RAB_years, 0)) -> 0 | CD34: =INDEX('RAB input'!$H$25:$XFD$74, MATCH($E34, 'RAB input'!$E$25:$E$74, 0), MATCH(CD$4, RAB_years, 0)) -> 0 | CE34: =INDEX('RAB input'!$H$25:$XFD$74, MATCH($E34, 'RAB input'!$E$25:$E$74, 0), MATCH(CE$4, RAB_years, 0)) -> 0
D35: 18 | E35: ='RAB input'!E42 -> Substations-Refurbish and Shorter Life | H35: 0 | I35: =INDEX('RAB input'!$H$25:$XFD$74, MATCH($E35, 'RAB input'!$E$25:$E$74, 0), MATCH(I$4, RAB_years, 0)) -> 0 | J35: =INDEX('RAB input'!$H$25:$XFD$74, MATCH($E35, 'RAB input'!$E$25:$E$74, 0), MATCH(J$4, RAB_years, 0)) -> 0 | K35: =INDEX('RAB input'!$H$25:$XFD$74, MATCH($E35, 'RAB input'!$E$25:$E$74, 0), MATCH(K$4, RAB_years, 0)) -> 0 | L35: =INDEX('RAB input'!$H$25:$XFD$74, MATCH($E35, 'RAB input'!$E$25:$E$74, 0), MATCH(L$4, RAB_years, 0)) -> 0 | M35: =INDEX('RAB input'!$H$25:$XFD$74, MATCH($E35, 'RAB input'!$E$25:$E$74, 0), MATCH(M$4, RAB_years, 0)) -> 0 | N35: =INDEX('RAB input'!$H$25:$XFD$74, MATCH($E35, 'RAB input'!$E$25:$E$74, 0), MATCH(N$4, RAB_years, 0)) -> 0 | O35: =INDEX('RAB input'!$H$25:$XFD$74, MATCH($E35, 'RAB input'!$E$25:$E$74, 0), MATCH(O$4, RAB_years, 0)) -> 0 | P35: =INDEX('RAB input'!$H$25:$XFD$74, MATCH($E35, 'RAB input'!$E$25:$E$74, 0), MATCH(P$4, RAB_years, 0)) -> 0 | Q35: =INDEX('RAB input'!$H$25:$XFD$74, MATCH($E35, 'RAB input'!$E$25:$E$74, 0), MATCH(Q$4, RAB_years, 0)) -> 0 | R35: =INDEX('RAB input'!$H$25:$XFD$74, MATCH($E35, 'RAB input'!$E$25:$E$74, 0), MATCH(R$4, RAB_years, 0)) -> 0 | S35: =INDEX('RAB input'!$H$25:$XFD$74, MATCH($E35, 'RAB input'!$E$25:$E$74, 0), MATCH(S$4, RAB_years, 0)) -> 0.8179778436 | T35: =INDEX('RAB input'!$H$25:$XFD$74, MATCH($E35, 'RAB input'!$E$25:$E$74, 0), MATCH(T$4, RAB_years, 0)) -> 0.4473335423 | U35: =INDEX('RAB input'!$H$25:$XFD$74, MATCH($E35, 'RAB input'!$E$25:$E$74, 0), MATCH(U$4, RAB_years, 0)) -> 0.09247498337 | V35: =INDEX('RAB input'!$H$25:$XFD$74, MATCH($E35, 'RAB input'!$E$25:$E$74, 0), MATCH(V$4, RAB_years, 0)) -> 1.889598426 | W35: =INDEX('RAB input'!$H$25:$XFD$74, MATCH($E35, 'RAB input'!$E$25:$E$74, 0), MATCH(W$4, RAB_years, 0)) -> 1.845550353 | X35: =INDEX('RAB input'!$H$25:$XFD$74, MATCH($E35, 'RAB input'!$E$25:$E$74, 0), MATCH(X$4, RAB_years, 0)) -> 0 | Y35: =INDEX('RAB input'!$H$25:$XFD$74, MATCH($E35, 'RAB input'!$E$25:$E$74, 0), MATCH(Y$4, RAB_years, 0)) -> 0 | Z35: =INDEX('RAB input'!$H$25:$XFD$74, MATCH($E35, 'RAB input'!$E$25:$E$74, 0), MATCH(Z$4, RAB_years, 0)) -> 0 | AA35: =INDEX('RAB input'!$H$25:$XFD$74, MATCH($E35, 'RAB input'!$E$25:$E$74, 0), MATCH(AA$4, RAB_years, 0)) -> 0 | AB35: =INDEX('RAB input'!$H$25:$XFD$74, MATCH($E35, 'RAB input'!$E$25:$E$74, 0), MATCH(AB$4, RAB_years, 0)) -> 0 | AC35: =INDEX('RAB input'!$H$25:$XFD$74, MATCH($E35, 'RAB input'!$E$25:$E$74, 0), MATCH(AC$4, RAB_years, 0)) -> 0 | AD35: =INDEX('RAB input'!$H$25:$XFD$74, MATCH($E35, 'RAB input'!$E$25:$E$74, 0), MATCH(AD$4, RAB_years, 0)) -> 0 | AE35: =INDEX('RAB input'!$H$25:$XFD$74, MATCH($E35, 'RAB input'!$E$25:$E$74, 0), MATCH(AE$4, RAB_years, 0)) -> 0 | AF35: =INDEX('RAB input'!$H$25:$XFD$74, MATCH($E35, 'RAB input'!$E$25:$E$74, 0), MATCH(AF$4, RAB_years, 0)) -> 0 | AG35: =INDEX('RAB input'!$H$25:$XFD$74, MATCH($E35, 'RAB input'!$E$25:$E$74, 0), MATCH(AG$4, RAB_years, 0)) -> 0 | AH35: =INDEX('RAB input'!$H$25:$XFD$74, MATCH($E35, 'RAB input'!$E$25:$E$74, 0), MATCH(AH$4, RAB_years, 0)) -> 0 | AI35: =INDEX('RAB input'!$H$25:$XFD$74, MATCH($E35, 'RAB input'!$E$25:$E$74, 0), MATCH(AI$4, RAB_years, 0)) -> 0 | AJ35: =INDEX('RAB input'!$H$25:$XFD$74, MATCH($E35, 'RAB input'!$E$25:$E$74, 0), MATCH(AJ$4, RAB_years, 0)) -> 0 | AK35: =INDEX('RAB input'!$H$25:$XFD$74, MATCH($E35, 'RAB input'!$E$25:$E$74, 0), MATCH(AK$4, RAB_years, 0)) -> 0 | AL35: =INDEX('RAB input'!$H$25:$XFD$74, MATCH($E35, 'RAB input'!$E$25:$E$74, 0), MATCH(AL$4, RAB_years, 0)) -> 0 | AM35: =INDEX('RAB input'!$H$25:$XFD$74, MATCH($E35, 'RAB input'!$E$25:$E$74, 0), MATCH(AM$4, RAB_years, 0)) -> 0 | AN35: =INDEX('RAB input'!$H$25:$XFD$74, MATCH($E35, 'RAB input'!$E$25:$E$74, 0), MATCH(AN$4, RAB_years, 0)) -> 0 | AO35: =INDEX('RAB input'!$H$25:$XFD$74, MATCH($E35, 'RAB input'!$E$25:$E$74, 0), MATCH(AO$4, RAB_years, 0)) -> 0 | AP35: =INDEX('RAB input'!$H$25:$XFD$74, MATCH($E35, 'RAB input'!$E$25:$E$74, 0), MATCH(AP$4, RAB_years, 0)) -> 0 | AQ35: =INDEX('RAB input'!$H$25:$XFD$74, MATCH($E35, 'RAB input'!$E$25:$E$74, 0), MATCH(AQ$4, RAB_years, 0)) -> 0 | AR35: =INDEX('RAB input'!$H$25:$XFD$74, MATCH($E35, 'RAB input'!$E$25:$E$74, 0), MATCH(AR$4, RAB_years, 0)) -> 0 | AS35: =INDEX('RAB input'!$H$25:$XFD$74, MATCH($E35, 'RAB input'!$E$25:$E$74, 0), MATCH(AS$4, RAB_years, 0)) -> 0 | AT35: =INDEX('RAB input'!$H$25:$XFD$74, MATCH($E35, 'RAB input'!$E$25:$E$74, 0), MATCH(AT$4, RAB_years, 0)) -> 0 | AU35: =INDEX('RAB input'!$H$25:$XFD$74, MATCH($E35, 'RAB input'!$E$25:$E$74, 0), MATCH(AU$4, RAB_years, 0)) -> 0 | AV35: =INDEX('RAB input'!$H$25:$XFD$74, MATCH($E35, 'RAB input'!$E$25:$E$74, 0), MATCH(AV$4, RAB_years, 0)) -> 0 | AW35: =INDEX('RAB input'!$H$25:$XFD$74, MATCH($E35, 'RAB input'!$E$25:$E$74, 0), MATCH(AW$4, RAB_years, 0)) -> 0 | AX35: =INDEX('RAB input'!$H$25:$XFD$74, MATCH($E35, 'RAB input'!$E$25:$E$74, 0), MATCH(AX$4, RAB_years, 0)) -> 0 | AY35: =INDEX('RAB input'!$H$25:$XFD$74, MATCH($E35, 'RAB input'!$E$25:$E$74, 0), MATCH(AY$4, RAB_years, 0)) -> 0 | AZ35: =INDEX('RAB input'!$H$25:$XFD$74, MATCH($E35, 'RAB input'!$E$25:$E$74, 0), MATCH(AZ$4, RAB_years, 0)) -> 0 | BA35: =INDEX('RAB input'!$H$25:$XFD$74, MATCH($E35, 'RAB input'!$E$25:$E$74, 0), MATCH(BA$4, RAB_years, 0)) -> 0 | BB35: =INDEX('RAB input'!$H$25:$XFD$74, MATCH($E35, 'RAB input'!$E$25:$E$74, 0), MATCH(BB$4, RAB_years, 0)) -> 0 | BC35: =INDEX('RAB input'!$H$25:$XFD$74, MATCH($E35, 'RAB input'!$E$25:$E$74, 0), MATCH(BC$4, RAB_years, 0)) -> 0 | BD35: =INDEX('RAB input'!$H$25:$XFD$74, MATCH($E35, 'RAB input'!$E$25:$E$74, 0), MATCH(BD$4, RAB_years, 0)) -> 0 | BE35: =INDEX('RAB input'!$H$25:$XFD$74, MATCH($E35, 'RAB input'!$E$25:$E$74, 0), MATCH(BE$4, RAB_years, 0)) -> 0 | BF35: =INDEX('RAB input'!$H$25:$XFD$74, MATCH($E35, 'RAB input'!$E$25:$E$74, 0), MATCH(BF$4, RAB_years, 0)) -> 0 | BG35: =INDEX('RAB input'!$H$25:$XFD$74, MATCH($E35, 'RAB input'!$E$25:$E$74, 0), MATCH(BG$4, RAB_years, 0)) -> 0 | BH35: =INDEX('RAB input'!$H$25:$XFD$74, MATCH($E35, 'RAB input'!$E$25:$E$74, 0), MATCH(BH$4, RAB_years, 0)) -> 0 | BI35: =INDEX('RAB input'!$H$25:$XFD$74, MATCH($E35, 'RAB input'!$E$25:$E$74, 0), MATCH(BI$4, RAB_years, 0)) -> 0 | BJ35: =INDEX('RAB input'!$H$25:$XFD$74, MATCH($E35, 'RAB input'!$E$25:$E$74, 0), MATCH(BJ$4, RAB_years, 0)) -> 0 | BK35: =INDEX('RAB input'!$H$25:$XFD$74, MATCH($E35, 'RAB input'!$E$25:$E$74, 0), MATCH(BK$4, RAB_years, 0)) -> 0 | BL35: =INDEX('RAB input'!$H$25:$XFD$74, MATCH($E35, 'RAB input'!$E$25:$E$74, 0), MATCH(BL$4, RAB_years, 0)) -> 0 | BM35: =INDEX('RAB input'!$H$25:$XFD$74, MATCH($E35, 'RAB input'!$E$25:$E$74, 0), MATCH(BM$4, RAB_years, 0)) -> 0 | BN35: =INDEX('RAB input'!$H$25:$XFD$74, MATCH($E35, 'RAB input'!$E$25:$E$74, 0), MATCH(BN$4, RAB_years, 0)) -> 0 | BO35: =INDEX('RAB input'!$H$25:$XFD$74, MATCH($E35, 'RAB input'!$E$25:$E$74, 0), MATCH(BO$4, RAB_years, 0)) -> 0 | BP35: =INDEX('RAB input'!$H$25:$XFD$74, MATCH($E35, 'RAB input'!$E$25:$E$74, 0), MATCH(BP$4, RAB_years, 0)) -> 0 | BQ35: =INDEX('RAB input'!$H$25:$XFD$74, MATCH($E35, 'RAB input'!$E$25:$E$74, 0), MATCH(BQ$4, RAB_years, 0)) -> 0 | BR35: =INDEX('RAB input'!$H$25:$XFD$74, MATCH($E35, 'RAB input'!$E$25:$E$74, 0), MATCH(BR$4, RAB_years, 0)) -> 0 | BS35: =INDEX('RAB input'!$H$25:$XFD$74, MATCH($E35, 'RAB input'!$E$25:$E$74, 0), MATCH(BS$4, RAB_years, 0)) -> 0 | BT35: =INDEX('RAB input'!$H$25:$XFD$74, MATCH($E35, 'RAB input'!$E$25:$E$74, 0), MATCH(BT$4, RAB_years, 0)) -> 0 | BU35: =INDEX('RAB input'!$H$25:$XFD$74, MATCH($E35, 'RAB input'!$E$25:$E$74, 0), MATCH(BU$4, RAB_years, 0)) -> 0 | BV35: =INDEX('RAB input'!$H$25:$XFD$74, MATCH($E35, 'RAB input'!$E$25:$E$74, 0), MATCH(BV$4, RAB_years, 0)) -> 0 | BW35: =INDEX('RAB input'!$H$25:$XFD$74, MATCH($E35, 'RAB input'!$E$25:$E$74, 0), MATCH(BW$4, RAB_years, 0)) -> 0 | BX35: =INDEX('RAB input'!$H$25:$XFD$74, MATCH($E35, 'RAB input'!$E$25:$E$74, 0), MATCH(BX$4, RAB_years, 0)) -> 0 | BY35: =INDEX('RAB input'!$H$25:$XFD$74, MATCH($E35, 'RAB input'!$E$25:$E$74, 0), MATCH(BY$4, RAB_years, 0)) -> 0 | BZ35: =INDEX('RAB input'!$H$25:$XFD$74, MATCH($E35, 'RAB input'!$E$25:$E$74, 0), MATCH(BZ$4, RAB_years, 0)) -> 0 | CA35: =INDEX('RAB input'!$H$25:$XFD$74, MATCH($E35, 'RAB input'!$E$25:$E$74, 0), MATCH(CA$4, RAB_years, 0)) -> 0 | CB35: =INDEX('RAB input'!$H$25:$XFD$74, MATCH($E35, 'RAB input'!$E$25:$E$74, 0), MATCH(CB$4, RAB_years, 0)) -> 0 | CC35: =INDEX('RAB input'!$H$25:$XFD$74, MATCH($E35, 'RAB input'!$E$25:$E$74, 0), MATCH(CC$4, RAB_years, 0)) -> 0 | CD35: =INDEX('RAB input'!$H$25:$XFD$74, MATCH($E35, 'RAB input'!$E$25:$E$74, 0), MATCH(CD$4, RAB_years, 0)) -> 0 | CE35: =INDEX('RAB input'!$H$25:$XFD$74, MATCH($E35, 'RAB input'!$E$25:$E$74, 0), MATCH(CE$4, RAB_years, 0)) -> 0
D36: 19 | E36: ='RAB input'!E43 -> Network Electronics | H36: 0 | I36: =INDEX('RAB input'!$H$25:$XFD$74, MATCH($E36, 'RAB input'!$E$25:$E$74, 0), MATCH(I$4, RAB_years, 0)) -> 0 | J36: =INDEX('RAB input'!$H$25:$XFD$74, MATCH($E36, 'RAB input'!$E$25:$E$74, 0), MATCH(J$4, RAB_years, 0)) -> 0 | K36: =INDEX('RAB input'!$H$25:$XFD$74, MATCH($E36, 'RAB input'!$E$25:$E$74, 0), MATCH(K$4, RAB_years, 0)) -> 0 | L36: =INDEX('RAB input'!$H$25:$XFD$74, MATCH($E36, 'RAB input'!$E$25:$E$74, 0), MATCH(L$4, RAB_years, 0)) -> 0 | M36: =INDEX('RAB input'!$H$25:$XFD$74, MATCH($E36, 'RAB input'!$E$25:$E$74, 0), MATCH(M$4, RAB_years, 0)) -> 0 | N36: =INDEX('RAB input'!$H$25:$XFD$74, MATCH($E36, 'RAB input'!$E$25:$E$74, 0), MATCH(N$4, RAB_years, 0)) -> 0 | O36: =INDEX('RAB input'!$H$25:$XFD$74, MATCH($E36, 'RAB input'!$E$25:$E$74, 0), MATCH(O$4, RAB_years, 0)) -> 0 | P36: =INDEX('RAB input'!$H$25:$XFD$74, MATCH($E36, 'RAB input'!$E$25:$E$74, 0), MATCH(P$4, RAB_years, 0)) -> 0 | Q36: =INDEX('RAB input'!$H$25:$XFD$74, MATCH($E36, 'RAB input'!$E$25:$E$74, 0), MATCH(Q$4, RAB_years, 0)) -> 0 | R36: =INDEX('RAB input'!$H$25:$XFD$74, MATCH($E36, 'RAB input'!$E$25:$E$74, 0), MATCH(R$4, RAB_years, 0)) -> 0 | S36: =INDEX('RAB input'!$H$25:$XFD$74, MATCH($E36, 'RAB input'!$E$25:$E$74, 0), MATCH(S$4, RAB_years, 0)) -> 9.499900317 | T36: =INDEX('RAB input'!$H$25:$XFD$74, MATCH($E36, 'RAB input'!$E$25:$E$74, 0), MATCH(T$4, RAB_years, 0)) -> 12.58971775 | U36: =INDEX('RAB input'!$H$25:$XFD$74, MATCH($E36, 'RAB input'!$E$25:$E$74, 0), MATCH(U$4, RAB_years, 0)) -> 22.21608493 | V36: =INDEX('RAB input'!$H$25:$XFD$74, MATCH($E36, 'RAB input'!$E$25:$E$74, 0), MATCH(V$4, RAB_years, 0)) -> 22.38845497 | W36: =INDEX('RAB input'!$H$25:$XFD$74, MATCH($E36, 'RAB input'!$E$25:$E$74, 0), MATCH(W$4, RAB_years, 0)) -> 21.86656192 | X36: =INDEX('RAB input'!$H$25:$XFD$74, MATCH($E36, 'RAB input'!$E$25:$E$74, 0), MATCH(X$4, RAB_years, 0)) -> 0 | Y36: =INDEX('RAB input'!$H$25:$XFD$74, MATCH($E36, 'RAB input'!$E$25:$E$74, 0), MATCH(Y$4, RAB_years, 0)) -> 0 | Z36: =INDEX('RAB input'!$H$25:$XFD$74, MATCH($E36, 'RAB input'!$E$25:$E$74, 0), MATCH(Z$4, RAB_years, 0)) -> 0 | AA36: =INDEX('RAB input'!$H$25:$XFD$74, MATCH($E36, 'RAB input'!$E$25:$E$74, 0), MATCH(AA$4, RAB_years, 0)) -> 0 | AB36: =INDEX('RAB input'!$H$25:$XFD$74, MATCH($E36, 'RAB input'!$E$25:$E$74, 0), MATCH(AB$4, RAB_years, 0)) -> 0 | AC36: =INDEX('RAB input'!$H$25:$XFD$74, MATCH($E36, 'RAB input'!$E$25:$E$74, 0), MATCH(AC$4, RAB_years, 0)) -> 0 | AD36: =INDEX('RAB input'!$H$25:$XFD$74, MATCH($E36, 'RAB input'!$E$25:$E$74, 0), MATCH(AD$4, RAB_years, 0)) -> 0 | AE36: =INDEX('RAB input'!$H$25:$XFD$74, MATCH($E36, 'RAB input'!$E$25:$E$74, 0), MATCH(AE$4, RAB_years, 0)) -> 0 | AF36: =INDEX('RAB input'!$H$25:$XFD$74, MATCH($E36, 'RAB input'!$E$25:$E$74, 0), MATCH(AF$4, RAB_years, 0)) -> 0 | AG36: =INDEX('RAB input'!$H$25:$XFD$74, MATCH($E36, 'RAB input'!$E$25:$E$74, 0), MATCH(AG$4, RAB_years, 0)) -> 0 | AH36: =INDEX('RAB input'!$H$25:$XFD$74, MATCH($E36, 'RAB input'!$E$25:$E$74, 0), MATCH(AH$4, RAB_years, 0)) -> 0 | AI36: =INDEX('RAB input'!$H$25:$XFD$74, MATCH($E36, 'RAB input'!$E$25:$E$74, 0), MATCH(AI$4, RAB_years, 0)) -> 0 | AJ36: =INDEX('RAB input'!$H$25:$XFD$74, MATCH($E36, 'RAB input'!$E$25:$E$74, 0), MATCH(AJ$4, RAB_years, 0)) -> 0 | AK36: =INDEX('RAB input'!$H$25:$XFD$74, MATCH($E36, 'RAB input'!$E$25:$E$74, 0), MATCH(AK$4, RAB_years, 0)) -> 0 | AL36: =INDEX('RAB input'!$H$25:$XFD$74, MATCH($E36, 'RAB input'!$E$25:$E$74, 0), MATCH(AL$4, RAB_years, 0)) -> 0 | AM36: =INDEX('RAB input'!$H$25:$XFD$74, MATCH($E36, 'RAB input'!$E$25:$E$74, 0), MATCH(AM$4, RAB_years, 0)) -> 0 | AN36: =INDEX('RAB input'!$H$25:$XFD$74, MATCH($E36, 'RAB input'!$E$25:$E$74, 0), MATCH(AN$4, RAB_years, 0)) -> 0 | AO36: =INDEX('RAB input'!$H$25:$XFD$74, MATCH($E36, 'RAB input'!$E$25:$E$74, 0), MATCH(AO$4, RAB_years, 0)) -> 0 | AP36: =INDEX('RAB input'!$H$25:$XFD$74, MATCH($E36, 'RAB input'!$E$25:$E$74, 0), MATCH(AP$4, RAB_years, 0)) -> 0 | AQ36: =INDEX('RAB input'!$H$25:$XFD$74, MATCH($E36, 'RAB input'!$E$25:$E$74, 0), MATCH(AQ$4, RAB_years, 0)) -> 0 | AR36: =INDEX('RAB input'!$H$25:$XFD$74, MATCH($E36, 'RAB input'!$E$25:$E$74, 0), MATCH(AR$4, RAB_years, 0)) -> 0 | AS36: =INDEX('RAB input'!$H$25:$XFD$74, MATCH($E36, 'RAB input'!$E$25:$E$74, 0), MATCH(AS$4, RAB_years, 0)) -> 0 | AT36: =INDEX('RAB input'!$H$25:$XFD$74, MATCH($E36, 'RAB input'!$E$25:$E$74, 0), MATCH(AT$4, RAB_years, 0)) -> 0 | AU36: =INDEX('RAB input'!$H$25:$XFD$74, MATCH($E36, 'RAB input'!$E$25:$E$74, 0), MATCH(AU$4, RAB_years, 0)) -> 0 | AV36: =INDEX('RAB input'!$H$25:$XFD$74, MATCH($E36, 'RAB input'!$E$25:$E$74, 0), MATCH(AV$4, RAB_years, 0)) -> 0 | AW36: =INDEX('RAB input'!$H$25:$XFD$74, MATCH($E36, 'RAB input'!$E$25:$E$74, 0), MATCH(AW$4, RAB_years, 0)) -> 0 | AX36: =INDEX('RAB input'!$H$25:$XFD$74, MATCH($E36, 'RAB input'!$E$25:$E$74, 0), MATCH(AX$4, RAB_years, 0)) -> 0 | AY36: =INDEX('RAB input'!$H$25:$XFD$74, MATCH($E36, 'RAB input'!$E$25:$E$74, 0), MATCH(AY$4, RAB_years, 0)) -> 0 | AZ36: =INDEX('RAB input'!$H$25:$XFD$74, MATCH($E36, 'RAB input'!$E$25:$E$74, 0), MATCH(AZ$4, RAB_years, 0)) -> 0 | BA36: =INDEX('RAB input'!$H$25:$XFD$74, MATCH($E36, 'RAB input'!$E$25:$E$74, 0), MATCH(BA$4, RAB_years, 0)) -> 0 | BB36: =INDEX('RAB input'!$H$25:$XFD$74, MATCH($E36, 'RAB input'!$E$25:$E$74, 0), MATCH(BB$4, RAB_years, 0)) -> 0 | BC36: =INDEX('RAB input'!$H$25:$XFD$74, MATCH($E36, 'RAB input'!$E$25:$E$74, 0), MATCH(BC$4, RAB_years, 0)) -> 0 | BD36: =INDEX('RAB input'!$H$25:$XFD$74, MATCH($E36, 'RAB input'!$E$25:$E$74, 0), MATCH(BD$4, RAB_years, 0)) -> 0 | BE36: =INDEX('RAB input'!$H$25:$XFD$74, MATCH($E36, 'RAB input'!$E$25:$E$74, 0), MATCH(BE$4, RAB_years, 0)) -> 0 | BF36: =INDEX('RAB input'!$H$25:$XFD$74, MATCH($E36, 'RAB input'!$E$25:$E$74, 0), MATCH(BF$4, RAB_years, 0)) -> 0 | BG36: =INDEX('RAB input'!$H$25:$XFD$74, MATCH($E36, 'RAB input'!$E$25:$E$74, 0), MATCH(BG$4, RAB_years, 0)) -> 0 | BH36: =INDEX('RAB input'!$H$25:$XFD$74, MATCH($E36, 'RAB input'!$E$25:$E$74, 0), MATCH(BH$4, RAB_years, 0)) -> 0 | BI36: =INDEX('RAB input'!$H$25:$XFD$74, MATCH($E36, 'RAB input'!$E$25:$E$74, 0), MATCH(BI$4, RAB_years, 0)) -> 0 | BJ36: =INDEX('RAB input'!$H$25:$XFD$74, MATCH($E36, 'RAB input'!$E$25:$E$74, 0), MATCH(BJ$4, RAB_years, 0)) -> 0 | BK36: =INDEX('RAB input'!$H$25:$XFD$74, MATCH($E36, 'RAB input'!$E$25:$E$74, 0), MATCH(BK$4, RAB_years, 0)) -> 0 | BL36: =INDEX('RAB input'!$H$25:$XFD$74, MATCH($E36, 'RAB input'!$E$25:$E$74, 0), MATCH(BL$4, RAB_years, 0)) -> 0 | BM36: =INDEX('RAB input'!$H$25:$XFD$74, MATCH($E36, 'RAB input'!$E$25:$E$74, 0), MATCH(BM$4, RAB_years, 0)) -> 0 | BN36: =INDEX('RAB input'!$H$25:$XFD$74, MATCH($E36, 'RAB input'!$E$25:$E$74, 0), MATCH(BN$4, RAB_years, 0)) -> 0 | BO36: =INDEX('RAB input'!$H$25:$XFD$74, MATCH($E36, 'RAB input'!$E$25:$E$74, 0), MATCH(BO$4, RAB_years, 0)) -> 0 | BP36: =INDEX('RAB input'!$H$25:$XFD$74, MATCH($E36, 'RAB input'!$E$25:$E$74, 0), MATCH(BP$4, RAB_years, 0)) -> 0 | BQ36: =INDEX('RAB input'!$H$25:$XFD$74, MATCH($E36, 'RAB input'!$E$25:$E$74, 0), MATCH(BQ$4, RAB_years, 0)) -> 0 | BR36: =INDEX('RAB input'!$H$25:$XFD$74, MATCH($E36, 'RAB input'!$E$25:$E$74, 0), MATCH(BR$4, RAB_years, 0)) -> 0 | BS36: =INDEX('RAB input'!$H$25:$XFD$74, MATCH($E36, 'RAB input'!$E$25:$E$74, 0), MATCH(BS$4, RAB_years, 0)) -> 0 | BT36: =INDEX('RAB input'!$H$25:$XFD$74, MATCH($E36, 'RAB input'!$E$25:$E$74, 0), MATCH(BT$4, RAB_years, 0)) -> 0 | BU36: =INDEX('RAB input'!$H$25:$XFD$74, MATCH($E36, 'RAB input'!$E$25:$E$74, 0), MATCH(BU$4, RAB_years, 0)) -> 0 | BV36: =INDEX('RAB input'!$H$25:$XFD$74, MATCH($E36, 'RAB input'!$E$25:$E$74, 0), MATCH(BV$4, RAB_years, 0)) -> 0 | BW36: =INDEX('RAB input'!$H$25:$XFD$74, MATCH($E36, 'RAB input'!$E$25:$E$74, 0), MATCH(BW$4, RAB_years, 0)) -> 0 | BX36: =INDEX('RAB input'!$H$25:$XFD$74, MATCH($E36, 'RAB input'!$E$25:$E$74, 0), MATCH(BX$4, RAB_years, 0)) -> 0 | BY36: =INDEX('RAB input'!$H$25:$XFD$74, MATCH($E36, 'RAB input'!$E$25:$E$74, 0), MATCH(BY$4, RAB_years, 0)) -> 0 | BZ36: =INDEX('RAB input'!$H$25:$XFD$74, MATCH($E36, 'RAB input'!$E$25:$E$74, 0), MATCH(BZ$4, RAB_years, 0)) -> 0 | CA36: =INDEX('RAB input'!$H$25:$XFD$74, MATCH($E36, 'RAB input'!$E$25:$E$74, 0), MATCH(CA$4, RAB_years, 0)) -> 0 | CB36: =INDEX('RAB input'!$H$25:$XFD$74, MATCH($E36, 'RAB input'!$E$25:$E$74, 0), MATCH(CB$4, RAB_years, 0)) -> 0 | CC36: =INDEX('RAB input'!$H$25:$XFD$74, MATCH($E36, 'RAB input'!$E$25:$E$74, 0), MATCH(CC$4, RAB_years, 0)) -> 0 | CD36: =INDEX('RAB input'!$H$25:$XFD$74, MATCH($E36, 'RAB input'!$E$25:$E$74, 0), MATCH(CD$4, RAB_years, 0)) -> 0 | CE36: =INDEX('RAB input'!$H$25:$XFD$74, MATCH($E36, 'RAB input'!$E$25:$E$74, 0), MATCH(CE$4, RAB_years, 0)) -> 0
D37: 20 | E37: ='RAB input'!E44 -> 0 | H37: 0 | I37: =INDEX('RAB input'!$H$25:$XFD$74, MATCH($E37, 'RAB input'!$E$25:$E$74, 0), MATCH(I$4, RAB_years, 0)) -> 0 | J37: =INDEX('RAB input'!$H$25:$XFD$74, MATCH($E37, 'RAB input'!$E$25:$E$74, 0), MATCH(J$4, RAB_years, 0)) -> 0 | K37: =INDEX('RAB input'!$H$25:$XFD$74, MATCH($E37, 'RAB input'!$E$25:$E$74, 0), MATCH(K$4, RAB_years, 0)) -> 0 | L37: =INDEX('RAB input'!$H$25:$XFD$74, MATCH($E37, 'RAB input'!$E$25:$E$74, 0), MATCH(L$4, RAB_years, 0)) -> 0 | M37: =INDEX('RAB input'!$H$25:$XFD$74, MATCH($E37, 'RAB input'!$E$25:$E$74, 0), MATCH(M$4, RAB_years, 0)) -> 0 | N37: =INDEX('RAB input'!$H$25:$XFD$74, MATCH($E37, 'RAB input'!$E$25:$E$74, 0), MATCH(N$4, RAB_years, 0)) -> 0 | O37: =INDEX('RAB input'!$H$25:$XFD$74, MATCH($E37, 'RAB input'!$E$25:$E$74, 0), MATCH(O$4, RAB_years, 0)) -> 0 | P37: =INDEX('RAB input'!$H$25:$XFD$74, MATCH($E37, 'RAB input'!$E$25:$E$74, 0), MATCH(P$4, RAB_years, 0)) -> 0 | Q37: =INDEX('RAB input'!$H$25:$XFD$74, MATCH($E37, 'RAB input'!$E$25:$E$74, 0), MATCH(Q$4, RAB_years, 0)) -> 0 | R37: =INDEX('RAB input'!$H$25:$XFD$74, MATCH($E37, 'RAB input'!$E$25:$E$74, 0), MATCH(R$4, RAB_years, 0)) -> 0 | S37: =INDEX('RAB input'!$H$25:$XFD$74, MATCH($E37, 'RAB input'!$E$25:$E$74, 0), MATCH(S$4, RAB_years, 0)) -> 0 | T37: =INDEX('RAB input'!$H$25:$XFD$74, MATCH($E37, 'RAB input'!$E$25:$E$74, 0), MATCH(T$4, RAB_years, 0)) -> 0 | U37: =INDEX('RAB input'!$H$25:$XFD$74, MATCH($E37, 'RAB input'!$E$25:$E$74, 0), MATCH(U$4, RAB_years, 0)) -> 0 | V37: =INDEX('RAB input'!$H$25:$XFD$74, MATCH($E37, 'RAB input'!$E$25:$E$74, 0), MATCH(V$4, RAB_years, 0)) -> 0 | W37: =INDEX('RAB input'!$H$25:$XFD$74, MATCH($E37, 'RAB input'!$E$25:$E$74, 0), MATCH(W$4, RAB_years, 0)) -> 0 | X37: =INDEX('RAB input'!$H$25:$XFD$74, MATCH($E37, 'RAB input'!$E$25:$E$74, 0), MATCH(X$4, RAB_years, 0)) -> 0 | Y37: =INDEX('RAB input'!$H$25:$XFD$74, MATCH($E37, 'RAB input'!$E$25:$E$74, 0), MATCH(Y$4, RAB_years, 0)) -> 0 | Z37: =INDEX('RAB input'!$H$25:$XFD$74, MATCH($E37, 'RAB input'!$E$25:$E$74, 0), MATCH(Z$4, RAB_years, 0)) -> 0 | AA37: =INDEX('RAB input'!$H$25:$XFD$74, MATCH($E37, 'RAB input'!$E$25:$E$74, 0), MATCH(AA$4, RAB_years, 0)) -> 0 | AB37: =INDEX('RAB input'!$H$25:$XFD$74, MATCH($E37, 'RAB input'!$E$25:$E$74, 0), MATCH(AB$4, RAB_years, 0)) -> 0 | AC37: =INDEX('RAB input'!$H$25:$XFD$74, MATCH($E37, 'RAB input'!$E$25:$E$74, 0), MATCH(AC$4, RAB_years, 0)) -> 0 | AD37: =INDEX('RAB input'!$H$25:$XFD$74, MATCH($E37, 'RAB input'!$E$25:$E$74, 0), MATCH(AD$4, RAB_years, 0)) -> 0 | AE37: =INDEX('RAB input'!$H$25:$XFD$74, MATCH($E37, 'RAB input'!$E$25:$E$74, 0), MATCH(AE$4, RAB_years, 0)) -> 0 | AF37: =INDEX('RAB input'!$H$25:$XFD$74, MATCH($E37, 'RAB input'!$E$25:$E$74, 0), MATCH(AF$4, RAB_years, 0)) -> 0 | AG37: =INDEX('RAB input'!$H$25:$XFD$74, MATCH($E37, 'RAB input'!$E$25:$E$74, 0), MATCH(AG$4, RAB_years, 0)) -> 0 | AH37: =INDEX('RAB input'!$H$25:$XFD$74, MATCH($E37, 'RAB input'!$E$25:$E$74, 0), MATCH(AH$4, RAB_years, 0)) -> 0 | AI37: =INDEX('RAB input'!$H$25:$XFD$74, MATCH($E37, 'RAB input'!$E$25:$E$74, 0), MATCH(AI$4, RAB_years, 0)) -> 0 | AJ37: =INDEX('RAB input'!$H$25:$XFD$74, MATCH($E37, 'RAB input'!$E$25:$E$74, 0), MATCH(AJ$4, RAB_years, 0)) -> 0 | AK37: =INDEX('RAB input'!$H$25:$XFD$74, MATCH($E37, 'RAB input'!$E$25:$E$74, 0), MATCH(AK$4, RAB_years, 0)) -> 0 | AL37: =INDEX('RAB input'!$H$25:$XFD$74, MATCH($E37, 'RAB input'!$E$25:$E$74, 0), MATCH(AL$4, RAB_years, 0)) -> 0 | AM37: =INDEX('RAB input'!$H$25:$XFD$74, MATCH($E37, 'RAB input'!$E$25:$E$74, 0), MATCH(AM$4, RAB_years, 0)) -> 0 | AN37: =INDEX('RAB input'!$H$25:$XFD$74, MATCH($E37, 'RAB input'!$E$25:$E$74, 0), MATCH(AN$4, RAB_years, 0)) -> 0 | AO37: =INDEX('RAB input'!$H$25:$XFD$74, MATCH($E37, 'RAB input'!$E$25:$E$74, 0), MATCH(AO$4, RAB_years, 0)) -> 0 | AP37: =INDEX('RAB input'!$H$25:$XFD$74, MATCH($E37, 'RAB input'!$E$25:$E$74, 0), MATCH(AP$4, RAB_years, 0)) -> 0 | AQ37: =INDEX('RAB input'!$H$25:$XFD$74, MATCH($E37, 'RAB input'!$E$25:$E$74, 0), MATCH(AQ$4, RAB_years, 0)) -> 0 | AR37: =INDEX('RAB input'!$H$25:$XFD$74, MATCH($E37, 'RAB input'!$E$25:$E$74, 0), MATCH(AR$4, RAB_years, 0)) -> 0 | AS37: =INDEX('RAB input'!$H$25:$XFD$74, MATCH($E37, 'RAB input'!$E$25:$E$74, 0), MATCH(AS$4, RAB_years, 0)) -> 0 | AT37: =INDEX('RAB input'!$H$25:$XFD$74, MATCH($E37, 'RAB input'!$E$25:$E$74, 0), MATCH(AT$4, RAB_years, 0)) -> 0 | AU37: =INDEX('RAB input'!$H$25:$XFD$74, MATCH($E37, 'RAB input'!$E$25:$E$74, 0), MATCH(AU$4, RAB_years, 0)) -> 0 | AV37: =INDEX('RAB input'!$H$25:$XFD$74, MATCH($E37, 'RAB input'!$E$25:$E$74, 0), MATCH(AV$4, RAB_years, 0)) -> 0 | AW37: =INDEX('RAB input'!$H$25:$XFD$74, MATCH($E37, 'RAB input'!$E$25:$E$74, 0), MATCH(AW$4, RAB_years, 0)) -> 0 | AX37: =INDEX('RAB input'!$H$25:$XFD$74, MATCH($E37, 'RAB input'!$E$25:$E$74, 0), MATCH(AX$4, RAB_years, 0)) -> 0 | AY37: =INDEX('RAB input'!$H$25:$XFD$74, MATCH($E37, 'RAB input'!$E$25:$E$74, 0), MATCH(AY$4, RAB_years, 0)) -> 0 | AZ37: =INDEX('RAB input'!$H$25:$XFD$74, MATCH($E37, 'RAB input'!$E$25:$E$74, 0), MATCH(AZ$4, RAB_years, 0)) -> 0 | BA37: =INDEX('RAB input'!$H$25:$XFD$74, MATCH($E37, 'RAB input'!$E$25:$E$74, 0), MATCH(BA$4, RAB_years, 0)) -> 0 | BB37: =INDEX('RAB input'!$H$25:$XFD$74, MATCH($E37, 'RAB input'!$E$25:$E$74, 0), MATCH(BB$4, RAB_years, 0)) -> 0 | BC37: =INDEX('RAB input'!$H$25:$XFD$74, MATCH($E37, 'RAB input'!$E$25:$E$74, 0), MATCH(BC$4, RAB_years, 0)) -> 0 | BD37: =INDEX('RAB input'!$H$25:$XFD$74, MATCH($E37, 'RAB input'!$E$25:$E$74, 0), MATCH(BD$4, RAB_years, 0)) -> 0 | BE37: =INDEX('RAB input'!$H$25:$XFD$74, MATCH($E37, 'RAB input'!$E$25:$E$74, 0), MATCH(BE$4, RAB_years, 0)) -> 0 | BF37: =INDEX('RAB input'!$H$25:$XFD$74, MATCH($E37, 'RAB input'!$E$25:$E$74, 0), MATCH(BF$4, RAB_years, 0)) -> 0 | BG37: =INDEX('RAB input'!$H$25:$XFD$74, MATCH($E37, 'RAB input'!$E$25:$E$74, 0), MATCH(BG$4, RAB_years, 0)) -> 0 | BH37: =INDEX('RAB input'!$H$25:$XFD$74, MATCH($E37, 'RAB input'!$E$25:$E$74, 0), MATCH(BH$4, RAB_years, 0)) -> 0 | BI37: =INDEX('RAB input'!$H$25:$XFD$74, MATCH($E37, 'RAB input'!$E$25:$E$74, 0), MATCH(BI$4, RAB_years, 0)) -> 0 | BJ37: =INDEX('RAB input'!$H$25:$XFD$74, MATCH($E37, 'RAB input'!$E$25:$E$74, 0), MATCH(BJ$4, RAB_years, 0)) -> 0 | BK37: =INDEX('RAB input'!$H$25:$XFD$74, MATCH($E37, 'RAB input'!$E$25:$E$74, 0), MATCH(BK$4, RAB_years, 0)) -> 0 | BL37: =INDEX('RAB input'!$H$25:$XFD$74, MATCH($E37, 'RAB input'!$E$25:$E$74, 0), MATCH(BL$4, RAB_years, 0)) -> 0 | BM37: =INDEX('RAB input'!$H$25:$XFD$74, MATCH($E37, 'RAB input'!$E$25:$E$74, 0), MATCH(BM$4, RAB_years, 0)) -> 0 | BN37: =INDEX('RAB input'!$H$25:$XFD$74, MATCH($E37, 'RAB input'!$E$25:$E$74, 0), MATCH(BN$4, RAB_years, 0)) -> 0 | BO37: =INDEX('RAB input'!$H$25:$XFD$74, MATCH($E37, 'RAB input'!$E$25:$E$74, 0), MATCH(BO$4, RAB_years, 0)) -> 0 | BP37: =INDEX('RAB input'!$H$25:$XFD$74, MATCH($E37, 'RAB input'!$E$25:$E$74, 0), MATCH(BP$4, RAB_years, 0)) -> 0 | BQ37: =INDEX('RAB input'!$H$25:$XFD$74, MATCH($E37, 'RAB input'!$E$25:$E$74, 0), MATCH(BQ$4, RAB_years, 0)) -> 0 | BR37: =INDEX('RAB input'!$H$25:$XFD$74, MATCH($E37, 'RAB input'!$E$25:$E$74, 0), MATCH(BR$4, RAB_years, 0)) -> 0 | BS37: =INDEX('RAB input'!$H$25:$XFD$74, MATCH($E37, 'RAB input'!$E$25:$E$74, 0), MATCH(BS$4, RAB_years, 0)) -> 0 | BT37: =INDEX('RAB input'!$H$25:$XFD$74, MATCH($E37, 'RAB input'!$E$25:$E$74, 0), MATCH(BT$4, RAB_years, 0)) -> 0 | BU37: =INDEX('RAB input'!$H$25:$XFD$74, MATCH($E37, 'RAB input'!$E$25:$E$74, 0), MATCH(BU$4, RAB_years, 0)) -> 0 | BV37: =INDEX('RAB input'!$H$25:$XFD$74, MATCH($E37, 'RAB input'!$E$25:$E$74, 0), MATCH(BV$4, RAB_years, 0)) -> 0 | BW37: =INDEX('RAB input'!$H$25:$XFD$74, MATCH($E37, 'RAB input'!$E$25:$E$74, 0), MATCH(BW$4, RAB_years, 0)) -> 0 | BX37: =INDEX('RAB input'!$H$25:$XFD$74, MATCH($E37, 'RAB input'!$E$25:$E$74, 0), MATCH(BX$4, RAB_years, 0)) -> 0 | BY37: =INDEX('RAB input'!$H$25:$XFD$74, MATCH($E37, 'RAB input'!$E$25:$E$74, 0), MATCH(BY$4, RAB_years, 0)) -> 0 | BZ37: =INDEX('RAB input'!$H$25:$XFD$74, MATCH($E37, 'RAB input'!$E$25:$E$74, 0), MATCH(BZ$4, RAB_years, 0)) -> 0 | CA37: =INDEX('RAB input'!$H$25:$XFD$74, MATCH($E37, 'RAB input'!$E$25:$E$74, 0), MATCH(CA$4, RAB_years, 0)) -> 0 | CB37: =INDEX('RAB input'!$H$25:$XFD$74, MATCH($E37, 'RAB input'!$E$25:$E$74, 0), MATCH(CB$4, RAB_years, 0)) -> 0 | CC37: =INDEX('RAB input'!$H$25:$XFD$74, MATCH($E37, 'RAB input'!$E$25:$E$74, 0), MATCH(CC$4, RAB_years, 0)) -> 0 | CD37: =INDEX('RAB input'!$H$25:$XFD$74, MATCH($E37, 'RAB input'!$E$25:$E$74, 0), MATCH(CD$4, RAB_years, 0)) -> 0 | CE37: =INDEX('RAB input'!$H$25:$XFD$74, MATCH($E37, 'RAB input'!$E$25:$E$74, 0), MATCH(CE$4, RAB_years, 0)) -> 0
D38: 21 | E38: ='RAB input'!E45 -> 0 | I38: =INDEX('RAB input'!$H$25:$XFD$74, MATCH($E38, 'RAB input'!$E$25:$E$74, 0), MATCH(I$4, RAB_years, 0)) -> 0 | J38: =INDEX('RAB input'!$H$25:$XFD$74, MATCH($E38, 'RAB input'!$E$25:$E$74, 0), MATCH(J$4, RAB_years, 0)) -> 0 | K38: =INDEX('RAB input'!$H$25:$XFD$74, MATCH($E38, 'RAB input'!$E$25:$E$74, 0), MATCH(K$4, RAB_years, 0)) -> 0 | L38: =INDEX('RAB input'!$H$25:$XFD$74, MATCH($E38, 'RAB input'!$E$25:$E$74, 0), MATCH(L$4, RAB_years, 0)) -> 0 | M38: =INDEX('RAB input'!$H$25:$XFD$74, MATCH($E38, 'RAB input'!$E$25:$E$74, 0), MATCH(M$4, RAB_years, 0)) -> 0 | N38: =INDEX('RAB input'!$H$25:$XFD$74, MATCH($E38, 'RAB input'!$E$25:$E$74, 0), MATCH(N$4, RAB_years, 0)) -> 0 | O38: =INDEX('RAB input'!$H$25:$XFD$74, MATCH($E38, 'RAB input'!$E$25:$E$74, 0), MATCH(O$4, RAB_years, 0)) -> 0 | P38: =INDEX('RAB input'!$H$25:$XFD$74, MATCH($E38, 'RAB input'!$E$25:$E$74, 0), MATCH(P$4, RAB_years, 0)) -> 0 | Q38: =INDEX('RAB input'!$H$25:$XFD$74, MATCH($E38, 'RAB input'!$E$25:$E$74, 0), MATCH(Q$4, RAB_years, 0)) -> 0 | R38: =INDEX('RAB input'!$H$25:$XFD$74, MATCH($E38, 'RAB input'!$E$25:$E$74, 0), MATCH(R$4, RAB_years, 0)) -> 0 | S38: =INDEX('RAB input'!$H$25:$XFD$74, MATCH($E38, 'RAB input'!$E$25:$E$74, 0), MATCH(S$4, RAB_years, 0)) -> 0 | T38: =INDEX('RAB input'!$H$25:$XFD$74, MATCH($E38, 'RAB input'!$E$25:$E$74, 0), MATCH(T$4, RAB_years, 0)) -> 0 | U38: =INDEX('RAB input'!$H$25:$XFD$74, MATCH($E38, 'RAB input'!$E$25:$E$74, 0), MATCH(U$4, RAB_years, 0)) -> 0 | V38: =INDEX('RAB input'!$H$25:$XFD$74, MATCH($E38, 'RAB input'!$E$25:$E$74, 0), MATCH(V$4, RAB_years, 0)) -> 0 | W38: =INDEX('RAB input'!$H$25:$XFD$74, MATCH($E38, 'RAB input'!$E$25:$E$74, 0), MATCH(W$4, RAB_years, 0)) -> 0 | X38: =INDEX('RAB input'!$H$25:$XFD$74, MATCH($E38, 'RAB input'!$E$25:$E$74, 0), MATCH(X$4, RAB_years, 0)) -> 0 | Y38: =INDEX('RAB input'!$H$25:$XFD$74, MATCH($E38, 'RAB input'!$E$25:$E$74, 0), MATCH(Y$4, RAB_years, 0)) -> 0 | Z38: =INDEX('RAB input'!$H$25:$XFD$74, MATCH($E38, 'RAB input'!$E$25:$E$74, 0), MATCH(Z$4, RAB_years, 0)) -> 0 | AA38: =INDEX('RAB input'!$H$25:$XFD$74, MATCH($E38, 'RAB input'!$E$25:$E$74, 0), MATCH(AA$4, RAB_years, 0)) -> 0 | AB38: =INDEX('RAB input'!$H$25:$XFD$74, MATCH($E38, 'RAB input'!$E$25:$E$74, 0), MATCH(AB$4, RAB_years, 0)) -> 0 | AC38: =INDEX('RAB input'!$H$25:$XFD$74, MATCH($E38, 'RAB input'!$E$25:$E$74, 0), MATCH(AC$4, RAB_years, 0)) -> 0 | AD38: =INDEX('RAB input'!$H$25:$XFD$74, MATCH($E38, 'RAB input'!$E$25:$E$74, 0), MATCH(AD$4, RAB_years, 0)) -> 0 | AE38: =INDEX('RAB input'!$H$25:$XFD$74, MATCH($E38, 'RAB input'!$E$25:$E$74, 0), MATCH(AE$4, RAB_years, 0)) -> 0 | AF38: =INDEX('RAB input'!$H$25:$XFD$74, MATCH($E38, 'RAB input'!$E$25:$E$74, 0), MATCH(AF$4, RAB_years, 0)) -> 0 | AG38: =INDEX('RAB input'!$H$25:$XFD$74, MATCH($E38, 'RAB input'!$E$25:$E$74, 0), MATCH(AG$4, RAB_years, 0)) -> 0 | AH38: =INDEX('RAB input'!$H$25:$XFD$74, MATCH($E38, 'RAB input'!$E$25:$E$74, 0), MATCH(AH$4, RAB_years, 0)) -> 0 | AI38: =INDEX('RAB input'!$H$25:$XFD$74, MATCH($E38, 'RAB input'!$E$25:$E$74, 0), MATCH(AI$4, RAB_years, 0)) -> 0 | AJ38: =INDEX('RAB input'!$H$25:$XFD$74, MATCH($E38, 'RAB input'!$E$25:$E$74, 0), MATCH(AJ$4, RAB_years, 0)) -> 0 | AK38: =INDEX('RAB input'!$H$25:$XFD$74, MATCH($E38, 'RAB input'!$E$25:$E$74, 0), MATCH(AK$4, RAB_years, 0)) -> 0 | AL38: =INDEX('RAB input'!$H$25:$XFD$74, MATCH($E38, 'RAB input'!$E$25:$E$74, 0), MATCH(AL$4, RAB_years, 0)) -> 0 | AM38: =INDEX('RAB input'!$H$25:$XFD$74, MATCH($E38, 'RAB input'!$E$25:$E$74, 0), MATCH(AM$4, RAB_years, 0)) -> 0 | AN38: =INDEX('RAB input'!$H$25:$XFD$74, MATCH($E38, 'RAB input'!$E$25:$E$74, 0), MATCH(AN$4, RAB_years, 0)) -> 0 | AO38: =INDEX('RAB input'!$H$25:$XFD$74, MATCH($E38, 'RAB input'!$E$25:$E$74, 0), MATCH(AO$4, RAB_years, 0)) -> 0 | AP38: =INDEX('RAB input'!$H$25:$XFD$74, MATCH($E38, 'RAB input'!$E$25:$E$74, 0), MATCH(AP$4, RAB_years, 0)) -> 0 | AQ38: =INDEX('RAB input'!$H$25:$XFD$74, MATCH($E38, 'RAB input'!$E$25:$E$74, 0), MATCH(AQ$4, RAB_years, 0)) -> 0 | AR38: =INDEX('RAB input'!$H$25:$XFD$74, MATCH($E38, 'RAB input'!$E$25:$E$74, 0), MATCH(AR$4, RAB_years, 0)) -> 0 | AS38: =INDEX('RAB input'!$H$25:$XFD$74, MATCH($E38, 'RAB input'!$E$25:$E$74, 0), MATCH(AS$4, RAB_years, 0)) -> 0 | AT38: =INDEX('RAB input'!$H$25:$XFD$74, MATCH($E38, 'RAB input'!$E$25:$E$74, 0), MATCH(AT$4, RAB_years, 0)) -> 0 | AU38: =INDEX('RAB input'!$H$25:$XFD$74, MATCH($E38, 'RAB input'!$E$25:$E$74, 0), MATCH(AU$4, RAB_years, 0)) -> 0 | AV38: =INDEX('RAB input'!$H$25:$XFD$74, MATCH($E38, 'RAB input'!$E$25:$E$74, 0), MATCH(AV$4, RAB_years, 0)) -> 0 | AW38: =INDEX('RAB input'!$H$25:$XFD$74, MATCH($E38, 'RAB input'!$E$25:$E$74, 0), MATCH(AW$4, RAB_years, 0)) -> 0 | AX38: =INDEX('RAB input'!$H$25:$XFD$74, MATCH($E38, 'RAB input'!$E$25:$E$74, 0), MATCH(AX$4, RAB_years, 0)) -> 0 | AY38: =INDEX('RAB input'!$H$25:$XFD$74, MATCH($E38, 'RAB input'!$E$25:$E$74, 0), MATCH(AY$4, RAB_years, 0)) -> 0 | AZ38: =INDEX('RAB input'!$H$25:$XFD$74, MATCH($E38, 'RAB input'!$E$25:$E$74, 0), MATCH(AZ$4, RAB_years, 0)) -> 0 | BA38: =INDEX('RAB input'!$H$25:$XFD$74, MATCH($E38, 'RAB input'!$E$25:$E$74, 0), MATCH(BA$4, RAB_years, 0)) -> 0 | BB38: =INDEX('RAB input'!$H$25:$XFD$74, MATCH($E38, 'RAB input'!$E$25:$E$74, 0), MATCH(BB$4, RAB_years, 0)) -> 0 | BC38: =INDEX('RAB input'!$H$25:$XFD$74, MATCH($E38, 'RAB input'!$E$25:$E$74, 0), MATCH(BC$4, RAB_years, 0)) -> 0 | BD38: =INDEX('RAB input'!$H$25:$XFD$74, MATCH($E38, 'RAB input'!$E$25:$E$74, 0), MATCH(BD$4, RAB_years, 0)) -> 0 | BE38: =INDEX('RAB input'!$H$25:$XFD$74, MATCH($E38, 'RAB input'!$E$25:$E$74, 0), MATCH(BE$4, RAB_years, 0)) -> 0 | BF38: =INDEX('RAB input'!$H$25:$XFD$74, MATCH($E38, 'RAB input'!$E$25:$E$74, 0), MATCH(BF$4, RAB_years, 0)) -> 0 | BG38: =INDEX('RAB input'!$H$25:$XFD$74, MATCH($E38, 'RAB input'!$E$25:$E$74, 0), MATCH(BG$4, RAB_years, 0)) -> 0 | BH38: =INDEX('RAB input'!$H$25:$XFD$74, MATCH($E38, 'RAB input'!$E$25:$E$74, 0), MATCH(BH$4, RAB_years, 0)) -> 0 | BI38: =INDEX('RAB input'!$H$25:$XFD$74, MATCH($E38, 'RAB input'!$E$25:$E$74, 0), MATCH(BI$4, RAB_years, 0)) -> 0 | BJ38: =INDEX('RAB input'!$H$25:$XFD$74, MATCH($E38, 'RAB input'!$E$25:$E$74, 0), MATCH(BJ$4, RAB_years, 0)) -> 0 | BK38: =INDEX('RAB input'!$H$25:$XFD$74, MATCH($E38, 'RAB input'!$E$25:$E$74, 0), MATCH(BK$4, RAB_years, 0)) -> 0 | BL38: =INDEX('RAB input'!$H$25:$XFD$74, MATCH($E38, 'RAB input'!$E$25:$E$74, 0), MATCH(BL$4, RAB_years, 0)) -> 0 | BM38: =INDEX('RAB input'!$H$25:$XFD$74, MATCH($E38, 'RAB input'!$E$25:$E$74, 0), MATCH(BM$4, RAB_years, 0)) -> 0 | BN38: =INDEX('RAB input'!$H$25:$XFD$74, MATCH($E38, 'RAB input'!$E$25:$E$74, 0), MATCH(BN$4, RAB_years, 0)) -> 0 | BO38: =INDEX('RAB input'!$H$25:$XFD$74, MATCH($E38, 'RAB input'!$E$25:$E$74, 0), MATCH(BO$4, RAB_years, 0)) -> 0 | BP38: =INDEX('RAB input'!$H$25:$XFD$74, MATCH($E38, 'RAB input'!$E$25:$E$74, 0), MATCH(BP$4, RAB_years, 0)) -> 0 | BQ38: =INDEX('RAB input'!$H$25:$XFD$74, MATCH($E38, 'RAB input'!$E$25:$E$74, 0), MATCH(BQ$4, RAB_years, 0)) -> 0 | BR38: =INDEX('RAB input'!$H$25:$XFD$74, MATCH($E38, 'RAB input'!$E$25:$E$74, 0), MATCH(BR$4, RAB_years, 0)) -> 0 | BS38: =INDEX('RAB input'!$H$25:$XFD$74, MATCH($E38, 'RAB input'!$E$25:$E$74, 0), MATCH(BS$4, RAB_years, 0)) -> 0 | BT38: =INDEX('RAB input'!$H$25:$XFD$74, MATCH($E38, 'RAB input'!$E$25:$E$74, 0), MATCH(BT$4, RAB_years, 0)) -> 0 | BU38: =INDEX('RAB input'!$H$25:$XFD$74, MATCH($E38, 'RAB input'!$E$25:$E$74, 0), MATCH(BU$4, RAB_years, 0)) -> 0 | BV38: =INDEX('RAB input'!$H$25:$XFD$74, MATCH($E38, 'RAB input'!$E$25:$E$74, 0), MATCH(BV$4, RAB_years, 0)) -> 0 | BW38: =INDEX('RAB input'!$H$25:$XFD$74, MATCH($E38, 'RAB input'!$E$25:$E$74, 0), MATCH(BW$4, RAB_years, 0)) -> 0 | BX38: =INDEX('RAB input'!$H$25:$XFD$74, MATCH($E38, 'RAB input'!$E$25:$E$74, 0), MATCH(BX$4, RAB_years, 0)) -> 0 | BY38: =INDEX('RAB input'!$H$25:$XFD$74, MATCH($E38, 'RAB input'!$E$25:$E$74, 0), MATCH(BY$4, RAB_years, 0)) -> 0 | BZ38: =INDEX('RAB input'!$H$25:$XFD$74, MATCH($E38, 'RAB input'!$E$25:$E$74, 0), MATCH(BZ$4, RAB_years, 0)) -> 0 | CA38: =INDEX('RAB input'!$H$25:$XFD$74, MATCH($E38, 'RAB input'!$E$25:$E$74, 0), MATCH(CA$4, RAB_years, 0)) -> 0 | CB38: =INDEX('RAB input'!$H$25:$XFD$74, MATCH($E38, 'RAB input'!$E$25:$E$74, 0), MATCH(CB$4, RAB_years, 0)) -> 0 | CC38: =INDEX('RAB input'!$H$25:$XFD$74, MATCH($E38, 'RAB input'!$E$25:$E$74, 0), MATCH(CC$4, RAB_years, 0)) -> 0 | CD38: =INDEX('RAB input'!$H$25:$XFD$74, MATCH($E38, 'RAB input'!$E$25:$E$74, 0), MATCH(CD$4, RAB_years, 0)) -> 0 | CE38: =INDEX('RAB input'!$H$25:$XFD$74, MATCH($E38, 'RAB input'!$E$25:$E$74, 0), MATCH(CE$4, RAB_years, 0)) -> 0
D39: 22 | E39: ='RAB input'!E46 -> 0 | I39: =INDEX('RAB input'!$H$25:$XFD$74, MATCH($E39, 'RAB input'!$E$25:$E$74, 0), MATCH(I$4, RAB_years, 0)) -> 0 | J39: =INDEX('RAB input'!$H$25:$XFD$74, MATCH($E39, 'RAB input'!$E$25:$E$74, 0), MATCH(J$4, RAB_years, 0)) -> 0 | K39: =INDEX('RAB input'!$H$25:$XFD$74, MATCH($E39, 'RAB input'!$E$25:$E$74, 0), MATCH(K$4, RAB_years, 0)) -> 0 | L39: =INDEX('RAB input'!$H$25:$XFD$74, MATCH($E39, 'RAB input'!$E$25:$E$74, 0), MATCH(L$4, RAB_years, 0)) -> 0 | M39: =INDEX('RAB input'!$H$25:$XFD$74, MATCH($E39, 'RAB input'!$E$25:$E$74, 0), MATCH(M$4, RAB_years, 0)) -> 0 | N39: =INDEX('RAB input'!$H$25:$XFD$74, MATCH($E39, 'RAB input'!$E$25:$E$74, 0), MATCH(N$4, RAB_years, 0)) -> 0 | O39: =INDEX('RAB input'!$H$25:$XFD$74, MATCH($E39, 'RAB input'!$E$25:$E$74, 0), MATCH(O$4, RAB_years, 0)) -> 0 | P39: =INDEX('RAB input'!$H$25:$XFD$74, MATCH($E39, 'RAB input'!$E$25:$E$74, 0), MATCH(P$4, RAB_years, 0)) -> 0 | Q39: =INDEX('RAB input'!$H$25:$XFD$74, MATCH($E39, 'RAB input'!$E$25:$E$74, 0), MATCH(Q$4, RAB_years, 0)) -> 0 | R39: =INDEX('RAB input'!$H$25:$XFD$74, MATCH($E39, 'RAB input'!$E$25:$E$74, 0), MATCH(R$4, RAB_years, 0)) -> 0 | S39: =INDEX('RAB input'!$H$25:$XFD$74, MATCH($E39, 'RAB input'!$E$25:$E$74, 0), MATCH(S$4, RAB_years, 0)) -> 0 | T39: =INDEX('RAB input'!$H$25:$XFD$74, MATCH($E39, 'RAB input'!$E$25:$E$74, 0), MATCH(T$4, RAB_years, 0)) -> 0 | U39: =INDEX('RAB input'!$H$25:$XFD$74, MATCH($E39, 'RAB input'!$E$25:$E$74, 0), MATCH(U$4, RAB_years, 0)) -> 0 | V39: =INDEX('RAB input'!$H$25:$XFD$74, MATCH($E39, 'RAB input'!$E$25:$E$74, 0), MATCH(V$4, RAB_years, 0)) -> 0 | W39: =INDEX('RAB input'!$H$25:$XFD$74, MATCH($E39, 'RAB input'!$E$25:$E$74, 0), MATCH(W$4, RAB_years, 0)) -> 0 | X39: =INDEX('RAB input'!$H$25:$XFD$74, MATCH($E39, 'RAB input'!$E$25:$E$74, 0), MATCH(X$4, RAB_years, 0)) -> 0 | Y39: =INDEX('RAB input'!$H$25:$XFD$74, MATCH($E39, 'RAB input'!$E$25:$E$74, 0), MATCH(Y$4, RAB_years, 0)) -> 0 | Z39: =INDEX('RAB input'!$H$25:$XFD$74, MATCH($E39, 'RAB input'!$E$25:$E$74, 0), MATCH(Z$4, RAB_years, 0)) -> 0 | AA39: =INDEX('RAB input'!$H$25:$XFD$74, MATCH($E39, 'RAB input'!$E$25:$E$74, 0), MATCH(AA$4, RAB_years, 0)) -> 0 | AB39: =INDEX('RAB input'!$H$25:$XFD$74, MATCH($E39, 'RAB input'!$E$25:$E$74, 0), MATCH(AB$4, RAB_years, 0)) -> 0 | AC39: =INDEX('RAB input'!$H$25:$XFD$74, MATCH($E39, 'RAB input'!$E$25:$E$74, 0), MATCH(AC$4, RAB_years, 0)) -> 0 | AD39: =INDEX('RAB input'!$H$25:$XFD$74, MATCH($E39, 'RAB input'!$E$25:$E$74, 0), MATCH(AD$4, RAB_years, 0)) -> 0 | AE39: =INDEX('RAB input'!$H$25:$XFD$74, MATCH($E39, 'RAB input'!$E$25:$E$74, 0), MATCH(AE$4, RAB_years, 0)) -> 0 | AF39: =INDEX('RAB input'!$H$25:$XFD$74, MATCH($E39, 'RAB input'!$E$25:$E$74, 0), MATCH(AF$4, RAB_years, 0)) -> 0 | AG39: =INDEX('RAB input'!$H$25:$XFD$74, MATCH($E39, 'RAB input'!$E$25:$E$74, 0), MATCH(AG$4, RAB_years, 0)) -> 0 | AH39: =INDEX('RAB input'!$H$25:$XFD$74, MATCH($E39, 'RAB input'!$E$25:$E$74, 0), MATCH(AH$4, RAB_years, 0)) -> 0 | AI39: =INDEX('RAB input'!$H$25:$XFD$74, MATCH($E39, 'RAB input'!$E$25:$E$74, 0), MATCH(AI$4, RAB_years, 0)) -> 0 | AJ39: =INDEX('RAB input'!$H$25:$XFD$74, MATCH($E39, 'RAB input'!$E$25:$E$74, 0), MATCH(AJ$4, RAB_years, 0)) -> 0 | AK39: =INDEX('RAB input'!$H$25:$XFD$74, MATCH($E39, 'RAB input'!$E$25:$E$74, 0), MATCH(AK$4, RAB_years, 0)) -> 0 | AL39: =INDEX('RAB input'!$H$25:$XFD$74, MATCH($E39, 'RAB input'!$E$25:$E$74, 0), MATCH(AL$4, RAB_years, 0)) -> 0 | AM39: =INDEX('RAB input'!$H$25:$XFD$74, MATCH($E39, 'RAB input'!$E$25:$E$74, 0), MATCH(AM$4, RAB_years, 0)) -> 0 | AN39: =INDEX('RAB input'!$H$25:$XFD$74, MATCH($E39, 'RAB input'!$E$25:$E$74, 0), MATCH(AN$4, RAB_years, 0)) -> 0 | AO39: =INDEX('RAB input'!$H$25:$XFD$74, MATCH($E39, 'RAB input'!$E$25:$E$74, 0), MATCH(AO$4, RAB_years, 0)) -> 0 | AP39: =INDEX('RAB input'!$H$25:$XFD$74, MATCH($E39, 'RAB input'!$E$25:$E$74, 0), MATCH(AP$4, RAB_years, 0)) -> 0 | AQ39: =INDEX('RAB input'!$H$25:$XFD$74, MATCH($E39, 'RAB input'!$E$25:$E$74, 0), MATCH(AQ$4, RAB_years, 0)) -> 0 | AR39: =INDEX('RAB input'!$H$25:$XFD$74, MATCH($E39, 'RAB input'!$E$25:$E$74, 0), MATCH(AR$4, RAB_years, 0)) -> 0 | AS39: =INDEX('RAB input'!$H$25:$XFD$74, MATCH($E39, 'RAB input'!$E$25:$E$74, 0), MATCH(AS$4, RAB_years, 0)) -> 0 | AT39: =INDEX('RAB input'!$H$25:$XFD$74, MATCH($E39, 'RAB input'!$E$25:$E$74, 0), MATCH(AT$4, RAB_years, 0)) -> 0 | AU39: =INDEX('RAB input'!$H$25:$XFD$74, MATCH($E39, 'RAB input'!$E$25:$E$74, 0), MATCH(AU$4, RAB_years, 0)) -> 0 | AV39: =INDEX('RAB input'!$H$25:$XFD$74, MATCH($E39, 'RAB input'!$E$25:$E$74, 0), MATCH(AV$4, RAB_years, 0)) -> 0 | AW39: =INDEX('RAB input'!$H$25:$XFD$74, MATCH($E39, 'RAB input'!$E$25:$E$74, 0), MATCH(AW$4, RAB_years, 0)) -> 0 | AX39: =INDEX('RAB input'!$H$25:$XFD$74, MATCH($E39, 'RAB input'!$E$25:$E$74, 0), MATCH(AX$4, RAB_years, 0)) -> 0 | AY39: =INDEX('RAB input'!$H$25:$XFD$74, MATCH($E39, 'RAB input'!$E$25:$E$74, 0), MATCH(AY$4, RAB_years, 0)) -> 0 | AZ39: =INDEX('RAB input'!$H$25:$XFD$74, MATCH($E39, 'RAB input'!$E$25:$E$74, 0), MATCH(AZ$4, RAB_years, 0)) -> 0 | BA39: =INDEX('RAB input'!$H$25:$XFD$74, MATCH($E39, 'RAB input'!$E$25:$E$74, 0), MATCH(BA$4, RAB_years, 0)) -> 0 | BB39: =INDEX('RAB input'!$H$25:$XFD$74, MATCH($E39, 'RAB input'!$E$25:$E$74, 0), MATCH(BB$4, RAB_years, 0)) -> 0 | BC39: =INDEX('RAB input'!$H$25:$XFD$74, MATCH($E39, 'RAB input'!$E$25:$E$74, 0), MATCH(BC$4, RAB_years, 0)) -> 0 | BD39: =INDEX('RAB input'!$H$25:$XFD$74, MATCH($E39, 'RAB input'!$E$25:$E$74, 0), MATCH(BD$4, RAB_years, 0)) -> 0 | BE39: =INDEX('RAB input'!$H$25:$XFD$74, MATCH($E39, 'RAB input'!$E$25:$E$74, 0), MATCH(BE$4, RAB_years, 0)) -> 0 | BF39: =INDEX('RAB input'!$H$25:$XFD$74, MATCH($E39, 'RAB input'!$E$25:$E$74, 0), MATCH(BF$4, RAB_years, 0)) -> 0 | BG39: =INDEX('RAB input'!$H$25:$XFD$74, MATCH($E39, 'RAB input'!$E$25:$E$74, 0), MATCH(BG$4, RAB_years, 0)) -> 0 | BH39: =INDEX('RAB input'!$H$25:$XFD$74, MATCH($E39, 'RAB input'!$E$25:$E$74, 0), MATCH(BH$4, RAB_years, 0)) -> 0 | BI39: =INDEX('RAB input'!$H$25:$XFD$74, MATCH($E39, 'RAB input'!$E$25:$E$74, 0), MATCH(BI$4, RAB_years, 0)) -> 0 | BJ39: =INDEX('RAB input'!$H$25:$XFD$74, MATCH($E39, 'RAB input'!$E$25:$E$74, 0), MATCH(BJ$4, RAB_years, 0)) -> 0 | BK39: =INDEX('RAB input'!$H$25:$XFD$74, MATCH($E39, 'RAB input'!$E$25:$E$74, 0), MATCH(BK$4, RAB_years, 0)) -> 0 | BL39: =INDEX('RAB input'!$H$25:$XFD$74, MATCH($E39, 'RAB input'!$E$25:$E$74, 0), MATCH(BL$4, RAB_years, 0)) -> 0 | BM39: =INDEX('RAB input'!$H$25:$XFD$74, MATCH($E39, 'RAB input'!$E$25:$E$74, 0), MATCH(BM$4, RAB_years, 0)) -> 0 | BN39: =INDEX('RAB input'!$H$25:$XFD$74, MATCH($E39, 'RAB input'!$E$25:$E$74, 0), MATCH(BN$4, RAB_years, 0)) -> 0 | BO39: =INDEX('RAB input'!$H$25:$XFD$74, MATCH($E39, 'RAB input'!$E$25:$E$74, 0), MATCH(BO$4, RAB_years, 0)) -> 0 | BP39: =INDEX('RAB input'!$H$25:$XFD$74, MATCH($E39, 'RAB input'!$E$25:$E$74, 0), MATCH(BP$4, RAB_years, 0)) -> 0 | BQ39: =INDEX('RAB input'!$H$25:$XFD$74, MATCH($E39, 'RAB input'!$E$25:$E$74, 0), MATCH(BQ$4, RAB_years, 0)) -> 0 | BR39: =INDEX('RAB input'!$H$25:$XFD$74, MATCH($E39, 'RAB input'!$E$25:$E$74, 0), MATCH(BR$4, RAB_years, 0)) -> 0 | BS39: =INDEX('RAB input'!$H$25:$XFD$74, MATCH($E39, 'RAB input'!$E$25:$E$74, 0), MATCH(BS$4, RAB_years, 0)) -> 0 | BT39: =INDEX('RAB input'!$H$25:$XFD$74, MATCH($E39, 'RAB input'!$E$25:$E$74, 0), MATCH(BT$4, RAB_years, 0)) -> 0 | BU39: =INDEX('RAB input'!$H$25:$XFD$74, MATCH($E39, 'RAB input'!$E$25:$E$74, 0), MATCH(BU$4, RAB_years, 0)) -> 0 | BV39: =INDEX('RAB input'!$H$25:$XFD$74, MATCH($E39, 'RAB input'!$E$25:$E$74, 0), MATCH(BV$4, RAB_years, 0)) -> 0 | BW39: =INDEX('RAB input'!$H$25:$XFD$74, MATCH($E39, 'RAB input'!$E$25:$E$74, 0), MATCH(BW$4, RAB_years, 0)) -> 0 | BX39: =INDEX('RAB input'!$H$25:$XFD$74, MATCH($E39, 'RAB input'!$E$25:$E$74, 0), MATCH(BX$4, RAB_years, 0)) -> 0 | BY39: =INDEX('RAB input'!$H$25:$XFD$74, MATCH($E39, 'RAB input'!$E$25:$E$74, 0), MATCH(BY$4, RAB_years, 0)) -> 0 | BZ39: =INDEX('RAB input'!$H$25:$XFD$74, MATCH($E39, 'RAB input'!$E$25:$E$74, 0), MATCH(BZ$4, RAB_years, 0)) -> 0 | CA39: =INDEX('RAB input'!$H$25:$XFD$74, MATCH($E39, 'RAB input'!$E$25:$E$74, 0), MATCH(CA$4, RAB_years, 0)) -> 0 | CB39: =INDEX('RAB input'!$H$25:$XFD$74, MATCH($E39, 'RAB input'!$E$25:$E$74, 0), MATCH(CB$4, RAB_years, 0)) -> 0 | CC39: =INDEX('RAB input'!$H$25:$XFD$74, MATCH($E39, 'RAB input'!$E$25:$E$74, 0), MATCH(CC$4, RAB_years, 0)) -> 0 | CD39: =INDEX('RAB input'!$H$25:$XFD$74, MATCH($E39, 'RAB input'!$E$25:$E$74, 0), MATCH(CD$4, RAB_years, 0)) -> 0 | CE39: =INDEX('RAB input'!$H$25:$XFD$74, MATCH($E39, 'RAB input'!$E$25:$E$74, 0), MATCH(CE$4, RAB_years, 0)) -> 0
D40: 23 | E40: ='RAB input'!E47 -> 0 | I40: =INDEX('RAB input'!$H$25:$XFD$74, MATCH($E40, 'RAB input'!$E$25:$E$74, 0), MATCH(I$4, RAB_years, 0)) -> 0 | J40: =INDEX('RAB input'!$H$25:$XFD$74, MATCH($E40, 'RAB input'!$E$25:$E$74, 0), MATCH(J$4, RAB_years, 0)) -> 0 | K40: =INDEX('RAB input'!$H$25:$XFD$74, MATCH($E40, 'RAB input'!$E$25:$E$74, 0), MATCH(K$4, RAB_years, 0)) -> 0 | L40: =INDEX('RAB input'!$H$25:$XFD$74, MATCH($E40, 'RAB input'!$E$25:$E$74, 0), MATCH(L$4, RAB_years, 0)) -> 0 | M40: =INDEX('RAB input'!$H$25:$XFD$74, MATCH($E40, 'RAB input'!$E$25:$E$74, 0), MATCH(M$4, RAB_years, 0)) -> 0 | N40: =INDEX('RAB input'!$H$25:$XFD$74, MATCH($E40, 'RAB input'!$E$25:$E$74, 0), MATCH(N$4, RAB_years, 0)) -> 0 | O40: =INDEX('RAB input'!$H$25:$XFD$74, MATCH($E40, 'RAB input'!$E$25:$E$74, 0), MATCH(O$4, RAB_years, 0)) -> 0 | P40: =INDEX('RAB input'!$H$25:$XFD$74, MATCH($E40, 'RAB input'!$E$25:$E$74, 0), MATCH(P$4, RAB_years, 0)) -> 0 | Q40: =INDEX('RAB input'!$H$25:$XFD$74, MATCH($E40, 'RAB input'!$E$25:$E$74, 0), MATCH(Q$4, RAB_years, 0)) -> 0 | R40: =INDEX('RAB input'!$H$25:$XFD$74, MATCH($E40, 'RAB input'!$E$25:$E$74, 0), MATCH(R$4, RAB_years, 0)) -> 0 | S40: =INDEX('RAB input'!$H$25:$XFD$74, MATCH($E40, 'RAB input'!$E$25:$E$74, 0), MATCH(S$4, RAB_years, 0)) -> 0 | T40: =INDEX('RAB input'!$H$25:$XFD$74, MATCH($E40, 'RAB input'!$E$25:$E$74, 0), MATCH(T$4, RAB_years, 0)) -> 0 | U40: =INDEX('RAB input'!$H$25:$XFD$74, MATCH($E40, 'RAB input'!$E$25:$E$74, 0), MATCH(U$4, RAB_years, 0)) -> 0 | V40: =INDEX('RAB input'!$H$25:$XFD$74, MATCH($E40, 'RAB input'!$E$25:$E$74, 0), MATCH(V$4, RAB_years, 0)) -> 0 | W40: =INDEX('RAB input'!$H$25:$XFD$74, MATCH($E40, 'RAB input'!$E$25:$E$74, 0), MATCH(W$4, RAB_years, 0)) -> 0 | X40: =INDEX('RAB input'!$H$25:$XFD$74, MATCH($E40, 'RAB input'!$E$25:$E$74, 0), MATCH(X$4, RAB_years, 0)) -> 0 | Y40: =INDEX('RAB input'!$H$25:$XFD$74, MATCH($E40, 'RAB input'!$E$25:$E$74, 0), MATCH(Y$4, RAB_years, 0)) -> 0 | Z40: =INDEX('RAB input'!$H$25:$XFD$74, MATCH($E40, 'RAB input'!$E$25:$E$74, 0), MATCH(Z$4, RAB_years, 0)) -> 0 | AA40: =INDEX('RAB input'!$H$25:$XFD$74, MATCH($E40, 'RAB input'!$E$25:$E$74, 0), MATCH(AA$4, RAB_years, 0)) -> 0 | AB40: =INDEX('RAB input'!$H$25:$XFD$74, MATCH($E40, 'RAB input'!$E$25:$E$74, 0), MATCH(AB$4, RAB_years, 0)) -> 0 | AC40: =INDEX('RAB input'!$H$25:$XFD$74, MATCH($E40, 'RAB input'!$E$25:$E$74, 0), MATCH(AC$4, RAB_years, 0)) -> 0 | AD40: =INDEX('RAB input'!$H$25:$XFD$74, MATCH($E40, 'RAB input'!$E$25:$E$74, 0), MATCH(AD$4, RAB_years, 0)) -> 0 | AE40: =INDEX('RAB input'!$H$25:$XFD$74, MATCH($E40, 'RAB input'!$E$25:$E$74, 0), MATCH(AE$4, RAB_years, 0)) -> 0 | AF40: =INDEX('RAB input'!$H$25:$XFD$74, MATCH($E40, 'RAB input'!$E$25:$E$74, 0), MATCH(AF$4, RAB_years, 0)) -> 0 | AG40: =INDEX('RAB input'!$H$25:$XFD$74, MATCH($E40, 'RAB input'!$E$25:$E$74, 0), MATCH(AG$4, RAB_years, 0)) -> 0 | AH40: =INDEX('RAB input'!$H$25:$XFD$74, MATCH($E40, 'RAB input'!$E$25:$E$74, 0), MATCH(AH$4, RAB_years, 0)) -> 0 | AI40: =INDEX('RAB input'!$H$25:$XFD$74, MATCH($E40, 'RAB input'!$E$25:$E$74, 0), MATCH(AI$4, RAB_years, 0)) -> 0 | AJ40: =INDEX('RAB input'!$H$25:$XFD$74, MATCH($E40, 'RAB input'!$E$25:$E$74, 0), MATCH(AJ$4, RAB_years, 0)) -> 0 | AK40: =INDEX('RAB input'!$H$25:$XFD$74, MATCH($E40, 'RAB input'!$E$25:$E$74, 0), MATCH(AK$4, RAB_years, 0)) -> 0 | AL40: =INDEX('RAB input'!$H$25:$XFD$74, MATCH($E40, 'RAB input'!$E$25:$E$74, 0), MATCH(AL$4, RAB_years, 0)) -> 0 | AM40: =INDEX('RAB input'!$H$25:$XFD$74, MATCH($E40, 'RAB input'!$E$25:$E$74, 0), MATCH(AM$4, RAB_years, 0)) -> 0 | AN40: =INDEX('RAB input'!$H$25:$XFD$74, MATCH($E40, 'RAB input'!$E$25:$E$74, 0), MATCH(AN$4, RAB_years, 0)) -> 0 | AO40: =INDEX('RAB input'!$H$25:$XFD$74, MATCH($E40, 'RAB input'!$E$25:$E$74, 0), MATCH(AO$4, RAB_years, 0)) -> 0 | AP40: =INDEX('RAB input'!$H$25:$XFD$74, MATCH($E40, 'RAB input'!$E$25:$E$74, 0), MATCH(AP$4, RAB_years, 0)) -> 0 | AQ40: =INDEX('RAB input'!$H$25:$XFD$74, MATCH($E40, 'RAB input'!$E$25:$E$74, 0), MATCH(AQ$4, RAB_years, 0)) -> 0 | AR40: =INDEX('RAB input'!$H$25:$XFD$74, MATCH($E40, 'RAB input'!$E$25:$E$74, 0), MATCH(AR$4, RAB_years, 0)) -> 0 | AS40: =INDEX('RAB input'!$H$25:$XFD$74, MATCH($E40, 'RAB input'!$E$25:$E$74, 0), MATCH(AS$4, RAB_years, 0)) -> 0 | AT40: =INDEX('RAB input'!$H$25:$XFD$74, MATCH($E40, 'RAB input'!$E$25:$E$74, 0), MATCH(AT$4, RAB_years, 0)) -> 0 | AU40: =INDEX('RAB input'!$H$25:$XFD$74, MATCH($E40, 'RAB input'!$E$25:$E$74, 0), MATCH(AU$4, RAB_years, 0)) -> 0 | AV40: =INDEX('RAB input'!$H$25:$XFD$74, MATCH($E40, 'RAB input'!$E$25:$E$74, 0), MATCH(AV$4, RAB_years, 0)) -> 0 | AW40: =INDEX('RAB input'!$H$25:$XFD$74, MATCH($E40, 'RAB input'!$E$25:$E$74, 0), MATCH(AW$4, RAB_years, 0)) -> 0 | AX40: =INDEX('RAB input'!$H$25:$XFD$74, MATCH($E40, 'RAB input'!$E$25:$E$74, 0), MATCH(AX$4, RAB_years, 0)) -> 0 | AY40: =INDEX('RAB input'!$H$25:$XFD$74, MATCH($E40, 'RAB input'!$E$25:$E$74, 0), MATCH(AY$4, RAB_years, 0)) -> 0 | AZ40: =INDEX('RAB input'!$H$25:$XFD$74, MATCH($E40, 'RAB input'!$E$25:$E$74, 0), MATCH(AZ$4, RAB_years, 0)) -> 0 | BA40: =INDEX('RAB input'!$H$25:$XFD$74, MATCH($E40, 'RAB input'!$E$25:$E$74, 0), MATCH(BA$4, RAB_years, 0)) -> 0 | BB40: =INDEX('RAB input'!$H$25:$XFD$74, MATCH($E40, 'RAB input'!$E$25:$E$74, 0), MATCH(BB$4, RAB_years, 0)) -> 0 | BC40: =INDEX('RAB input'!$H$25:$XFD$74, MATCH($E40, 'RAB input'!$E$25:$E$74, 0), MATCH(BC$4, RAB_years, 0)) -> 0 | BD40: =INDEX('RAB input'!$H$25:$XFD$74, MATCH($E40, 'RAB input'!$E$25:$E$74, 0), MATCH(BD$4, RAB_years, 0)) -> 0 | BE40: =INDEX('RAB input'!$H$25:$XFD$74, MATCH($E40, 'RAB input'!$E$25:$E$74, 0), MATCH(BE$4, RAB_years, 0)) -> 0 | BF40: =INDEX('RAB input'!$H$25:$XFD$74, MATCH($E40, 'RAB input'!$E$25:$E$74, 0), MATCH(BF$4, RAB_years, 0)) -> 0 | BG40: =INDEX('RAB input'!$H$25:$XFD$74, MATCH($E40, 'RAB input'!$E$25:$E$74, 0), MATCH(BG$4, RAB_years, 0)) -> 0 | BH40: =INDEX('RAB input'!$H$25:$XFD$74, MATCH($E40, 'RAB input'!$E$25:$E$74, 0), MATCH(BH$4, RAB_years, 0)) -> 0 | BI40: =INDEX('RAB input'!$H$25:$XFD$74, MATCH($E40, 'RAB input'!$E$25:$E$74, 0), MATCH(BI$4, RAB_years, 0)) -> 0 | BJ40: =INDEX('RAB input'!$H$25:$XFD$74, MATCH($E40, 'RAB input'!$E$25:$E$74, 0), MATCH(BJ$4, RAB_years, 0)) -> 0 | BK40: =INDEX('RAB input'!$H$25:$XFD$74, MATCH($E40, 'RAB input'!$E$25:$E$74, 0), MATCH(BK$4, RAB_years, 0)) -> 0 | BL40: =INDEX('RAB input'!$H$25:$XFD$74, MATCH($E40, 'RAB input'!$E$25:$E$74, 0), MATCH(BL$4, RAB_years, 0)) -> 0 | BM40: =INDEX('RAB input'!$H$25:$XFD$74, MATCH($E40, 'RAB input'!$E$25:$E$74, 0), MATCH(BM$4, RAB_years, 0)) -> 0 | BN40: =INDEX('RAB input'!$H$25:$XFD$74, MATCH($E40, 'RAB input'!$E$25:$E$74, 0), MATCH(BN$4, RAB_years, 0)) -> 0 | BO40: =INDEX('RAB input'!$H$25:$XFD$74, MATCH($E40, 'RAB input'!$E$25:$E$74, 0), MATCH(BO$4, RAB_years, 0)) -> 0 | BP40: =INDEX('RAB input'!$H$25:$XFD$74, MATCH($E40, 'RAB input'!$E$25:$E$74, 0), MATCH(BP$4, RAB_years, 0)) -> 0 | BQ40: =INDEX('RAB input'!$H$25:$XFD$74, MATCH($E40, 'RAB input'!$E$25:$E$74, 0), MATCH(BQ$4, RAB_years, 0)) -> 0 | BR40: =INDEX('RAB input'!$H$25:$XFD$74, MATCH($E40, 'RAB input'!$E$25:$E$74, 0), MATCH(BR$4, RAB_years, 0)) -> 0 | BS40: =INDEX('RAB input'!$H$25:$XFD$74, MATCH($E40, 'RAB input'!$E$25:$E$74, 0), MATCH(BS$4, RAB_years, 0)) -> 0 | BT40: =INDEX('RAB input'!$H$25:$XFD$74, MATCH($E40, 'RAB input'!$E$25:$E$74, 0), MATCH(BT$4, RAB_years, 0)) -> 0 | BU40: =INDEX('RAB input'!$H$25:$XFD$74, MATCH($E40, 'RAB input'!$E$25:$E$74, 0), MATCH(BU$4, RAB_years, 0)) -> 0 | BV40: =INDEX('RAB input'!$H$25:$XFD$74, MATCH($E40, 'RAB input'!$E$25:$E$74, 0), MATCH(BV$4, RAB_years, 0)) -> 0 | BW40: =INDEX('RAB input'!$H$25:$XFD$74, MATCH($E40, 'RAB input'!$E$25:$E$74, 0), MATCH(BW$4, RAB_years, 0)) -> 0 | BX40: =INDEX('RAB input'!$H$25:$XFD$74, MATCH($E40, 'RAB input'!$E$25:$E$74, 0), MATCH(BX$4, RAB_years, 0)) -> 0 | BY40: =INDEX('RAB input'!$H$25:$XFD$74, MATCH($E40, 'RAB input'!$E$25:$E$74, 0), MATCH(BY$4, RAB_years, 0)) -> 0 | BZ40: =INDEX('RAB input'!$H$25:$XFD$74, MATCH($E40, 'RAB input'!$E$25:$E$74, 0), MATCH(BZ$4, RAB_years, 0)) -> 0 | CA40: =INDEX('RAB input'!$H$25:$XFD$74, MATCH($E40, 'RAB input'!$E$25:$E$74, 0), MATCH(CA$4, RAB_years, 0)) -> 0 | CB40: =INDEX('RAB input'!$H$25:$XFD$74, MATCH($E40, 'RAB input'!$E$25:$E$74, 0), MATCH(CB$4, RAB_years, 0)) -> 0 | CC40: =INDEX('RAB input'!$H$25:$XFD$74, MATCH($E40, 'RAB input'!$E$25:$E$74, 0), MATCH(CC$4, RAB_years, 0)) -> 0 | CD40: =INDEX('RAB input'!$H$25:$XFD$74, MATCH($E40, 'RAB input'!$E$25:$E$74, 0), MATCH(CD$4, RAB_years, 0)) -> 0 | CE40: =INDEX('RAB input'!$H$25:$XFD$74, MATCH($E40, 'RAB input'!$E$25:$E$74, 0), MATCH(CE$4, RAB_years, 0)) -> 0
D41: 24 | E41: ='RAB input'!E48 -> 0 | I41: =INDEX('RAB input'!$H$25:$XFD$74, MATCH($E41, 'RAB input'!$E$25:$E$74, 0), MATCH(I$4, RAB_years, 0)) -> 0 | J41: =INDEX('RAB input'!$H$25:$XFD$74, MATCH($E41, 'RAB input'!$E$25:$E$74, 0), MATCH(J$4, RAB_years, 0)) -> 0 | K41: =INDEX('RAB input'!$H$25:$XFD$74, MATCH($E41, 'RAB input'!$E$25:$E$74, 0), MATCH(K$4, RAB_years, 0)) -> 0 | L41: =INDEX('RAB input'!$H$25:$XFD$74, MATCH($E41, 'RAB input'!$E$25:$E$74, 0), MATCH(L$4, RAB_years, 0)) -> 0 | M41: =INDEX('RAB input'!$H$25:$XFD$74, MATCH($E41, 'RAB input'!$E$25:$E$74, 0), MATCH(M$4, RAB_years, 0)) -> 0 | N41: =INDEX('RAB input'!$H$25:$XFD$74, MATCH($E41, 'RAB input'!$E$25:$E$74, 0), MATCH(N$4, RAB_years, 0)) -> 0 | O41: =INDEX('RAB input'!$H$25:$XFD$74, MATCH($E41, 'RAB input'!$E$25:$E$74, 0), MATCH(O$4, RAB_years, 0)) -> 0 | P41: =INDEX('RAB input'!$H$25:$XFD$74, MATCH($E41, 'RAB input'!$E$25:$E$74, 0), MATCH(P$4, RAB_years, 0)) -> 0 | Q41: =INDEX('RAB input'!$H$25:$XFD$74, MATCH($E41, 'RAB input'!$E$25:$E$74, 0), MATCH(Q$4, RAB_years, 0)) -> 0 | R41: =INDEX('RAB input'!$H$25:$XFD$74, MATCH($E41, 'RAB input'!$E$25:$E$74, 0), MATCH(R$4, RAB_years, 0)) -> 0 | S41: =INDEX('RAB input'!$H$25:$XFD$74, MATCH($E41, 'RAB input'!$E$25:$E$74, 0), MATCH(S$4, RAB_years, 0)) -> 0 | T41: =INDEX('RAB input'!$H$25:$XFD$74, MATCH($E41, 'RAB input'!$E$25:$E$74, 0), MATCH(T$4, RAB_years, 0)) -> 0 | U41: =INDEX('RAB input'!$H$25:$XFD$74, MATCH($E41, 'RAB input'!$E$25:$E$74, 0), MATCH(U$4, RAB_years, 0)) -> 0 | V41: =INDEX('RAB input'!$H$25:$XFD$74, MATCH($E41, 'RAB input'!$E$25:$E$74, 0), MATCH(V$4, RAB_years, 0)) -> 0 | W41: =INDEX('RAB input'!$H$25:$XFD$74, MATCH($E41, 'RAB input'!$E$25:$E$74, 0), MATCH(W$4, RAB_years, 0)) -> 0 | X41: =INDEX('RAB input'!$H$25:$XFD$74, MATCH($E41, 'RAB input'!$E$25:$E$74, 0), MATCH(X$4, RAB_years, 0)) -> 0 | Y41: =INDEX('RAB input'!$H$25:$XFD$74, MATCH($E41, 'RAB input'!$E$25:$E$74, 0), MATCH(Y$4, RAB_years, 0)) -> 0 | Z41: =INDEX('RAB input'!$H$25:$XFD$74, MATCH($E41, 'RAB input'!$E$25:$E$74, 0), MATCH(Z$4, RAB_years, 0)) -> 0 | AA41: =INDEX('RAB input'!$H$25:$XFD$74, MATCH($E41, 'RAB input'!$E$25:$E$74, 0), MATCH(AA$4, RAB_years, 0)) -> 0 | AB41: =INDEX('RAB input'!$H$25:$XFD$74, MATCH($E41, 'RAB input'!$E$25:$E$74, 0), MATCH(AB$4, RAB_years, 0)) -> 0 | AC41: =INDEX('RAB input'!$H$25:$XFD$74, MATCH($E41, 'RAB input'!$E$25:$E$74, 0), MATCH(AC$4, RAB_years, 0)) -> 0 | AD41: =INDEX('RAB input'!$H$25:$XFD$74, MATCH($E41, 'RAB input'!$E$25:$E$74, 0), MATCH(AD$4, RAB_years, 0)) -> 0 | AE41: =INDEX('RAB input'!$H$25:$XFD$74, MATCH($E41, 'RAB input'!$E$25:$E$74, 0), MATCH(AE$4, RAB_years, 0)) -> 0 | AF41: =INDEX('RAB input'!$H$25:$XFD$74, MATCH($E41, 'RAB input'!$E$25:$E$74, 0), MATCH(AF$4, RAB_years, 0)) -> 0 | AG41: =INDEX('RAB input'!$H$25:$XFD$74, MATCH($E41, 'RAB input'!$E$25:$E$74, 0), MATCH(AG$4, RAB_years, 0)) -> 0 | AH41: =INDEX('RAB input'!$H$25:$XFD$74, MATCH($E41, 'RAB input'!$E$25:$E$74, 0), MATCH(AH$4, RAB_years, 0)) -> 0 | AI41: =INDEX('RAB input'!$H$25:$XFD$74, MATCH($E41, 'RAB input'!$E$25:$E$74, 0), MATCH(AI$4, RAB_years, 0)) -> 0 | AJ41: =INDEX('RAB input'!$H$25:$XFD$74, MATCH($E41, 'RAB input'!$E$25:$E$74, 0), MATCH(AJ$4, RAB_years, 0)) -> 0 | AK41: =INDEX('RAB input'!$H$25:$XFD$74, MATCH($E41, 'RAB input'!$E$25:$E$74, 0), MATCH(AK$4, RAB_years, 0)) -> 0 | AL41: =INDEX('RAB input'!$H$25:$XFD$74, MATCH($E41, 'RAB input'!$E$25:$E$74, 0), MATCH(AL$4, RAB_years, 0)) -> 0 | AM41: =INDEX('RAB input'!$H$25:$XFD$74, MATCH($E41, 'RAB input'!$E$25:$E$74, 0), MATCH(AM$4, RAB_years, 0)) -> 0 | AN41: =INDEX('RAB input'!$H$25:$XFD$74, MATCH($E41, 'RAB input'!$E$25:$E$74, 0), MATCH(AN$4, RAB_years, 0)) -> 0 | AO41: =INDEX('RAB input'!$H$25:$XFD$74, MATCH($E41, 'RAB input'!$E$25:$E$74, 0), MATCH(AO$4, RAB_years, 0)) -> 0 | AP41: =INDEX('RAB input'!$H$25:$XFD$74, MATCH($E41, 'RAB input'!$E$25:$E$74, 0), MATCH(AP$4, RAB_years, 0)) -> 0 | AQ41: =INDEX('RAB input'!$H$25:$XFD$74, MATCH($E41, 'RAB input'!$E$25:$E$74, 0), MATCH(AQ$4, RAB_years, 0)) -> 0 | AR41: =INDEX('RAB input'!$H$25:$XFD$74, MATCH($E41, 'RAB input'!$E$25:$E$74, 0), MATCH(AR$4, RAB_years, 0)) -> 0 | AS41: =INDEX('RAB input'!$H$25:$XFD$74, MATCH($E41, 'RAB input'!$E$25:$E$74, 0), MATCH(AS$4, RAB_years, 0)) -> 0 | AT41: =INDEX('RAB input'!$H$25:$XFD$74, MATCH($E41, 'RAB input'!$E$25:$E$74, 0), MATCH(AT$4, RAB_years, 0)) -> 0 | AU41: =INDEX('RAB input'!$H$25:$XFD$74, MATCH($E41, 'RAB input'!$E$25:$E$74, 0), MATCH(AU$4, RAB_years, 0)) -> 0 | AV41: =INDEX('RAB input'!$H$25:$XFD$74, MATCH($E41, 'RAB input'!$E$25:$E$74, 0), MATCH(AV$4, RAB_years, 0)) -> 0 | AW41: =INDEX('RAB input'!$H$25:$XFD$74, MATCH($E41, 'RAB input'!$E$25:$E$74, 0), MATCH(AW$4, RAB_years, 0)) -> 0 | AX41: =INDEX('RAB input'!$H$25:$XFD$74, MATCH($E41, 'RAB input'!$E$25:$E$74, 0), MATCH(AX$4, RAB_years, 0)) -> 0 | AY41: =INDEX('RAB input'!$H$25:$XFD$74, MATCH($E41, 'RAB input'!$E$25:$E$74, 0), MATCH(AY$4, RAB_years, 0)) -> 0 | AZ41: =INDEX('RAB input'!$H$25:$XFD$74, MATCH($E41, 'RAB input'!$E$25:$E$74, 0), MATCH(AZ$4, RAB_years, 0)) -> 0 | BA41: =INDEX('RAB input'!$H$25:$XFD$74, MATCH($E41, 'RAB input'!$E$25:$E$74, 0), MATCH(BA$4, RAB_years, 0)) -> 0 | BB41: =INDEX('RAB input'!$H$25:$XFD$74, MATCH($E41, 'RAB input'!$E$25:$E$74, 0), MATCH(BB$4, RAB_years, 0)) -> 0 | BC41: =INDEX('RAB input'!$H$25:$XFD$74, MATCH($E41, 'RAB input'!$E$25:$E$74, 0), MATCH(BC$4, RAB_years, 0)) -> 0 | BD41: =INDEX('RAB input'!$H$25:$XFD$74, MATCH($E41, 'RAB input'!$E$25:$E$74, 0), MATCH(BD$4, RAB_years, 0)) -> 0 | BE41: =INDEX('RAB input'!$H$25:$XFD$74, MATCH($E41, 'RAB input'!$E$25:$E$74, 0), MATCH(BE$4, RAB_years, 0)) -> 0 | BF41: =INDEX('RAB input'!$H$25:$XFD$74, MATCH($E41, 'RAB input'!$E$25:$E$74, 0), MATCH(BF$4, RAB_years, 0)) -> 0 | BG41: =INDEX('RAB input'!$H$25:$XFD$74, MATCH($E41, 'RAB input'!$E$25:$E$74, 0), MATCH(BG$4, RAB_years, 0)) -> 0 | BH41: =INDEX('RAB input'!$H$25:$XFD$74, MATCH($E41, 'RAB input'!$E$25:$E$74, 0), MATCH(BH$4, RAB_years, 0)) -> 0 | BI41: =INDEX('RAB input'!$H$25:$XFD$74, MATCH($E41, 'RAB input'!$E$25:$E$74, 0), MATCH(BI$4, RAB_years, 0)) -> 0 | BJ41: =INDEX('RAB input'!$H$25:$XFD$74, MATCH($E41, 'RAB input'!$E$25:$E$74, 0), MATCH(BJ$4, RAB_years, 0)) -> 0 | BK41: =INDEX('RAB input'!$H$25:$XFD$74, MATCH($E41, 'RAB input'!$E$25:$E$74, 0), MATCH(BK$4, RAB_years, 0)) -> 0 | BL41: =INDEX('RAB input'!$H$25:$XFD$74, MATCH($E41, 'RAB input'!$E$25:$E$74, 0), MATCH(BL$4, RAB_years, 0)) -> 0 | BM41: =INDEX('RAB input'!$H$25:$XFD$74, MATCH($E41, 'RAB input'!$E$25:$E$74, 0), MATCH(BM$4, RAB_years, 0)) -> 0 | BN41: =INDEX('RAB input'!$H$25:$XFD$74, MATCH($E41, 'RAB input'!$E$25:$E$74, 0), MATCH(BN$4, RAB_years, 0)) -> 0 | BO41: =INDEX('RAB input'!$H$25:$XFD$74, MATCH($E41, 'RAB input'!$E$25:$E$74, 0), MATCH(BO$4, RAB_years, 0)) -> 0 | BP41: =INDEX('RAB input'!$H$25:$XFD$74, MATCH($E41, 'RAB input'!$E$25:$E$74, 0), MATCH(BP$4, RAB_years, 0)) -> 0 | BQ41: =INDEX('RAB input'!$H$25:$XFD$74, MATCH($E41, 'RAB input'!$E$25:$E$74, 0), MATCH(BQ$4, RAB_years, 0)) -> 0 | BR41: =INDEX('RAB input'!$H$25:$XFD$74, MATCH($E41, 'RAB input'!$E$25:$E$74, 0), MATCH(BR$4, RAB_years, 0)) -> 0 | BS41: =INDEX('RAB input'!$H$25:$XFD$74, MATCH($E41, 'RAB input'!$E$25:$E$74, 0), MATCH(BS$4, RAB_years, 0)) -> 0 | BT41: =INDEX('RAB input'!$H$25:$XFD$74, MATCH($E41, 'RAB input'!$E$25:$E$74, 0), MATCH(BT$4, RAB_years, 0)) -> 0 | BU41: =INDEX('RAB input'!$H$25:$XFD$74, MATCH($E41, 'RAB input'!$E$25:$E$74, 0), MATCH(BU$4, RAB_years, 0)) -> 0 | BV41: =INDEX('RAB input'!$H$25:$XFD$74, MATCH($E41, 'RAB input'!$E$25:$E$74, 0), MATCH(BV$4, RAB_years, 0)) -> 0 | BW41: =INDEX('RAB input'!$H$25:$XFD$74, MATCH($E41, 'RAB input'!$E$25:$E$74, 0), MATCH(BW$4, RAB_years, 0)) -> 0 | BX41: =INDEX('RAB input'!$H$25:$XFD$74, MATCH($E41, 'RAB input'!$E$25:$E$74, 0), MATCH(BX$4, RAB_years, 0)) -> 0 | BY41: =INDEX('RAB input'!$H$25:$XFD$74, MATCH($E41, 'RAB input'!$E$25:$E$74, 0), MATCH(BY$4, RAB_years, 0)) -> 0 | BZ41: =INDEX('RAB input'!$H$25:$XFD$74, MATCH($E41, 'RAB input'!$E$25:$E$74, 0), MATCH(BZ$4, RAB_years, 0)) -> 0 | CA41: =INDEX('RAB input'!$H$25:$XFD$74, MATCH($E41, 'RAB input'!$E$25:$E$74, 0), MATCH(CA$4, RAB_years, 0)) -> 0 | CB41: =INDEX('RAB input'!$H$25:$XFD$74, MATCH($E41, 'RAB input'!$E$25:$E$74, 0), MATCH(CB$4, RAB_years, 0)) -> 0 | CC41: =INDEX('RAB input'!$H$25:$XFD$74, MATCH($E41, 'RAB input'!$E$25:$E$74, 0), MATCH(CC$4, RAB_years, 0)) -> 0 | CD41: =INDEX('RAB input'!$H$25:$XFD$74, MATCH($E41, 'RAB input'!$E$25:$E$74, 0), MATCH(CD$4, RAB_years, 0)) -> 0 | CE41: =INDEX('RAB input'!$H$25:$XFD$74, MATCH($E41, 'RAB input'!$E$25:$E$74, 0), MATCH(CE$4, RAB_years, 0)) -> 0
